Workbook

Sheet NOTES
A2: The model has actual and test data to illustrate the workings of the model.
A4: Issue | B4: Location | C4: Item | D4: Comment
A5: 1 | B5: Model update'!F37:F41 | C5: Real Vanilla WACC (rvw) | D5: Values updated for 2018 cost of debt
A7: =A5+1 -> 2 | B7: Model update'!F54:F58 | C7: DuoS Xt for2018 | D7: Values updated for 2018 cost of debt
A9: =A7+1 -> 3 | B9: Model update'!F66:F70 | C9: Metering Xt for2018 | D9: Values updated for 2018 cost of debt
A11: =A9+1 -> 4 | B11: Model update'!F94:F98 | C11: Ifactor (t) 2018 | D11: Values updated
A13: =A11+1 -> 5 | B13: Model update'!F105:F109 | C13: S factor (t) 2018 | D13: Values updated for 2018 cost of debt
A15: =A13+1 -> 6 | B15: Model update'!F127:F131 | C15: Licence Fee (t-1) 2017 | D15: Values may require updating
A17: =A15+1 -> 7 | B17: The following is test data to illustrate the workings of the model. | D17: Input data required from DNSPs
B18: Metering!D8:D10 | C18: Proposed Metering Tariffs P(t) for 2018
B19: Metering!F8:F10 | C19: Forecast Quantities (Qt) for 2018
B20: Metering!D80:D82 | C20: Estimated Quantities (Qt-1) for 2017
B22: Prop2018DistTar!D7:W54 | C22: Proposed Distribution Tariffs (Pt) for 2018
B23: Prop2018DistTar!AV27:BO54 | C23: Forecast Quantities (Qt) for 2018
B24: Est2017DistRev!Z7:AS54 | C24: Estimated Distribution Quantities for 2017 (Qt-1)
B26: Prop2018TransTar!D7:W54 | C26: Proposed Transmission Tariffs (Pt) for 2018
B27: 2018TransRevCont'!C20:C23 | C27: Table 3 - Transmission charges for year t
B28: 2018TransRevCont'!D42:D45 | C28: Transmission charges for year t-1
B30: Prop2018JSTar!D7:W54 | C30: Proposed Jurisdictional scheme Tariffs (Pt) for 2018
B31: 2018JSRevCont'!C20:C21 | C31: Table 3 - PFIT & TFIT charges for year t
B32: 2018JSRevCont'!D40:D41 | C32: PFIT & TFIT charges for year t-1

Sheet Formulae
B2: DUoS
B3: Figure 14.1 Revenue cap formulae
B4: (1) | H4: i=1,..,n and j=1,..,m and t=1,..,5
B5: (2) | H5: t = 1,2,…,5
B6: (3) | H6: t = 1
B7: (4) | H7: t = 2,…,5
B9: where;
C10: is the total annual revenue in year t.
D11: is the price of component 'j' of tariff 'i' in year t.
D12: is the forecast quantity of component 'j' of tariff 'i' in year t.
C13: is the adjusted annual smoothed revenue requirement for year t.
D14: is the annual adjustment f–factor scheme amount in year t. This amount will be calculated as per the method set out in the relevant f–factor scheme.
D15: is the sum of:
B16: · the final carryover amount from the application of the DMIS from the 2011–15 regulatory control period. This amount will be calculated using the method set out in the DMIS and will be deducted from/added to allowed revenue in the 2017 pricing proposal.
D17: is the sum of:
B18: · the recovery of license fee charges by the Victorian Essential Services Commission indexed by one and a half years of interest, calculated using the following method:
B20: where:
C21: are the licence fees paid by DNSP to the Victorian Essential Services Commission in the financial year ending in June of regulatory year t–1,
C22: is the approved nominal weighted average cost of capital (WACC) for the relevant regulatory year using the following method:
B25: · any under or over recovery of actual revenue collected through DUoS charges in regulatory year t–2 as calculated using the method in appendix A,
B26: · the AER approved pass through amounts (positive or negative) with respect to regulatory year t.
C27: is the annual smoothed revenue requirement as stated in the Post Tax Revenue Model (PTRM) for year t (when year t is the first year of the 2016–20 regulatory control period).[43]
C28: is the s‑factor determined in accordance with the service target performance incentive scheme (STPIS) for regulatory year t.[44]
C29: is the annual percentage change in the ABS CPI All Groups, Weighted Average of Eight Capital Cities[45] from the June quarter in year t–2 to the June quarter in year t–1, calculated using the following method :
B30: The ABS CPI All Groups, Weighted Average of Eight Capital Cities for the June quarter in regulatory year t–1
B31: divided by
B32: The ABS CPI All Groups, Weighted Average of Eight Capital Cities for the June quarter in regulatory year t–2
B33: minus one.
B34: For example, for the 2017 regulatory year, t–2 is June quarter 2015 and t–1 is June quarter 2016 and for the 2018 regulatory year, t–2 is June quarter 2016 and t–1 is June quarter 2017 and so on.
C35: is the X factor for each year of the 2016–20 regulatory control period as determined in the PTRM, and annually revised for the return on debt update in accordance with the formula specified in attachment 3—rate of return—calculated for the relevant year.
B38: [43] | C38: Our final F&A stated that if necessary an adjustment for inflation may be required to the annual smoothed revenue requirement for year t. However, as the annual smoothed revenue requirement for year t as stated in our preliminary decision PTRM is in nominal dollars there is no need to adjust it for inflation. This approach is consistent with past regulatory practice.
B39: [44] | C39: For the first two regulatory years of the 2016–20 regulatory control period, the value of St is to be adjusted to account for the change in revenue requirements between the regulatory control periods, as explained in attachment 11. In the formulas in the STPIS, the AR(t+1) is equivalent to ARt in this formula. Calculations of the S factor adjustment are to be made accordingly.
B40: [45] | C40: If the ABS does not or ceases to publish the index, then CPI will mean an index which the AER considers is the best available alternative index
B44: Figure 14.2 Side constraints [46]
C50: where each tariff class has "n" tariffs, with each up to "m" components, and where:
D51: is the proposed price for component ‘j’ of tariff 'i' for year t.
C52: is the price charged for component ‘j’ of tariff 'i' in year t–1.
D53: is the forecast quantity of component ‘j’ of tariff 'i' in year t.
C54: is the annual percentage change in the ABS CPI All Groups, Weighted Average of Eight Capital Cities[4] from the June quarter in year t–2 to the June quarter in year t–1, calculated using the following method :
C55: The ABS CPI All Groups, Weighted Average of Eight Capital Cities[47] for the June quarter in regulatory year t–1
C56: divided by
C57: The ABS CPI All Groups, Weighted Average of Eight Capital Cities for the June quarter in regulatory year t–2
C58: minus one.
B59: For example, for the 2017 regulatory year, t–2 is June quarter 2015 and t–1 is June quarter 2016 and for the 2018 regulatory year, t–2 is June quarter 2016 and t–1 is June quarter 2017 and so on.
D60: is the X factor for each year of the 2016–20 regulatory control period as determined in the PTRM, and annually revised for the return on debt update in accordance with the formula specified in attachment 3—rate of return—calculated for the relevant year. If X>0, then X will be set equal to zero for the purposes of the side constraint formula.
C61: is the s‑factor determined in accordance with the STPIS for regulatory year t.[5]
D62: is the annual percentage change from the f–factor scheme amount in year t. This amount will be calculated as per the method set out in attachment 19—f–factor scheme.
D63: is the annual percentage change from the final carryover amount from the application of the DMIS from the 2011–15 regulatory control period. This amount will be calculated using the method set out in the DMIS and will be deducted from/added to allowed revenue in the 2017 pricing proposal.
D64: is annual percentage change from the sum of:
B65: · the recovery of license fee charges by the Victorian Essential Services Commission indexed by one and a half years of interest, calculated using the following method:
B67: where:
B68: are the licence fees paid byDNSP to the Victorian Essential Services Commission in the financial year ending in June of regulatory year t–1,
C69: is the approved nominal weighted average cost of capital (WACC) for the relevant regulatory year using the following method:
B72: where the
B73: is as set out in our final decision PTRM and updated annually
B74: · the AER approved pass through amounts (positive or negative) with respect to regulatory year t.
B75: With the exception of the CPI, X factor and S factor, the percentage for each of the other factors above can be calculated by dividing the incremental revenues (as used in the total annual revenue formula) for each factor by the expected revenues for regulatory year t–1 (based on the prices in year t–1 multiplied by the forecast quantities for year t).
B77: [46] | C77: All parameters are in nominal terms unless otherwise specified.
B78: [47] | C78: If the ABS does not or ceases to publish the index, then CPI will mean an index which the AER considers is the best available alternative index.
H83: Table 14.1 | I83: Example calculation of DUoS unders and overs account ($'000, nominal)
I84: Year t–2 | J84: Year t–1 | K84: Year t
I85: (actual) | J85: (estimate) | K85: (forecast)
H86: (A) Revenue from DUoS charges | I86: 46 779 | J86: 40 269 | K86: 39 510
H87: (B) Less TAR for regulatory year = | I87: 43 039 | J87: 41 427 | K87: 44 429
H88: + Adjusted annual smoothed revenues (AARt) | I88: 40 189 | J88: 41 393 | K88: 44 393
H89: + f–factor scheme amount (It) | I89: –12 | J89: 10 | K89: 14
H90: + DMIS carryover amount (Tt) | I90: 1013 | J90: 0 | K90: 0
H91: + Annual adjustments (Bt)a = | I91: 1849 | J91: 24 | K91: 22
H92: + License fee recovery | I92: 25 | J92: 24 | K92: 22
H93: + Approved pass through amounts | I93: 1824 | J93: 0 | K93: 0
H95: (A minus B) Under/over recovery of revenue for regulatory year | I95: 3740 | J95: –1158 | K95: –4919b
H97: DUoS unders and overs account
H98: Nominal WACC (per cent) | I98: 0.05 | J98: 0.055 | K98: 0.06
H99: Opening balance | I99: 1737 | J99: 5656c | K99: 4778
H100: Interest on opening balance | I100: 87 | J100: 311 | K100: 287
H101: Under/over recovery of revenue for regulatory year | I101: 3740 | J101: –1158 | K101: –4919b
H102: Interest on under/over recovery for regulatory year | I102: 92 | J102: –31 | K102: –145
H103: Closing balance | I103: 5656 | J103: 4778 | K103: 0d
G104: Notes: | H104: (a) Bt parameter calculations in the DUoS unders and overs account exclude approved DUoS revenue under/over recovery for regulatory year.
H105: (b) Approved DUoS revenue under/over recovery for regulatory year t.
H106: (c) Opening balance is the previous year's closing balance.
H107: (d) The DNSP is expected to achieve a closing balance as close to zero as practicable in its DUoS unders and overs account in each forecast year in its annual pricing proposals in the 2016–20 regulatory control period.
H113: Table 14.2 | I113: Example calculation of designated pricing proposal charges unders and overs account ($'000, nominal)
I114: Year t–2 | J114: Year t–1 | K114: Year t
I115: (actual) | J115: (estimate) | K115: (forecast)
H116: (A) Revenue from designated pricing proposal charges (DPPC) | I116: 40 077 | J116: 34 944 | K116: 36 609
H117: (B) Less DPPC related payments for regulatory year = | I117: 34 365 | J117: 38 734 | K117: 39 200
H118: + DPPC charges to be paid to TNSP | I118: 33 672 | J118: 37 933 | K118: 38 000
H119: + Avoided TUoS/DPPC payments | I119: 572 | J119: 734 | K119: 800
H120: + Inter–distributor payments | I120: 121 | J120: 67 | K120: 400
H122: (A minus B) Under/over recovery of revenue for regulatory year | I122: 5712 | J122: –3790 | K122: –2540a
H124: DPPC unders and overs account
H125: Nominal WACC (per cent) | I125: 0.05 | J125: 0.055 | K125: 0.06
H126: Opening balance | I126: 167 | J126: 6028b | K126: 2467
H127: Interest on opening balance | I127: 8 | J127: 332 | K127: 148
H128: Under/over recovery of revenue for regulatory year | I128: 5712 | J128: –3790 | K128: –2540a
H129: Interest on under/over recovery for regulatory year | I129: 141 | J129: –103 | K129: –75
H130: Closing balance | I130: 6028 | J130: 2467 | K130: 0c
G131: Notes: | H131: (a) Approved DPPC revenue under/over recovery for regulatory year t.
H132: (b) Opening balance is the previous year's closing balance.
H133: (c)The DNSP is expected to achieve a closing balance as close to zero as practicable in its DPPC unders and overs account in each forecast year in its annual pricing proposals in the 2016–20 regulatory control period.
H139: Table 14.3 Example calculation of jurisdictional scheme amounts unders and overs account ($'000, nominal)
I140: Year t–2 | J140: Year t–1 | K140: Year t
I141: (actual) | J141: (estimate) | K141: (forecast)
H142: (A) Revenue from jurisdictional schemes | I142: 19 777 | J142: 23 121 | K142: 26 965
H143: (B) Less jurisdictional scheme payments for regulatory year = | I143: 20 272 | J143: 20 959 | K143: 28 641
H144: + Jurisdictional scheme 1 payments | I144: 14 159 | J144: 13 954 | K144: 13 961
H145: + Jurisdictional scheme 2 payments | I145: 6113 | J145: 7005 | K145: 14 680
H147: (A minus B) Under/over recovery of revenue for regulatory year | I147: –495 | J147: 2162 | K147: –1676a
H149: Jurisdictional scheme amount unders and overs account
H150: Nominal WACC (per cent) | I150: 0.05 | J150: 0.055 | K150: 0.06
H151: Opening balance | I151: –52 | J151: –562b | K151: 1628
H152: Interest on opening balance | I152: –3 | J152: –31 | K152: 98
H153: Under/over recovery of revenue for regulatory year | I153: –495 | J153: 2162 | K153: –1676a
H154: Interest on under/over recovery for regulatory year | I154: –12 | J154: 59 | K154: –50
H155: Closing balance | I155: –562 | J155: 1628 | K155: 0c
G156: Notes: | H156: (a) Approved jurisdictional scheme amounts revenue under/over recovery for regulatory year t.
H157: (b) Opening balance is the previous year's closing balance.
H158: (c) The DNSP is expected to achieve a closing balance as close to zero as practicable in its jurisdictional scheme amount unders and overs account in each forecast year in its annual pricing proposals in the 2016–20 regulatory control period.
B166: Metering
B167: Figure 16.3 | C167: Annual metering charges revenue cap formula
A168: (1) | H168: i=1,..,n and j=1,..,m and t=1,..,5
A170: (2) | H170: t = 1,2,…,5
A172: (3) | H172: t = 1,2,…,5
B175: where;
C176: is the total annual revenue for annual metering charges in year t.
E177: is the price of component 'j' of metering service 'i' in year t.
E178: is the forecast quantity of component 'j' of metering service 'i' in year t.
D179: is the annual revenue requirement for year t. When year t is the first year of the 2016–20 regulatory control period,
D180: is the annual revenue requirement in the annual metering charges Post Tax Revenue Model (PTRM) for year t.
E181: is equal to zero for all years except 2017 and is a once off adjustment to 2017 charges for the unders and overs recoveries relating to Advanced Metering Infrastructure actual revenues and actual costs incurred in 2014 and 2015.
E182: is the sum of annual adjustment factors in year t as calculated in the unders and overs account in appendix C.
D184: is the annual revenue requirement for year t–1.
C185: is the annual percentage change in the ABS CPI All Groups, Weighted Average of Eight Capital Cities[39] from the June quarter in year t–2 to the June quarter in year t–1, calculated using the following method:
B186: The ABS CPI All Groups, Weighted Average of Eight Capital Cities for the June quarter in regulatory year t–1
B187: divided by
B188: The ABS CPI All Groups, Weighted Average of Eight Capital Cities for the June quarter in regulatory year t–2
B189: minus one.
B190: For example, for the 2017 regulatory year, t–2 is June quarter 2015 and t–1 is June quarter 2016 and for the 2018 regulatory year, t–2 is June quarter 2016 and t–1 is June quarter 2017 and so on.
D191: is the X factor for each year of the 2016–20 regulatory control period as determined in the annual metering charges PTRM.
B194: [39] | C194: If the ABS does not or ceases to publish the index, then CPI will mean an index which the AER considers is the best available alternative index
B199: Figure 16.4 Side constraints
B201: where:
E202: is the price of annual metering charges service 'i' in year t.
D203: is the price of annual metering charges service 'i' in year t–1.
C204: is the annual percentage change in the ABS CPI All Groups, Weighted Average of Eight Capital Cities from the June quarter in year t–2 to the June quarter in year t–1, calculated using the following method:
B205: The ABS CPI All Groups, Weighted Average of Eight Capital Cities[40] for the June quarter in regulatory year t–1
B206: divided by
B207: The ABS CPI All Groups, Weighted Average of Eight Capital Cities for the June quarter in regulatory year t–2
B208: minus one.
B209: For example, for the 2017 regulatory year, t–2 is June quarter 2015 and t–1 is June quarter 2016 and for the 2018 regulatory year, t–2 is June quarter 2016 and t–1 is June quarter 2017 and so on.
D210: is the X factor for each year of the 2016–20 regulatory control period as determined in the annual metering charges PTRM.
E211: is the annual percentage change for the unders and overs recoveries relating to Advanced Metering Infrastructure actual revenues and actual costs incurred in 2014 and 2015. It is equal to zero for all years except 2017 and is a once off adjustment to 2017 charges.
E212: is the annual percentage change from the sum of annual adjustment factors in year t as calculated in the unders and overs account in appendix C.
B213: With the exception of the CPI and the X factor, the percentage for each of the other factors above can be calculated by dividing the incremental revenues (as used in the total annual revenue formula) for each factor by the expected revenues for regulatory year t–1 (based on the prices in year t–1 multiplied by the forecast quantities for year t).
B215: [40] | C215: If the ABS does not or ceases to publish the index, then CPI will mean an index which the AER considers is the best available alternative index.
H220: Table 16.xx | I220: Example calculation of annual metering charges unders and overs account ($'000, nominal)
I221: Year t–2 | J221: Year t–1 | K221: Year t
I222: (actual) | J222: (estimate) | K222: (forecast)
H223: (A) Revenue from annual metering charges | I223: 8 449 | J223: 7 389 | K223: 6 460
H224: (B) Less TARM for regulatory year = | I224: 7 366 | J224: 7 422 | K224: 7 573
H225: + Annual revenue requirement (ARt) | I225: 7 349 | J225: 7 412 | K225: 7 559
H226: + T factor (Tt) – true‑ups relating to the AMI–Order in Council | I226: 17 | J226: 10 | K226: 14
H228: (A minus B) Under/over recovery of revenue for regulatory year | I228: 1 083 | J228: –33 | K228: –1 113a
H230: Annual metering charges unders and overs account
H231: Nominal WACC (per cent) | I231: 0.05 | J231: 0.055 | K231: 0.06
H232: Opening balance | I232: –50 | J232: 1 057b | K232: 1 081
H233: Interest on opening balance | I233: –3 | J233: 58 | K233: 65
H234: Under/over recovery of revenue for regulatory year | I234: 1 083 | J234: –33 | K234: –1 113b
H235: Interest on under/over recovery for regulatory year | I235: 27 | J235: –1 | K235: –33
H236: Closing balance | I236: 1 057 | J236: 1 081 | K236: 0c
G237: Notes: | H237: (a) Approved annual metering charges revenue under/over recovery for regulatory year t. This is the Bt parameter in the annual metering charges revenue cap formula.
H238: (b) Opening balance is the previous year's closing balance.
H239: (c) The DNSP is expected to achieve a closing balance as close to zero as practicable in its annual metering charges unders and overs account in each forecast year in its annual pricing proposals in the 2016–20 regulatory control period.

Sheet Model update
A3: Tariff Approval Template for | C3: =A56 -> Powercor
A5: calendar year commencing | C5: 2018
A7: t | B7: = | C7: =C5 -> 2018
A8: t-1 | B8: = | C8: =C7-1 -> 2017
A9: t-2 | B9: = | C9: 2016
A10: t-3 | B10: = | C10: 2015
A11: t-4 | B11: = | C11: 2014
A13: Please fill in yellow highlighted cells where appropriate
A15: CPI | B15: The ABS changed the index reference base in September 2012 from 1989-90 to 2011-12.
A16: CPI Index Sept 2011 | C16: 99.8
A17: CPI Index Sept 2012 | C17: 101.8 | E17: CPI 2013 | F17: =C17/C16-1 -> 0.02004008016
A18: CPI Index Sept 2013 | C18: 104 | E18: CPI 2014 | F18: =C18/C17-1 -> 0.02161100196
A19: CPI Index Sept 2014 | C19: 106.4 | E19: CPI 2015 | F19: =C19/C18-1 -> 0.02307692308
A20: CPI Index Sept 2015 | C20: 108 | E20: CPI 2016 | F20: =C20/C19-1 -> 0.01503759398
A21: CPI Index June 2015 | C21: 107.5
A22: CPI Index June 2016 | C22: 108.6 | E22: CPI 2017 | F22: =IF(OR(C21="",C22=""),0,C22/C21-1) -> 0.01023255814
A23: CPI Index June 2017 | C23: 110.7 | E23: CPI 2018 | F23: =IF(OR(C22="",C23=""),0,C23/C22-1) -> 0.01933701657
A24: CPI Index June 2018 | E24: CPI 2019 | F24: 0
A25: CPI Index June 2019 | E25: CPI 2020 | F25: 0
A28: ="CPI " &$C$9 -> CPI 2016 | C28: =VLOOKUP(A28,E$17:F$25,2,FALSE) -> 0.01503759398 | D28: (t-2)
A29: ="CPI " &$C$8 -> CPI 2017 | C29: =VLOOKUP(A29,E$17:F$25,2,FALSE) -> 0.01023255814 | D29: (t-1)
A30: ="CPI " &$C$5 -> CPI 2018 | C30: 0.01933701657 | D30: (t)
A35: Real Vanilla WACC (rvw)
A36: ="rvw for "&C$5 -> rvw for 2018 | D36: rvw for 2016 | E36: rvw for 2017 | F36: rvw for 2018 | G36: rvw for 2019 | H36: rvw for 2020
A37: =$A$54 -> Jemena | B37: =HLOOKUP($A$36,$D$36:$H$41,2,FALSE) -> 0.0384827082 | D37: 0.03959695909 | E37: 0.03899874743 | F37: 0.0384827082 | G37: 0.0384827082 | H37: 0.0384827082
A38: =$A$55 -> CitiPower | B38: =HLOOKUP($A$36,$D$36:$H$41,3,FALSE) -> 0.03589785446 | D38: 0.03696767584 | E38: 0.03639507276 | F38: 0.03589785446 | G38: 0.03589785446 | H38: 0.03589785446
A39: =$A$56 -> Powercor | B39: =HLOOKUP($A$36,$D$36:$H$41,4,FALSE) -> 0.03589785446 | D39: 0.03696767584 | E39: 0.03639507276 | F39: 0.03589785446 | G39: 0.03589785446 | H39: 0.03589785446
A40: =$A$57 -> AusNet Services | B40: =HLOOKUP($A$36,$D$36:$H$41,5,FALSE) -> 0.03828127548 | D40: 0.03898496731 | E40: 0.03853039129 | F40: 0.03828127548 | G40: 0.03828127548 | H40: 0.03828127548
A41: =$A$58 -> United Energy | B41: =HLOOKUP($A$36,$D$36:$H$41,6,FALSE) -> 0.03839184135 | D41: 0.03959852119 | E41: 0.03896319849 | F41: 0.03839184135 | G41: 0.03839184135 | H41: 0.03839184135
A43: ="rvw (t) "&C$5 -> rvw (t) 2018 | B43: =VLOOKUP(C$3,A37:B41,2,FALSE) -> 0.03589785446 | C43: (t) | D43: =VLOOKUP($C$3,$A$37:$H$41,4,FALSE) -> 0.03696767584 | E43: =VLOOKUP($C$3,$A37:$H$41,5,FALSE) -> 0.03639507276 | F43: =VLOOKUP($C$3,$A$37:$H$41,6,FALSE) -> 0.03589785446 | G43: =VLOOKUP($C$3,$A$37:$H$41,7,FALSE) -> 0.03589785446 | H43: =VLOOKUP($C$3,$A$37:$H$41,8,FALSE) -> 0.03589785446
A45: ="rvw for "&C$5-1 -> rvw for 2017 | B45: =IF(C$5=2016,F$184,HLOOKUP($A45,D$36:H$43,8,FALSE)) -> 0.03639507276 | C45: (t-1)
A47: ="rvw for "&C$5-2 -> rvw for 2016 | B47: =IF(OR(C$5=2016,C$5=2017),F$183,HLOOKUP($A47,D$36:H$43,8,FALSE)) -> 0.03696767584 | C47: (t-2)
A52: DuoS
A53: ="Xt for "&C$5 -> Xt for 2018 | D53: AR for 2016 | E53: Xt for 2017 | F53: Xt for 2018 | G53: Xt for 2019 | H53: Xt for 2020
A54: Jemena | B54: =IF(C$5=2016,"n/a",HLOOKUP($A$53,$E$53:$H$58,2,FALSE)) -> 0.0027 | D54: 238498758 | E54: -0.0325 | F54: 0.0027 | G54: -0.0202 | H54: -0.02
A55: CitiPower | B55: =IF(C$5=2016,"n/a",HLOOKUP($A$53,$E$53:$H$58,3,FALSE)) -> -0.0005 | D55: 282881283 | E55: 0.004 | F55: -0.0005 | G55: -0.012 | H55: -0.024
A56: Powercor | B56: =IF(C$5=2016,"n/a",HLOOKUP($A$53,$E$53:$H$58,4,FALSE)) -> -0.0081 | D56: 621773294 | E56: 0.0468 | F56: -0.0081 | G56: -0.018 | H56: -0.026
A57: AusNet Services | B57: =IF(C$5=2016,"n/a",HLOOKUP($A$53,$E$53:$H$58,5,FALSE)) -> -0.0184 | D57: 586045137 | E57: 0.003 | F57: -0.0184 | G57: -0.025 | H57: -0.03
A58: United Energy | B58: =IF(C$5=2016,"n/a",HLOOKUP($A$53,$E$53:$H$58,6,FALSE)) -> -0.0316 | D58: 375069867 | E58: -0.0383 | F58: -0.0316 | G58: -0.035 | H58: 0
A60: ="Xt for"&C$5 -> Xt for2018 | B60: =VLOOKUP(C$3,A54:B58,2,FALSE) -> -0.0081 | D60: =VLOOKUP($C$3,$A$54:$H$58,4,FALSE) -> 621773294 | E60: =VLOOKUP($C$3,$A$54:$H$58,5,FALSE) -> 0.0468 | F60: =VLOOKUP($C$3,$A$54:$H$58,6,FALSE) -> -0.0081 | G60: =VLOOKUP($C$3,$A$54:$H$58,7,FALSE) -> -0.018 | H60: =VLOOKUP($C$3,$A$54:$H$58,8,FALSE) -> -0.026
A64: Metering
A65: ="Xt for "&C$5 -> Xt for 2018 | D65: AR for 2016 | E65: Xt for 2017 | F65: Xt for 2018 | G65: Xt for 2019 | H65: Xt for 2020
A66: Jemena | B66: =IF(C$5=2016,"n/a",HLOOKUP($A$65,$E$65:$H$70,2,FALSE)) -> -0.0136 | D66: 44212949.02 | E66: 0.3473 | F66: -0.0136 | G66: -0.015 | H66: -0.015
A67: CitiPower | B67: =IF(C$5=2016,"n/a",HLOOKUP($A$65,$E$65:$H$70,3,FALSE)) -> 0.0767 | D67: 32973195.04 | E67: 0.1402 | F67: 0.0767 | G67: 0.075 | H67: 0.075
A68: Powercor | B68: =IF(C$5=2016,"n/a",HLOOKUP($A$65,$E$65:$H$70,4,FALSE)) -> 0.0819 | D68: 79145313.2 | E68: 0.1096 | F68: 0.0819 | G68: 0.08 | H68: 0.08
A69: AusNet Services | B69: =IF(C$5=2016,"n/a",HLOOKUP($A$65,$E$65:$H$70,5,FALSE)) -> 0.1658 | D69: 92754610.44 | E69: 0.0231 | F69: 0.1658 | G69: 0.165 | H69: 0.165
A70: United Energy | B70: =IF(C$5=2016,"n/a",HLOOKUP($A$65,$E$65:$H$70,6,FALSE)) -> 0.057 | D70: 62733316.95 | E70: 0.3081 | F70: 0.057 | G70: 0.055 | H70: 0.055
A72: ="Xt for"&C$5 -> Xt for2018 | B72: =VLOOKUP(C$3,A66:B70,2,FALSE) -> 0.0819 | D72: =VLOOKUP($C$3,$A$66:$H$70,4,FALSE) -> 79145313.2 | E72: =VLOOKUP($C$3,$A$66:$H$70,5,FALSE) -> 0.1096 | F72: =VLOOKUP($C$3,$A$66:$H$70,6,FALSE) -> 0.0819 | G72: =VLOOKUP($C$3,$A$66:$H$70,7,FALSE) -> 0.08 | H72: =VLOOKUP($C$3,$A$66:$H$70,8,FALSE) -> 0.08
A76: DuoS
A77: Real Pre-tax WACC (rptw)
A78: ="rptw for "&C$5 -> rptw for 2018 | D78: rptw for 2016 | E78: rptw for 2017 | F78: rptw for 2018 | G78: rptw for 2019 | H78: rptw for 2020
A79: =$A$54 -> Jemena | B79: =HLOOKUP($A$78,$D$78:$H$83,2,FALSE) -> 0.04611949618 | D79: 0.04723374708 | E79: 0.04663553542 | F79: 0.04611949618
A80: =$A$55 -> CitiPower | B80: =HLOOKUP($A$78,$D$78:$H$83,3,FALSE) -> 0.0433987454 | D80: 0.04446856678 | E80: 0.0438959637 | F80: 0.0433987454
A81: =$A$56 -> Powercor | B81: =HLOOKUP($A$78,$D$78:$H$83,4,FALSE) -> 0.0424010669 | D81: 0.04347088828 | E81: 0.0428982852 | F81: 0.0424010669
A82: =$A$57 -> AusNet Services | B82: =HLOOKUP($A$78,$D$78:$H$83,5,FALSE) -> 0.04463507863 | D82: 0.04533877046 | E82: 0.04488419444 | F82: 0.04463507863
A83: =$A$58 -> United Energy | B83: =HLOOKUP($A$78,$D$78:$H$83,6,FALSE) -> 0.04698513788 | D83: 0.04819181771 | E83: 0.04755649502 | F83: 0.04698513788
A85: ="rptw (t) "&C$5 -> rptw (t) 2018 | B85: =VLOOKUP(C$3,A79:B83,2,FALSE) -> 0.0424010669 | C85: (t) | D85: =VLOOKUP($C$3,$A$79:$H$83,4,FALSE) -> 0.04347088828 | E85: =VLOOKUP($C$3,$A79:$H$83,5,FALSE) -> 0.0428982852 | F85: =VLOOKUP($C$3,$A$79:$H$83,6,FALSE) -> 0.0424010669 | G85: =VLOOKUP($C$3,$A$79:$H$83,7,FALSE) -> 0 | H85: =VLOOKUP($C$3,$A$79:$H$83,8,FALSE) -> 0
A87: ="rptw for "&C$5-1 -> rptw for 2017 | B87: =IF(C$5=2016,B$184,HLOOKUP($A87,D$78:H$85,8,FALSE)) -> 0.0428982852 | C87: (t-1)
A89: ="rptw for "&C$5-2 -> rptw for 2016 | B89: =IF(OR(C$5=2016,C$5=2017),B$183,HLOOKUP($A89,D$78:H$85,8,FALSE)) -> 0.04347088828 | C89: (t-2)
A93: F factor Scheme | B93: =$C$5 -> 2018 | D93: 2016 | E93: =+D93+1 -> 2017 | F93: =+E93+1 -> 2018 | G93: 2019 | H93: 2020
A94: =$A$54 -> Jemena | B94: =HLOOKUP($B$93,$D$93:$H$98,2,FALSE) -> 655000 | D94: -680000 | E94: 70000 | F94: 655000
A95: =$A$55 -> CitiPower | B95: =HLOOKUP($B$93,$D$93:$H$98,3,FALSE) -> 140000 | D95: -15000 | E95: 410000 | F95: 140000
A96: =$A$56 -> Powercor | B96: =HLOOKUP($B$93,$D$93:$H$98,4,FALSE) -> 1755000 | D96: -1530000 | E96: 1420000 | F96: 1755000
A97: =$A$57 -> AusNet Services | B97: =HLOOKUP($B$93,$D$93:$H$98,5,FALSE) -> 750000 | D97: 1870000 | E97: 3420000 | F97: 750000
A98: =$A$58 -> United Energy | B98: =HLOOKUP($B$93,$D$93:$H$98,6,FALSE) -> 1000000 | D98: -2245000 | E98: 555000 | F98: 1000000
A100: ="Ifactor (t) "&C$5 -> Ifactor (t) 2018 | B100: =VLOOKUP(C$3,A94:B98,2,FALSE) -> 1755000 | D100: =VLOOKUP($C$3,$A$94:$H$98,4,FALSE) -> -1530000 | E100: =VLOOKUP($C$3,$A$94:$H$98,5,FALSE) -> 1420000 | F100: =VLOOKUP($C$3,$A$94:$H$98,6,FALSE) -> 1755000 | G100: =VLOOKUP($C$3,$A$94:$H$98,7,FALSE) -> 0 | H100: =VLOOKUP($C$3,$A$94:$H$98,8,FALSE) -> 0
A104: S factor Scheme | B104: =$C$5 -> 2018 | D104: 2016 | E104: =+D104+1 -> 2017 | F104: =+E104+1 -> 2018 | G104: 2019 | H104: 2020
A105: =$A$54 -> Jemena | B105: =HLOOKUP($B$104,$D$104:$H$109,2,FALSE) -> -0.03971153723 | D105: 0.03997406406 | E105: 0.01488310469 | F105: -0.03971153723
A106: =$A$55 -> CitiPower | B106: =HLOOKUP($B$104,$D$104:$H$109,3,FALSE) -> 0.01857052664 | D106: -0.01268789003 | E106: 0.004032145684 | F106: 0.01857052664
A107: =$A$56 -> Powercor | B107: =HLOOKUP($B$104,$D$104:$H$109,4,FALSE) -> -0.01384168227 | D107: -0.01184910821 | E107: 0.05100648542 | F107: -0.01384168227
A108: =$A$57 -> AusNet Services | B108: =HLOOKUP($B$104,$D$104:$H$109,5,FALSE) -> -0.06343364122 | D108: 0.03357397489 | E108: 0.03217876587 | F108: -0.06343364122
A109: =$A$58 -> United Energy | B109: =HLOOKUP($B$104,$D$104:$H$109,6,FALSE) -> 0.02276703882 | D109: -0.02947870448 | E109: 0.02836672327 | F109: 0.02276703882
A111: ="S factor (t) "&C$5 -> S factor (t) 2018 | B111: =VLOOKUP(C$3,A105:B109,2,FALSE) -> -0.01384168227 | D111: =VLOOKUP($C$3,$A$105:$H$109,4,FALSE) -> -0.01184910821 | E111: =VLOOKUP($C$3,$A$105:$H$109,5,FALSE) -> 0.05100648542 | F111: =VLOOKUP($C$3,$A$105:$H$109,6,FALSE) -> -0.01384168227 | G111: =VLOOKUP($C$3,$A$105:$H$109,7,FALSE) -> 0 | H111: =VLOOKUP($C$3,$A$105:$H$109,8,FALSE) -> 0
A115: Pass through Amounts | B115: =$C$5 -> 2018 | D115: 2016 | E115: =+D115+1 -> 2017 | F115: =+E115+1 -> 2018 | G115: 2019 | H115: 2020
A116: =$A$54 -> Jemena | B116: =HLOOKUP($B$115,$D$115:$H$120,2,FALSE) -> 0 | D116: 0 | E116: 0 | F116: 0
A117: =$A$55 -> CitiPower | B117: =HLOOKUP($B$115,$D$115:$H$120,3,FALSE) -> 0 | D117: 0 | E117: 0 | F117: 0
A118: =$A$56 -> Powercor | B118: =HLOOKUP($B$115,$D$115:$H$120,4,FALSE) -> 0 | D118: 0 | E118: 0 | F118: 0
A119: =$A$57 -> AusNet Services | B119: =HLOOKUP($B$115,$D$115:$H$120,5,FALSE) -> 0 | D119: =-(5723000*(1+0.0975)) -> -6280992.5 | E119: 0 | F119: 0
A120: =$A$58 -> United Energy | B120: =HLOOKUP($B$115,$D$115:$H$120,6,FALSE) -> 0 | D120: 0 | E120: 0 | F120: 0
A122: ="Pass through amounts (t) "&C$5 -> Pass through amounts (t) 2018 | B122: =VLOOKUP(C$3,A116:B120,2,FALSE) -> 0 | D122: =VLOOKUP($C$3,$A$116:$H$120,4,FALSE) -> 0 | E122: =VLOOKUP($C$3,$A$116:$H$120,5,FALSE) -> 0 | F122: =VLOOKUP($C$3,$A$116:$H$120,6,FALSE) -> 0 | G122: =VLOOKUP($C$3,$A$116:$H$120,7,FALSE) -> 0 | H122: =VLOOKUP($C$3,$A$116:$H$120,8,FALSE) -> 0
C125: Relevant financial year (t-1) | D125: =TEXT(D126-2,"####")&"-"&RIGHT(TEXT(D126-1,"##"),2) -> 2014-15 | E125: =TEXT(E126-2,"####")&"-"&RIGHT(TEXT(E126-1,"##"),2) -> 2015-16 | F125: 2016-17 | G125: 2017-18 | H125: 2018-19
A126: License Fees | B126: =$C$5 -> 2018 | D126: 2016 | E126: =+D126+1 -> 2017 | F126: =+E126+1 -> 2018 | G126: 2019 | H126: 2020
A127: =$A$54 -> Jemena | B127: =HLOOKUP($B$126,$D$126:$H$131,2,FALSE) -> 76545 | D127: 36033 | E127: 39516 | F127: 76545
A128: =$A$55 -> CitiPower | B128: =HLOOKUP($B$126,$D$126:$H$131,3,FALSE) -> 78091 | D128: 36475 | E128: 40445 | F128: 78091
A129: =$A$56 -> Powercor | B129: =HLOOKUP($B$126,$D$126:$H$131,4,FALSE) -> 185081 | D129: 85205 | E129: 94964 | F129: 185081
A130: =$A$57 -> AusNet Services | B130: =HLOOKUP($B$126,$D$126:$H$131,5,FALSE) -> 168235 | D130: 74811 | E130: 85031 | F130: 168235
A131: =$A$58 -> United Energy | B131: =HLOOKUP($B$126,$D$126:$H$131,6,FALSE) -> 158262 | D131: 74197 | E131: 81712 | F131: 158262
A133: ="Licence Fee (t-1) "&TEXT(C$5-2,"####")&"-"&RIGHT(TEXT(C$5-1,"##"),2) -> Licence Fee (t-1) 2016-17 | B133: =VLOOKUP(C$3,A127:B131,2,FALSE) -> 185081 | D133: =VLOOKUP($C$3,$A$127:$H$131,4,FALSE) -> 85205 | E133: =VLOOKUP($C$3,$A$127:$H$131,5,FALSE) -> 94964 | F133: =VLOOKUP($C$3,$A$127:$H$131,6,FALSE) -> 185081 | G133: =VLOOKUP($C$3,$A$127:$H$131,7,FALSE) -> 0 | H133: =VLOOKUP($C$3,$A$127:$H$131,8,FALSE) -> 0
A137: DMIA Carryover adjustment | B137: =$C$5 -> 2018 | D137: 2016 | E137: =+D137+1 -> 2017 | F137: =+E137+1 -> 2018 | G137: 2019 | H137: 2020
A138: =$A$54 -> Jemena | B138: =HLOOKUP($B$137,$D$137:$H$142,2,FALSE) -> 0 | E138: =H154 -> -91286.96254
A139: =$A$55 -> CitiPower | B139: =HLOOKUP($B$137,$D$137:$H$142,3,FALSE) -> 0
A140: =$A$56 -> Powercor | B140: =HLOOKUP($B$137,$D$137:$H$142,4,FALSE) -> 0
A141: =$A$57 -> AusNet Services | B141: =HLOOKUP($B$137,$D$137:$H$142,5,FALSE) -> 0
A142: =$A$58 -> United Energy | B142: =HLOOKUP($B$137,$D$137:$H$142,6,FALSE) -> 0 | E142: =H163 -> -479908.4001
A144: ="T factor (t) "&C$5 -> T factor (t) 2018 | B144: =VLOOKUP(C$3,A138:B142,2,FALSE) -> 0 | D144: =VLOOKUP($C$3,$A$138:$H$142,4,FALSE) -> 0 | E144: =VLOOKUP($C$3,$A$138:$H$142,5,FALSE) -> 0 | F144: =VLOOKUP($C$3,$A$138:$H$142,6,FALSE) -> 0 | G144: =VLOOKUP($C$3,$A$138:$H$142,7,FALSE) -> 0 | H144: =VLOOKUP($C$3,$A$138:$H$142,8,FALSE) -> 0
A147: DMIA Carryover adjustment
A148: Jemena | C148: 2011-15 | D148: 2016 | E148: 2017
A149: CPI - PTRM | D149: 0.02323079821 | E149: 0.02323079821
A150: Nominal Vanilla WACC - PTRM | C150: 0.1033058648 | D150: =(1+D149)*(1+D37)-1 -> 0.06374762627 | E150: =(1+E149)*(1+E37)-1 -> 0.06313551768
C152: 2011 | D152: 2012 | E152: 2013 | F152: 2014 | G152: 2015 | H152: Total
A153: Ex-ante revenue minus ex post expenditure ($nominal) | C153: -263938 | D153: -16375.4 | E153: 163676.6714 | F153: 153066.6261 | G153: 125690.5855 | H153: =SUM(C153:G153) -> 162120.4829
A154: DMIA Carryover adjustment | C154: =0-(C153/(1+$C150))*(1+$C150)^5*(1+$D150)*(1+$E150) -> 442295.8453 | D154: =C154-(D153/(1+$C150))*(1+$C150)^4*(1+$D150)*(1+$E150) -> 467167.6289 | E154: =D154-(E153/(1+$C150))*(1+$C150)^3*(1+$D150)*(1+$E150) -> 241844.4502 | F154: =E154-(F153/(1+$C150))*(1+$C150)^2*(1+$D150)*(1+$E150) -> 50857.51142 | G154: =F154-(G153/(1+$C150))*(1+$C150)^1*(1+$D150)*(1+$E150) -> -91286.96254 | H154: =G154 -> -91286.96254
A157: UED | C157: 2011-15 | D157: 2016 | E157: 2017
A158: CPI - PTRM | D158: 0.02323079821 | E158: 0.02323079821
A159: Nominal Vanilla WACC - PTRM | C159: 0.09489772882 | D159: =(1+D158)*(1+D41)-1 -> 0.06374922465 | E159: =(1+E158)*(1+E41)-1 -> 0.0630991429
C161: 2011 | D161: 2012 | E161: 2013 | F161: 2014 | G161: 2015 | H161: Total
A162: Ex-ante revenue minus ex post expenditure ($nominal) | C162: 406960 | D162: 327739.2 | E162: 91075.34272 | F162: -227853.7479 | G162: -450364.8291 | H162: =SUM(C162:G162) -> 147555.9658
A163: DMIA Carryover adjustment | C163: =0-(C162/(1+$C159))*(1+$C159)^5*(1+$D159)*(1+$E159) -> -661392.0476 | D163: =C163-(D162/(1+$C159))*(1+$C159)^4*(1+$D159)*(1+$E159) -> -1147868.786 | E163: =D163-(E162/(1+$C159))*(1+$C159)^3*(1+$D159)*(1+$E159) -> -1271338.644 | F163: =E163-(F162/(1+$C159))*(1+$C159)^2*(1+$D159)*(1+$E159) -> -989212.8748 | G163: =F163-(G162/(1+$C159))*(1+$C159)^1*(1+$D159)*(1+$E159) -> -479908.4001 | H163: =G163 -> -479908.4001
A172: Regulatory Period 2011-15
A174: DuoS
A175: Real Pre-tax WACC for distribution tariffs | D175: Real Vanilla WACC for distribution tariffs
A177: =$A$54 -> Jemena | B177: 0.087 | D177: =$A$54 -> Jemena | F177: 0.0756
A178: =$A$55 -> CitiPower | B178: 0.0786 | D178: =$A$55 -> CitiPower | F178: 0.0674
A179: =$A$56 -> Powercor | B179: 0.0776 | D179: =$A$56 -> Powercor | F179: 0.0674
A180: =$A$57 -> AusNet Services | B180: 0.078 | D180: =$A$57 -> AusNet Services | F180: 0.0699
A181: =$A$58 -> United Energy | B181: 0.0791 | D181: =$A$58 -> United Energy | F181: 0.0674
A183: pretax WACCD | B183: =VLOOKUP($C$3,A177:B181,2,FALSE) -> 0.0776 | D183: Real Vanilla WACCD | F183: =VLOOKUP($C$3,D177:F181,3,FALSE) -> 0.0674
A188: Pass Through Costs | E188: 2014 | F188: 2015
A190: =A204 -> F Factor pass through | E190: =B204 -> 2470000 | F190: =C204 -> -2405000
A191: VBRC | E191: =B215 -> 7193170.454 | F191: =C215 -> 8768550.378
A192: Powerline Replacement program | E192: =B226 -> 0 | F192: =C226 -> 8777690.455
A193: TOTAL PASS THROUGH AMOUNTS | E193: =SUM(E190:E192) -> 9663170.454 | F193: =SUM(F190:F192) -> 15141240.83
A197: F factor Scheme | B197: 2014 | C197: 2015
A198: =$A$54 -> Jemena | B198: 370000 | C198: -855000
A199: =$A$55 -> CitiPower | B199: 10000 | C199: -65000
A200: =$A$56 -> Powercor | B200: 2470000 | C200: -2405000
A201: =$A$57 -> AusNet Services | B201: 1970000 | C201: 2020000
A202: =$A$58 -> United Energy | B202: 980000 | C202: -70000
A204: F Factor pass through | B204: =VLOOKUP($C$3,$A$198:$C$202,2,FALSE) -> 2470000 | C204: =VLOOKUP($C$3,$A$198:$C$202,3,FALSE) -> -2405000
A208: VBRC | B208: 2014 | C208: 2015
A209: =$A$54 -> Jemena | B209: 0 | C209: 0
A210: =$A$55 -> CitiPower | B210: 0 | C210: 0
A211: =$A$56 -> Powercor | B211: =H245 -> 7193170.454 | C211: =I245 -> 8768550.378
A212: =$A$57 -> AusNet Services | B212: =H262 -> 6039778.158 | C212: =I262 -> 8341755.212
A213: =$A$58 -> United Energy | B213: 0 | C213: 0
A215: VBRC pass through | B215: =VLOOKUP($C$3,$A$209:$C$213,2,FALSE) -> 7193170.454 | C215: =VLOOKUP($C$3,$A$209:$C$213,3,FALSE) -> 8768550.378
A219: Powerline Replacement program | B219: 2014 | C219: 2015
A220: =$A$54 -> Jemena | B220: 0 | C220: 0
A221: =$A$55 -> CitiPower | B221: 0 | C221: 0
A222: =$A$56 -> Powercor | B222: =H249 -> 0 | C222: 8777690.455
A223: =$A$57 -> AusNet Services | B223: 0 | C223: 5723419.31
A224: =$A$58 -> United Energy | B224: 0 | C224: 0
A226: Powerline Replacement program | B226: =VLOOKUP($C$3,$A$219:$C$224,2,FALSE) -> 0 | C226: =VLOOKUP($C$3,$A$219:$C$224,3,FALSE) -> 8777690.455
A231: VBRC
A233: Powercor | E233: 2011 | F233: 2012 | G233: 2013 | H233: 2014 | I233: 2015
A234: Pass through amounts approved (Nominal $) - Forecast CPI | G234: 10270612 | H234: 7181525 | I234: 8777217
A235: (As per AER's Final Decision on Powercor's VBRC pass through, table 7.2, 7 March 2012)
A236: Forecast CPI in PTRM | E236: 0.0257487534 | F236: 0.0257487534 | G236: 0.0257487534 | H236: 0.0257487534 | I236: 0.0257487534
E237: =1+E236 -> 1.025748753 | F237: =E237*(1+F236) -> 1.052160505 | G237: =F237*(1+G236) -> 1.079252326 | H237: =G237*(1+H236) -> 1.107041729 | I237: =H237*(1+I236) -> 1.135546673
A239: Pass through amounts approved (Real $2010) | G239: =G234/G237 -> 9516414.047 | H239: =H234/H237 -> 6487131.257 | I239: =I234/I237 -> 7729507.918
A242: Actual CPI | E242: =173.3/168.6-1 -> 0.02787663108 | F242: =179.4/173.3-1 -> 0.03519907675 | G242: =C17/C16-1 -> 0.02004008016 | H242: =C18/C17-1 -> 0.02161100196 | I242: =C19/C18-1 -> 0.02307692308
E243: =1+E242 -> 1.027876631 | F243: =E243*(1+F242) -> 1.06405694 | G243: =F243*(1+G242) -> 1.085380726 | H243: =G243*(1+H242) -> 1.108836891 | I243: 1.134425434
A245: Pass through amounts approved (Nominal $) - Actual CPI | G245: =G239*G243 -> 10328932.39 | H245: =H239*H243 -> 7193170.454 | I245: =I239*I243 -> 8768550.378
A250: AusNet Services | E250: 2011 | F250: 2012 | G250: 2013 | H250: 2014 | I250: 2015
A251: Pass through amounts approved (Nominal $) - Forecast CPI | G251: 5790000 | H251: 6030000 | I251: 8350000
A252: As per AER's Final Decision on AusNet Services's VBRC pass through, table 1.3, 19 October 2012
A253: Forecast CPI in PTRM | E253: 0.0257487534 | F253: 0.0257487534 | G253: 0.0257487534 | H253: 0.0257487534 | I253: 0.0257487534
E254: =1+E253 -> 1.025748753 | F254: =E254*(1+F253) -> 1.052160505 | G254: =F254*(1+G253) -> 1.079252326 | H254: =G254*(1+H253) -> 1.107041729 | I254: =H254*(1+I253) -> 1.135546673
A256: Pass through amounts approved (Real $2010) | G256: =G251/G254 -> 5364825.127 | H256: =H251/H254 -> 5446949.148 | I256: =I251/I254 -> 7353286.482
A259: Actual CPI | E259: =173.3/168.6-1 -> 0.02787663108 | F259: =179.4/173.3-1 -> 0.03519907675 | G259: =C17/C16-1 -> 0.02004008016 | H259: =C18/C17-1 -> 0.02161100196 | I259: =C19/C18-1 -> 0.02307692308
E260: =1+E259 -> 1.027876631 | F260: =E260*(1+F259) -> 1.06405694 | G260: =F260*(1+G259) -> 1.085380726 | H260: =G260*(1+H259) -> 1.108836891 | I260: 1.134425434
A262: Pass through amounts approved (Nominal $) - Actual CPI | G262: =G256*G260 -> 5822877.791 | H262: =H256*H260 -> 6039778.158 | I262: =I256*I260 -> 8341755.212
A270: AMI Transitional Adjustment in 2018 prices ($)
A271: =C3 -> Powercor
C272: 2009 | D272: 2010 | E272: 2011 | F272: 2012 | G272: 2013 | H272: 2014 | I272: 2015 | J272: 2016 | K272: 2017 | L272: 2018 | M272: 2019 | N272: 2020
A273: CPI | C273: 0.04981084489 | D273: 0.01261261261 | E273: 0.02787663108 | F273: 0.03519907675 | G273: =$F17 -> 0.02004008016 | H273: =$F18 -> 0.02161100196 | I273: =$F19 -> 0.02307692308 | J273: =$F20 -> 0.01503759398 | K273: =$F22 -> 0.01023255814 | L273: =$F23 -> 0.01933701657 | M273: =$F24 -> 0 | N273: =$F25 -> 0
A275: Vanilla' WACC (Real) | C275: 0.06771645866 | D275: =$C275 -> 0.06771645866 | E275: =$C275 -> 0.06771645866 | F275: 0.06771645866 | G275: 0.06771645866 | H275: 0.05023909437 | I275: =H275 -> 0.05023909437 | J275: =D43 -> 0.03696767584 | K275: =E43 -> 0.03639507276 | L275: =F43 -> 0.03589785446 | M275: =G43 -> 0.03589785446 | N275: =H43 -> 0.03589785446
A276: Vanilla' WACC (nominal) | C276: =(1+C275)*(1+C273)-1 -> 0.1209003176 | D276: 0.08118315273 | E276: 0.09748079647 | F276: 0.1052990922 | G276: 0.08911358208 | H276: 0.0729358135 | I276: 0.07447538116 | J276: 0.05256117473 | K276: 0.0470000456 | L276: 0.05592902844 | M276: 0.03589785446 | N276: 0.03589785446
A278: Future value index | C278: =(1+C276)^0.5 -> 1.058725799 | D278: =C278*(D276+1) -> 1.144676497 | E278: 1.256260474 | F278: 1.388543561 | G278: 1.512281652 | H278: 1.622581145 | I278: 1.743423494 | J278: 1.835059881 | K278: 1.921307779 | L278: 2.028764656 | M278: 2.101592955 | N278: 2.177035633
A280: AMI Transitional Adjustment - Revenue and Costs 2009-2015
A281: Over \ (under) recovery of revenue and costs (000's)
A282: NPV at 1 January 2009 | D282: 5766.9529
A284: AMI Transitional Adjustment in 2018 prices ($) | D284: =-D282*L278*10^3 -> -11699790.22
A286: AMI Transitional Adjustment - Revenue 2016-2020
A287: Increase \ (Reduction) in revenue 2016-2020 (000's)
A288: NPV at 1 January 2016 | D288: 1706.091869
A290: AMI Transitional Adjustment in 2018 prices ($) | D290: =D288*L278/I278*10^3 -> 1985323.071
A292: Total AMI Transitional Adjustment in 2018 prices ($) | D292: =SUM(D284,D290) -> -9714467.147

Sheet Metering
B1: ="Tariff Approval - "&'Model update'!C3 -> Tariff Approval - Powercor
B3: ="PROPOSED "&'Model update'!$C$5&" METERING TARIFFS AND REVENUE" -> PROPOSED 2018 METERING TARIFFS AND REVENUE
D5: ="Proposed Metering Tariffs P(t) for " &'Model update'!$C$5 -> Proposed Metering Tariffs P(t) for 2018 | E5: ="Current Metering Tariffs P(t-1) for" &'Model update'!$C$8 -> Current Metering Tariffs P(t-1) for2017 | F5: ="Forecast Quantities (Qt) for "&'Model update'!$C$5 -> Forecast Quantities (Qt) for 2018 | H5: ="Forecast Revenue (Pt "&'Model update'!$C$5&")*(Qt " &'Model update'!$C$5&")" -> Forecast Revenue (Pt 2018)*(Qt 2018) | I5: ="Revenue (Pt-1 "&'Model update'!$C$8&")*(Qt " &'Model update'!$C$5&")" -> Revenue (Pt-1 2017)*(Qt 2018) | K5: Movement | L5: Side Constraint
B6: Proposed tariff | C6: Existing tariff | D6: PropTar $/Cust/year | E6: ExistTar $/Cust/year | F6: FcastVol Cust # | H6: PropRev Fixed | I6: ExistRev Fixed
B8: Single phase | C8: Single phase | D8: 65.7 | E8: 88.16 | F8: 659298 | H8: =D8*F8 -> 43315878.6 | I8: =E8*F8 -> 58123711.68 | K8: =IFERROR(H8/I8,"") -> 0.7452359347 | L8: =IF(B8="","",IF(K8<$I$30,"COMPLIANT","BREACHED")) -> COMPLIANT
B9: Three phase direct connected meter | C9: Three phase direct connected meter | D9: 91.25 | E9: 116.29 | F9: 130329 | H9: 11892521.25 | I9: 15155959.41 | K9: =IFERROR(H9/I9,"") -> 0.7846762404 | L9: COMPLIANT
B10: Three phase CT connected meter | C10: Three phase CT connected meter | D10: 135.05 | E10: 154.36 | F10: 5694 | H10: 768974.7 | I10: 878925.84 | K10: 0.8749028246 | L10: COMPLIANT
H11: 0 | I11: 0
H12: 0 | I12: 0
H13: 0 | I13: 0
H14: 0 | I14: 0
H15: 0 | I15: 0
H16: 0 | I16: 0
H17: =SUM(H7:H16) -> 55977374.55 | I17: =SUM(I7:I16) -> 74158596.93
B22: Year (t) | D22: ='Model update'!C5 -> 2018
B24: Table 1- Compliance with AER Final Determination Total Metering Annual Revenue | H24: Metering tariff rebalancing control
B25: Revenue from Metering charges for year t | D25: =H17 -> 55977374.55 | H25: ="CPI "&'Model update'!$C$5 -> CPI 2018 | I25: =D37 -> 0.01933701657
B26: Total Annual Metering Revenue for year t | D26: =D33 -> 55977374.55 | H26: ="X "& 'Model update'!$C$5 -> X 2018 | I26: =MIN(D38,0) -> 0
D27: =IF(D25="","",IF(D26>=D25,"METERING REVENUE CAP FORMULA COMPLIANT","METERING REVENUE CAP FORMULA BREACHED")) -> METERING REVENUE CAP FORMULA COMPLIANT | H27: ="Tt "&'Model update'!$C$5 -> Tt 2018 | I27: =D31/I17 -> -0.1309958326
H28: ="Bt "&'Model update'!$C$5 -> Bt 2018 | I28: =D32/I17 -> -0.01258798586
B29: Table 2 - Total Annual Revenue for year t (TARMt)
B30: Adjusted Annual Smoothed Metering Revenue for year t | D30: =D39 -> 66625349.07 | I30: =(1+I25)*(1-I26)*(1+0.02)+SUM(I27:I28) -> 0.8961399385
B31: T factor for year t | D31: ='Model update'!D292 -> -9714467.147
B32: B factor for year t | D32: =F57 -> -933507.3694
B33: Total Annual Revenue for year t | D33: =SUM(D30:D32) -> 55977374.55
B35: Table 3 - Adjusted Annual Revenue for year t (ARt)
B36: Adjusted Annual Smoothed Revenue for year t-1 | D36: 71192085.35
B37: CPI for period t | D37: ='Model update'!C30 -> 0.01933701657
B38: X factor for period t | D38: ='Model update'!B72 -> 0.0819
B39: Adjusted Annual Smoothed Revenue for year t | D39: =IF(D22=2016,'Model update'!D72,(D36*(1+D37)*(1-D38))) -> 66625349.07
B44: Table 4 - Metering Services Recovery Arrangements
D45: Year t-2 | E45: Year t-1 | F45: Year t
D46: (actual) | E46: (estimate) | F46: (forecast)
D47: =E47-1 -> 2016 | E47: =F47-1 -> 2017 | F47: =D$22 -> 2018
B49: (A) Revenue from Metering proposal charges | D49: 77811373.08 | E49: =E89 -> 73269592.55 | F49: =D25 -> 55977374.55
B52: (B) Less TARM for regulatory year = | D52: =SUM(D53:D54) -> 79145313.2 | E52: =SUM(E53:E54) -> 71192085.35 | F52: =SUM(F53:F54) -> 56910881.92
B53: + Adjusted annual smoothed revenue | D53: 79145313.2 | E53: =D36 -> 71192085.35 | F53: =D30 -> 66625349.07
B54: + T factor | D54: 0 | E54: 0 | F54: =D31 -> -9714467.147
B57: (A minus B) Under/over recovery of revenue for regulatory year | D57: =D49-D52 -> -1333940.122 | E57: =E49-E52 -> 2077507.204 | F57: =F49-F52 -> -933507.3694
B61: Table 5 - Metering Services Unders and Overs Account
D62: Year t-2 | E62: Year t-1 | F62: Year t
D63: (actual) | E63: (estimate) | F63: (forecast)
B64: Calendar year | D64: =E64-1 -> 2016 | E64: =F64-1 -> 2017 | F64: =D$22 -> 2018
B66: Nominal WACC | D66: =(1+'Model update'!$B$47)*(1+'Model update'!$C$28)-1 -> 0.05256117473 | E66: =(1+'Model update'!$B$45)*(1+'Model update'!$C$29)-1 -> 0.0470000456 | F66: =(1+'Model update'!$B$43)*(1+'Model update'!$C$30)-1 -> 0.05592902844
B68: Opening balance | D68: 0 | E68: =D72 -> -1368547.919 | F68: =E72 -> 692898.3819
B69: Interest on Opening balance | D69: =D68*D66 -> 0 | E69: =E68*E66 -> -64321.8146 | F69: =F68*F66 -> 38753.13331
B70: Under/over recovery of revenue for regulatory year | D70: =D57 -> -1333940.122 | E70: =E57 -> 2077507.204 | F70: =F57 -> -933507.3694
B71: Interest on under/over recovery for regulatory year | D71: =D70*((1+D66)^0.5-1) -> -34607.79688 | E71: =E70*((1+E66)^0.5-1) -> 48260.91132 | F71: =F70*((1+F66)^0.5-1) -> -25749.93604
B72: Closing balance of Metering Services overs/ (unders) account | D72: =SUM(D68:D71) -> -1368547.919 | E72: =SUM(E68:E71) -> 692898.3819 | F72: -227605.7902
B74: The DNSP is expected to achieve a closing balance as close to zero as practicable in its annual metering charges unders and overs account in each forecast year in its annual pricing proposals in the 2016–20 regulatory control period.
C77: ="Current Metering Tariffs P(t-1) for " &'Model update'!$C$8 -> Current Metering Tariffs P(t-1) for 2017 | D77: ="Estimated Quantities (Qt-1) for "&'Model update'!$C$5-1 -> Estimated Quantities (Qt-1) for 2017 | E77: ="Revenue (Pt-1 "&'Model update'!$C$8&")*(Qt-1 " &'Model update'!$C$5-1&")" -> Revenue (Pt-1 2017)*(Qt-1 2017)
B78: Existing tariff | C78: ExistTar $/Cust/year | D78: FcastVol Cust # | E78: ExistRev Fixed
B80: Single phase | C80: =E8 -> 88.16 | D80: 651159 | E80: =C80*D80 -> 57406177.44
B81: Three phase direct connected meter | C81: =E9 -> 116.29 | D81: 129039 | E81: 15005945.31
B82: Three phase CT connected meter | C82: 154.36 | D82: 5555 | E82: 857469.8
E83: 0
E84: 0
E85: 0
E86: 0
E87: 0
E88: 0
E89: =SUM(E79:E88) -> 73269592.55

Sheet Prop2018DistTar
B1: ="Tariff Approval - "&'Model update'!$C$3 -> Tariff Approval - Powercor | CO1: Note
CO2: Qt 2018 has been allocated per inserted worksheet Vol
B3: ="PROPOSED "&'Model update'!$C$5&" DISTRIBUTION TARIFFS" -> PROPOSED 2018 DISTRIBUTION TARIFFS | CO3: This enables allocations to tariffs that weren't available in 2017 such as Medium Business opt-out
D4: ="Proposed Distribution Tariffs (Pt) for "&'Model update'!$C$5 -> Proposed Distribution Tariffs (Pt) for 2018 | Z4: ="Current Distribution Tariffs (Pt-1) for "&'Model update'!$C$8 -> Current Distribution Tariffs (Pt-1) for 2017 | AV4: ="Forecast Quantities (Qt) for "&'Model update'!$C$5 -> Forecast Quantities (Qt) for 2018 | BR4: ="Forecast Revenue (Pt "&'Model update'!$C$5&")*(Qt " &'Model update'!$C$5&")" -> Forecast Revenue (Pt 2018)*(Qt 2018) | CO4: ="Revenue (Pt-1 "&'Model update'!$C$8&")*(Qt " &'Model update'!$C$5&")" -> Revenue (Pt-1 2017)*(Qt 2018)
B5: Proposed tariff | C5: Existing tariff | D5: PropTar Fixed | E5: PropTar Anytime | F5: PropTar PkBlk | I5: PropTar OPkBlk1 | M5: PropTar Dem kVA | N5: PropTar Dem kW | O5: PropTar Dem kW Sum | P5: PropTar Dem kW Win | Q5: PropTar SumBlk1 | R5: PropTar SumBlk2 | S5: PropTar SumBlk3 | U5: PropTar WtrBlk1 | V5: PropTar WtrBlk2 | W5: PropTar WtrBlk3 | Z5: ExistTar Fixed | AA5: ExistTar Anytime | AB5: ExistTar Pk | AE5: ExistTar OPkBlk | AI5: ExistTar Dem kVA | AJ5: ExistTar Dem kW | AK5: ExistTar Dem kW Sum | AL5: ExistTar Dem kW Win | AM5: ExistTar SumBlk1 | AN5: ExistTar SumBlk2 | AO5: ExistTar SumBlk3 | AQ5: ExistTar WtrBlk1 | AR5: ExistTar WtrBlk2 | AS5: ExistTar WtrBlk3 | AV5: FcastVol Fixed | AW5: FcastVol Anytime | AX5: FcastVol Pk | BA5: FcastVol Opk | BE5: FcastVol Dem kVA | BF5: FcastVol Dem kW | BG5: FcastVol Dem kW Sum | BH5: FcastVol Dem kW Win | BI5: FcastVol SumBlk1 | BJ5: FcastVol SumBlk2 | BK5: FcastVol SumBlk3 | BM5: FcastVol WtrBlk1 | BN5: FcastVol WtrBlk2 | BO5: FcastVol WtrBlk3 | BQ5: USAGE_HELPER | BR5: PropRev Fixed | BS5: PropRev Anytime | BT5: PropRev Pk | BW5: PropRev Opk | CA5: PropRev Dem kVA | CB5: PropRev Dem kW | CC5: PropRev Dem kW Sum | CD5: PropRev Dem kW Win | CE5: PropRev SumBlk1 | CF5: PropRev SumBlk2 | CG5: PropRev SumBlk3 | CI5: PropRev WtrBlk1 | CJ5: PropRev WtrBlk2 | CK5: PropRev WtrBlk3 | CM5: PropRev Total | CO5: ExistRev Fixed | CP5: ExistRev Anytime | CQ5: ExistRev Pk | CT5: ExistRev Opk | CX5: ExistRev Dem kVA | CY5: ExistRev Dem kW | CZ5: ExistRev Dem kW Sum | DA5: ExistRev Dem kW Win | DB5: ExistRev SumBlk1 | DC5: ExistRev SumBlk2 | DD5: ExistRev SumBlk3 | DF5: ExistRev WtrBlk1 | DG5: ExistRev WtrBlk2 | DH5: ExistRev WtrBlk3 | DJ5: ExistRev Total
BR6: =D6*AV6 -> 0 | BS6: =E6/100*AW6 -> 0 | BT6: 0 | BU6: 0 | BV6: 0 | BW6: 0 | BX6: 0 | BY6: 0 | BZ6: 0 | CA6: =M6*BE6 -> 0 | CB6: =N6*BF6 -> 0 | CC6: =O6*BG6 -> 0 | CD6: =P6*BH6 -> 0 | CE6: =Q6/100*BI6 -> 0 | CF6: =R6/100*BJ6 -> 0 | CG6: 0 | CH6: 0 | CI6: 0 | CJ6: 0 | CK6: 0 | CL6: 0 | CM6: =SUM(BR6:CL6) -> 0 | CO6: =Z6*AV6 -> 0 | CP6: =AA6/100*AW6 -> 0 | CQ6: 0 | CR6: 0 | CS6: 0 | CT6: 0 | CU6: 0 | CV6: 0 | CW6: 0 | CX6: =AI6*BE6 -> 0 | CY6: =AJ6*BF6 -> 0 | CZ6: =AK6*BG6 -> 0 | DA6: =AL6*BH6 -> 0 | DB6: =AM6/100*BI6 -> 0 | DC6: =AN6/100*BJ6 -> 0 | DD6: 0 | DE6: 0 | DF6: 0 | DG6: 0 | DH6: 0 | DI6: =AT6/100*BP6 -> 0 | DJ6: =SUM(CO6:DI6) -> 0
A7: D1 | B7: Residential Single Rate | C7: Residential Single Rate | D7: 125 | E7: 5.31 | F7: 0 | G7: 0 | H7: 0 | I7: 0 | J7: 0 | K7: 0 | L7: 0 | M7: 0 | N7: 0 | O7: 0 | P7: 0 | Q7: 0 | R7: 0 | S7: 0 | T7: 0 | U7: 0 | V7: 0 | W7: 0 | X7: 0 | Z7: 125 | AA7: 5.39 | AB7: 0 | AC7: 0 | AD7: 0 | AE7: 0 | AF7: 0 | AG7: 0 | AH7: 0 | AI7: 0 | AJ7: 0 | AK7: 0 | AL7: 0 | AM7: 0 | AN7: 0 | AO7: 0 | AP7: 0 | AQ7: 0 | AR7: 0 | AS7: 0 | AT7: 0 | AV7: 539032.4658 | AW7: 2272899090 | AX7: 0 | AY7: 0 | AZ7: 0 | BA7: 0 | BB7: 0 | BC7: 0 | BD7: 0 | BE7: 0 | BF7: 0 | BG7: 0 | BH7: 0 | BI7: 0 | BJ7: 0 | BK7: 0 | BL7: 0 | BM7: 0 | BN7: 0 | BO7: 0 | BP7: 0 | BQ7: =SUM(AW7:BD7,BI7:BO7) -> 2272899090 | BR7: =D7*AV7 -> 67379058.23 | BS7: 120690941.7 | BT7: 0 | BU7: 0 | BV7: 0 | BW7: 0 | BX7: 0 | BY7: 0 | BZ7: 0 | CA7: =M7*BE7 -> 0 | CB7: 0 | CC7: 0 | CD7: 0 | CE7: =Q7/100*BI7 -> 0 | CF7: 0 | CG7: 0 | CH7: 0 | CI7: 0 | CJ7: 0 | CK7: 0 | CL7: 0 | CM7: =SUM(BR7:CL7) -> 188069999.9 | CO7: =Z7*AV7 -> 67379058.23 | CP7: =AA7/100*AW7 -> 122509260.9 | CQ7: =AB7/100*AX7 -> 0 | CR7: =AC7/100*AY7 -> 0 | CS7: =AD7/100*AZ7 -> 0 | CT7: =AE7/100*BA7 -> 0 | CU7: =AF7/100*BB7 -> 0 | CV7: =AG7/100*BC7 -> 0 | CW7: =AH7/100*BD7 -> 0 | CX7: =AI7*BE7 -> 0 | CY7: =AJ7*BF7 -> 0 | CZ7: =AK7*BG7 -> 0 | DA7: =AL7*BH7 -> 0 | DB7: =AM7/100*BI7 -> 0 | DC7: =AN7/100*BJ7 -> 0 | DD7: =AO7/100*BK7 -> 0 | DE7: =AP7/100*BL7 -> 0 | DF7: =AQ7/100*BM7 -> 0 | DG7: =AR7/100*BN7 -> 0 | DH7: =AS7/100*BO7 -> 0 | DI7: =AT7/100*BP7 -> 0 | DJ7: =SUM(CO7:DI7) -> 189888319.2
A8: D1CS | B8: Climate Saver | C8: Climate Saver | D8: 0 | E8: 0 | F8: 7.52 | G8: 0 | H8: 0 | I8: 1.53 | J8: 0 | K8: 0 | L8: 0 | M8: 0 | N8: 0 | O8: 0 | P8: 0 | Q8: 0 | R8: 0 | S8: 0 | T8: 0 | U8: 0 | V8: 0 | W8: 0 | X8: 0 | Z8: 0 | AA8: 0 | AB8: 7.65 | AC8: 0 | AD8: 0 | AE8: 1.53 | AF8: 0 | AG8: 0 | AH8: 0 | AI8: 0 | AJ8: 0 | AK8: 0 | AL8: 0 | AM8: 0 | AN8: 0 | AO8: 0 | AP8: 0 | AQ8: 0 | AR8: 0 | AS8: 0 | AT8: 0 | AV8: 16710.63696 | AW8: 0 | AX8: 9017601.645 | AY8: 0 | AZ8: 0 | BA8: 18758723.33 | BB8: 0 | BC8: 0 | BD8: 0 | BE8: 0 | BF8: 0 | BG8: 0 | BH8: 0 | BI8: 0 | BJ8: 0 | BK8: 0 | BL8: 0 | BM8: 0 | BN8: 0 | BO8: 0 | BP8: 0 | BQ8: =SUM(AW8:BD8,BI8:BO8) -> 27776324.98 | BR8: 0 | BS8: 0 | BT8: 678123.6437 | BU8: 0 | BV8: 0 | BW8: 287008.467 | BX8: 0 | BY8: 0 | BZ8: 0 | CA8: 0 | CB8: 0 | CC8: 0 | CD8: 0 | CE8: 0 | CF8: 0 | CG8: 0 | CH8: 0 | CI8: 0 | CJ8: 0 | CK8: 0 | CL8: 0 | CM8: 965132.1107 | CO8: 0 | CP8: 0 | CQ8: 689846.5259 | CR8: 0 | CS8: 0 | CT8: 287008.467 | CU8: 0 | CV8: 0 | CW8: 0 | CX8: 0 | CY8: 0 | CZ8: 0 | DA8: 0 | DB8: 0 | DC8: 0 | DD8: 0 | DE8: 0 | DF8: 0 | DG8: 0 | DH8: 0 | DI8: 0 | DJ8: 976854.9928
A9: D3CS | B9: Climate Saver Interval | C9: Climate Saver Interval | D9: 0 | E9: 0 | F9: 7.52 | G9: 0 | H9: 0 | I9: 1.53 | J9: 0 | K9: 0 | L9: 0 | M9: 0 | N9: 0 | O9: 0 | P9: 0 | Q9: 0 | R9: 0 | S9: 0 | T9: 0 | U9: 0 | V9: 0 | W9: 0 | X9: 0 | Z9: 0 | AA9: 0 | AB9: 7.65 | AC9: 0 | AD9: 0 | AE9: 1.53 | AF9: 0 | AG9: 0 | AH9: 0 | AI9: 0 | AJ9: 0 | AK9: 0 | AL9: 0 | AM9: 0 | AN9: 0 | AO9: 0 | AP9: 0 | AQ9: 0 | AR9: 0 | AS9: 0 | AT9: 0 | AV9: 4570.646036 | AW9: 0 | AX9: 2542127.966 | AY9: 0 | AZ9: 0 | BA9: 5918747.132 | BB9: 0 | BC9: 0 | BD9: 0 | BE9: 0 | BF9: 0 | BG9: 0 | BH9: 0 | BI9: 0 | BJ9: 0 | BK9: 0 | BL9: 0 | BM9: 0 | BN9: 0 | BO9: 0 | BP9: 0 | BQ9: =SUM(AW9:BD9,BI9:BO9) -> 8460875.097 | BR9: 0 | BS9: 0 | BT9: 191168.023 | BU9: 0 | BV9: 0 | BW9: 90556.83112 | BX9: 0 | BY9: 0 | BZ9: 0 | CA9: 0 | CB9: 0 | CC9: 0 | CD9: 0 | CE9: 0 | CF9: 0 | CG9: 0 | CH9: 0 | CI9: 0 | CJ9: 0 | CK9: 0 | CL9: 0 | CM9: 281724.8541 | CO9: 0 | CP9: 0 | CQ9: 194472.7894 | CR9: 0 | CS9: 0 | CT9: 90556.83112 | CU9: 0 | CV9: 0 | CW9: 0 | CX9: 0 | CY9: 0 | CZ9: 0 | DA9: 0 | DB9: 0 | DC9: 0 | DD9: 0 | DE9: 0 | DF9: 0 | DG9: 0 | DH9: 0 | DI9: 0 | DJ9: 285029.6205
A10: P13R | B10: Residential - Flexible Pricing | C10: Residential - Flexible Pricing | D10: 125 | E10: 0 | F10: 0 | G10: 0 | H10: 0 | I10: 0 | J10: 0 | K10: 0 | L10: 0 | M10: 0 | N10: 0 | O10: 0 | P10: 0 | Q10: 9.74 | R10: 5.53 | S10: 2.16 | T10: 0 | U10: 9.74 | V10: 5.53 | W10: 2.16 | X10: 0 | Z10: 125 | AA10: 0 | AB10: 0 | AC10: 0 | AD10: 0 | AE10: 0 | AF10: 0 | AG10: 0 | AH10: 0 | AI10: 0 | AJ10: 0 | AK10: 0 | AL10: 0 | AM10: 9.92 | AN10: 5.62 | AO10: 2.18 | AP10: 0 | AQ10: 9.92 | AR10: 5.62 | AS10: 2.18 | AT10: 0 | AV10: 2967.267133 | AW10: 0 | AX10: 0 | AY10: 0 | AZ10: 0 | BA10: 0 | BB10: 0 | BC10: 0 | BD10: 0 | BE10: 0 | BF10: 0 | BG10: 0 | BH10: 0 | BI10: 956328.9598 | BJ10: 1626467.672 | BK10: 1172486.559 | BL10: 0 | BM10: 2937193.672 | BN10: 5211028.621 | BO10: 4120190.702 | BP10: 0 | BQ10: 16023696.18 | BR10: 370908.3916 | BS10: 0 | BT10: 0 | BU10: 0 | BV10: 0 | BW10: 0 | BX10: 0 | BY10: 0 | BZ10: 0 | CA10: 0 | CB10: 0 | CC10: 0 | CD10: 0 | CE10: 93146.44069 | CF10: 89943.66225 | CG10: 25325.70967 | CH10: 0 | CI10: 286082.6636 | CJ10: 288169.8827 | CK10: 88996.11916 | CL10: 0 | CM10: 1242572.87 | CO10: 370908.3916 | CP10: 0 | CQ10: 0 | CR10: 0 | CS10: 0 | CT10: 0 | CU10: 0 | CV10: 0 | CW10: 0 | CX10: 0 | CY10: 0 | CZ10: 0 | DA10: 0 | DB10: 94867.83282 | DC10: 91407.48315 | DD10: 25560.20698 | DE10: 0 | DF10: 291369.6122 | DG10: 292859.8085 | DH10: 89820.1573 | DI10: 0 | DJ10: 1256793.493
A11: P13RDK | B11: Residential Docklands - Flexible Pricing | C11: Residential Docklands - Flexible Pricing | D11: 125 | E11: 0 | F11: 0 | G11: 0 | H11: 0 | I11: 0 | J11: 0 | K11: 0 | L11: 0 | M11: 0 | N11: 0 | O11: 0 | P11: 0 | Q11: 5.27 | R11: 2.9 | S11: 1.01 | T11: 0 | U11: 5.27 | V11: 2.9 | W11: 1.01 | X11: 0 | Z11: 125 | AA11: 0 | AB11: 0 | AC11: 0 | AD11: 0 | AE11: 0 | AF11: 0 | AG11: 0 | AH11: 0 | AI11: 0 | AJ11: 0 | AK11: 0 | AL11: 0 | AM11: 5.35 | AN11: 2.93 | AO11: 0.99 | AP11: 0 | AQ11: 5.35 | AR11: 2.93 | AS11: 0.99 | AT11: 0 | AV11: 1 | AW11: 0 | AX11: 0 | AY11: 0 | AZ11: 0 | BA11: 0 | BB11: 0 | BC11: 0 | BD11: 0 | BE11: 0 | BF11: 0 | BG11: 0 | BH11: 0 | BI11: 298.5290379 | BJ11: 617.7065498 | BK11: 457.8706074 | BL11: 0 | BM11: 1021.464472 | BN11: 1968.88476 | BO11: 1310.109406 | BP11: 0 | BQ11: 5674.564833 | BR11: 125 | BS11: 0 | BT11: 0 | BU11: 0 | BV11: 0 | BW11: 0 | BX11: 0 | BY11: 0 | BZ11: 0 | CA11: 0 | CB11: 0 | CC11: 0 | CD11: 0 | CE11: =Q11/100*BI11 -> 15.7324803 | CF11: 17.91348994 | CG11: 4.624493135 | CH11: 0 | CI11: 53.83117765 | CJ11: 57.09765805 | CK11: 13.232105 | CL11: 0 | CM11: 287.4314041 | CO11: 125 | CP11: 0 | CQ11: 0 | CR11: 0 | CS11: 0 | CT11: 0 | CU11: 0 | CV11: 0 | CW11: 0 | CX11: 0 | CY11: 0 | CZ11: 0 | DA11: 0 | DB11: 15.97130353 | DC11: 18.09880191 | DD11: 4.532919014 | DE11: 0 | DF11: 54.64834923 | DG11: 57.68832348 | DH11: 12.97008312 | DI11: 0 | DJ11: 288.9097803
A12: P13RCS | B12: Climate Saver - Flexible Pricing | C12: Climate Saver - Flexible Pricing | D12: 0 | E12: 0 | F12: 0 | G12: 0 | H12: 0 | I12: 0 | J12: 0 | K12: 0 | L12: 0 | M12: 0 | N12: 0 | O12: 0 | P12: 0 | Q12: 7.52 | R12: 0 | S12: 0 | T12: 0 | U12: 1.53 | V12: 0 | W12: 0 | X12: 0 | Z12: 0 | AA12: 0 | AB12: 0 | AC12: 0 | AD12: 0 | AE12: 0 | AF12: 0 | AG12: 0 | AH12: 0 | AI12: 0 | AJ12: 0 | AK12: 0 | AL12: 0 | AM12: 7.65 | AN12: 0 | AO12: 0 | AP12: 0 | AQ12: 1.53 | AR12: 0 | AS12: 0 | AT12: 0 | AV12: 61.27586321 | AW12: 0 | AX12: 0 | AY12: 0 | AZ12: 0 | BA12: 0 | BB12: 0 | BC12: 0 | BD12: 0 | BE12: 0 | BF12: 0 | BG12: 0 | BH12: 0 | BI12: 24228.47206 | BJ12: 0 | BK12: 0 | BL12: 0 | BM12: 68208.94309 | BN12: 0 | BO12: 0 | BP12: 0 | BQ12: 92437.41515 | BR12: 0 | BS12: 0 | BT12: 0 | BU12: 0 | BV12: 0 | BW12: 0 | BX12: 0 | BY12: 0 | BZ12: 0 | CA12: 0 | CB12: 0 | CC12: 0 | CD12: 0 | CE12: 1821.981099 | CF12: 0 | CG12: 0 | CH12: 0 | CI12: 1043.596829 | CJ12: 0 | CK12: 0 | CL12: 0 | CM12: 2865.577928 | CO12: 0 | CP12: 0 | CQ12: 0 | CR12: 0 | CS12: 0 | CT12: 0 | CU12: 0 | CV12: 0 | CW12: 0 | CX12: 0 | CY12: 0 | CZ12: 0 | DA12: 0 | DB12: 1853.478113 | DC12: 0 | DD12: 0 | DE12: 0 | DF12: 1043.596829 | DG12: 0 | DH12: 0 | DI12: 0 | DJ12: 2897.074942
A13: P1DK | B13: Docklands single rate | C13: Docklands single rate | D13: 125 | E13: 4.84 | F13: 0 | G13: 0 | H13: 0 | I13: 0 | J13: 0 | K13: 0 | L13: 0 | M13: 0 | N13: 0 | O13: 0 | P13: 0 | Q13: 0 | R13: 0 | S13: 0 | T13: 0 | U13: 0 | V13: 0 | W13: 0 | X13: 0 | Z13: 125 | AA13: 4.92 | AB13: 0 | AC13: 0 | AD13: 0 | AE13: 0 | AF13: 0 | AG13: 0 | AH13: 0 | AI13: 0 | AJ13: 0 | AK13: 0 | AL13: 0 | AM13: 0 | AN13: 0 | AO13: 0 | AP13: 0 | AQ13: 0 | AR13: 0 | AS13: 0 | AT13: 0 | AV13: 1 | AW13: 11930.9304 | AX13: 0 | AY13: 0 | AZ13: 0 | BA13: 0 | BB13: 0 | BC13: 0 | BD13: 0 | BE13: 0 | BF13: 0 | BG13: 0 | BH13: 0 | BI13: 0 | BJ13: 0 | BK13: 0 | BL13: 0 | BM13: 0 | BN13: 0 | BO13: 0 | BP13: 0 | BQ13: 11930.9304 | BR13: 125 | BS13: 577.4570314 | BT13: 0 | BU13: 0 | BV13: 0 | BW13: 0 | BX13: 0 | BY13: 0 | BZ13: 0 | CA13: 0 | CB13: 0 | CC13: 0 | CD13: 0 | CE13: 0 | CF13: 0 | CG13: 0 | CH13: 0 | CI13: 0 | CJ13: 0 | CK13: 0 | CL13: 0 | CM13: 702.4570314 | CO13: 125 | CP13: 587.0017757 | CQ13: 0 | CR13: 0 | CS13: 0 | CT13: 0 | CU13: 0 | CV13: 0 | CW13: 0 | CX13: 0 | CY13: 0 | CZ13: 0 | DA13: 0 | DB13: 0 | DC13: 0 | DD13: 0 | DE13: 0 | DF13: 0 | DG13: 0 | DH13: 0 | DI13: 0 | DJ13: 712.0017757
A14: D2 | B14: Residential Two Rate 5d | C14: Residential Two Rate 5d | D14: 125 | E14: 0 | F14: 9.31 | G14: 0 | H14: 0 | I14: 1.77 | J14: 0 | K14: 0 | L14: 0 | M14: 0 | N14: 0 | O14: 0 | P14: 0 | Q14: 0 | R14: 0 | S14: 0 | T14: 0 | U14: 0 | V14: 0 | W14: 0 | X14: 0 | Z14: 125 | AA14: 0 | AB14: 9.48 | AC14: 0 | AD14: 0 | AE14: 1.78 | AF14: 0 | AG14: 0 | AH14: 0 | AI14: 0 | AJ14: 0 | AK14: 0 | AL14: 0 | AM14: 0 | AN14: 0 | AO14: 0 | AP14: 0 | AQ14: 0 | AR14: 0 | AS14: 0 | AT14: 0 | AV14: 45013.52703 | AW14: 0 | AX14: 123396558.8 | AY14: 0 | AZ14: 0 | BA14: 113802346.9 | BB14: 0 | BC14: 0 | BD14: 0 | BE14: 0 | BF14: 0 | BG14: 0 | BH14: 0 | BI14: 0 | BJ14: 0 | BK14: 0 | BL14: 0 | BM14: 0 | BN14: 0 | BO14: 0 | BP14: 0 | BQ14: 237198905.8 | BR14: 5626690.878 | BS14: 0 | BT14: 11488219.63 | BU14: 0 | BV14: 0 | BW14: 2014301.541 | BX14: 0 | BY14: 0 | BZ14: 0 | CA14: 0 | CB14: 0 | CC14: 0 | CD14: 0 | CE14: 0 | CF14: 0 | CG14: 0 | CH14: 0 | CI14: 0 | CJ14: 0 | CK14: 0 | CL14: 0 | CM14: 19129212.05 | CO14: 5626690.878 | CP14: 0 | CQ14: 11697993.78 | CR14: 0 | CS14: 0 | CT14: 2025681.775 | CU14: 0 | CV14: 0 | CW14: 0 | CX14: 0 | CY14: 0 | CZ14: 0 | DA14: 0 | DB14: 0 | DC14: 0 | DD14: 0 | DE14: 0 | DF14: 0 | DG14: 0 | DH14: 0 | DI14: 0 | DJ14: 19350366.43
A15: D2DK | B15: Docklands Two Rate 5d | C15: Docklands Two Rate 5d | D15: 125 | E15: 0 | F15: 8.71 | G15: 0 | H15: 0 | I15: 1.53 | J15: 0 | K15: 0 | L15: 0 | M15: 0 | N15: 0 | O15: 0 | P15: 0 | Q15: 0 | R15: 0 | S15: 0 | T15: 0 | U15: 0 | V15: 0 | W15: 0 | X15: 0 | Z15: 125 | AA15: 0 | AB15: 8.87 | AC15: 0 | AD15: 0 | AE15: 1.53 | AF15: 0 | AG15: 0 | AH15: 0 | AI15: 0 | AJ15: 0 | AK15: 0 | AL15: 0 | AM15: 0 | AN15: 0 | AO15: 0 | AP15: 0 | AQ15: 0 | AR15: 0 | AS15: 0 | AT15: 0 | AV15: 584.1465984 | AW15: 0 | AX15: 1780658.232 | AY15: 0 | AZ15: 0 | BA15: 1663261.295 | BB15: 0 | BC15: 0 | BD15: 0 | BE15: 0 | BF15: 0 | BG15: 0 | BH15: 0 | BI15: 0 | BJ15: 0 | BK15: 0 | BL15: 0 | BM15: 0 | BN15: 0 | BO15: 0 | BP15: 0 | BQ15: 3443919.527 | BR15: 73018.3248 | BS15: 0 | BT15: 155095.3321 | BU15: 0 | BV15: 0 | BW15: 25447.89781 | BX15: 0 | BY15: 0 | BZ15: 0 | CA15: 0 | CB15: 0 | CC15: 0 | CD15: 0 | CE15: 0 | CF15: 0 | CG15: 0 | CH15: 0 | CI15: 0 | CJ15: 0 | CK15: 0 | CL15: 0 | CM15: 253561.5547 | CO15: 73018.3248 | CP15: 0 | CQ15: 157944.3852 | CR15: 0 | CS15: 0 | CT15: 25447.89781 | CU15: 0 | CV15: 0 | CW15: 0 | CX15: 0 | CY15: 0 | CZ15: 0 | DA15: 0 | DB15: 0 | DC15: 0 | DD15: 0 | DE15: 0 | DF15: 0 | DG15: 0 | DH15: 0 | DI15: 0 | DJ15: 256410.6078
A16: D3 | B16: Residential Interval | C16: Residential Interval | D16: 125 | E16: 0 | F16: 9.31 | G16: 0 | H16: 0 | I16: 1.77 | J16: 0 | K16: 0 | L16: 0 | M16: 0 | N16: 0 | O16: 0 | P16: 0 | Q16: 0 | R16: 0 | S16: 0 | T16: 0 | U16: 0 | V16: 0 | W16: 0 | X16: 0 | Z16: 125 | AA16: 0 | AB16: 9.48 | AC16: 0 | AD16: 0 | AE16: 1.78 | AF16: 0 | AG16: 0 | AH16: 0 | AI16: 0 | AJ16: 0 | AK16: 0 | AL16: 0 | AM16: 0 | AN16: 0 | AO16: 0 | AP16: 0 | AQ16: 0 | AR16: 0 | AS16: 0 | AT16: 0 | AV16: 108683.3671 | AW16: 0 | AX16: 270572284 | AY16: 0 | AZ16: 0 | BA16: 288164384 | BB16: 0 | BC16: 0 | BD16: 0 | BE16: 0 | BF16: 0 | BG16: 0 | BH16: 0 | BI16: 0 | BJ16: 0 | BK16: 0 | BL16: 0 | BM16: 0 | BN16: 0 | BO16: 0 | BP16: 0 | BQ16: 558736668 | BR16: 13585420.89 | BS16: 0 | BT16: 25190279.64 | BU16: 0 | BV16: 0 | BW16: 5100509.597 | BX16: 0 | BY16: 0 | BZ16: 0 | CA16: 0 | CB16: 0 | CC16: 0 | CD16: 0 | CE16: 0 | CF16: 0 | CG16: 0 | CH16: 0 | CI16: 0 | CJ16: 0 | CK16: 0 | CL16: 0 | CM16: 43876210.13 | CO16: 13585420.89 | CP16: 0 | CQ16: 25650252.52 | CR16: 0 | CS16: 0 | CT16: 5129326.036 | CU16: 0 | CV16: 0 | CW16: 0 | CX16: 0 | CY16: 0 | CZ16: 0 | DA16: 0 | DB16: 0 | DC16: 0 | DD16: 0 | DE16: 0 | DF16: 0 | DG16: 0 | DH16: 0 | DI16: 0 | DJ16: 44364999.45
A17: D2OP | B17: Residential Two Rate 5d - controlled load | C17: Residential Two Rate 5d - controlled load | D17: 0 | E17: 0 | F17: 0 | G17: 0 | H17: 0 | I17: 1.53 | J17: 0 | K17: 0 | L17: 0 | M17: 0 | N17: 0 | O17: 0 | P17: 0 | Q17: 0 | R17: 0 | S17: 0 | T17: 0 | U17: 0 | V17: 0 | W17: 0 | X17: 0 | Z17: 0 | AA17: 0 | AB17: 0 | AC17: 0 | AD17: 0 | AE17: 1.53 | AF17: 0 | AG17: 0 | AH17: 0 | AI17: 0 | AJ17: 0 | AK17: 0 | AL17: 0 | AM17: 0 | AN17: 0 | AO17: 0 | AP17: 0 | AQ17: 0 | AR17: 0 | AS17: 0 | AT17: 0 | AV17: 42980.36697 | AW17: 0 | AX17: 0 | AY17: 0 | AZ17: 0 | BA17: 86643719.34 | BB17: 0 | BC17: 0 | BD17: 0 | BE17: 0 | BF17: 0 | BG17: 0 | BH17: 0 | BI17: 0 | BJ17: 0 | BK17: 0 | BL17: 0 | BM17: 0 | BN17: 0 | BO17: 0 | BP17: 0 | BQ17: 86643719.34 | BR17: 0 | BS17: 0 | BT17: 0 | BU17: 0 | BV17: 0 | BW17: 1325648.906 | BX17: 0 | BY17: 0 | BZ17: 0 | CA17: 0 | CB17: 0 | CC17: 0 | CD17: 0 | CE17: 0 | CF17: 0 | CG17: 0 | CH17: 0 | CI17: 0 | CJ17: 0 | CK17: 0 | CL17: 0 | CM17: 1325648.906 | CO17: 0 | CP17: 0 | CQ17: 0 | CR17: 0 | CS17: 0 | CT17: 1325648.906 | CU17: 0 | CV17: 0 | CW17: 0 | CX17: 0 | CY17: 0 | CZ17: 0 | DA17: 0 | DB17: 0 | DC17: 0 | DD17: 0 | DE17: 0 | DF17: 0 | DG17: 0 | DH17: 0 | DI17: 0 | DJ17: 1325648.906
A18: D2DKOP | B18: Docklands Two Rate 5d - controlled load | C18: Docklands Two Rate 5d - controlled load | D18: 0 | E18: 0 | F18: 0 | G18: 0 | H18: 0 | I18: 1.53 | J18: 0 | K18: 0 | L18: 0 | M18: 0 | N18: 0 | O18: 0 | P18: 0 | Q18: 0 | R18: 0 | S18: 0 | T18: 0 | U18: 0 | V18: 0 | W18: 0 | X18: 0 | Z18: 0 | AA18: 0 | AB18: 0 | AC18: 0 | AD18: 0 | AE18: 1.53 | AF18: 0 | AG18: 0 | AH18: 0 | AI18: 0 | AJ18: 0 | AK18: 0 | AL18: 0 | AM18: 0 | AN18: 0 | AO18: 0 | AP18: 0 | AQ18: 0 | AR18: 0 | AS18: 0 | AT18: 0 | AV18: 69.06153232 | AW18: 0 | AX18: 0 | AY18: 0 | AZ18: 0 | BA18: 130691.5709 | BB18: 0 | BC18: 0 | BD18: 0 | BE18: 0 | BF18: 0 | BG18: 0 | BH18: 0 | BI18: 0 | BJ18: 0 | BK18: 0 | BL18: 0 | BM18: 0 | BN18: 0 | BO18: 0 | BP18: 0 | BQ18: 130691.5709 | BR18: 0 | BS18: 0 | BT18: 0 | BU18: 0 | BV18: 0 | BW18: 1999.581034 | BX18: 0 | BY18: 0 | BZ18: 0 | CA18: 0 | CB18: 0 | CC18: 0 | CD18: 0 | CE18: 0 | CF18: 0 | CG18: 0 | CH18: 0 | CI18: 0 | CJ18: 0 | CK18: 0 | CL18: 0 | CM18: 1999.581034 | CO18: 0 | CP18: 0 | CQ18: 0 | CR18: 0 | CS18: 0 | CT18: 1999.581034 | CU18: 0 | CV18: 0 | CW18: 0 | CX18: 0 | CY18: 0 | CZ18: 0 | DA18: 0 | DB18: 0 | DC18: 0 | DD18: 0 | DE18: 0 | DF18: 0 | DG18: 0 | DH18: 0 | DI18: 0 | DJ18: 1999.581034
A19: DD1 | B19: Dedicated circuit | C19: Dedicated circuit | D19: 0 | E19: 0 | F19: 0 | G19: 0 | H19: 0 | I19: 1.53 | J19: 0 | K19: 0 | L19: 0 | M19: 0 | N19: 0 | O19: 0 | P19: 0 | Q19: 0 | R19: 0 | S19: 0 | T19: 0 | U19: 0 | V19: 0 | W19: 0 | X19: 0 | Z19: 0 | AA19: 0 | AB19: 0 | AC19: 0 | AD19: 0 | AE19: 1.53 | AF19: 0 | AG19: 0 | AH19: 0 | AI19: 0 | AJ19: 0 | AK19: 0 | AL19: 0 | AM19: 0 | AN19: 0 | AO19: 0 | AP19: 0 | AQ19: 0 | AR19: 0 | AS19: 0 | AT19: 0 | AV19: 156259.0335 | AW19: 0 | AX19: 0 | AY19: 0 | AZ19: 0 | BA19: 314989327 | BB19: 0 | BC19: 0 | BD19: 0 | BE19: 0 | BF19: 0 | BG19: 0 | BH19: 0 | BI19: 0 | BJ19: 0 | BK19: 0 | BL19: 0 | BM19: 0 | BN19: 0 | BO19: 0 | BP19: 0 | BQ19: 314989327 | BR19: 0 | BS19: 0 | BT19: 0 | BU19: 0 | BV19: 0 | BW19: 4819336.703 | BX19: 0 | BY19: 0 | BZ19: 0 | CA19: 0 | CB19: 0 | CC19: 0 | CD19: 0 | CE19: 0 | CF19: 0 | CG19: 0 | CH19: 0 | CI19: 0 | CJ19: 0 | CK19: 0 | CL19: 0 | CM19: 4819336.703 | CO19: 0 | CP19: 0 | CQ19: 0 | CR19: 0 | CS19: 0 | CT19: 4819336.703 | CU19: 0 | CV19: 0 | CW19: 0 | CX19: 0 | CY19: 0 | CZ19: 0 | DA19: 0 | DB19: 0 | DC19: 0 | DD19: 0 | DE19: 0 | DF19: 0 | DG19: 0 | DH19: 0 | DI19: 0 | DJ19: 4819336.703
A20: D3HW | B20: Hot Water Interval | C20: Hot Water Interval | D20: 0 | E20: 0 | F20: 0 | G20: 0 | H20: 0 | I20: 1.53 | J20: 0 | K20: 0 | L20: 0 | M20: 0 | N20: 0 | O20: 0 | P20: 0 | Q20: 0 | R20: 0 | S20: 0 | T20: 0 | U20: 0 | V20: 0 | W20: 0 | X20: 0 | Z20: 0 | AA20: 0 | AB20: 0 | AC20: 0 | AD20: 0 | AE20: 1.53 | AF20: 0 | AG20: 0 | AH20: 0 | AI20: 0 | AJ20: 0 | AK20: 0 | AL20: 0 | AM20: 0 | AN20: 0 | AO20: 0 | AP20: 0 | AQ20: 0 | AR20: 0 | AS20: 0 | AT20: 0 | AV20: 5471.480402 | AW20: 0 | AX20: 0 | AY20: 0 | AZ20: 0 | BA20: 10630893.46 | BB20: 0 | BC20: 0 | BD20: 0 | BE20: 0 | BF20: 0 | BG20: 0 | BH20: 0 | BI20: 0 | BJ20: 0 | BK20: 0 | BL20: 0 | BM20: 0 | BN20: 0 | BO20: 0 | BP20: 0 | BQ20: 10630893.46 | BR20: 0 | BS20: 0 | BT20: 0 | BU20: 0 | BV20: 0 | BW20: 162652.6699 | BX20: 0 | BY20: 0 | BZ20: 0 | CA20: 0 | CB20: 0 | CC20: 0 | CD20: 0 | CE20: 0 | CF20: 0 | CG20: 0 | CH20: 0 | CI20: 0 | CJ20: 0 | CK20: 0 | CL20: 0 | CM20: 162652.6699 | CO20: 0 | CP20: 0 | CQ20: 0 | CR20: 0 | CS20: 0 | CT20: 162652.6699 | CU20: 0 | CV20: 0 | CW20: 0 | CX20: 0 | CY20: 0 | CZ20: 0 | DA20: 0 | DB20: 0 | DC20: 0 | DD20: 0 | DE20: 0 | DF20: 0 | DG20: 0 | DH20: 0 | DI20: 0 | DJ20: 162652.6699
A21: DD | B21: Residential Demand | C21: Residential Demand | D21: 125 | E21: 2.36 | F21: 0 | G21: 0 | H21: 0 | I21: 0 | J21: 0 | K21: 0 | L21: 0 | M21: 0 | N21: 0 | O21: 7.73 | P21: 2.58 | Q21: 0 | R21: 0 | S21: 0 | T21: 0 | U21: 0 | V21: 0 | W21: 0 | X21: 0 | Z21: 125 | AA21: 2.37 | AB21: 0 | AC21: 0 | AD21: 0 | AE21: 0 | AF21: 0 | AG21: 0 | AH21: 0 | AI21: 0 | AJ21: 0 | AK21: 7.9 | AL21: 2.63 | AM21: 0 | AN21: 0 | AO21: 0 | AP21: 0 | AQ21: 0 | AR21: 0 | AS21: 0 | AT21: 0 | AV21: 5 | AW21: 27500 | AX21: 0 | AY21: 0 | AZ21: 0 | BA21: 0 | BB21: 0 | BC21: 0 | BD21: 0 | BE21: 0 | BF21: 0 | BG21: 62.78538813 | BH21: 100.456621 | BI21: 0 | BJ21: 0 | BK21: 0 | BL21: 0 | BM21: 0 | BN21: 0 | BO21: 0 | BP21: 0 | BQ21: 27500 | BR21: 625 | BS21: 649 | BT21: 0 | BU21: 0 | BV21: 0 | BW21: 0 | BX21: 0 | BY21: 0 | BZ21: 0 | CA21: 0 | CB21: 0 | CC21: 485.3310502 | CD21: 259.1780822 | CE21: 0 | CF21: 0 | CG21: 0 | CH21: 0 | CI21: 0 | CJ21: 0 | CK21: 0 | CL21: 0 | CM21: 2018.509132 | CO21: 625 | CP21: 651.75 | CQ21: 0 | CR21: 0 | CS21: 0 | CT21: 0 | CU21: 0 | CV21: 0 | CW21: 0 | CX21: 0 | CY21: 0 | CZ21: 496.0045662 | DA21: 264.2009132 | DB21: 0 | DC21: 0 | DD21: 0 | DE21: 0 | DF21: 0 | DG21: 0 | DH21: 0 | DI21: 0 | DJ21: 2036.955479
A22: DDNEW | B22: Newstead Residential Trial | C22: =C21 -> Residential Demand | D22: 360 | E22: 0 | F22: 0 | G22: 0 | H22: 0 | I22: 0 | J22: 0 | K22: 0 | L22: 0 | M22: 0 | N22: 0 | O22: 1.55 | P22: 1.55 | Q22: 0 | R22: 0 | S22: 0 | T22: 0 | U22: 0 | V22: 0 | W22: 0 | X22: 0 | Z22: =Z21 -> 125 | AA22: 2.37 | AB22: 0 | AC22: 0 | AD22: 0 | AE22: 0 | AF22: 0 | AG22: 0 | AH22: 0 | AI22: 0 | AJ22: 0 | AK22: 7.9 | AL22: 2.63 | AM22: 0 | AN22: 0 | AO22: 0 | AP22: 0 | AQ22: 0 | AR22: 0 | AS22: 0 | AT22: 0 | AV22: 0 | AW22: 0 | AX22: 0 | AY22: 0 | AZ22: 0 | BA22: 0 | BB22: 0 | BC22: 0 | BD22: 0 | BE22: 0 | BF22: 0 | BG22: 0 | BH22: 0 | BI22: 0 | BJ22: 0 | BK22: 0 | BL22: 0 | BM22: 0 | BN22: 0 | BO22: 0 | BP22: 0 | BQ22: 0 | BR22: 0 | BS22: =E22/100*AW22 -> 0 | BT22: 0 | BU22: 0 | BV22: 0 | BW22: 0 | BX22: 0 | BY22: 0 | BZ22: 0 | CA22: 0 | CB22: 0 | CC22: 0 | CD22: 0 | CE22: 0 | CF22: 0 | CG22: 0 | CH22: 0 | CI22: 0 | CJ22: 0 | CK22: 0 | CL22: 0 | CM22: 0 | CO22: 0 | CP22: 0 | CQ22: 0 | CR22: 0 | CS22: 0 | CT22: 0 | CU22: 0 | CV22: 0 | CW22: 0 | CX22: 0 | CY22: 0 | CZ22: 0 | DA22: 0 | DB22: 0 | DC22: 0 | DD22: 0 | DE22: 0 | DF22: 0 | DG22: 0 | DH22: 0 | DI22: 0 | DJ22: 0
A23: ND1 | B23: Non-Residential Single Rate | C23: Non-Residential Single Rate | D23: 160 | E23: 6.29 | F23: 0 | G23: 0 | H23: 0 | I23: 0 | J23: 0 | K23: 0 | L23: 0 | M23: 0 | N23: 0 | O23: 0 | P23: 0 | Q23: 0 | R23: 0 | S23: 0 | T23: 0 | U23: 0 | V23: 0 | W23: 0 | X23: 0 | Z23: 160 | AA23: 6.65 | AB23: 0 | AC23: 0 | AD23: 0 | AE23: 0 | AF23: 0 | AG23: 0 | AH23: 0 | AI23: 0 | AJ23: 0 | AK23: 0 | AL23: 0 | AM23: 0 | AN23: 0 | AO23: 0 | AP23: 0 | AQ23: 0 | AR23: 0 | AS23: 0 | AT23: 0 | AV23: 42209.54355 | AW23: 256381416.1 | AX23: 0 | AY23: 0 | AZ23: 0 | BA23: 0 | BB23: 0 | BC23: 0 | BD23: 0 | BE23: 0 | BF23: 0 | BG23: 0 | BH23: 0 | BI23: 0 | BJ23: 0 | BK23: 0 | BL23: 0 | BM23: 0 | BN23: 0 | BO23: 0 | BP23: 0 | BQ23: 256381416.1 | BR23: 6753526.967 | BS23: 16126391.07 | BT23: 0 | BU23: 0 | BV23: 0 | BW23: 0 | BX23: 0 | BY23: 0 | BZ23: 0 | CA23: 0 | CB23: 0 | CC23: 0 | CD23: 0 | CE23: 0 | CF23: 0 | CG23: 0 | CH23: 0 | CI23: 0 | CJ23: 0 | CK23: 0 | CL23: 0 | CM23: 22879918.04 | CO23: 6753526.967 | CP23: 17049364.17 | CQ23: 0 | CR23: 0 | CS23: 0 | CT23: 0 | CU23: 0 | CV23: 0 | CW23: 0 | CX23: 0 | CY23: 0 | CZ23: 0 | DA23: 0 | DB23: 0 | DC23: 0 | DD23: 0 | DE23: 0 | DF23: 0 | DG23: 0 | DH23: 0 | DI23: 0 | DJ23: 23802891.14
A24: P14G | B24: Non-Residential Flexible Pricing | C24: Non-Residential Flexible Pricing | D24: 160 | E24: 0 | F24: 0 | G24: 0 | H24: 0 | I24: 0 | J24: 0 | K24: 0 | L24: 0 | M24: 0 | N24: 0 | O24: 0 | P24: 0 | Q24: 10.19 | R24: 3.19 | S24: 2.44 | T24: 0 | U24: 10.19 | V24: 3.19 | W24: 2.44 | X24: 0 | Z24: 160 | AA24: 0 | AB24: 0 | AC24: 0 | AD24: 0 | AE24: 0 | AF24: 0 | AG24: 0 | AH24: 0 | AI24: 0 | AJ24: 0 | AK24: 0 | AL24: 0 | AM24: 10.8 | AN24: 3.36 | AO24: 2.56 | AP24: 0 | AQ24: 10.8 | AR24: 3.36 | AS24: 2.56 | AT24: 0 | AV24: 186.1130724 | AW24: 0 | AX24: 0 | AY24: 0 | AZ24: 0 | BA24: 0 | BB24: 0 | BC24: 0 | BD24: 0 | BE24: 0 | BF24: 0 | BG24: 0 | BH24: 0 | BI24: 425233.8013 | BJ24: 148156.1148 | BK24: 478715.0372 | BL24: 0 | BM24: 1248433.238 | BN24: 361061.6992 | BO24: 1112012.891 | BP24: 0 | BQ24: 3773612.782 | BR24: 29778.09159 | BS24: 0 | BT24: 0 | BU24: 0 | BV24: 0 | BW24: 0 | BX24: 0 | BY24: 0 | BZ24: 0 | CA24: 0 | CB24: 0 | CC24: 0 | CD24: 0 | CE24: 43331.32435 | CF24: 4726.180062 | CG24: 11680.64691 | CH24: 0 | CI24: 127215.347 | CJ24: 11517.8682 | CK24: 27133.11454 | CL24: 0 | CM24: 255382.5726 | CO24: 29778.09159 | CP24: 0 | CQ24: 0 | CR24: 0 | CS24: 0 | CT24: 0 | CU24: 0 | CV24: 0 | CW24: 0 | CX24: 0 | CY24: 0 | CZ24: 0 | DA24: 0 | DB24: 45925.25054 | DC24: 4978.045457 | DD24: 12255.10495 | DE24: 0 | DF24: 134830.7897 | DG24: 12131.67309 | DH24: 28467.53001 | DI24: 0 | DJ24: 268366.4854
A25: ND2 | B25: Non-Residential Two Rate 5d | C25: Non-Residential Two Rate 5d | D25: 160 | E25: 0 | F25: 10.31 | G25: 0 | H25: 0 | I25: 2.34 | J25: 0 | K25: 0 | L25: 0 | M25: 0 | N25: 0 | O25: 0 | P25: 0 | Q25: 0 | R25: 0 | S25: 0 | T25: 0 | U25: 0 | V25: 0 | W25: 0 | X25: 0 | Z25: 160 | AA25: 0 | AB25: 10.93 | AC25: 0 | AD25: 0 | AE25: 2.45 | AF25: 0 | AG25: 0 | AH25: 0 | AI25: 0 | AJ25: 0 | AK25: 0 | AL25: 0 | AM25: 0 | AN25: 0 | AO25: 0 | AP25: 0 | AQ25: 0 | AR25: 0 | AS25: 0 | AT25: 0 | AV25: 24184.20107 | AW25: 0 | AX25: 207323954.7 | AY25: 0 | AZ25: 0 | BA25: 176674793.9 | BB25: 0 | BC25: 0 | BD25: 0 | BE25: 0 | BF25: 0 | BG25: 0 | BH25: 0 | BI25: 0 | BJ25: 0 | BK25: 0 | BL25: 0 | BM25: 0 | BN25: 0 | BO25: 0 | BP25: 0 | BQ25: 383998748.5 | BR25: 3869472.171 | BS25: 0 | BT25: 21375099.72 | BU25: 0 | BV25: 0 | BW25: 4134190.177 | BX25: 0 | BY25: 0 | BZ25: 0 | CA25: 0 | CB25: 0 | CC25: 0 | CD25: 0 | CE25: 0 | CF25: 0 | CG25: 0 | CH25: 0 | CI25: 0 | CJ25: 0 | CK25: 0 | CL25: 0 | CM25: 29378762.07 | CO25: 3869472.171 | CP25: 0 | CQ25: 22660508.24 | CR25: 0 | CS25: 0 | CT25: 4328532.45 | CU25: 0 | CV25: 0 | CW25: 0 | CX25: 0 | CY25: 0 | CZ25: 0 | DA25: 0 | DB25: 0 | DC25: 0 | DD25: 0 | DE25: 0 | DF25: 0 | DG25: 0 | DH25: 0 | DI25: 0 | DJ25: 30858512.87
A26: ND5 | B26: Non-Residential Interval | C26: Non-Residential Interval | D26: 160 | E26: 0 | F26: 10.31 | G26: 0 | H26: 0 | I26: 2.34 | J26: 0 | K26: 0 | L26: 0 | M26: 0 | N26: 0 | O26: 0 | P26: 0 | Q26: 0 | R26: 0 | S26: 0 | T26: 0 | U26: 0 | V26: 0 | W26: 0 | X26: 0 | Z26: 160 | AA26: 0 | AB26: 10.93 | AC26: 0 | AD26: 0 | AE26: 2.45 | AF26: 0 | AG26: 0 | AH26: 0 | AI26: 0 | AJ26: 0 | AK26: 0 | AL26: 0 | AM26: 0 | AN26: 0 | AO26: 0 | AP26: 0 | AQ26: 0 | AR26: 0 | AS26: 0 | AT26: 0 | AV26: 12412.00132 | AW26: 0 | AX26: 96843792.2 | AY26: 0 | AZ26: 0 | BA26: 66506894.75 | BB26: 0 | BC26: 0 | BD26: 0 | BE26: 0 | BF26: 0 | BG26: 0 | BH26: 0 | BI26: 0 | BJ26: 0 | BK26: 0 | BL26: 0 | BM26: 0 | BN26: 0 | BO26: 0 | BP26: 0 | BQ26: 163350686.9 | BR26: =D26*AV26 -> 1985920.211 | BS26: =E26/100*AW26 -> 0 | BT26: =F26/100*AX26 -> 9984594.975 | BU26: =G26/100*AY26 -> 0 | BV26: =H26/100*AZ26 -> 0 | BW26: =I26/100*BA26 -> 1556261.337 | BX26: =J26/100*BB26 -> 0 | BY26: =K26/100*BC26 -> 0 | BZ26: =L26/100*BD26 -> 0 | CA26: =M26*BE26 -> 0 | CB26: =N26*BF26 -> 0 | CC26: =O26*BG26 -> 0 | CD26: =P26*BH26 -> 0 | CE26: =Q26/100*BI26 -> 0 | CF26: =R26/100*BJ26 -> 0 | CG26: =S26/100*BK26 -> 0 | CH26: =T26/100*BL26 -> 0 | CI26: =U26/100*BM26 -> 0 | CJ26: =V26/100*BN26 -> 0 | CK26: =W26/100*BO26 -> 0 | CL26: =X26/100*BP26 -> 0 | CM26: 13526776.52 | CO26: 1985920.211 | CP26: 0 | CQ26: 10585026.49 | CR26: 0 | CS26: 0 | CT26: 1629418.921 | CU26: 0 | CV26: 0 | CW26: 0 | CX26: 0 | CY26: 0 | CZ26: 0 | DA26: 0 | DB26: 0 | DC26: 0 | DD26: 0 | DE26: 0 | DF26: 0 | DG26: 0 | DH26: 0 | DI26: 0 | DJ26: 14200365.62
A27: ND3 | B27: Non-Residential Two Rate 7d | C27: Non-Residential Two Rate 7d | D27: 160 | E27: 0 | F27: 9.09 | G27: 0 | H27: 0 | I27: 2.34 | J27: 0 | K27: 0 | L27: 0 | M27: 0 | N27: 0 | O27: 0 | P27: 0 | Q27: 0 | R27: 0 | S27: 0 | T27: 0 | U27: 0 | V27: 0 | W27: 0 | X27: 0 | Z27: 160 | AA27: 0 | AB27: 9.63 | AC27: 0 | AD27: 0 | AE27: 2.45 | AF27: 0 | AG27: 0 | AH27: 0 | AI27: 0 | AJ27: 0 | AK27: 0 | AL27: 0 | AM27: 0 | AN27: 0 | AO27: 0 | AP27: 0 | AQ27: 0 | AR27: 0 | AS27: 0 | AT27: 0 | AV27: 7219.587967 | AW27: 0 | AX27: 58018282.44 | AY27: 0 | AZ27: 0 | BA27: 22573877.49 | BB27: 0 | BC27: 0 | BD27: 0 | BE27: 0 | BF27: 0 | BG27: 0 | BH27: 0 | BI27: 0 | BJ27: 0 | BK27: 0 | BL27: 0 | BM27: 0 | BN27: 0 | BO27: 0 | BP27: 0 | BQ27: 80592159.92 | BR27: 1155134.075 | BS27: 0 | BT27: 5273861.873 | BU27: 0 | BV27: 0 | BW27: 528228.7332 | BX27: 0 | BY27: 0 | BZ27: 0 | CA27: 0 | CB27: 0 | CC27: 0 | CD27: 0 | CE27: 0 | CF27: 0 | CG27: 0 | CH27: 0 | CI27: 0 | CJ27: 0 | CK27: 0 | CL27: 0 | CM27: 6957224.681 | CO27: 1155134.075 | CP27: 0 | CQ27: 5587160.599 | CR27: 0 | CS27: 0 | CT27: 553059.9985 | CU27: 0 | CV27: 0 | CW27: 0 | CX27: 0 | CY27: 0 | CZ27: 0 | DA27: 0 | DB27: 0 | DC27: 0 | DD27: 0 | DE27: 0 | DF27: 0 | DG27: 0 | DH27: 0 | DI27: 0 | DJ27: 7295354.672
A28: NDD | B28: Non-Residential Demand | C28: Non-Residential Demand | D28: 160 | E28: 2.99 | F28: 0 | G28: 0 | H28: 0 | I28: 0 | J28: 0 | K28: 0 | L28: 0 | M28: 0 | N28: 0 | O28: 11.09 | P28: 3.7 | Q28: 0 | R28: 0 | S28: 0 | T28: 0 | U28: 0 | V28: 0 | W28: 0 | X28: 0 | Z28: 160 | AA28: 3.14 | AB28: 0 | AC28: 0 | AD28: 0 | AE28: 0 | AF28: 0 | AG28: 0 | AH28: 0 | AI28: 0 | AJ28: 0 | AK28: 11.79 | AL28: 3.93 | AM28: 0 | AN28: 0 | AO28: 0 | AP28: 0 | AQ28: 0 | AR28: 0 | AS28: 0 | AT28: 0 | AV28: 6.354045079 | AW28: 127080.9016 | AX28: 0 | AY28: 0 | AZ28: 0 | BA28: 0 | BB28: 0 | BC28: 0 | BD28: 0 | BE28: 0 | BF28: 0 | BG28: 165.7937398 | BH28: 290.1390447 | BI28: 0 | BJ28: 0 | BK28: 0 | BL28: 0 | BM28: 0 | BN28: 0 | BO28: 0 | BP28: 0 | BQ28: 127080.9016 | BR28: 1016.647213 | BS28: 3799.718957 | BT28: 0 | BU28: 0 | BV28: 0 | BW28: 0 | BX28: 0 | BY28: 0 | BZ28: 0 | CA28: 0 | CB28: 0 | CC28: 1838.652575 | CD28: 1073.514465 | CE28: 0 | CF28: 0 | CG28: 0 | CH28: 0 | CI28: 0 | CJ28: 0 | CK28: 0 | CL28: 0 | CM28: 7728.53321 | CO28: 1016.647213 | CP28: 3990.340309 | CQ28: 0 | CR28: 0 | CS28: 0 | CT28: 0 | CU28: 0 | CV28: 0 | CW28: 0 | CX28: 0 | CY28: 0 | CZ28: 1954.708193 | DA28: 1140.246446 | DB28: 0 | DC28: 0 | DD28: 0 | DE28: 0 | DF28: 0 | DG28: 0 | DH28: 0 | DI28: 0 | DJ28: 8101.94216
A29: NDM | B29: Medium business Demand | C29: Medium business | D29: 900 | E29: 0 | F29: 7.21 | G29: 0 | H29: 0 | I29: 3.52 | J29: 0 | K29: 0 | L29: 0 | M29: 0 | N29: 0 | O29: 3.19 | P29: 1.6 | Q29: 0 | R29: 0 | S29: 0 | T29: 0 | U29: 0 | V29: 0 | W29: 0 | X29: 0 | Z29: 900 | AA29: 0 | AB29: 8.9 | AC29: 0 | AD29: 0 | AE29: 3.55 | AF29: 0 | AG29: 0 | AH29: 0 | AI29: 0 | AJ29: 0 | AK29: 0 | AL29: 0 | AM29: 0 | AN29: 0 | AO29: 0 | AP29: 0 | AQ29: 0 | AR29: 0 | AS29: 0 | AT29: 0 | AV29: 7925.701842 | AW29: 0 | AX29: 582897214.7 | AY29: 0 | AZ29: 0 | BA29: 452515803.8 | BB29: 0 | BC29: 0 | BD29: 0 | BE29: 0 | BF29: 0 | BG29: 1449178.437 | BH29: 2541062.219 | BI29: 0 | BJ29: 0 | BK29: 0 | BL29: 0 | BM29: 0 | BN29: 0 | BO29: 0 | BP29: 0 | BQ29: 1035413018 | BR29: 7133131.658 | BS29: 0 | BT29: 42026889.18 | BU29: 0 | BV29: 0 | BW29: 15928556.29 | BX29: 0 | BY29: 0 | BZ29: 0 | CA29: 0 | CB29: 0 | CC29: 4622879.213 | CD29: 4065699.55 | CE29: 0 | CF29: 0 | CG29: 0 | CH29: 0 | CI29: 0 | CJ29: 0 | CK29: 0 | CL29: 0 | CM29: 73777155.9 | CO29: 7133131.658 | CP29: 0 | CQ29: 51877852.11 | CR29: 0 | CS29: 0 | CT29: 16064311.03 | CU29: 0 | CV29: 0 | CW29: 0 | CX29: 0 | CY29: 0 | CZ29: 0 | DA29: 0 | DB29: 0 | DC29: 0 | DD29: 0 | DE29: 0 | DF29: 0 | DG29: 0 | DH29: 0 | DI29: 0 | DJ29: 75075294.8
A30: NDMO | B30: Medium business Opt-out | C30: =C29 -> Medium business | D30: 900 | E30: 0 | F30: 11.3 | G30: 0 | H30: 0 | I30: 3.66 | J30: 0 | K30: 0 | L30: 0 | M30: 0 | N30: 0 | O30: 0 | P30: 0 | Q30: 0 | R30: 0 | S30: 0 | T30: 0 | U30: 0 | V30: 0 | W30: 0 | X30: 0 | Z30: =Z29 -> 900 | AA30: =AA29 -> 0 | AB30: 8.9 | AC30: 0 | AD30: 0 | AE30: 3.55 | AF30: 0 | AG30: 0 | AH30: 0 | AI30: 0 | AJ30: 0 | AK30: 0 | AL30: 0 | AM30: 0 | AN30: 0 | AO30: 0 | AP30: 0 | AQ30: 0 | AR30: 0 | AS30: 0 | AT30: 0 | AV30: 81 | AW30: 0 | AX30: 3137768.496 | AY30: 0 | AZ30: 0 | BA30: 3347230.555 | BB30: 0 | BC30: 0 | BD30: 0 | BE30: 0 | BF30: 0 | BG30: 0 | BH30: 0 | BI30: 0 | BJ30: 0 | BK30: 0 | BL30: 0 | BM30: 0 | BN30: 0 | BO30: 0 | BP30: 0 | BQ30: 6484999.051 | BR30: 72900 | BS30: 0 | BT30: 354567.8401 | BU30: 0 | BV30: 0 | BW30: 122508.6383 | BX30: 0 | BY30: 0 | BZ30: 0 | CA30: 0 | CB30: 0 | CC30: 0 | CD30: 0 | CE30: 0 | CF30: 0 | CG30: 0 | CH30: 0 | CI30: 0 | CJ30: 0 | CK30: 0 | CL30: 0 | CM30: 549976.4784 | CO30: 72900 | CP30: 0 | CQ30: 279261.3962 | CR30: 0 | CS30: 0 | CT30: 118826.6847 | CU30: 0 | CV30: 0 | CW30: 0 | CX30: 0 | CY30: 0 | CZ30: 0 | DA30: 0 | DB30: 0 | DC30: 0 | DD30: 0 | DE30: 0 | DF30: 0 | DG30: 0 | DH30: 0 | DI30: 0 | DJ30: 470988.0809
A31: PL2 | B31: Public Lighting | C31: Public Lighting | D31: 0 | E31: 0 | F31: 11.86 | G31: 0 | H31: 0 | I31: 3.38 | J31: 0 | K31: 0 | L31: 0 | M31: 0 | N31: 0 | O31: 0 | P31: 0 | Q31: 0 | R31: 0 | S31: 0 | T31: 0 | U31: 0 | V31: 0 | W31: 0 | X31: 0 | Z31: 0 | AA31: 0 | AB31: 12.57 | AC31: 0 | AD31: 0 | AE31: 3.55 | AF31: 0 | AG31: 0 | AH31: 0 | AI31: 0 | AJ31: 0 | AK31: 0 | AL31: 0 | AM31: 0 | AN31: 0 | AO31: 0 | AP31: 0 | AQ31: 0 | AR31: 0 | AS31: 0 | AT31: 0 | AV31: 7344.7 | AW31: 0 | AX31: 27764943.81 | AY31: 0 | AZ31: 0 | BA31: 68379507.26 | BB31: 0 | BC31: 0 | BD31: 0 | BE31: 0 | BF31: 0 | BG31: 0 | BH31: 0 | BI31: 0 | BJ31: 0 | BK31: 0 | BL31: 0 | BM31: 0 | BN31: 0 | BO31: 0 | BP31: 0 | BQ31: 96144451.06 | BR31: 0 | BS31: 0 | BT31: 3292922.335 | BU31: 0 | BV31: 0 | BW31: 2311227.345 | BX31: 0 | BY31: 0 | BZ31: 0 | CA31: 0 | CB31: 0 | CC31: 0 | CD31: 0 | CE31: 0 | CF31: 0 | CG31: 0 | CH31: 0 | CI31: 0 | CJ31: 0 | CK31: 0 | CL31: 0 | CM31: 5604149.681 | CO31: 0 | CP31: 0 | CQ31: 3490053.436 | CR31: 0 | CS31: 0 | CT31: 2427472.508 | CU31: 0 | CV31: 0 | CW31: 0 | CX31: 0 | CY31: 0 | CZ31: 0 | DA31: 0 | DB31: 0 | DC31: 0 | DD31: 0 | DE31: 0 | DF31: 0 | DG31: 0 | DH31: 0 | DI31: 0 | DJ31: 5917525.944
A32: LLV | B32: Large low Voltage | C32: Large low Voltage | D32: 7900 | E32: 0 | F32: 3.14 | G32: 0 | H32: 0 | I32: 1.54 | J32: 0 | K32: 0 | L32: 0 | M32: 87.42 | N32: 0 | O32: 0 | P32: 0 | Q32: 0 | R32: 0 | S32: 0 | T32: 0 | U32: 0 | V32: 0 | W32: 0 | X32: 0 | Z32: 7749 | AA32: 0 | AB32: 3.02 | AC32: 0 | AD32: 0 | AE32: 1.47 | AF32: 0 | AG32: 0 | AH32: 0 | AI32: 85.16 | AJ32: 0 | AK32: 0 | AL32: 0 | AM32: 0 | AN32: 0 | AO32: 0 | AP32: 0 | AQ32: 0 | AR32: 0 | AS32: 0 | AT32: 0 | AV32: 2749.230824 | AW32: 0 | AX32: 1363564037 | AY32: 0 | AZ32: 0 | BA32: 1037238631 | BB32: 0 | BC32: 0 | BD32: 0 | BE32: 840288.6815 | BF32: 0 | BG32: 0 | BH32: 0 | BI32: 0 | BJ32: 0 | BK32: 0 | BL32: 0 | BM32: 0 | BN32: 0 | BO32: 0 | BP32: 0 | BQ32: 2400802668 | BR32: 21718923.51 | BS32: 0 | BT32: 42815910.76 | BU32: 0 | BV32: 0 | BW32: 15973474.92 | BX32: 0 | BY32: 0 | BZ32: 0 | CA32: 73458036.54 | CB32: 0 | CC32: 0 | CD32: 0 | CE32: 0 | CF32: 0 | CG32: 0 | CH32: 0 | CI32: 0 | CJ32: 0 | CK32: 0 | CL32: 0 | CM32: 153966345.7 | CO32: 21303789.66 | CP32: 0 | CQ32: 41179633.92 | CR32: 0 | CS32: 0 | CT32: 15247407.88 | CU32: 0 | CV32: 0 | CW32: 0 | CX32: 71558984.12 | CY32: 0 | CZ32: 0 | DA32: 0 | DB32: 0 | DC32: 0 | DD32: 0 | DE32: 0 | DF32: 0 | DG32: 0 | DH32: 0 | DI32: 0 | DJ32: 149289815.6
A33: HV | B33: High Voltage | C33: High Voltage | D33: 44900 | E33: 0 | F33: 1.62 | G33: 0 | H33: 0 | I33: 0.62 | J33: 0 | K33: 0 | L33: 0 | M33: 58.06 | N33: 0 | O33: 0 | P33: 0 | Q33: 0 | R33: 0 | S33: 0 | T33: 0 | U33: 0 | V33: 0 | W33: 0 | X33: 0 | Z33: 44000 | AA33: 0 | AB33: 1.57 | AC33: 0 | AD33: 0 | AE33: 0.6 | AF33: 0 | AG33: 0 | AH33: 0 | AI33: 56.28 | AJ33: 0 | AK33: 0 | AL33: 0 | AM33: 0 | AN33: 0 | AO33: 0 | AP33: 0 | AQ33: 0 | AR33: 0 | AS33: 0 | AT33: 0 | AV33: 173 | AW33: 0 | AX33: 761179064.6 | AY33: 0 | AZ33: 0 | BA33: 676982871.9 | BB33: 0 | BC33: 0 | BD33: 0 | BE33: 394844.7254 | BF33: 0 | BG33: 0 | BH33: 0 | BI33: 0 | BJ33: 0 | BK33: 0 | BL33: 0 | BM33: 0 | BN33: 0 | BO33: 0 | BP33: 0 | BQ33: 1438161937 | BR33: 7767700 | BS33: 0 | BT33: 12331100.85 | BU33: 0 | BV33: 0 | BW33: 4197293.806 | BX33: 0 | BY33: 0 | BZ33: 0 | CA33: 22924684.76 | CB33: 0 | CC33: 0 | CD33: 0 | CE33: 0 | CF33: 0 | CG33: 0 | CH33: 0 | CI33: 0 | CJ33: 0 | CK33: 0 | CL33: 0 | CM33: 47220779.41 | CO33: 7612000 | CP33: 0 | CQ33: 11950511.31 | CR33: 0 | CS33: 0 | CT33: 4061897.232 | CU33: 0 | CV33: 0 | CW33: 0 | CX33: 22221861.15 | CY33: 0 | CZ33: 0 | DA33: 0 | DB33: 0 | DC33: 0 | DD33: 0 | DE33: 0 | DF33: 0 | DG33: 0 | DH33: 0 | DI33: 0 | DJ33: 45846269.69
A34: HVD | B34: High Voltage Docklands | C34: High Voltage Docklands | D34: 35900 | E34: 0 | F34: 1.28 | G34: 0 | H34: 0 | I34: 0.5 | J34: 0 | K34: 0 | L34: 0 | M34: 47.46 | N34: 0 | O34: 0 | P34: 0 | Q34: 0 | R34: 0 | S34: 0 | T34: 0 | U34: 0 | V34: 0 | W34: 0 | X34: 0 | Z34: 35200 | AA34: 0 | AB34: 1.24 | AC34: 0 | AD34: 0 | AE34: 0.49 | AF34: 0 | AG34: 0 | AH34: 0 | AI34: 46 | AJ34: 0 | AK34: 0 | AL34: 0 | AM34: 0 | AN34: 0 | AO34: 0 | AP34: 0 | AQ34: 0 | AR34: 0 | AS34: 0 | AT34: 0 | AV34: 9 | AW34: 0 | AX34: 142211194.7 | AY34: 0 | AZ34: 0 | BA34: 148646852.4 | BB34: 0 | BC34: 0 | BD34: 0 | BE34: 58586.29033 | BF34: 0 | BG34: 0 | BH34: 0 | BI34: 0 | BJ34: 0 | BK34: 0 | BL34: 0 | BM34: 0 | BN34: 0 | BO34: 0 | BP34: 0 | BQ34: 290858047 | BR34: 323100 | BS34: 0 | BT34: 1820303.292 | BU34: 0 | BV34: 0 | BW34: 743234.2619 | BX34: 0 | BY34: 0 | BZ34: 0 | CA34: 2780505.339 | CB34: 0 | CC34: 0 | CD34: 0 | CE34: 0 | CF34: 0 | CG34: 0 | CH34: 0 | CI34: 0 | CJ34: 0 | CK34: 0 | CL34: 0 | CM34: 5667142.893 | CO34: 316800 | CP34: 0 | CQ34: 1763418.814 | CR34: 0 | CS34: 0 | CT34: 728369.5766 | CU34: 0 | CV34: 0 | CW34: 0 | CX34: 2694969.355 | CY34: 0 | CZ34: 0 | DA34: 0 | DB34: 0 | DC34: 0 | DD34: 0 | DE34: 0 | DF34: 0 | DG34: 0 | DH34: 0 | DI34: 0 | DJ34: 5503557.746
A35: ST | B35: Subtransmission | C35: Subtransmission | D35: 242800 | E35: 0 | F35: 0.51 | G35: 0 | H35: 0 | I35: 0.15 | J35: 0 | K35: 0 | L35: 0 | M35: 4.73 | N35: 0 | O35: 0 | P35: 0 | Q35: 0 | R35: 0 | S35: 0 | T35: 0 | U35: 0 | V35: 0 | W35: 0 | X35: 0 | Z35: 238000 | AA35: 0 | AB35: 0.49 | AC35: 0 | AD35: 0 | AE35: 0.15 | AF35: 0 | AG35: 0 | AH35: 0 | AI35: 4.57 | AJ35: 0 | AK35: 0 | AL35: 0 | AM35: 0 | AN35: 0 | AO35: 0 | AP35: 0 | AQ35: 0 | AR35: 0 | AS35: 0 | AT35: 0 | AV35: 11 | AW35: 0 | AX35: 530995472.6 | AY35: 0 | AZ35: 0 | BA35: 460236066 | BB35: 0 | BC35: 0 | BD35: 0 | BE35: 267192.9453 | BF35: 0 | BG35: 0 | BH35: 0 | BI35: 0 | BJ35: 0 | BK35: 0 | BL35: 0 | BM35: 0 | BN35: 0 | BO35: 0 | BP35: 0 | BQ35: 991231538.7 | BR35: 2670800 | BS35: 0 | BT35: 2708076.911 | BU35: 0 | BV35: 0 | BW35: 690354.099 | BX35: 0 | BY35: 0 | BZ35: 0 | CA35: 1263822.631 | CB35: 0 | CC35: 0 | CD35: 0 | CE35: 0 | CF35: 0 | CG35: 0 | CH35: 0 | CI35: 0 | CJ35: 0 | CK35: 0 | CL35: 0 | CM35: 7333053.641 | CO35: 2618000 | CP35: 0 | CQ35: 2601877.816 | CR35: 0 | CS35: 0 | CT35: 690354.099 | CU35: 0 | CV35: 0 | CW35: 0 | CX35: 1221071.76 | CY35: 0 | CZ35: 0 | DA35: 0 | DB35: 0 | DC35: 0 | DD35: 0 | DE35: 0 | DF35: 0 | DG35: 0 | DH35: 0 | DI35: 0 | DJ35: 7131303.675
E36: 0 | F36: 0 | G36: 0 | H36: 0 | I36: 0 | J36: 0 | K36: 0 | L36: 0 | M36: 0 | N36: 0 | O36: 0 | P36: 0 | Q36: 0 | R36: 0 | S36: 0 | T36: 0 | U36: 0 | V36: 0 | W36: 0 | X36: 0 | AV36: 0 | AW36: 0 | AX36: 0 | AY36: 0 | AZ36: 0 | BA36: 0 | BB36: 0 | BC36: 0 | BD36: 0 | BE36: 0 | BF36: 0 | BG36: 0 | BH36: 0 | BI36: 0 | BJ36: 0 | BK36: 0 | BL36: 0 | BM36: 0 | BN36: 0 | BO36: 0 | BP36: 0 | BQ36: 0 | BR36: 0 | BS36: 0 | BT36: 0 | BU36: 0 | BV36: 0 | BW36: 0 | BX36: 0 | BY36: 0 | BZ36: 0 | CA36: 0 | CB36: 0 | CC36: 0 | CD36: 0 | CE36: 0 | CF36: 0 | CG36: 0 | CH36: 0 | CI36: 0 | CJ36: 0 | CK36: 0 | CL36: 0 | CM36: 0 | CO36: 0 | CP36: 0 | CQ36: 0 | CR36: 0 | CS36: 0 | CT36: 0 | CU36: 0 | CV36: 0 | CW36: 0 | CX36: 0 | CY36: 0 | CZ36: 0 | DA36: 0 | DB36: 0 | DC36: 0 | DD36: 0 | DE36: 0 | DF36: 0 | DG36: 0 | DH36: 0 | DI36: 0 | DJ36: 0
BQ37: 0
BQ38: 0
BQ39: 0
BQ40: 0
BQ41: 0
BQ42: 0
BQ43: 0
BQ44: 0
BQ45: 0
BQ46: 0
BQ47: 0
BQ48: 0
BQ49: 0
BQ50: 0
BQ51: 0
BQ52: 0
BQ53: 0
BQ54: 0
BQ55: 0
BQ56: 0 | BR56: 0 | BS56: 0 | BT56: 0 | BU56: 0 | BV56: 0 | BW56: 0 | BX56: 0 | BY56: 0 | BZ56: 0 | CA56: 0 | CB56: 0 | CC56: 0 | CD56: 0 | CE56: 0 | CF56: 0 | CG56: 0 | CH56: 0 | CI56: 0 | CJ56: 0 | CK56: 0 | CL56: 0 | CM56: 0 | CO56: =Z56*AV56 -> 0 | CP56: =AA56/100*AW56 -> 0 | CQ56: =AB56/100*AX56 -> 0 | CR56: =AC56/100*AY56 -> 0 | CS56: =AD56/100*AZ56 -> 0 | CT56: =AE56/100*BA56 -> 0 | CU56: =AF56/100*BB56 -> 0 | CV56: =AG56/100*BC56 -> 0 | CW56: =AH56/100*BD56 -> 0 | CX56: =AI56*BE56 -> 0 | CY56: =AJ56*BF56 -> 0 | CZ56: =AK56*BG56 -> 0 | DA56: =AL56*BH56 -> 0 | DB56: =AM56/100*BI56 -> 0 | DC56: =AN56/100*BJ56 -> 0 | DD56: =AO56/100*BK56 -> 0 | DE56: =AP56/100*BL56 -> 0 | DF56: =AQ56/100*BM56 -> 0 | DG56: =AR56/100*BN56 -> 0 | DH56: =AS56/100*BO56 -> 0 | DI56: =AT56/100*BP56 -> 0 | DJ56: 0
BQ57: 0 | BR57: 0 | BS57: 0 | BT57: 0 | BU57: 0 | BV57: 0 | BW57: 0 | BX57: 0 | BY57: 0 | BZ57: 0 | CA57: 0 | CB57: 0 | CC57: 0 | CD57: 0 | CE57: 0 | CF57: 0 | CG57: 0 | CH57: 0 | CI57: 0 | CJ57: 0 | CK57: 0 | CL57: 0 | CM57: 0 | CO57: 0 | CP57: 0 | CQ57: 0 | CR57: 0 | CS57: 0 | CT57: 0 | CU57: 0 | CV57: 0 | CW57: 0 | CX57: 0 | CY57: 0 | CZ57: 0 | DA57: 0 | DB57: 0 | DC57: 0 | DD57: 0 | DE57: 0 | DF57: 0 | DG57: 0 | DH57: 0 | DI57: 0 | DJ57: 0
BQ58: 0 | BR58: 0 | BS58: 0 | BT58: 0 | BU58: 0 | BV58: 0 | BW58: 0 | BX58: 0 | BY58: 0 | BZ58: 0 | CA58: 0 | CB58: 0 | CC58: 0 | CD58: 0 | CE58: 0 | CF58: 0 | CG58: 0 | CH58: 0 | CI58: 0 | CJ58: 0 | CK58: 0 | CL58: 0 | CM58: 0 | CO58: 0 | CP58: 0 | CQ58: 0 | CR58: 0 | CS58: 0 | CT58: 0 | CU58: 0 | CV58: 0 | CW58: 0 | CX58: 0 | CY58: 0 | CZ58: 0 | DA58: 0 | DB58: 0 | DC58: 0 | DD58: 0 | DE58: 0 | DF58: 0 | DG58: 0 | DH58: 0 | DI58: 0 | DJ58: 0
BQ59: 0 | BR59: 0 | BS59: 0 | BT59: 0 | BU59: 0 | BV59: 0 | BW59: 0 | BX59: 0 | BY59: 0 | BZ59: 0 | CA59: 0 | CB59: 0 | CC59: 0 | CD59: 0 | CE59: 0 | CF59: 0 | CG59: 0 | CH59: 0 | CI59: 0 | CJ59: 0 | CK59: 0 | CL59: 0 | CM59: 0 | CO59: 0 | CP59: 0 | CQ59: 0 | CR59: 0 | CS59: 0 | CT59: 0 | CU59: 0 | CV59: 0 | CW59: 0 | CX59: 0 | CY59: 0 | CZ59: 0 | DA59: 0 | DB59: 0 | DC59: 0 | DD59: 0 | DE59: 0 | DF59: 0 | DG59: 0 | DH59: 0 | DI59: 0 | DJ59: 0
BQ60: 0 | BR60: 0 | BS60: 0 | BT60: 0 | BU60: 0 | BV60: 0 | BW60: 0 | BX60: 0 | BY60: 0 | BZ60: 0 | CA60: 0 | CB60: 0 | CC60: 0 | CD60: 0 | CE60: 0 | CF60: 0 | CG60: 0 | CH60: 0 | CI60: 0 | CJ60: 0 | CK60: 0 | CL60: 0 | CM60: 0 | CO60: 0 | CP60: 0 | CQ60: 0 | CR60: 0 | CS60: 0 | CT60: 0 | CU60: 0 | CV60: 0 | CW60: 0 | CX60: 0 | CY60: 0 | CZ60: 0 | DA60: 0 | DB60: 0 | DC60: 0 | DD60: 0 | DE60: 0 | DF60: 0 | DG60: 0 | DH60: 0 | DI60: 0 | DJ60: 0
BQ61: 0 | BR61: 0 | BS61: 0 | BT61: 0 | BU61: 0 | BV61: 0 | BW61: 0 | BX61: 0 | BY61: 0 | BZ61: 0 | CA61: 0 | CB61: 0 | CC61: 0 | CD61: 0 | CE61: 0 | CF61: 0 | CG61: 0 | CH61: 0 | CI61: 0 | CJ61: 0 | CK61: 0 | CL61: 0 | CM61: 0 | CO61: 0 | CP61: 0 | CQ61: 0 | CR61: 0 | CS61: 0 | CT61: 0 | CU61: 0 | CV61: 0 | CW61: 0 | CX61: 0 | CY61: 0 | CZ61: 0 | DA61: 0 | DB61: 0 | DC61: 0 | DD61: 0 | DE61: 0 | DF61: 0 | DG61: 0 | DH61: 0 | DI61: 0 | DJ61: 0
BQ62: 0 | BR62: 0 | BS62: 0 | BT62: 0 | BU62: 0 | BV62: 0 | BW62: 0 | BX62: 0 | BY62: 0 | BZ62: 0 | CA62: 0 | CB62: 0 | CC62: 0 | CD62: 0 | CE62: 0 | CF62: 0 | CG62: 0 | CH62: 0 | CI62: 0 | CJ62: 0 | CK62: 0 | CL62: 0 | CM62: 0 | CO62: 0 | CP62: 0 | CQ62: 0 | CR62: 0 | CS62: 0 | CT62: 0 | CU62: 0 | CV62: 0 | CW62: 0 | CX62: 0 | CY62: 0 | CZ62: 0 | DA62: 0 | DB62: 0 | DC62: 0 | DD62: 0 | DE62: 0 | DF62: 0 | DG62: 0 | DH62: 0 | DI62: 0 | DJ62: 0
BQ63: 0 | BR63: 0 | BS63: 0 | BT63: 0 | BU63: 0 | BV63: 0 | BW63: 0 | BX63: 0 | BY63: 0 | BZ63: 0 | CA63: 0 | CB63: 0 | CC63: 0 | CD63: 0 | CE63: 0 | CF63: 0 | CG63: 0 | CH63: 0 | CI63: 0 | CJ63: 0 | CK63: 0 | CL63: 0 | CM63: 0 | CO63: 0 | CP63: 0 | CQ63: 0 | CR63: 0 | CS63: 0 | CT63: 0 | CU63: 0 | CV63: 0 | CW63: 0 | CX63: 0 | CY63: 0 | CZ63: 0 | DA63: 0 | DB63: 0 | DC63: 0 | DD63: 0 | DE63: 0 | DF63: 0 | DG63: 0 | DH63: 0 | DI63: 0 | DJ63: 0
BQ64: 0 | BR64: 0 | BS64: 0 | BT64: 0 | BU64: 0 | BV64: 0 | BW64: 0 | BX64: 0 | BY64: 0 | BZ64: 0 | CA64: 0 | CB64: 0 | CC64: 0 | CD64: 0 | CE64: 0 | CF64: 0 | CG64: 0 | CH64: 0 | CI64: 0 | CJ64: 0 | CK64: 0 | CL64: 0 | CM64: 0 | CO64: 0 | CP64: 0 | CQ64: 0 | CR64: 0 | CS64: 0 | CT64: 0 | CU64: 0 | CV64: 0 | CW64: 0 | CX64: 0 | CY64: 0 | CZ64: 0 | DA64: 0 | DB64: 0 | DC64: 0 | DD64: 0 | DE64: 0 | DF64: 0 | DG64: 0 | DH64: 0 | DI64: 0 | DJ64: 0
BQ65: 0 | BR65: 0 | BS65: 0 | BT65: 0 | BU65: 0 | BV65: 0 | BW65: 0 | BX65: 0 | BY65: 0 | BZ65: 0 | CA65: 0 | CB65: 0 | CC65: 0 | CD65: 0 | CE65: 0 | CF65: 0 | CG65: 0 | CH65: 0 | CI65: 0 | CJ65: 0 | CK65: 0 | CL65: 0 | CM65: 0 | CO65: 0 | CP65: 0 | CQ65: 0 | CR65: 0 | CS65: 0 | CT65: 0 | CU65: 0 | CV65: 0 | CW65: 0 | CX65: 0 | CY65: 0 | CZ65: 0 | DA65: 0 | DB65: 0 | DC65: 0 | DD65: 0 | DE65: 0 | DF65: 0 | DG65: 0 | DH65: 0 | DI65: 0 | DJ65: =SUM(CO65:DI65) -> 0
AV66: =SUM(AV6:AV65)-SUM(AV17:AV20) -> 822141.7663 | AW66: =SUM(AW6:AW65) -> 2529447018 | AX66: 4181244956 | AY66: 0 | AZ66: 0 | BA66: 3953804623 | BB66: 0 | BC66: 0 | BD66: 0 | BE66: 1560912.643 | BF66: 0 | BG66: 1449407.016 | BH66: 2541452.815 | BI66: 1406089.762 | BJ66: 1775241.493 | BK66: 1651659.466 | BL66: 0 | BM66: 4254857.318 | BN66: 5574059.205 | BO66: 5233513.702 | BP66: 0 | BR66: =SUM(BR6:BR65) -> 140517375 | BS66: 136822358.9 | BT66: 179686214 | BU66: 0 | BV66: 0 | BW66: 60012791.81 | BX66: 0 | BY66: 0 | BZ66: 0 | CA66: 100427049.3 | CB66: 0 | CC66: 4625203.196 | CD66: 4067032.243 | CE66: 138315.4786 | CF66: 94687.7558 | CG66: 37010.98107 | CH66: 0 | CI66: 414395.4386 | CJ66: 299744.8486 | CK66: 116142.4658 | CL66: 0 | CM66: 627258321.5 | CO66: =SUM(CO6:CO65) -> 139887441.2 | CP66: 139563854.2 | CQ66: 190365814.1 | CR66: 0 | CS66: 0 | CT66: 59717309.25 | CU66: 0 | CV66: 0 | CW66: 0 | CX66: 97696886.38 | CY66: 0 | CZ66: 2450.712759 | DA66: 1404.447359 | DB66: 142662.5328 | DC66: 96403.62741 | DD66: 37819.84485 | DE66: 0 | DF66: 427298.6472 | DG66: 305049.1699 | DH66: 118300.6574 | DI66: 0 | DJ66: 628362694.8
CM67: 0 | DJ67: 0

Sheet Vol
B1: ="Tariff Approval - "&'Model update'!$C$3 -> Tariff Approval - Powercor
B2: This worksheet has been inserted by Powercor
B3: 2018 Volumes for 2017 Prices
B4: In 2017 there was no Medium Business opt-out tariff. No volumes / customer numbers have been allocated to these tariffs | E4: ="Forecast Quantities (Qt) for "&'Model update'!$C$5 -> Forecast Quantities (Qt) for 2018
B5: Proposed tariff | C5: Existing tariff | E5: FcastVol Fixed | F5: FcastVol Anytime | G5: FcastVol Pk | J5: FcastVol Opk | N5: FcastVol Dem kVA | O5: FcastVol Dem kW | P5: FcastVol Dem kW Sum | Q5: FcastVol Dem kW Win | R5: FcastVol SumBlk1 | S5: FcastVol SumBlk2 | T5: FcastVol SumBlk3 | V5: FcastVol WtrBlk1 | W5: FcastVol WtrBlk2 | X5: FcastVol WtrBlk3
A7: D1 | B7: Residential Single Rate | C7: Residential Single Rate | E7: 539032.4658 | F7: 2272899090 | G7: 0 | H7: 0 | I7: 0 | J7: 0 | K7: 0 | L7: 0 | M7: 0 | N7: 0 | O7: 0 | P7: 0 | Q7: 0 | R7: 0 | S7: 0 | T7: 0 | U7: 0 | V7: 0 | W7: 0 | X7: 0 | Y7: 0
A8: D1CS | B8: Climate Saver | C8: Climate Saver | E8: 16710.63696 | F8: 0 | G8: 9017601.645 | H8: 0 | I8: 0 | J8: 18758723.33 | K8: 0 | L8: 0 | M8: 0 | N8: 0 | O8: 0 | P8: 0 | Q8: 0 | R8: 0 | S8: 0 | T8: 0 | U8: 0 | V8: 0 | W8: 0 | X8: 0 | Y8: 0
A9: D3CS | B9: Climate Saver Interval | C9: Climate Saver Interval | E9: 4570.646036 | F9: 0 | G9: 2542127.966 | H9: 0 | I9: 0 | J9: 5918747.132 | K9: 0 | L9: 0 | M9: 0 | N9: 0 | O9: 0 | P9: 0 | Q9: 0 | R9: 0 | S9: 0 | T9: 0 | U9: 0 | V9: 0 | W9: 0 | X9: 0 | Y9: 0
A10: P13R | B10: Residential - Flexible Pricing | C10: Residential - Flexible Pricing | E10: 2967.267133 | F10: 0 | G10: 0 | H10: 0 | I10: 0 | J10: 0 | K10: 0 | L10: 0 | M10: 0 | N10: 0 | O10: 0 | P10: 0 | Q10: 0 | R10: 956328.9598 | S10: 1626467.672 | T10: 1172486.559 | U10: 0 | V10: 2937193.672 | W10: 5211028.621 | X10: 4120190.702 | Y10: 0
A11: P13RDK | B11: Residential Docklands - Flexible Pricing | C11: Residential Docklands - Flexible Pricing | E11: 1 | F11: 0 | G11: 0 | H11: 0 | I11: 0 | J11: 0 | K11: 0 | L11: 0 | M11: 0 | N11: 0 | O11: 0 | P11: 0 | Q11: 0 | R11: 298.5290379 | S11: 617.7065498 | T11: 457.8706074 | U11: 0 | V11: 1021.464472 | W11: 1968.88476 | X11: 1310.109406 | Y11: 0
A12: P13RCS | B12: Climate Saver - Flexible Pricing | C12: Climate Saver - Flexible Pricing | E12: 61.27586321 | F12: 0 | G12: 0 | H12: 0 | I12: 0 | J12: 0 | K12: 0 | L12: 0 | M12: 0 | N12: 0 | O12: 0 | P12: 0 | Q12: 0 | R12: 24228.47206 | S12: 0 | T12: 0 | U12: 0 | V12: 68208.94309 | W12: 0 | X12: 0 | Y12: 0
A13: P1DK | B13: Docklands single rate | C13: Docklands single rate | E13: 1 | F13: 11930.9304 | G13: 0 | H13: 0 | I13: 0 | J13: 0 | K13: 0 | L13: 0 | M13: 0 | N13: 0 | O13: 0 | P13: 0 | Q13: 0 | R13: 0 | S13: 0 | T13: 0 | U13: 0 | V13: 0 | W13: 0 | X13: 0 | Y13: 0
A14: D2 | B14: Residential Two Rate 5d | C14: Residential Two Rate 5d | E14: 45013.52703 | F14: 0 | G14: 123396558.8 | H14: 0 | I14: 0 | J14: 113802346.9 | K14: 0 | L14: 0 | M14: 0 | N14: 0 | O14: 0 | P14: 0 | Q14: 0 | R14: 0 | S14: 0 | T14: 0 | U14: 0 | V14: 0 | W14: 0 | X14: 0 | Y14: 0
A15: D2DK | B15: Docklands Two Rate 5d | C15: Docklands Two Rate 5d | E15: 584.1465984 | F15: 0 | G15: 1780658.232 | H15: 0 | I15: 0 | J15: 1663261.295 | K15: 0 | L15: 0 | M15: 0 | N15: 0 | O15: 0 | P15: 0 | Q15: 0 | R15: 0 | S15: 0 | T15: 0 | U15: 0 | V15: 0 | W15: 0 | X15: 0 | Y15: 0
A16: D3 | B16: Residential Interval | C16: Residential Interval | E16: 108683.3671 | F16: 0 | G16: 270572284 | H16: 0 | I16: 0 | J16: 288164384 | K16: 0 | L16: 0 | M16: 0 | N16: 0 | O16: 0 | P16: 0 | Q16: 0 | R16: 0 | S16: 0 | T16: 0 | U16: 0 | V16: 0 | W16: 0 | X16: 0 | Y16: 0
A17: D2OP | B17: Residential Two Rate 5d - controlled load | C17: Residential Two Rate 5d - controlled load | E17: 42980.36697 | F17: 0 | G17: 0 | H17: 0 | I17: 0 | J17: 86643719.34 | K17: 0 | L17: 0 | M17: 0 | N17: 0 | O17: 0 | P17: 0 | Q17: 0 | R17: 0 | S17: 0 | T17: 0 | U17: 0 | V17: 0 | W17: 0 | X17: 0 | Y17: 0
A18: D2DKOP | B18: Docklands Two Rate 5d - controlled load | C18: Docklands Two Rate 5d - controlled load | E18: 69.06153232 | F18: 0 | G18: 0 | H18: 0 | I18: 0 | J18: 130691.5709 | K18: 0 | L18: 0 | M18: 0 | N18: 0 | O18: 0 | P18: 0 | Q18: 0 | R18: 0 | S18: 0 | T18: 0 | U18: 0 | V18: 0 | W18: 0 | X18: 0 | Y18: 0
A19: DD1 | B19: Dedicated circuit | C19: Dedicated circuit | E19: 156259.0335 | F19: 0 | G19: 0 | H19: 0 | I19: 0 | J19: 314989327 | K19: 0 | L19: 0 | M19: 0 | N19: 0 | O19: 0 | P19: 0 | Q19: 0 | R19: 0 | S19: 0 | T19: 0 | U19: 0 | V19: 0 | W19: 0 | X19: 0 | Y19: 0
A20: D3HW | B20: Hot Water Interval | C20: Hot Water Interval | E20: 5471.480402 | F20: 0 | G20: 0 | H20: 0 | I20: 0 | J20: 10630893.46 | K20: 0 | L20: 0 | M20: 0 | N20: 0 | O20: 0 | P20: 0 | Q20: 0 | R20: 0 | S20: 0 | T20: 0 | U20: 0 | V20: 0 | W20: 0 | X20: 0 | Y20: 0
A21: DD | B21: Residential Demand | C21: Residential Demand | E21: 5 | F21: 27500 | G21: 0 | H21: 0 | I21: 0 | J21: 0 | K21: 0 | L21: 0 | M21: 0 | N21: 0 | O21: 0 | P21: 62.78538813 | Q21: 100.456621 | R21: 0 | S21: 0 | T21: 0 | U21: 0 | V21: 0 | W21: 0 | X21: 0 | Y21: 0
A22: DDNEW | B22: Newstead Residential Trial | E22: 0 | F22: 0 | G22: 0 | H22: 0 | I22: 0 | J22: 0 | K22: 0 | L22: 0 | M22: 0 | N22: 0 | O22: 0 | P22: 0 | Q22: 0 | R22: 0 | S22: 0 | T22: 0 | U22: 0 | V22: 0 | W22: 0 | X22: 0 | Y22: 0
A23: ND1 | B23: Non-Residential Single Rate | C23: Non-Residential Single Rate | E23: 42209.54355 | F23: 256381416.1 | G23: 0 | H23: 0 | I23: 0 | J23: 0 | K23: 0 | L23: 0 | M23: 0 | N23: 0 | O23: 0 | P23: 0 | Q23: 0 | R23: 0 | S23: 0 | T23: 0 | U23: 0 | V23: 0 | W23: 0 | X23: 0 | Y23: 0
A24: P14G | B24: Non-Residential Flexible Pricing | C24: Non-Residential Flexible Pricing | E24: 186.1130724 | F24: 0 | G24: 0 | H24: 0 | I24: 0 | J24: 0 | K24: 0 | L24: 0 | M24: 0 | N24: 0 | O24: 0 | P24: 0 | Q24: 0 | R24: 425233.8013 | S24: 148156.1148 | T24: 478715.0372 | U24: 0 | V24: 1248433.238 | W24: 361061.6992 | X24: 1112012.891 | Y24: 0
A25: ND2 | B25: Non-Residential Two Rate 5d | C25: Non-Residential Two Rate 5d | E25: 24184.20107 | F25: 0 | G25: 207323954.7 | H25: 0 | I25: 0 | J25: 176674793.9 | K25: 0 | L25: 0 | M25: 0 | N25: 0 | O25: 0 | P25: 0 | Q25: 0 | R25: 0 | S25: 0 | T25: 0 | U25: 0 | V25: 0 | W25: 0 | X25: 0 | Y25: 0
A26: ND5 | B26: Non-Residential Interval | C26: Non-Residential Interval | E26: 12412.00132 | F26: 0 | G26: 96843792.2 | H26: 0 | I26: 0 | J26: 66506894.75 | K26: 0 | L26: 0 | M26: 0 | N26: 0 | O26: 0 | P26: 0 | Q26: 0 | R26: 0 | S26: 0 | T26: 0 | U26: 0 | V26: 0 | W26: 0 | X26: 0 | Y26: 0
A27: ND3 | B27: Non-Residential Two Rate 7d | C27: Non-Residential Two Rate 7d | E27: 7219.587967 | F27: 0 | G27: 58018282.44 | H27: 0 | I27: 0 | J27: 22573877.49 | K27: 0 | L27: 0 | M27: 0 | N27: 0 | O27: 0 | P27: 0 | Q27: 0 | R27: 0 | S27: 0 | T27: 0 | U27: 0 | V27: 0 | W27: 0 | X27: 0 | Y27: 0
A28: NDD | B28: Non-Residential Demand | C28: Non-Residential Demand | E28: 6.354045079 | F28: 127080.9016 | G28: 0 | H28: 0 | I28: 0 | J28: 0 | K28: 0 | L28: 0 | M28: 0 | N28: 0 | O28: 0 | P28: 165.7937398 | Q28: 290.1390447 | R28: 0 | S28: 0 | T28: 0 | U28: 0 | V28: 0 | W28: 0 | X28: 0 | Y28: 0
A29: NDM | B29: Medium business Demand | C29: Medium business | E29: 8006.701842 | F29: 0 | G29: 586034983.2 | H29: 0 | I29: 0 | J29: 455863034.3 | K29: 0 | L29: 0 | M29: 0 | N29: 0 | O29: 0 | P29: 1463988.917 | Q29: 2567031.659 | R29: 0 | S29: 0 | T29: 0 | U29: 0 | V29: 0 | W29: 0 | X29: 0 | Y29: 0
A30: NDMO | B30: Medium business Opt-out | E30: 0 | F30: 0 | G30: 0 | H30: 0 | I30: 0 | J30: 0 | K30: 0 | L30: 0 | M30: 0 | N30: 0 | O30: 0 | P30: 0 | Q30: 0 | R30: 0 | S30: 0 | T30: 0 | U30: 0 | V30: 0 | W30: 0 | X30: 0 | Y30: 0
A31: PL2 | B31: Public Lighting | C31: Public Lighting | E31: 7344.7 | F31: 0 | G31: 27764943.81 | H31: 0 | I31: 0 | J31: 68379507.26 | K31: 0 | L31: 0 | M31: 0 | N31: 0 | O31: 0 | P31: 0 | Q31: 0 | R31: 0 | S31: 0 | T31: 0 | U31: 0 | V31: 0 | W31: 0 | X31: 0 | Y31: 0
A32: LLV | B32: Large low Voltage | C32: Large low Voltage | E32: 2749.230824 | F32: 0 | G32: 1363564037 | H32: 0 | I32: 0 | J32: 1037238631 | K32: 0 | L32: 0 | M32: 0 | N32: 840288.6815 | O32: 0 | P32: 0 | Q32: 0 | R32: 0 | S32: 0 | T32: 0 | U32: 0 | V32: 0 | W32: 0 | X32: 0 | Y32: 0
A33: HV | B33: High Voltage | C33: High Voltage | E33: 173 | F33: 0 | G33: 761179064.6 | H33: 0 | I33: 0 | J33: 676982871.9 | K33: 0 | L33: 0 | M33: 0 | N33: 394844.7254 | O33: 0 | P33: 0 | Q33: 0 | R33: 0 | S33: 0 | T33: 0 | U33: 0 | V33: 0 | W33: 0 | X33: 0 | Y33: 0
A34: HVD | B34: High Voltage Docklands | C34: High Voltage Docklands | E34: 9 | F34: 0 | G34: 142211194.7 | H34: 0 | I34: 0 | J34: 148646852.4 | K34: 0 | L34: 0 | M34: 0 | N34: 58586.29033 | O34: 0 | P34: 0 | Q34: 0 | R34: 0 | S34: 0 | T34: 0 | U34: 0 | V34: 0 | W34: 0 | X34: 0 | Y34: 0
A35: ST | B35: Subtransmission | C35: Subtransmission | E35: 11 | F35: 0 | G35: 530995472.6 | H35: 0 | I35: 0 | J35: 460236066 | K35: 0 | L35: 0 | M35: 0 | N35: 267192.9453 | O35: 0 | P35: 0 | Q35: 0 | R35: 0 | S35: 0 | T35: 0 | U35: 0 | V35: 0 | W35: 0 | X35: 0 | Y35: 0
E36: 0 | F36: 0 | G36: 0 | H36: 0 | I36: 0 | J36: 0 | K36: 0 | L36: 0 | M36: 0 | N36: 0 | O36: 0 | P36: 0 | Q36: 0 | R36: 0 | S36: 0 | T36: 0 | U36: 0 | V36: 0 | W36: 0 | X36: 0 | Y36: 0
E66: =SUM(E6:E65)-SUM(E17:E20) -> 822141.7663 | F66: =SUM(F6:F65) -> 2529447018 | G66: 4181244956 | H66: 0 | I66: 0 | J66: 3953804623 | K66: 0 | L66: 0 | M66: 0 | N66: 1560912.643 | O66: 0 | P66: 1464217.496 | Q66: 2567422.255 | R66: 1406089.762 | S66: 1775241.493 | T66: 1651659.466 | U66: 0 | V66: 4254857.318 | W66: 5574059.205 | X66: 5233513.702 | Y66: 0

Sheet 2018DistRevCapForm
B2: ="Tariff Approval - "&'Model update'!$C$3 -> Tariff Approval - Powercor
B4: DUoS
B6: Year (t) | C6: ='Model update'!C5 -> 2018 | H6: =C6-1 -> 2017
B8: Table 1- Compliance with AER Final Determination Total Annual Revenue
B9: Revenue from DUoS charges for year t | C9: =Prop2018DistTar!CM66 -> 627258321.5
B10: Total Annual Revenue for year t | C10: =C18 -> 627258321.5
C11: =IF(C9="","",IF(C10>=C9,"DUoS REVENUE CAP FORMULA COMPLIANT","DUoS REVENUE CAP FORMULA BREACHED")) -> DUoS REVENUE CAP FORMULA COMPLIANT
B13: Table 2 - Total Annual Revenue for year t (TARt)
B14: Adjusted Annual Smoothed Revenue for year t | C14: =C25 -> 630135829.9 | H14: =H25 -> 621822055.6
B15: I factor for year t (F factor Scheme) | C15: ='Model update'!B$100 -> 1755000 | H15: =INDEX('Model update'!$D$100:$H$100,1,MATCH($H$6,'Model update'!$D$93:$H$93,0)) -> 1420000
B16: T factor for year t (DMIS carry over amount) | C16: ='Model update'!B144 -> 0 | H16: =INDEX('Model update'!$D$144:$H$144,1,MATCH($H$6,'Model update'!$D$137:$H$137,0)) -> 0
B17: B factor for year t | C17: =C32 -> -4632508.487 | H17: =H32 -> -5448248.815
B18: Total Annual Revenue for year t | C18: =C14+C15+C16+C17 -> 627258321.5 | H18: =H14+H15+H16+H17 -> 617793806.8
B20: Table 3 - Adjusted Annual Revenue for year t (AARt)
B21: Adjusted Annual Smoothed Revenue for year t-1 | C21: =H25 -> 621822055.6 | H21: 614405835
B22: CPI for period t | C22: ='Model update'!C30 -> 0.01933701657 | H22: ='Model update'!C29 -> 0.01023255814
B23: X factor for period t | C23: ='Model update'!B60 -> -0.0081 | H23: =INDEX('Model update'!$E$60:$H$60,1,MATCH("Xt for "&$H$6,'Model update'!$E$53:$H$53,0)) -> 0.0468
B24: S factor for period t | C24: ='Model update'!B111 -> -0.01384168227 | H24: =INDEX('Model update'!$D$111:$H$111,1,MATCH($H$6,'Model update'!$D$104:$H$104,0)) -> 0.05100648542
B25: Adjusted Annual Smoothed Revenue for year t | C25: =IF(C6=2016,'Model update'!D60*(1+C24),(C21*(1+C22)*(1-C23)*(1+C24))) -> 630135829.9 | H25: =IF(H6=2016,'Model update'!D60*(1+H24),(H21*(1+H22)*(1-H23)*(1+H24))) -> 621822055.6
B27: Table 4- B factor for year t
B28: DUoS revenue under/over recovery approved | C28: =E60 -> -4832480.822 | H28: -5339181.353
B29: License Fee Recovery Amount for year t | C29: =C38 -> 199972.3346 | H29: =H38 -> 102006.8586
B30: Approved Pass through Amount for year t | C30: ='Model update'!B122 -> 0 | H30: =INDEX('Model update'!$D$122:$H$122,1,MATCH($H$6,'Model update'!$D$115:$H$115,0)) -> 0
B31: Pass Through revenue under/over recovery for years 2014 and 2015 | H31: -211074.3202
B32: B factor for year t | C32: =SUM(C28:C31) -> -4632508.487 | H32: =SUM(H28:H31) -> -5448248.815
B34: Table 5 - License Fee Recovery Amount for year t
B35: Lt-1 | C35: ='Model update'!B133 -> 185081 | H35: =INDEX('Model update'!$D$133:$H$133,1,MATCH($H$6,'Model update'!$D$126:$H$126,0)) -> 94964
B36: Nominal WACC t | C36: =(1+'Model update'!$B$43)*(1+'Model update'!$C$30)-1 -> 0.05592902844 | H36: =(1+'Model update'!$B$45)*(1+'Model update'!$C$29)-1 -> 0.0470000456
B37: Nominal WACC t-1 | C37: =(1+'Model update'!$B$45)*(1+'Model update'!$C$29)-1 -> 0.0470000456 | H37: =(1+'Model update'!$B$47)*(1+'Model update'!$C$28)-1 -> 0.05256117473
B38: License Fee Recovery Amount for year t | C38: =C35*(1+C36)*(1+C37)^0.5 -> 199972.3346 | H38: =H35*(1+H36)*(1+H37)^0.5 -> 102006.8586
B42: Table 6 - DUoS Recovery Arrangements
C43: Year t-2 | D43: Year t-1 | E43: Year t
C44: (actual) | D44: (estimate) | E44: (forecast)
C45: =D45-1 -> 2016 | D45: =E45-1 -> 2017 | E45: =C$6 -> 2018
B47: (A) Revenue from DUoS Charges | C47: 620923821 | D47: =Est2017DistRev!BQ66 -> 618316773.2 | E47: =C9 -> 627258321.5
B50: (B) Less TAR for regulatory year = | C50: =SUM(C51:C54) -> 611968987.3 | D50: =SUM(D51:D54) -> 623132988.1 | E50: =SUM(E51:E54) -> 632090802.3
B51: + Adjusted annual smoothed revenue | C51: =H21 -> 614405835 | D51: =C21 -> 621822055.6 | E51: =C14 -> 630135829.9
B52: +It | C52: =INDEX('Model update'!$D$100:$H$100,1,MATCH($C$45,'Model update'!$D$93:$H$93,0)) -> -1530000 | D52: =H15 -> 1420000 | E52: =C15 -> 1755000
B53: +Tt | C53: =INDEX('Model update'!$D$144:$H$144,1,MATCH($C$45,'Model update'!$D$137:$H$137,0)) -> 0 | D53: =H16 -> 0 | E53: =C16 -> 0
B54: +Bt = | C54: =SUM(C55:C57) -> -906847.6355 | D54: =SUM(D55:D57) -> -109067.4616 | E54: =SUM(E55:E57) -> 199972.3346
B55: +Licence fee recovery | C55: 93129.37897 | D55: =H29 -> 102006.8586 | E55: =C29 -> 199972.3346
B56: +Approved pass throughs | C56: =INDEX('Model update'!$D$122:$H$122,1,MATCH($C$45,'Model update'!$D$115:$H$115,0)) -> 0 | D56: =H30 -> 0 | E56: =C30 -> 0
B57: +Pass Through revenue under/over recovery for years 2014 and 2015 | C57: -999977.0145 | D57: =H31 -> -211074.3202 | E57: =C31 -> 0
B60: (A minus B) Under/over recovery of revenue for regulatory year | C60: =C47-C50 -> 8954833.63 | D60: =D47-D50 -> -4816214.972 | E60: =E47-E50 -> -4832480.822
B64: Table 7 - DUoS Unders and Overs Account
C65: Year t-2 | D65: Year t-1 | E65: Year t
C66: (actual) | D66: (estimate) | E66: (forecast)
B67: Calendar year | C67: =D67-1 -> 2016 | D67: =E67-1 -> 2017 | E67: =C$6 -> 2018
B69: Nominal WACC | C69: =(1+'Model update'!$B$47)*(1+'Model update'!$C$28)-1 -> 0.05256117473 | D69: =(1+'Model update'!$B$45)*(1+'Model update'!$C$29)-1 -> 0.0470000456 | E69: =(1+'Model update'!$B$43)*(1+'Model update'!$C$30)-1 -> 0.05592902844
B71: Opening balance | C71: 0 | D71: =C75 -> 9187158.199 | E71: =D75 -> 4690858.436
B72: Interest on Opening balance | C72: =C71*C69 -> 0 | D72: =D71*D69 -> 431796.8543 | E72: =E71*E69 -> 262355.1549
B73: Under/over recovery of revenue for regulatory year | C73: =C60 -> 8954833.63 | D73: =D60 -> -4816214.972 | E73: =E60 -> -4832480.822
B74: Interest on under/over recovery for regulatory year | C74: =C73*((1+C69)^0.5-1) -> 232324.5685 | D74: =D73*((1+D69)^0.5-1) -> -111881.6451 | E74: =E73*((1+E69)^0.5-1) -> -133299.507
B75: Closing balance of DUoS overs/ (unders) account | C75: =SUM(C71:C74) -> 9187158.199 | D75: =SUM(D71:D74) -> 4690858.436 | E75: -12566.7376
B77: The DNSP is expected to achieve a closing balance as close to zero as practicable in its DUoS unders and overs account in each forecast year in its annual pricing proposals in the 2016–20 regulatory control period.

Sheet 2018DistTarRebalCont
B1: ="Tariff Approval - "&'Model update'!C3 -> Tariff Approval - Powercor
B3: ='Model update'!C5&" DISTRIBUTION TARIFF REBALANCING CONTROL" -> 2018 DISTRIBUTION TARIFF REBALANCING CONTROL
B6: Distribution tariff rebalancing control
B8: ="CPI "&'Model update'!$C$5 -> CPI 2018 | C8: ='2018DistRevCapForm'!C22 -> 0.01933701657
B9: ="X "& 'Model update'!$C$5 -> X 2018 | C9: =MIN('2018DistRevCapForm'!C23,0) -> -0.0081
B10: ="St "&'Model update'!$C$5 -> St 2018 | C10: ='2018DistRevCapForm'!C24 -> -0.01384168227
B11: ="It "&'Model update'!$C$5 -> It 2018 | C11: =('2018DistRevCapForm'!C15-'2018DistRevCapForm'!H15)/Prop2018DistTar!DJ$66 -> 0.0005331315859
B12: ="Tt "&'Model update'!$C$5 -> Tt 2018 | C12: =('2018DistRevCapForm'!C16-'2018DistRevCapForm'!H16)/Prop2018DistTar!DJ$66 -> 0
B13: ="Bt "&'Model update'!$C$5 -> Bt 2018 | C13: =('2018DistRevCapForm'!C17-'2018DistRevCapForm'!H17)/Prop2018DistTar!DJ$66 -> 0.001298199805
C16: =(1+C8)*(1-C9)*(1+0.02)*(1+C10)+SUM(C11:C13) -> 1.035468753
B20: Rebalancing control summary | C20: ="Pt-1*(Qt " &'Model update'!$C$5&")" -> Pt-1*(Qt 2018) | D20: ="Pt*(Qt " &'Model update'!$C$5&")" -> Pt*(Qt 2018)
B21: Tariff Class (Input Class Name) | C21: Existing ($) | D21: Proposed ($) | E21: Movement
B22: Residential | C22: =IF(B22="","",SUMIF($B$39:$B$98,$B22,$I$39:$I$98)) -> 262694346.6 | D22: =IF(B22="","",SUMIF($B$39:$B$98,$B22,$F$39:$F$98)) -> 260133925.3 | E22: =IF(B22="","",D22/C22) -> 0.9902532304 | F22: =IF(B22="","",IF(E22<$C$16,"COMPLIANT","BREACHED")) -> COMPLIANT
B23: Small business | C23: 157897401.6 | D23: 152937074.5 | E23: 0.9685851254 | F23: =IF(B23="","",IF(E23<$C$16,"COMPLIANT","BREACHED")) -> COMPLIANT
B24: LLV | C24: 149289815.6 | D24: 153966345.7 | E24: 1.031325179 | F24: COMPLIANT
B25: HV | C25: 51349827.44 | D25: 52887922.3 | E25: 1.029953263 | F25: COMPLIANT
B26: SubTrans | C26: 7131303.675 | D26: 7333053.641 | E26: 1.028290755 | F26: COMPLIANT
B34: Check Total | C34: =IF(ABS(SUM(C22:C33)-I99)<0.01,"Ok","Error") -> Ok | D34: =IF(ABS(SUM(D22:D33)-F99)<0.01,"Ok","Error") -> Ok
C35: =IF(ABS(SUM(C22:C33)-Prop2018DistTar!DJ66)<0.01,"Ok","Error") -> Ok | D35: =IF(ABS(SUM(D22:D33)-Prop2018DistTar!CM66)<0.01,"Ok","Error") -> Ok
F37: ="Revenue (Pt "&'Model update'!$C$5&")*(Qt " &'Model update'!$C$5&")" -> Revenue (Pt 2018)*(Qt 2018) | I37: ="Revenue (Pt-1 "&'Model update'!$C$8&")*(Qt " &'Model update'!$C$5&")" -> Revenue (Pt-1 2017)*(Qt 2018)
A38: New Tariff Test | B38: Destination tariff class | C38: Source tariff class | D38: Proposed tariff | E38: Existing tariff | F38: PropRev Total | I38: ExistRev Total
A39: =OR(EXACT(D39,Prop2018DistTar!C$6:C$65)) -> TRUE | D39: =IF(Prop2018DistTar!B6="","",Prop2018DistTar!B6) ->  | E39: =IF(Prop2018DistTar!C6="","",Prop2018DistTar!C6) ->  | F39: =Prop2018DistTar!CM6 -> 0 | I39: =Prop2018DistTar!DJ6 -> 0
A40: =OR(EXACT(D40,Prop2018DistTar!C$6:C$65)) -> TRUE | B40: Residential | C40: Residential | D40: =IF(Prop2018DistTar!B7="","",Prop2018DistTar!B7) -> Residential Single Rate | E40: =IF(Prop2018DistTar!C7="","",Prop2018DistTar!C7) -> Residential Single Rate | F40: =Prop2018DistTar!CM7 -> 188069999.9 | I40: =Prop2018DistTar!DJ7 -> 189888319.2
A41: =OR(EXACT(D41,Prop2018DistTar!C$6:C$65)) -> TRUE | B41: Residential | C41: Residential | D41: =IF(Prop2018DistTar!B8="","",Prop2018DistTar!B8) -> Climate Saver | E41: =IF(Prop2018DistTar!C8="","",Prop2018DistTar!C8) -> Climate Saver | F41: =Prop2018DistTar!CM8 -> 965132.1107 | I41: =Prop2018DistTar!DJ8 -> 976854.9928
A42: =OR(EXACT(D42,Prop2018DistTar!C$6:C$65)) -> TRUE | B42: Residential | C42: Residential | D42: =IF(Prop2018DistTar!B9="","",Prop2018DistTar!B9) -> Climate Saver Interval | E42: =IF(Prop2018DistTar!C9="","",Prop2018DistTar!C9) -> Climate Saver Interval | F42: =Prop2018DistTar!CM9 -> 281724.8541 | I42: =Prop2018DistTar!DJ9 -> 285029.6205
A43: =OR(EXACT(D43,Prop2018DistTar!C$6:C$65)) -> TRUE | B43: Residential | C43: Residential | D43: =IF(Prop2018DistTar!B10="","",Prop2018DistTar!B10) -> Residential - Flexible Pricing | E43: =IF(Prop2018DistTar!C10="","",Prop2018DistTar!C10) -> Residential - Flexible Pricing | F43: =Prop2018DistTar!CM10 -> 1242572.87 | I43: =Prop2018DistTar!DJ10 -> 1256793.493
A44: =OR(EXACT(D44,Prop2018DistTar!C$6:C$65)) -> TRUE | B44: Residential | C44: Residential | D44: =IF(Prop2018DistTar!B11="","",Prop2018DistTar!B11) -> Residential Docklands - Flexible Pricing | E44: =IF(Prop2018DistTar!C11="","",Prop2018DistTar!C11) -> Residential Docklands - Flexible Pricing | F44: =Prop2018DistTar!CM11 -> 287.4314041 | I44: =Prop2018DistTar!DJ11 -> 288.9097803
A45: =OR(EXACT(D45,Prop2018DistTar!C$6:C$65)) -> TRUE | B45: Residential | C45: Residential | D45: =IF(Prop2018DistTar!B12="","",Prop2018DistTar!B12) -> Climate Saver - Flexible Pricing | E45: =IF(Prop2018DistTar!C12="","",Prop2018DistTar!C12) -> Climate Saver - Flexible Pricing | F45: =Prop2018DistTar!CM12 -> 2865.577928 | I45: =Prop2018DistTar!DJ12 -> 2897.074942
A46: =OR(EXACT(D46,Prop2018DistTar!C$6:C$65)) -> TRUE | B46: Residential | C46: Residential | D46: =IF(Prop2018DistTar!B13="","",Prop2018DistTar!B13) -> Docklands single rate | E46: =IF(Prop2018DistTar!C13="","",Prop2018DistTar!C13) -> Docklands single rate | F46: =Prop2018DistTar!CM13 -> 702.4570314 | I46: =Prop2018DistTar!DJ13 -> 712.0017757
A47: =OR(EXACT(D47,Prop2018DistTar!C$6:C$65)) -> TRUE | B47: Residential | C47: Residential | D47: =IF(Prop2018DistTar!B14="","",Prop2018DistTar!B14) -> Residential Two Rate 5d | E47: =IF(Prop2018DistTar!C14="","",Prop2018DistTar!C14) -> Residential Two Rate 5d | F47: =Prop2018DistTar!CM14 -> 19129212.05 | I47: =Prop2018DistTar!DJ14 -> 19350366.43
A48: =OR(EXACT(D48,Prop2018DistTar!C$6:C$65)) -> TRUE | B48: Residential | C48: Residential | D48: =IF(Prop2018DistTar!B15="","",Prop2018DistTar!B15) -> Docklands Two Rate 5d | E48: =IF(Prop2018DistTar!C15="","",Prop2018DistTar!C15) -> Docklands Two Rate 5d | F48: =Prop2018DistTar!CM15 -> 253561.5547 | I48: =Prop2018DistTar!DJ15 -> 256410.6078
A49: =OR(EXACT(D49,Prop2018DistTar!C$6:C$65)) -> TRUE | B49: Residential | C49: Residential | D49: =IF(Prop2018DistTar!B16="","",Prop2018DistTar!B16) -> Residential Interval | E49: =IF(Prop2018DistTar!C16="","",Prop2018DistTar!C16) -> Residential Interval | F49: =Prop2018DistTar!CM16 -> 43876210.13 | I49: =Prop2018DistTar!DJ16 -> 44364999.45
A50: =OR(EXACT(D50,Prop2018DistTar!C$6:C$65)) -> TRUE | B50: Residential | C50: Residential | D50: =IF(Prop2018DistTar!B17="","",Prop2018DistTar!B17) -> Residential Two Rate 5d - controlled load | E50: =IF(Prop2018DistTar!C17="","",Prop2018DistTar!C17) -> Residential Two Rate 5d - controlled load | F50: =Prop2018DistTar!CM17 -> 1325648.906 | I50: =Prop2018DistTar!DJ17 -> 1325648.906
A51: =OR(EXACT(D51,Prop2018DistTar!C$6:C$65)) -> TRUE | B51: Residential | C51: Residential | D51: =IF(Prop2018DistTar!B18="","",Prop2018DistTar!B18) -> Docklands Two Rate 5d - controlled load | E51: =IF(Prop2018DistTar!C18="","",Prop2018DistTar!C18) -> Docklands Two Rate 5d - controlled load | F51: =Prop2018DistTar!CM18 -> 1999.581034 | I51: =Prop2018DistTar!DJ18 -> 1999.581034
A52: =OR(EXACT(D52,Prop2018DistTar!C$6:C$65)) -> TRUE | B52: Residential | C52: Residential | D52: =IF(Prop2018DistTar!B19="","",Prop2018DistTar!B19) -> Dedicated circuit | E52: =IF(Prop2018DistTar!C19="","",Prop2018DistTar!C19) -> Dedicated circuit | F52: =Prop2018DistTar!CM19 -> 4819336.703 | I52: =Prop2018DistTar!DJ19 -> 4819336.703
A53: =OR(EXACT(D53,Prop2018DistTar!C$6:C$65)) -> TRUE | B53: Residential | C53: Residential | D53: =IF(Prop2018DistTar!B20="","",Prop2018DistTar!B20) -> Hot Water Interval | E53: =IF(Prop2018DistTar!C20="","",Prop2018DistTar!C20) -> Hot Water Interval | F53: =Prop2018DistTar!CM20 -> 162652.6699 | I53: =Prop2018DistTar!DJ20 -> 162652.6699
A54: =OR(EXACT(D54,Prop2018DistTar!C$6:C$65)) -> TRUE | B54: Residential | C54: Residential | D54: =IF(Prop2018DistTar!B21="","",Prop2018DistTar!B21) -> Residential Demand | E54: =IF(Prop2018DistTar!C21="","",Prop2018DistTar!C21) -> Residential Demand | F54: =Prop2018DistTar!CM21 -> 2018.509132 | I54: =Prop2018DistTar!DJ21 -> 2036.955479
A55: =OR(EXACT(D55,Prop2018DistTar!C$6:C$65)) -> FALSE | B55: Residential | C55: Residential | D55: =IF(Prop2018DistTar!B22="","",Prop2018DistTar!B22) -> Newstead Residential Trial | E55: =IF(Prop2018DistTar!C22="","",Prop2018DistTar!C22) -> Residential Demand | F55: =Prop2018DistTar!CM22 -> 0 | I55: =Prop2018DistTar!DJ22 -> 0
A56: =OR(EXACT(D56,Prop2018DistTar!C$6:C$65)) -> TRUE | B56: Small business | C56: Small business | D56: =IF(Prop2018DistTar!B23="","",Prop2018DistTar!B23) -> Non-Residential Single Rate | E56: =IF(Prop2018DistTar!C23="","",Prop2018DistTar!C23) -> Non-Residential Single Rate | F56: =Prop2018DistTar!CM23 -> 22879918.04 | I56: =Prop2018DistTar!DJ23 -> 23802891.14
A57: =OR(EXACT(D57,Prop2018DistTar!C$6:C$65)) -> TRUE | B57: Small business | C57: Small business | D57: =IF(Prop2018DistTar!B24="","",Prop2018DistTar!B24) -> Non-Residential Flexible Pricing | E57: =IF(Prop2018DistTar!C24="","",Prop2018DistTar!C24) -> Non-Residential Flexible Pricing | F57: =Prop2018DistTar!CM24 -> 255382.5726 | I57: =Prop2018DistTar!DJ24 -> 268366.4854
A58: =OR(EXACT(D58,Prop2018DistTar!C$6:C$65)) -> TRUE | B58: Small business | C58: Small business | D58: =IF(Prop2018DistTar!B25="","",Prop2018DistTar!B25) -> Non-Residential Two Rate 5d | E58: =IF(Prop2018DistTar!C25="","",Prop2018DistTar!C25) -> Non-Residential Two Rate 5d | F58: =Prop2018DistTar!CM25 -> 29378762.07 | I58: =Prop2018DistTar!DJ25 -> 30858512.87
A59: =OR(EXACT(D59,Prop2018DistTar!C$6:C$65)) -> TRUE | B59: Small business | C59: Small business | D59: =IF(Prop2018DistTar!B26="","",Prop2018DistTar!B26) -> Non-Residential Interval | E59: =IF(Prop2018DistTar!C26="","",Prop2018DistTar!C26) -> Non-Residential Interval | F59: =Prop2018DistTar!CM26 -> 13526776.52 | I59: =Prop2018DistTar!DJ26 -> 14200365.62
A60: =OR(EXACT(D60,Prop2018DistTar!C$6:C$65)) -> TRUE | B60: Small business | C60: Small business | D60: =IF(Prop2018DistTar!B27="","",Prop2018DistTar!B27) -> Non-Residential Two Rate 7d | E60: =IF(Prop2018DistTar!C27="","",Prop2018DistTar!C27) -> Non-Residential Two Rate 7d | F60: =Prop2018DistTar!CM27 -> 6957224.681 | I60: =Prop2018DistTar!DJ27 -> 7295354.672
A61: =OR(EXACT(D61,Prop2018DistTar!C$6:C$65)) -> TRUE | B61: Small business | C61: Small business | D61: =IF(Prop2018DistTar!B28="","",Prop2018DistTar!B28) -> Non-Residential Demand | E61: =IF(Prop2018DistTar!C28="","",Prop2018DistTar!C28) -> Non-Residential Demand | F61: =Prop2018DistTar!CM28 -> 7728.53321 | I61: =Prop2018DistTar!DJ28 -> 8101.94216
A62: =OR(EXACT(D62,Prop2018DistTar!C$6:C$65)) -> FALSE | B62: Small business | C62: Small business | D62: =IF(Prop2018DistTar!B29="","",Prop2018DistTar!B29) -> Medium business Demand | E62: =IF(Prop2018DistTar!C29="","",Prop2018DistTar!C29) -> Medium business | F62: =Prop2018DistTar!CM29 -> 73777155.9 | I62: =Prop2018DistTar!DJ29 -> 75075294.8
A63: =OR(EXACT(D63,Prop2018DistTar!C$6:C$65)) -> FALSE | B63: Small business | C63: Small business | D63: =IF(Prop2018DistTar!B30="","",Prop2018DistTar!B30) -> Medium business Opt-out | E63: =IF(Prop2018DistTar!C30="","",Prop2018DistTar!C30) -> Medium business | F63: =Prop2018DistTar!CM30 -> 549976.4784 | I63: =Prop2018DistTar!DJ30 -> 470988.0809
A64: =OR(EXACT(D64,Prop2018DistTar!C$6:C$65)) -> TRUE | B64: Small business | C64: Small business | D64: =IF(Prop2018DistTar!B31="","",Prop2018DistTar!B31) -> Public Lighting | E64: =IF(Prop2018DistTar!C31="","",Prop2018DistTar!C31) -> Public Lighting | F64: =Prop2018DistTar!CM31 -> 5604149.681 | I64: =Prop2018DistTar!DJ31 -> 5917525.944
A65: =OR(EXACT(D65,Prop2018DistTar!C$6:C$65)) -> TRUE | B65: LLV | C65: LLV | D65: =IF(Prop2018DistTar!B32="","",Prop2018DistTar!B32) -> Large low Voltage | E65: =IF(Prop2018DistTar!C32="","",Prop2018DistTar!C32) -> Large low Voltage | F65: =Prop2018DistTar!CM32 -> 153966345.7 | I65: =Prop2018DistTar!DJ32 -> 149289815.6
A66: =OR(EXACT(D66,Prop2018DistTar!C$6:C$65)) -> TRUE | B66: HV | C66: HV | D66: =IF(Prop2018DistTar!B33="","",Prop2018DistTar!B33) -> High Voltage | E66: =IF(Prop2018DistTar!C33="","",Prop2018DistTar!C33) -> High Voltage | F66: =Prop2018DistTar!CM33 -> 47220779.41 | I66: =Prop2018DistTar!DJ33 -> 45846269.69
A67: =OR(EXACT(D67,Prop2018DistTar!C$6:C$65)) -> TRUE | B67: HV | C67: HV | D67: =IF(Prop2018DistTar!B34="","",Prop2018DistTar!B34) -> High Voltage Docklands | E67: =IF(Prop2018DistTar!C34="","",Prop2018DistTar!C34) -> High Voltage Docklands | F67: =Prop2018DistTar!CM34 -> 5667142.893 | I67: =Prop2018DistTar!DJ34 -> 5503557.746
A68: =OR(EXACT(D68,Prop2018DistTar!C$6:C$65)) -> TRUE | B68: SubTrans | C68: SubTrans | D68: =IF(Prop2018DistTar!B35="","",Prop2018DistTar!B35) -> Subtransmission | E68: =IF(Prop2018DistTar!C35="","",Prop2018DistTar!C35) -> Subtransmission | F68: =Prop2018DistTar!CM35 -> 7333053.641 | I68: =Prop2018DistTar!DJ35 -> 7131303.675
A69: =OR(EXACT(D69,Prop2018DistTar!C$6:C$65)) -> TRUE | D69: =IF(Prop2018DistTar!B36="","",Prop2018DistTar!B36) ->  | E69: =IF(Prop2018DistTar!C36="","",Prop2018DistTar!C36) ->  | F69: =Prop2018DistTar!CM36 -> 0 | I69: =Prop2018DistTar!DJ36 -> 0
A70: =OR(EXACT(D70,Prop2018DistTar!C$6:C$65)) -> TRUE | D70: =IF(Prop2018DistTar!B37="","",Prop2018DistTar!B37) ->  | E70: =IF(Prop2018DistTar!C37="","",Prop2018DistTar!C37) ->  | F70: =Prop2018DistTar!CM37 -> 0 | I70: =Prop2018DistTar!DJ37 -> 0
A71: =OR(EXACT(D71,Prop2018DistTar!C$6:C$65)) -> TRUE | D71: =IF(Prop2018DistTar!B38="","",Prop2018DistTar!B38) ->  | E71: =IF(Prop2018DistTar!C38="","",Prop2018DistTar!C38) ->  | F71: =Prop2018DistTar!CM38 -> 0 | I71: =Prop2018DistTar!DJ38 -> 0
A72: =OR(EXACT(D72,Prop2018DistTar!C$6:C$65)) -> TRUE | D72: =IF(Prop2018DistTar!B39="","",Prop2018DistTar!B39) ->  | E72: =IF(Prop2018DistTar!C39="","",Prop2018DistTar!C39) ->  | F72: =Prop2018DistTar!CM39 -> 0 | I72: =Prop2018DistTar!DJ39 -> 0
A73: =OR(EXACT(D73,Prop2018DistTar!C$6:C$65)) -> TRUE | D73: =IF(Prop2018DistTar!B40="","",Prop2018DistTar!B40) ->  | E73: =IF(Prop2018DistTar!C40="","",Prop2018DistTar!C40) ->  | F73: =Prop2018DistTar!CM40 -> 0 | I73: =Prop2018DistTar!DJ40 -> 0
A74: =OR(EXACT(D74,Prop2018DistTar!C$6:C$65)) -> TRUE | D74: =IF(Prop2018DistTar!B41="","",Prop2018DistTar!B41) ->  | E74: =IF(Prop2018DistTar!C41="","",Prop2018DistTar!C41) ->  | F74: =Prop2018DistTar!CM41 -> 0 | I74: =Prop2018DistTar!DJ41 -> 0
A75: =OR(EXACT(D75,Prop2018DistTar!C$6:C$65)) -> TRUE | D75: =IF(Prop2018DistTar!B42="","",Prop2018DistTar!B42) ->  | E75: =IF(Prop2018DistTar!C42="","",Prop2018DistTar!C42) ->  | F75: =Prop2018DistTar!CM42 -> 0 | I75: =Prop2018DistTar!DJ42 -> 0
A76: =OR(EXACT(D76,Prop2018DistTar!C$6:C$65)) -> TRUE | D76: =IF(Prop2018DistTar!B43="","",Prop2018DistTar!B43) ->  | E76: =IF(Prop2018DistTar!C43="","",Prop2018DistTar!C43) ->  | F76: =Prop2018DistTar!CM43 -> 0 | I76: =Prop2018DistTar!DJ43 -> 0
A77: =OR(EXACT(D77,Prop2018DistTar!C$6:C$65)) -> TRUE | D77: =IF(Prop2018DistTar!B44="","",Prop2018DistTar!B44) ->  | E77: =IF(Prop2018DistTar!C44="","",Prop2018DistTar!C44) ->  | F77: =Prop2018DistTar!CM44 -> 0 | I77: =Prop2018DistTar!DJ44 -> 0
A78: =OR(EXACT(D78,Prop2018DistTar!C$6:C$65)) -> TRUE | D78: =IF(Prop2018DistTar!B45="","",Prop2018DistTar!B45) ->  | E78: =IF(Prop2018DistTar!C45="","",Prop2018DistTar!C45) ->  | F78: =Prop2018DistTar!CM45 -> 0 | I78: =Prop2018DistTar!DJ45 -> 0
A79: =OR(EXACT(D79,Prop2018DistTar!C$6:C$65)) -> TRUE | D79: =IF(Prop2018DistTar!B46="","",Prop2018DistTar!B46) ->  | E79: =IF(Prop2018DistTar!C46="","",Prop2018DistTar!C46) ->  | F79: =Prop2018DistTar!CM46 -> 0 | I79: =Prop2018DistTar!DJ46 -> 0
A80: =OR(EXACT(D80,Prop2018DistTar!C$6:C$65)) -> TRUE | D80: =IF(Prop2018DistTar!B47="","",Prop2018DistTar!B47) ->  | E80: =IF(Prop2018DistTar!C47="","",Prop2018DistTar!C47) ->  | F80: =Prop2018DistTar!CM47 -> 0 | I80: =Prop2018DistTar!DJ47 -> 0
A81: =OR(EXACT(D81,Prop2018DistTar!C$6:C$65)) -> TRUE | D81: =IF(Prop2018DistTar!B48="","",Prop2018DistTar!B48) ->  | E81: =IF(Prop2018DistTar!C48="","",Prop2018DistTar!C48) ->  | F81: =Prop2018DistTar!CM48 -> 0 | I81: =Prop2018DistTar!DJ48 -> 0
A82: =OR(EXACT(D82,Prop2018DistTar!C$6:C$65)) -> TRUE | D82: =IF(Prop2018DistTar!B49="","",Prop2018DistTar!B49) ->  | E82: =IF(Prop2018DistTar!C49="","",Prop2018DistTar!C49) ->  | F82: =Prop2018DistTar!CM49 -> 0 | I82: =Prop2018DistTar!DJ49 -> 0
A83: =OR(EXACT(D83,Prop2018DistTar!C$6:C$65)) -> TRUE | D83: =IF(Prop2018DistTar!B50="","",Prop2018DistTar!B50) ->  | E83: =IF(Prop2018DistTar!C50="","",Prop2018DistTar!C50) ->  | F83: =Prop2018DistTar!CM50 -> 0 | I83: =Prop2018DistTar!DJ50 -> 0
A84: =OR(EXACT(D84,Prop2018DistTar!C$6:C$65)) -> TRUE | D84: =IF(Prop2018DistTar!B51="","",Prop2018DistTar!B51) ->  | E84: =IF(Prop2018DistTar!C51="","",Prop2018DistTar!C51) ->  | F84: =Prop2018DistTar!CM51 -> 0 | I84: =Prop2018DistTar!DJ51 -> 0
A85: =OR(EXACT(D85,Prop2018DistTar!C$6:C$65)) -> TRUE | D85: =IF(Prop2018DistTar!B52="","",Prop2018DistTar!B52) ->  | E85: =IF(Prop2018DistTar!C52="","",Prop2018DistTar!C52) ->  | F85: =Prop2018DistTar!CM52 -> 0 | I85: =Prop2018DistTar!DJ52 -> 0
A86: =OR(EXACT(D86,Prop2018DistTar!C$6:C$65)) -> TRUE | D86: =IF(Prop2018DistTar!B53="","",Prop2018DistTar!B53) ->  | E86: =IF(Prop2018DistTar!C53="","",Prop2018DistTar!C53) ->  | F86: =Prop2018DistTar!CM53 -> 0 | I86: =Prop2018DistTar!DJ53 -> 0
A87: =OR(EXACT(D87,Prop2018DistTar!C$6:C$65)) -> TRUE | D87: =IF(Prop2018DistTar!B54="","",Prop2018DistTar!B54) ->  | E87: =IF(Prop2018DistTar!C54="","",Prop2018DistTar!C54) ->  | F87: =Prop2018DistTar!CM54 -> 0 | I87: =Prop2018DistTar!DJ54 -> 0
A88: =OR(EXACT(D88,Prop2018DistTar!C$6:C$65)) -> TRUE | D88: =IF(Prop2018DistTar!B55="","",Prop2018DistTar!B55) ->  | E88: =IF(Prop2018DistTar!C55="","",Prop2018DistTar!C55) ->  | F88: =Prop2018DistTar!CM55 -> 0 | I88: =Prop2018DistTar!DJ55 -> 0
A89: =OR(EXACT(D89,Prop2018DistTar!C$6:C$65)) -> TRUE | D89: =IF(Prop2018DistTar!B56="","",Prop2018DistTar!B56) ->  | E89: =IF(Prop2018DistTar!C56="","",Prop2018DistTar!C56) ->  | F89: =Prop2018DistTar!CM56 -> 0 | I89: =Prop2018DistTar!DJ56 -> 0
A90: =OR(EXACT(D90,Prop2018DistTar!C$6:C$65)) -> TRUE | D90: =IF(Prop2018DistTar!B57="","",Prop2018DistTar!B57) ->  | E90: =IF(Prop2018DistTar!C57="","",Prop2018DistTar!C57) ->  | F90: =Prop2018DistTar!CM57 -> 0 | I90: =Prop2018DistTar!DJ57 -> 0
A91: =OR(EXACT(D91,Prop2018DistTar!C$6:C$65)) -> TRUE | D91: =IF(Prop2018DistTar!B58="","",Prop2018DistTar!B58) ->  | E91: =IF(Prop2018DistTar!C58="","",Prop2018DistTar!C58) ->  | F91: =Prop2018DistTar!CM58 -> 0 | I91: =Prop2018DistTar!DJ58 -> 0
A92: =OR(EXACT(D92,Prop2018DistTar!C$6:C$65)) -> TRUE | D92: =IF(Prop2018DistTar!B59="","",Prop2018DistTar!B59) ->  | E92: =IF(Prop2018DistTar!C59="","",Prop2018DistTar!C59) ->  | F92: =Prop2018DistTar!CM59 -> 0 | I92: =Prop2018DistTar!DJ59 -> 0
A93: =OR(EXACT(D93,Prop2018DistTar!C$6:C$65)) -> TRUE | D93: =IF(Prop2018DistTar!B60="","",Prop2018DistTar!B60) ->  | E93: =IF(Prop2018DistTar!C60="","",Prop2018DistTar!C60) ->  | F93: =Prop2018DistTar!CM60 -> 0 | I93: =Prop2018DistTar!DJ60 -> 0
A94: =OR(EXACT(D94,Prop2018DistTar!C$6:C$65)) -> TRUE | D94: =IF(Prop2018DistTar!B61="","",Prop2018DistTar!B61) ->  | E94: =IF(Prop2018DistTar!C61="","",Prop2018DistTar!C61) ->  | F94: =Prop2018DistTar!CM61 -> 0 | I94: =Prop2018DistTar!DJ61 -> 0
A95: =OR(EXACT(D95,Prop2018DistTar!C$6:C$65)) -> TRUE | D95: =IF(Prop2018DistTar!B62="","",Prop2018DistTar!B62) ->  | E95: =IF(Prop2018DistTar!C62="","",Prop2018DistTar!C62) ->  | F95: =Prop2018DistTar!CM62 -> 0 | I95: =Prop2018DistTar!DJ62 -> 0
A96: =OR(EXACT(D96,Prop2018DistTar!C$6:C$65)) -> TRUE | D96: =IF(Prop2018DistTar!B63="","",Prop2018DistTar!B63) ->  | E96: =IF(Prop2018DistTar!C63="","",Prop2018DistTar!C63) ->  | F96: =Prop2018DistTar!CM63 -> 0 | I96: =Prop2018DistTar!DJ63 -> 0
A97: =OR(EXACT(D97,Prop2018DistTar!C$6:C$65)) -> TRUE | D97: =IF(Prop2018DistTar!B64="","",Prop2018DistTar!B64) ->  | E97: =IF(Prop2018DistTar!C64="","",Prop2018DistTar!C64) ->  | F97: =Prop2018DistTar!CM64 -> 0 | I97: =Prop2018DistTar!DJ64 -> 0
A98: =OR(EXACT(D98,Prop2018DistTar!C$6:C$65)) -> TRUE | D98: =IF(Prop2018DistTar!B65="","",Prop2018DistTar!B65) ->  | E98: =IF(Prop2018DistTar!C65="","",Prop2018DistTar!C65) ->  | F98: =Prop2018DistTar!CM65 -> 0 | I98: =Prop2018DistTar!DJ65 -> 0
F99: =SUM(F39:F98) -> 627258321.5 | I99: =SUM(I39:I98) -> 628362694.8

Sheet Est2017DistRev
B1: ="Tariff Approval - "&'Model update'!C3 -> Tariff Approval - Powercor
B3: ="ESTIMATED "&'Model update'!$C$8&" Distribution Revenue" -> ESTIMATED 2017 Distribution Revenue
D4: ="Current Distribution Tariffs (Pt-1) for "&'Model update'!$C$8 -> Current Distribution Tariffs (Pt-1) for 2017 | Z4: =" Estimated Distribution Quantities for "&'Model update'!$C$8&" (Qt-1)" -> Estimated Distribution Quantities for 2017 (Qt-1) | AV4: ="Estimated Revenue (Pt-1 "&'Model update'!$C$8&")*(Qt-1 " &'Model update'!$C$8&")" -> Estimated Revenue (Pt-1 2017)*(Qt-1 2017)
B5: ="Tariffs "&'Model update'!C8 -> Tariffs 2017 | D5: Current Fixed | E5: Current Anytime | F5: Current PkBlk | I5: Current OPkBlk1 | M5: Current Dem kVA | N5: Current Dem kW | O5: Current Dem kW Sum | P5: Current Dem kW Win | Q5: Current SumBlk1 | R5: Current SumBlk2 | S5: Current SumBlk3 | U5: Current WtrBlk1 | V5: Current WtrBlk2 | W5: Current WtrBlk3 | Z5: EstVol Fixed | AA5: EstVol Anytime | AB5: EstVol PkBlk | AE5: EstVol OPkBlk | AI5: EstVol Dem kVA | AJ5: EstVol Dem kW | AK5: EstVol Dem kW Sum | AL5: EstVol Dem kW Win | AM5: EstVol SumBlk1 | AN5: EstVol SumBlk2 | AO5: EstVol SumBlk3 | AQ5: EstVol WtrBlk1 | AR5: EstVol WtrBlk2 | AS5: EstVol WtrBlk3 | AV5: EstRev Fixed | AW5: EstRev Anytime | AX5: EstRev PkBlk | BA5: EstRev Opk | BE5: EstRev Dem kVA | BF5: EstRev Dem kW | BG5: EstRev Dem kW Sum | BH5: EstRev Dem kW Win | BI5: EstRev SumBlk1 | BJ5: EstRev SumBlk2 | BK5: EstRev SumBlk3 | BM5: EstRev WtrBlk1 | BN5: EstRev WtrBlk2 | BO5: EstRev WtrBlk3 | BQ5: EstRev Total
A7: D1 | B7: Residential Single Rate | D7: =IFERROR(INDEX(Prop2018DistTar!Z:Z,MATCH($A7,Prop2018DistTar!$A:$A,),1),) -> 125 | E7: =IFERROR(INDEX(Prop2018DistTar!AA:AA,MATCH($A7,Prop2018DistTar!$A:$A,),1),) -> 5.39 | F7: =IFERROR(INDEX(Prop2018DistTar!AB:AB,MATCH($A7,Prop2018DistTar!$A:$A,),1),) -> 0 | G7: =IFERROR(INDEX(Prop2018DistTar!AC:AC,MATCH($A7,Prop2018DistTar!$A:$A,),1),) -> 0 | H7: =IFERROR(INDEX(Prop2018DistTar!AD:AD,MATCH($A7,Prop2018DistTar!$A:$A,),1),) -> 0 | I7: =IFERROR(INDEX(Prop2018DistTar!AE:AE,MATCH($A7,Prop2018DistTar!$A:$A,),1),) -> 0 | J7: =IFERROR(INDEX(Prop2018DistTar!AF:AF,MATCH($A7,Prop2018DistTar!$A:$A,),1),) -> 0 | K7: =IFERROR(INDEX(Prop2018DistTar!AG:AG,MATCH($A7,Prop2018DistTar!$A:$A,),1),) -> 0 | L7: =IFERROR(INDEX(Prop2018DistTar!AH:AH,MATCH($A7,Prop2018DistTar!$A:$A,),1),) -> 0 | M7: =IFERROR(INDEX(Prop2018DistTar!AI:AI,MATCH($A7,Prop2018DistTar!$A:$A,),1),) -> 0 | N7: =IFERROR(INDEX(Prop2018DistTar!AJ:AJ,MATCH($A7,Prop2018DistTar!$A:$A,),1),) -> 0 | O7: =IFERROR(INDEX(Prop2018DistTar!AK:AK,MATCH($A7,Prop2018DistTar!$A:$A,),1),) -> 0 | P7: =IFERROR(INDEX(Prop2018DistTar!AL:AL,MATCH($A7,Prop2018DistTar!$A:$A,),1),) -> 0 | Q7: =IFERROR(INDEX(Prop2018DistTar!AM:AM,MATCH($A7,Prop2018DistTar!$A:$A,),1),) -> 0 | R7: =IFERROR(INDEX(Prop2018DistTar!AN:AN,MATCH($A7,Prop2018DistTar!$A:$A,),1),) -> 0 | S7: =IFERROR(INDEX(Prop2018DistTar!AO:AO,MATCH($A7,Prop2018DistTar!$A:$A,),1),) -> 0 | T7: =IFERROR(INDEX(Prop2018DistTar!AP:AP,MATCH($A7,Prop2018DistTar!$A:$A,),1),) -> 0 | U7: =IFERROR(INDEX(Prop2018DistTar!AQ:AQ,MATCH($A7,Prop2018DistTar!$A:$A,),1),) -> 0 | V7: =IFERROR(INDEX(Prop2018DistTar!AR:AR,MATCH($A7,Prop2018DistTar!$A:$A,),1),) -> 0 | W7: =IFERROR(INDEX(Prop2018DistTar!AS:AS,MATCH($A7,Prop2018DistTar!$A:$A,),1),) -> 0 | Z7: 518241.6987 | AA7: 2020419148 | AB7: 0 | AC7: 0 | AD7: 0 | AE7: 0 | AF7: 0 | AG7: 0 | AH7: 0 | AI7: 0 | AJ7: 0 | AK7: 0 | AL7: 0 | AM7: 0 | AN7: 0 | AO7: 0 | AP7: 0 | AQ7: 0 | AR7: 0 | AS7: 0 | AT7: 0 | AV7: =D7*Z7 -> 64780212.33 | AW7: =E7/100*AA7 -> 108900592.1 | AX7: 0 | AY7: 0 | AZ7: 0 | BA7: 0 | BB7: 0 | BC7: 0 | BD7: 0 | BE7: =M7*AI7 -> 0 | BF7: 0 | BG7: 0 | BH7: 0 | BI7: =Q7/100*AM7 -> 0 | BJ7: 0 | BK7: 0 | BL7: 0 | BM7: 0 | BN7: 0 | BO7: 0 | BP7: 0 | BQ7: =SUM(AV7:BP7) -> 173680804.4
A8: D1CS | B8: Climate Saver | D8: =IFERROR(INDEX(Prop2018DistTar!Z:Z,MATCH($A8,Prop2018DistTar!$A:$A,),1),) -> 0 | E8: =IFERROR(INDEX(Prop2018DistTar!AA:AA,MATCH($A8,Prop2018DistTar!$A:$A,),1),) -> 0 | F8: =IFERROR(INDEX(Prop2018DistTar!AB:AB,MATCH($A8,Prop2018DistTar!$A:$A,),1),) -> 7.65 | G8: =IFERROR(INDEX(Prop2018DistTar!AC:AC,MATCH($A8,Prop2018DistTar!$A:$A,),1),) -> 0 | H8: =IFERROR(INDEX(Prop2018DistTar!AD:AD,MATCH($A8,Prop2018DistTar!$A:$A,),1),) -> 0 | I8: =IFERROR(INDEX(Prop2018DistTar!AE:AE,MATCH($A8,Prop2018DistTar!$A:$A,),1),) -> 1.53 | J8: =IFERROR(INDEX(Prop2018DistTar!AF:AF,MATCH($A8,Prop2018DistTar!$A:$A,),1),) -> 0 | K8: =IFERROR(INDEX(Prop2018DistTar!AG:AG,MATCH($A8,Prop2018DistTar!$A:$A,),1),) -> 0 | L8: =IFERROR(INDEX(Prop2018DistTar!AH:AH,MATCH($A8,Prop2018DistTar!$A:$A,),1),) -> 0 | M8: =IFERROR(INDEX(Prop2018DistTar!AI:AI,MATCH($A8,Prop2018DistTar!$A:$A,),1),) -> 0 | N8: =IFERROR(INDEX(Prop2018DistTar!AJ:AJ,MATCH($A8,Prop2018DistTar!$A:$A,),1),) -> 0 | O8: =IFERROR(INDEX(Prop2018DistTar!AK:AK,MATCH($A8,Prop2018DistTar!$A:$A,),1),) -> 0 | P8: =IFERROR(INDEX(Prop2018DistTar!AL:AL,MATCH($A8,Prop2018DistTar!$A:$A,),1),) -> 0 | Q8: =IFERROR(INDEX(Prop2018DistTar!AM:AM,MATCH($A8,Prop2018DistTar!$A:$A,),1),) -> 0 | R8: =IFERROR(INDEX(Prop2018DistTar!AN:AN,MATCH($A8,Prop2018DistTar!$A:$A,),1),) -> 0 | S8: =IFERROR(INDEX(Prop2018DistTar!AO:AO,MATCH($A8,Prop2018DistTar!$A:$A,),1),) -> 0 | T8: =IFERROR(INDEX(Prop2018DistTar!AP:AP,MATCH($A8,Prop2018DistTar!$A:$A,),1),) -> 0 | U8: =IFERROR(INDEX(Prop2018DistTar!AQ:AQ,MATCH($A8,Prop2018DistTar!$A:$A,),1),) -> 0 | V8: =IFERROR(INDEX(Prop2018DistTar!AR:AR,MATCH($A8,Prop2018DistTar!$A:$A,),1),) -> 0 | W8: =IFERROR(INDEX(Prop2018DistTar!AS:AS,MATCH($A8,Prop2018DistTar!$A:$A,),1),) -> 0 | Z8: 17458.85933 | AA8: 0 | AB8: 8537325.949 | AC8: 0 | AD8: 0 | AE8: 24278479.92 | AF8: 0 | AG8: 0 | AH8: 0 | AI8: 0 | AJ8: 0 | AK8: 0 | AL8: 0 | AM8: 0 | AN8: 0 | AO8: 0 | AP8: 0 | AQ8: 0 | AR8: 0 | AS8: 0 | AT8: 0 | AV8: =D8*Z8 -> 0 | AW8: =E8/100*AA8 -> 0 | AX8: =F8/100*AB8 -> 653105.4351 | AY8: =G8/100*AC8 -> 0 | AZ8: =H8/100*AD8 -> 0 | BA8: =I8/100*AE8 -> 371460.7428 | BB8: =J8/100*AF8 -> 0 | BC8: =K8/100*AG8 -> 0 | BD8: =L8/100*AH8 -> 0 | BE8: =M8*AI8 -> 0 | BF8: =N8*AJ8 -> 0 | BG8: =O8*AK8 -> 0 | BH8: =P8*AL8 -> 0 | BI8: =Q8/100*AM8 -> 0 | BJ8: =R8/100*AN8 -> 0 | BK8: =S8/100*AO8 -> 0 | BL8: =T8/100*AP8 -> 0 | BM8: =U8/100*AQ8 -> 0 | BN8: =V8/100*AR8 -> 0 | BO8: =W8/100*AS8 -> 0 | BP8: =X8/100*AT8 -> 0 | BQ8: =SUM(AV8:BP8) -> 1024566.178
A9: D3CS | B9: Climate Saver Interval | D9: =IFERROR(INDEX(Prop2018DistTar!Z:Z,MATCH($A9,Prop2018DistTar!$A:$A,),1),) -> 0 | E9: =IFERROR(INDEX(Prop2018DistTar!AA:AA,MATCH($A9,Prop2018DistTar!$A:$A,),1),) -> 0 | F9: =IFERROR(INDEX(Prop2018DistTar!AB:AB,MATCH($A9,Prop2018DistTar!$A:$A,),1),) -> 7.65 | G9: =IFERROR(INDEX(Prop2018DistTar!AC:AC,MATCH($A9,Prop2018DistTar!$A:$A,),1),) -> 0 | H9: =IFERROR(INDEX(Prop2018DistTar!AD:AD,MATCH($A9,Prop2018DistTar!$A:$A,),1),) -> 0 | I9: =IFERROR(INDEX(Prop2018DistTar!AE:AE,MATCH($A9,Prop2018DistTar!$A:$A,),1),) -> 1.53 | J9: =IFERROR(INDEX(Prop2018DistTar!AF:AF,MATCH($A9,Prop2018DistTar!$A:$A,),1),) -> 0 | K9: =IFERROR(INDEX(Prop2018DistTar!AG:AG,MATCH($A9,Prop2018DistTar!$A:$A,),1),) -> 0 | L9: =IFERROR(INDEX(Prop2018DistTar!AH:AH,MATCH($A9,Prop2018DistTar!$A:$A,),1),) -> 0 | M9: =IFERROR(INDEX(Prop2018DistTar!AI:AI,MATCH($A9,Prop2018DistTar!$A:$A,),1),) -> 0 | N9: =IFERROR(INDEX(Prop2018DistTar!AJ:AJ,MATCH($A9,Prop2018DistTar!$A:$A,),1),) -> 0 | O9: =IFERROR(INDEX(Prop2018DistTar!AK:AK,MATCH($A9,Prop2018DistTar!$A:$A,),1),) -> 0 | P9: =IFERROR(INDEX(Prop2018DistTar!AL:AL,MATCH($A9,Prop2018DistTar!$A:$A,),1),) -> 0 | Q9: =IFERROR(INDEX(Prop2018DistTar!AM:AM,MATCH($A9,Prop2018DistTar!$A:$A,),1),) -> 0 | R9: =IFERROR(INDEX(Prop2018DistTar!AN:AN,MATCH($A9,Prop2018DistTar!$A:$A,),1),) -> 0 | S9: =IFERROR(INDEX(Prop2018DistTar!AO:AO,MATCH($A9,Prop2018DistTar!$A:$A,),1),) -> 0 | T9: =IFERROR(INDEX(Prop2018DistTar!AP:AP,MATCH($A9,Prop2018DistTar!$A:$A,),1),) -> 0 | U9: =IFERROR(INDEX(Prop2018DistTar!AQ:AQ,MATCH($A9,Prop2018DistTar!$A:$A,),1),) -> 0 | V9: =IFERROR(INDEX(Prop2018DistTar!AR:AR,MATCH($A9,Prop2018DistTar!$A:$A,),1),) -> 0 | W9: =IFERROR(INDEX(Prop2018DistTar!AS:AS,MATCH($A9,Prop2018DistTar!$A:$A,),1),) -> 0 | Z9: 4737.692667 | AA9: 0 | AB9: 2390070.133 | AC9: 0 | AD9: 0 | AE9: 8636963.312 | AF9: 0 | AG9: 0 | AH9: 0 | AI9: 0 | AJ9: 0 | AK9: 0 | AL9: 0 | AM9: 0 | AN9: 0 | AO9: 0 | AP9: 0 | AQ9: 0 | AR9: 0 | AS9: 0 | AT9: 0 | AV9: 0 | AW9: 0 | AX9: 182840.3652 | AY9: 0 | AZ9: 0 | BA9: 132145.5387 | BB9: 0 | BC9: 0 | BD9: 0 | BE9: 0 | BF9: 0 | BG9: 0 | BH9: 0 | BI9: 0 | BJ9: 0 | BK9: 0 | BL9: 0 | BM9: 0 | BN9: 0 | BO9: 0 | BP9: 0 | BQ9: 314985.9038
A10: P13R | B10: Residential - Flexible Pricing | D10: =IFERROR(INDEX(Prop2018DistTar!Z:Z,MATCH($A10,Prop2018DistTar!$A:$A,),1),) -> 125 | E10: =IFERROR(INDEX(Prop2018DistTar!AA:AA,MATCH($A10,Prop2018DistTar!$A:$A,),1),) -> 0 | F10: =IFERROR(INDEX(Prop2018DistTar!AB:AB,MATCH($A10,Prop2018DistTar!$A:$A,),1),) -> 0 | G10: =IFERROR(INDEX(Prop2018DistTar!AC:AC,MATCH($A10,Prop2018DistTar!$A:$A,),1),) -> 0 | H10: =IFERROR(INDEX(Prop2018DistTar!AD:AD,MATCH($A10,Prop2018DistTar!$A:$A,),1),) -> 0 | I10: =IFERROR(INDEX(Prop2018DistTar!AE:AE,MATCH($A10,Prop2018DistTar!$A:$A,),1),) -> 0 | J10: =IFERROR(INDEX(Prop2018DistTar!AF:AF,MATCH($A10,Prop2018DistTar!$A:$A,),1),) -> 0 | K10: =IFERROR(INDEX(Prop2018DistTar!AG:AG,MATCH($A10,Prop2018DistTar!$A:$A,),1),) -> 0 | L10: =IFERROR(INDEX(Prop2018DistTar!AH:AH,MATCH($A10,Prop2018DistTar!$A:$A,),1),) -> 0 | M10: =IFERROR(INDEX(Prop2018DistTar!AI:AI,MATCH($A10,Prop2018DistTar!$A:$A,),1),) -> 0 | N10: =IFERROR(INDEX(Prop2018DistTar!AJ:AJ,MATCH($A10,Prop2018DistTar!$A:$A,),1),) -> 0 | O10: =IFERROR(INDEX(Prop2018DistTar!AK:AK,MATCH($A10,Prop2018DistTar!$A:$A,),1),) -> 0 | P10: =IFERROR(INDEX(Prop2018DistTar!AL:AL,MATCH($A10,Prop2018DistTar!$A:$A,),1),) -> 0 | Q10: =IFERROR(INDEX(Prop2018DistTar!AM:AM,MATCH($A10,Prop2018DistTar!$A:$A,),1),) -> 9.92 | R10: =IFERROR(INDEX(Prop2018DistTar!AN:AN,MATCH($A10,Prop2018DistTar!$A:$A,),1),) -> 5.62 | S10: =IFERROR(INDEX(Prop2018DistTar!AO:AO,MATCH($A10,Prop2018DistTar!$A:$A,),1),) -> 2.18 | T10: =IFERROR(INDEX(Prop2018DistTar!AP:AP,MATCH($A10,Prop2018DistTar!$A:$A,),1),) -> 0 | U10: =IFERROR(INDEX(Prop2018DistTar!AQ:AQ,MATCH($A10,Prop2018DistTar!$A:$A,),1),) -> 9.92 | V10: =IFERROR(INDEX(Prop2018DistTar!AR:AR,MATCH($A10,Prop2018DistTar!$A:$A,),1),) -> 5.62 | W10: =IFERROR(INDEX(Prop2018DistTar!AS:AS,MATCH($A10,Prop2018DistTar!$A:$A,),1),) -> 2.18 | Z10: 2779.606667 | AA10: 0 | AB10: 0 | AC10: 0 | AD10: 0 | AE10: 0 | AF10: 0 | AG10: 0 | AH10: 0 | AI10: 0 | AJ10: 0 | AK10: 0 | AL10: 0 | AM10: 3193271.578 | AN10: 6308467.433 | AO10: 4989095.807 | AP10: 0 | AQ10: 3193271.578 | AR10: 6308467.433 | AS10: 4989095.807 | AT10: 0 | AV10: 347450.8333 | AW10: 0 | AX10: 0 | AY10: 0 | AZ10: 0 | BA10: 0 | BB10: 0 | BC10: 0 | BD10: 0 | BE10: 0 | BF10: 0 | BG10: 0 | BH10: 0 | BI10: 316772.5406 | BJ10: 354535.8697 | BK10: 108762.2886 | BL10: 0 | BM10: 316772.5406 | BN10: 354535.8697 | BO10: 108762.2886 | BP10: 0 | BQ10: 1907592.231
A11: P13RDK | B11: Residential Docklands - Flexible Pricing | D11: =IFERROR(INDEX(Prop2018DistTar!Z:Z,MATCH($A11,Prop2018DistTar!$A:$A,),1),) -> 125 | E11: =IFERROR(INDEX(Prop2018DistTar!AA:AA,MATCH($A11,Prop2018DistTar!$A:$A,),1),) -> 0 | F11: =IFERROR(INDEX(Prop2018DistTar!AB:AB,MATCH($A11,Prop2018DistTar!$A:$A,),1),) -> 0 | G11: =IFERROR(INDEX(Prop2018DistTar!AC:AC,MATCH($A11,Prop2018DistTar!$A:$A,),1),) -> 0 | H11: =IFERROR(INDEX(Prop2018DistTar!AD:AD,MATCH($A11,Prop2018DistTar!$A:$A,),1),) -> 0 | I11: =IFERROR(INDEX(Prop2018DistTar!AE:AE,MATCH($A11,Prop2018DistTar!$A:$A,),1),) -> 0 | J11: =IFERROR(INDEX(Prop2018DistTar!AF:AF,MATCH($A11,Prop2018DistTar!$A:$A,),1),) -> 0 | K11: =IFERROR(INDEX(Prop2018DistTar!AG:AG,MATCH($A11,Prop2018DistTar!$A:$A,),1),) -> 0 | L11: =IFERROR(INDEX(Prop2018DistTar!AH:AH,MATCH($A11,Prop2018DistTar!$A:$A,),1),) -> 0 | M11: =IFERROR(INDEX(Prop2018DistTar!AI:AI,MATCH($A11,Prop2018DistTar!$A:$A,),1),) -> 0 | N11: =IFERROR(INDEX(Prop2018DistTar!AJ:AJ,MATCH($A11,Prop2018DistTar!$A:$A,),1),) -> 0 | O11: =IFERROR(INDEX(Prop2018DistTar!AK:AK,MATCH($A11,Prop2018DistTar!$A:$A,),1),) -> 0 | P11: =IFERROR(INDEX(Prop2018DistTar!AL:AL,MATCH($A11,Prop2018DistTar!$A:$A,),1),) -> 0 | Q11: =IFERROR(INDEX(Prop2018DistTar!AM:AM,MATCH($A11,Prop2018DistTar!$A:$A,),1),) -> 5.35 | R11: =IFERROR(INDEX(Prop2018DistTar!AN:AN,MATCH($A11,Prop2018DistTar!$A:$A,),1),) -> 2.93 | S11: =IFERROR(INDEX(Prop2018DistTar!AO:AO,MATCH($A11,Prop2018DistTar!$A:$A,),1),) -> 0.99 | T11: =IFERROR(INDEX(Prop2018DistTar!AP:AP,MATCH($A11,Prop2018DistTar!$A:$A,),1),) -> 0 | U11: =IFERROR(INDEX(Prop2018DistTar!AQ:AQ,MATCH($A11,Prop2018DistTar!$A:$A,),1),) -> 5.35 | V11: =IFERROR(INDEX(Prop2018DistTar!AR:AR,MATCH($A11,Prop2018DistTar!$A:$A,),1),) -> 2.93 | W11: =IFERROR(INDEX(Prop2018DistTar!AS:AS,MATCH($A11,Prop2018DistTar!$A:$A,),1),) -> 0.99 | Z11: 1.016 | AA11: 0 | AB11: 0 | AC11: 0 | AD11: 0 | AE11: 0 | AF11: 0 | AG11: 0 | AH11: 0 | AI11: 0 | AJ11: 0 | AK11: 0 | AL11: 0 | AM11: 1694.794419 | AN11: 2947.382714 | AO11: 2050.178034 | AP11: 0 | AQ11: 1694.794419 | AR11: 2947.382714 | AS11: 2050.178034 | AT11: 0 | AV11: 127 | AW11: 0 | AX11: 0 | AY11: 0 | AZ11: 0 | BA11: 0 | BB11: 0 | BC11: 0 | BD11: 0 | BE11: 0 | BF11: 0 | BG11: 0 | BH11: 0 | BI11: 90.6715014 | BJ11: 86.35831351 | BK11: 20.29676253 | BL11: 0 | BM11: 90.6715014 | BN11: 86.35831351 | BO11: 20.29676253 | BP11: 0 | BQ11: 521.6531549
A12: P13RCS | B12: Climate Saver - Flexible Pricing | D12: =IFERROR(INDEX(Prop2018DistTar!Z:Z,MATCH($A12,Prop2018DistTar!$A:$A,),1),) -> 0 | E12: =IFERROR(INDEX(Prop2018DistTar!AA:AA,MATCH($A12,Prop2018DistTar!$A:$A,),1),) -> 0 | F12: =IFERROR(INDEX(Prop2018DistTar!AB:AB,MATCH($A12,Prop2018DistTar!$A:$A,),1),) -> 0 | G12: =IFERROR(INDEX(Prop2018DistTar!AC:AC,MATCH($A12,Prop2018DistTar!$A:$A,),1),) -> 0 | H12: =IFERROR(INDEX(Prop2018DistTar!AD:AD,MATCH($A12,Prop2018DistTar!$A:$A,),1),) -> 0 | I12: =IFERROR(INDEX(Prop2018DistTar!AE:AE,MATCH($A12,Prop2018DistTar!$A:$A,),1),) -> 0 | J12: =IFERROR(INDEX(Prop2018DistTar!AF:AF,MATCH($A12,Prop2018DistTar!$A:$A,),1),) -> 0 | K12: =IFERROR(INDEX(Prop2018DistTar!AG:AG,MATCH($A12,Prop2018DistTar!$A:$A,),1),) -> 0 | L12: =IFERROR(INDEX(Prop2018DistTar!AH:AH,MATCH($A12,Prop2018DistTar!$A:$A,),1),) -> 0 | M12: =IFERROR(INDEX(Prop2018DistTar!AI:AI,MATCH($A12,Prop2018DistTar!$A:$A,),1),) -> 0 | N12: =IFERROR(INDEX(Prop2018DistTar!AJ:AJ,MATCH($A12,Prop2018DistTar!$A:$A,),1),) -> 0 | O12: =IFERROR(INDEX(Prop2018DistTar!AK:AK,MATCH($A12,Prop2018DistTar!$A:$A,),1),) -> 0 | P12: =IFERROR(INDEX(Prop2018DistTar!AL:AL,MATCH($A12,Prop2018DistTar!$A:$A,),1),) -> 0 | Q12: =IFERROR(INDEX(Prop2018DistTar!AM:AM,MATCH($A12,Prop2018DistTar!$A:$A,),1),) -> 7.65 | R12: =IFERROR(INDEX(Prop2018DistTar!AN:AN,MATCH($A12,Prop2018DistTar!$A:$A,),1),) -> 0 | S12: =IFERROR(INDEX(Prop2018DistTar!AO:AO,MATCH($A12,Prop2018DistTar!$A:$A,),1),) -> 0 | T12: =IFERROR(INDEX(Prop2018DistTar!AP:AP,MATCH($A12,Prop2018DistTar!$A:$A,),1),) -> 0 | U12: =IFERROR(INDEX(Prop2018DistTar!AQ:AQ,MATCH($A12,Prop2018DistTar!$A:$A,),1),) -> 1.53 | V12: =IFERROR(INDEX(Prop2018DistTar!AR:AR,MATCH($A12,Prop2018DistTar!$A:$A,),1),) -> 0 | W12: =IFERROR(INDEX(Prop2018DistTar!AS:AS,MATCH($A12,Prop2018DistTar!$A:$A,),1),) -> 0 | Z12: 0 | AA12: 0 | AB12: 0 | AC12: 0 | AD12: 0 | AE12: 0 | AF12: 0 | AG12: 0 | AH12: 0 | AI12: 0 | AJ12: 0 | AK12: 0 | AL12: 0 | AM12: 12044.16822 | AN12: 0 | AO12: 0 | AP12: 0 | AQ12: 12044.16822 | AR12: 0 | AS12: 0 | AT12: 0 | AV12: 0 | AW12: 0 | AX12: 0 | AY12: 0 | AZ12: 0 | BA12: 0 | BB12: 0 | BC12: 0 | BD12: 0 | BE12: 0 | BF12: 0 | BG12: 0 | BH12: 0 | BI12: 921.3788684 | BJ12: 0 | BK12: 0 | BL12: 0 | BM12: 184.2757737 | BN12: 0 | BO12: 0 | BP12: 0 | BQ12: 1105.654642
A13: P1DK | B13: Docklands single rate | D13: =IFERROR(INDEX(Prop2018DistTar!Z:Z,MATCH($A13,Prop2018DistTar!$A:$A,),1),) -> 125 | E13: =IFERROR(INDEX(Prop2018DistTar!AA:AA,MATCH($A13,Prop2018DistTar!$A:$A,),1),) -> 4.92 | F13: =IFERROR(INDEX(Prop2018DistTar!AB:AB,MATCH($A13,Prop2018DistTar!$A:$A,),1),) -> 0 | G13: =IFERROR(INDEX(Prop2018DistTar!AC:AC,MATCH($A13,Prop2018DistTar!$A:$A,),1),) -> 0 | H13: =IFERROR(INDEX(Prop2018DistTar!AD:AD,MATCH($A13,Prop2018DistTar!$A:$A,),1),) -> 0 | I13: =IFERROR(INDEX(Prop2018DistTar!AE:AE,MATCH($A13,Prop2018DistTar!$A:$A,),1),) -> 0 | J13: =IFERROR(INDEX(Prop2018DistTar!AF:AF,MATCH($A13,Prop2018DistTar!$A:$A,),1),) -> 0 | K13: =IFERROR(INDEX(Prop2018DistTar!AG:AG,MATCH($A13,Prop2018DistTar!$A:$A,),1),) -> 0 | L13: =IFERROR(INDEX(Prop2018DistTar!AH:AH,MATCH($A13,Prop2018DistTar!$A:$A,),1),) -> 0 | M13: =IFERROR(INDEX(Prop2018DistTar!AI:AI,MATCH($A13,Prop2018DistTar!$A:$A,),1),) -> 0 | N13: =IFERROR(INDEX(Prop2018DistTar!AJ:AJ,MATCH($A13,Prop2018DistTar!$A:$A,),1),) -> 0 | O13: =IFERROR(INDEX(Prop2018DistTar!AK:AK,MATCH($A13,Prop2018DistTar!$A:$A,),1),) -> 0 | P13: =IFERROR(INDEX(Prop2018DistTar!AL:AL,MATCH($A13,Prop2018DistTar!$A:$A,),1),) -> 0 | Q13: =IFERROR(INDEX(Prop2018DistTar!AM:AM,MATCH($A13,Prop2018DistTar!$A:$A,),1),) -> 0 | R13: =IFERROR(INDEX(Prop2018DistTar!AN:AN,MATCH($A13,Prop2018DistTar!$A:$A,),1),) -> 0 | S13: =IFERROR(INDEX(Prop2018DistTar!AO:AO,MATCH($A13,Prop2018DistTar!$A:$A,),1),) -> 0 | T13: =IFERROR(INDEX(Prop2018DistTar!AP:AP,MATCH($A13,Prop2018DistTar!$A:$A,),1),) -> 0 | U13: =IFERROR(INDEX(Prop2018DistTar!AQ:AQ,MATCH($A13,Prop2018DistTar!$A:$A,),1),) -> 0 | V13: =IFERROR(INDEX(Prop2018DistTar!AR:AR,MATCH($A13,Prop2018DistTar!$A:$A,),1),) -> 0 | W13: =IFERROR(INDEX(Prop2018DistTar!AS:AS,MATCH($A13,Prop2018DistTar!$A:$A,),1),) -> 0 | Z13: 0 | AA13: 0 | AB13: 0 | AC13: 0 | AD13: 0 | AE13: 0 | AF13: 0 | AG13: 0 | AH13: 0 | AI13: 0 | AJ13: 0 | AK13: 0 | AL13: 0 | AM13: 0 | AN13: 0 | AO13: 0 | AP13: 0 | AQ13: 0 | AR13: 0 | AS13: 0 | AT13: 0 | AV13: 0 | AW13: 0 | AX13: 0 | AY13: 0 | AZ13: 0 | BA13: 0 | BB13: 0 | BC13: 0 | BD13: 0 | BE13: 0 | BF13: 0 | BG13: 0 | BH13: 0 | BI13: 0 | BJ13: 0 | BK13: 0 | BL13: 0 | BM13: 0 | BN13: 0 | BO13: 0 | BP13: 0 | BQ13: 0
A14: D2 | B14: Residential Two Rate 5d | D14: =IFERROR(INDEX(Prop2018DistTar!Z:Z,MATCH($A14,Prop2018DistTar!$A:$A,),1),) -> 125 | E14: =IFERROR(INDEX(Prop2018DistTar!AA:AA,MATCH($A14,Prop2018DistTar!$A:$A,),1),) -> 0 | F14: =IFERROR(INDEX(Prop2018DistTar!AB:AB,MATCH($A14,Prop2018DistTar!$A:$A,),1),) -> 9.48 | G14: =IFERROR(INDEX(Prop2018DistTar!AC:AC,MATCH($A14,Prop2018DistTar!$A:$A,),1),) -> 0 | H14: =IFERROR(INDEX(Prop2018DistTar!AD:AD,MATCH($A14,Prop2018DistTar!$A:$A,),1),) -> 0 | I14: =IFERROR(INDEX(Prop2018DistTar!AE:AE,MATCH($A14,Prop2018DistTar!$A:$A,),1),) -> 1.78 | J14: =IFERROR(INDEX(Prop2018DistTar!AF:AF,MATCH($A14,Prop2018DistTar!$A:$A,),1),) -> 0 | K14: =IFERROR(INDEX(Prop2018DistTar!AG:AG,MATCH($A14,Prop2018DistTar!$A:$A,),1),) -> 0 | L14: =IFERROR(INDEX(Prop2018DistTar!AH:AH,MATCH($A14,Prop2018DistTar!$A:$A,),1),) -> 0 | M14: =IFERROR(INDEX(Prop2018DistTar!AI:AI,MATCH($A14,Prop2018DistTar!$A:$A,),1),) -> 0 | N14: =IFERROR(INDEX(Prop2018DistTar!AJ:AJ,MATCH($A14,Prop2018DistTar!$A:$A,),1),) -> 0 | O14: =IFERROR(INDEX(Prop2018DistTar!AK:AK,MATCH($A14,Prop2018DistTar!$A:$A,),1),) -> 0 | P14: =IFERROR(INDEX(Prop2018DistTar!AL:AL,MATCH($A14,Prop2018DistTar!$A:$A,),1),) -> 0 | Q14: =IFERROR(INDEX(Prop2018DistTar!AM:AM,MATCH($A14,Prop2018DistTar!$A:$A,),1),) -> 0 | R14: =IFERROR(INDEX(Prop2018DistTar!AN:AN,MATCH($A14,Prop2018DistTar!$A:$A,),1),) -> 0 | S14: =IFERROR(INDEX(Prop2018DistTar!AO:AO,MATCH($A14,Prop2018DistTar!$A:$A,),1),) -> 0 | T14: =IFERROR(INDEX(Prop2018DistTar!AP:AP,MATCH($A14,Prop2018DistTar!$A:$A,),1),) -> 0 | U14: =IFERROR(INDEX(Prop2018DistTar!AQ:AQ,MATCH($A14,Prop2018DistTar!$A:$A,),1),) -> 0 | V14: =IFERROR(INDEX(Prop2018DistTar!AR:AR,MATCH($A14,Prop2018DistTar!$A:$A,),1),) -> 0 | W14: =IFERROR(INDEX(Prop2018DistTar!AS:AS,MATCH($A14,Prop2018DistTar!$A:$A,),1),) -> 0 | Z14: 46517.13667 | AA14: 0 | AB14: 108942665.5 | AC14: 0 | AD14: 0 | AE14: 91811104.21 | AF14: 0 | AG14: 0 | AH14: 0 | AI14: 0 | AJ14: 0 | AK14: 0 | AL14: 0 | AM14: 0 | AN14: 0 | AO14: 0 | AP14: 0 | AQ14: 0 | AR14: 0 | AS14: 0 | AT14: 0 | AV14: 5814642.083 | AW14: 0 | AX14: 10327764.69 | AY14: 0 | AZ14: 0 | BA14: 1634237.655 | BB14: 0 | BC14: 0 | BD14: 0 | BE14: 0 | BF14: 0 | BG14: 0 | BH14: 0 | BI14: 0 | BJ14: 0 | BK14: 0 | BL14: 0 | BM14: 0 | BN14: 0 | BO14: 0 | BP14: 0 | BQ14: 17776644.43
A15: D2DK | B15: Docklands Two Rate 5d | D15: =IFERROR(INDEX(Prop2018DistTar!Z:Z,MATCH($A15,Prop2018DistTar!$A:$A,),1),) -> 125 | E15: =IFERROR(INDEX(Prop2018DistTar!AA:AA,MATCH($A15,Prop2018DistTar!$A:$A,),1),) -> 0 | F15: =IFERROR(INDEX(Prop2018DistTar!AB:AB,MATCH($A15,Prop2018DistTar!$A:$A,),1),) -> 8.87 | G15: =IFERROR(INDEX(Prop2018DistTar!AC:AC,MATCH($A15,Prop2018DistTar!$A:$A,),1),) -> 0 | H15: =IFERROR(INDEX(Prop2018DistTar!AD:AD,MATCH($A15,Prop2018DistTar!$A:$A,),1),) -> 0 | I15: =IFERROR(INDEX(Prop2018DistTar!AE:AE,MATCH($A15,Prop2018DistTar!$A:$A,),1),) -> 1.53 | J15: =IFERROR(INDEX(Prop2018DistTar!AF:AF,MATCH($A15,Prop2018DistTar!$A:$A,),1),) -> 0 | K15: =IFERROR(INDEX(Prop2018DistTar!AG:AG,MATCH($A15,Prop2018DistTar!$A:$A,),1),) -> 0 | L15: =IFERROR(INDEX(Prop2018DistTar!AH:AH,MATCH($A15,Prop2018DistTar!$A:$A,),1),) -> 0 | M15: =IFERROR(INDEX(Prop2018DistTar!AI:AI,MATCH($A15,Prop2018DistTar!$A:$A,),1),) -> 0 | N15: =IFERROR(INDEX(Prop2018DistTar!AJ:AJ,MATCH($A15,Prop2018DistTar!$A:$A,),1),) -> 0 | O15: =IFERROR(INDEX(Prop2018DistTar!AK:AK,MATCH($A15,Prop2018DistTar!$A:$A,),1),) -> 0 | P15: =IFERROR(INDEX(Prop2018DistTar!AL:AL,MATCH($A15,Prop2018DistTar!$A:$A,),1),) -> 0 | Q15: =IFERROR(INDEX(Prop2018DistTar!AM:AM,MATCH($A15,Prop2018DistTar!$A:$A,),1),) -> 0 | R15: =IFERROR(INDEX(Prop2018DistTar!AN:AN,MATCH($A15,Prop2018DistTar!$A:$A,),1),) -> 0 | S15: =IFERROR(INDEX(Prop2018DistTar!AO:AO,MATCH($A15,Prop2018DistTar!$A:$A,),1),) -> 0 | T15: =IFERROR(INDEX(Prop2018DistTar!AP:AP,MATCH($A15,Prop2018DistTar!$A:$A,),1),) -> 0 | U15: =IFERROR(INDEX(Prop2018DistTar!AQ:AQ,MATCH($A15,Prop2018DistTar!$A:$A,),1),) -> 0 | V15: =IFERROR(INDEX(Prop2018DistTar!AR:AR,MATCH($A15,Prop2018DistTar!$A:$A,),1),) -> 0 | W15: =IFERROR(INDEX(Prop2018DistTar!AS:AS,MATCH($A15,Prop2018DistTar!$A:$A,),1),) -> 0 | Z15: 597.5773333 | AA15: 0 | AB15: 1881879.444 | AC15: 0 | AD15: 0 | AE15: 1633431.603 | AF15: 0 | AG15: 0 | AH15: 0 | AI15: 0 | AJ15: 0 | AK15: 0 | AL15: 0 | AM15: 0 | AN15: 0 | AO15: 0 | AP15: 0 | AQ15: 0 | AR15: 0 | AS15: 0 | AT15: 0 | AV15: 74697.16667 | AW15: 0 | AX15: 166922.7067 | AY15: 0 | AZ15: 0 | BA15: 24991.50352 | BB15: 0 | BC15: 0 | BD15: 0 | BE15: 0 | BF15: 0 | BG15: 0 | BH15: 0 | BI15: 0 | BJ15: 0 | BK15: 0 | BL15: 0 | BM15: 0 | BN15: 0 | BO15: 0 | BP15: 0 | BQ15: 266611.3769
A16: D3 | B16: Residential Interval | D16: =IFERROR(INDEX(Prop2018DistTar!Z:Z,MATCH($A16,Prop2018DistTar!$A:$A,),1),) -> 125 | E16: =IFERROR(INDEX(Prop2018DistTar!AA:AA,MATCH($A16,Prop2018DistTar!$A:$A,),1),) -> 0 | F16: =IFERROR(INDEX(Prop2018DistTar!AB:AB,MATCH($A16,Prop2018DistTar!$A:$A,),1),) -> 9.48 | G16: =IFERROR(INDEX(Prop2018DistTar!AC:AC,MATCH($A16,Prop2018DistTar!$A:$A,),1),) -> 0 | H16: =IFERROR(INDEX(Prop2018DistTar!AD:AD,MATCH($A16,Prop2018DistTar!$A:$A,),1),) -> 0 | I16: =IFERROR(INDEX(Prop2018DistTar!AE:AE,MATCH($A16,Prop2018DistTar!$A:$A,),1),) -> 1.78 | J16: =IFERROR(INDEX(Prop2018DistTar!AF:AF,MATCH($A16,Prop2018DistTar!$A:$A,),1),) -> 0 | K16: =IFERROR(INDEX(Prop2018DistTar!AG:AG,MATCH($A16,Prop2018DistTar!$A:$A,),1),) -> 0 | L16: =IFERROR(INDEX(Prop2018DistTar!AH:AH,MATCH($A16,Prop2018DistTar!$A:$A,),1),) -> 0 | M16: =IFERROR(INDEX(Prop2018DistTar!AI:AI,MATCH($A16,Prop2018DistTar!$A:$A,),1),) -> 0 | N16: =IFERROR(INDEX(Prop2018DistTar!AJ:AJ,MATCH($A16,Prop2018DistTar!$A:$A,),1),) -> 0 | O16: =IFERROR(INDEX(Prop2018DistTar!AK:AK,MATCH($A16,Prop2018DistTar!$A:$A,),1),) -> 0 | P16: =IFERROR(INDEX(Prop2018DistTar!AL:AL,MATCH($A16,Prop2018DistTar!$A:$A,),1),) -> 0 | Q16: =IFERROR(INDEX(Prop2018DistTar!AM:AM,MATCH($A16,Prop2018DistTar!$A:$A,),1),) -> 0 | R16: =IFERROR(INDEX(Prop2018DistTar!AN:AN,MATCH($A16,Prop2018DistTar!$A:$A,),1),) -> 0 | S16: =IFERROR(INDEX(Prop2018DistTar!AO:AO,MATCH($A16,Prop2018DistTar!$A:$A,),1),) -> 0 | T16: =IFERROR(INDEX(Prop2018DistTar!AP:AP,MATCH($A16,Prop2018DistTar!$A:$A,),1),) -> 0 | U16: =IFERROR(INDEX(Prop2018DistTar!AQ:AQ,MATCH($A16,Prop2018DistTar!$A:$A,),1),) -> 0 | V16: =IFERROR(INDEX(Prop2018DistTar!AR:AR,MATCH($A16,Prop2018DistTar!$A:$A,),1),) -> 0 | W16: =IFERROR(INDEX(Prop2018DistTar!AS:AS,MATCH($A16,Prop2018DistTar!$A:$A,),1),) -> 0 | Z16: 110743.9153 | AA16: 0 | AB16: 265090478.7 | AC16: 0 | AD16: 0 | AE16: 268547798.6 | AF16: 0 | AG16: 0 | AH16: 0 | AI16: 0 | AJ16: 0 | AK16: 0 | AL16: 0 | AM16: 0 | AN16: 0 | AO16: 0 | AP16: 0 | AQ16: 0 | AR16: 0 | AS16: 0 | AT16: 0 | AV16: 13842989.42 | AW16: 0 | AX16: 25130577.39 | AY16: 0 | AZ16: 0 | BA16: 4780150.815 | BB16: 0 | BC16: 0 | BD16: 0 | BE16: 0 | BF16: 0 | BG16: 0 | BH16: 0 | BI16: 0 | BJ16: 0 | BK16: 0 | BL16: 0 | BM16: 0 | BN16: 0 | BO16: 0 | BP16: 0 | BQ16: 43753717.62
A17: D2OP | B17: Residential Two Rate 5d - controlled load | D17: =IFERROR(INDEX(Prop2018DistTar!Z:Z,MATCH($A17,Prop2018DistTar!$A:$A,),1),) -> 0 | E17: =IFERROR(INDEX(Prop2018DistTar!AA:AA,MATCH($A17,Prop2018DistTar!$A:$A,),1),) -> 0 | F17: =IFERROR(INDEX(Prop2018DistTar!AB:AB,MATCH($A17,Prop2018DistTar!$A:$A,),1),) -> 0 | G17: =IFERROR(INDEX(Prop2018DistTar!AC:AC,MATCH($A17,Prop2018DistTar!$A:$A,),1),) -> 0 | H17: =IFERROR(INDEX(Prop2018DistTar!AD:AD,MATCH($A17,Prop2018DistTar!$A:$A,),1),) -> 0 | I17: =IFERROR(INDEX(Prop2018DistTar!AE:AE,MATCH($A17,Prop2018DistTar!$A:$A,),1),) -> 1.53 | J17: =IFERROR(INDEX(Prop2018DistTar!AF:AF,MATCH($A17,Prop2018DistTar!$A:$A,),1),) -> 0 | K17: =IFERROR(INDEX(Prop2018DistTar!AG:AG,MATCH($A17,Prop2018DistTar!$A:$A,),1),) -> 0 | L17: =IFERROR(INDEX(Prop2018DistTar!AH:AH,MATCH($A17,Prop2018DistTar!$A:$A,),1),) -> 0 | M17: =IFERROR(INDEX(Prop2018DistTar!AI:AI,MATCH($A17,Prop2018DistTar!$A:$A,),1),) -> 0 | N17: =IFERROR(INDEX(Prop2018DistTar!AJ:AJ,MATCH($A17,Prop2018DistTar!$A:$A,),1),) -> 0 | O17: =IFERROR(INDEX(Prop2018DistTar!AK:AK,MATCH($A17,Prop2018DistTar!$A:$A,),1),) -> 0 | P17: =IFERROR(INDEX(Prop2018DistTar!AL:AL,MATCH($A17,Prop2018DistTar!$A:$A,),1),) -> 0 | Q17: =IFERROR(INDEX(Prop2018DistTar!AM:AM,MATCH($A17,Prop2018DistTar!$A:$A,),1),) -> 0 | R17: =IFERROR(INDEX(Prop2018DistTar!AN:AN,MATCH($A17,Prop2018DistTar!$A:$A,),1),) -> 0 | S17: =IFERROR(INDEX(Prop2018DistTar!AO:AO,MATCH($A17,Prop2018DistTar!$A:$A,),1),) -> 0 | T17: =IFERROR(INDEX(Prop2018DistTar!AP:AP,MATCH($A17,Prop2018DistTar!$A:$A,),1),) -> 0 | U17: =IFERROR(INDEX(Prop2018DistTar!AQ:AQ,MATCH($A17,Prop2018DistTar!$A:$A,),1),) -> 0 | V17: =IFERROR(INDEX(Prop2018DistTar!AR:AR,MATCH($A17,Prop2018DistTar!$A:$A,),1),) -> 0 | W17: =IFERROR(INDEX(Prop2018DistTar!AS:AS,MATCH($A17,Prop2018DistTar!$A:$A,),1),) -> 0 | Z17: 44006.77 | AA17: 0 | AB17: 0 | AC17: 0 | AD17: 0 | AE17: 154161131.7 | AF17: 0 | AG17: 0 | AH17: 0 | AI17: 0 | AJ17: 0 | AK17: 0 | AL17: 0 | AM17: 0 | AN17: 0 | AO17: 0 | AP17: 0 | AQ17: 0 | AR17: 0 | AS17: 0 | AT17: 0 | AV17: 0 | AW17: 0 | AX17: 0 | AY17: 0 | AZ17: 0 | BA17: 2358665.316 | BB17: 0 | BC17: 0 | BD17: 0 | BE17: 0 | BF17: 0 | BG17: 0 | BH17: 0 | BI17: 0 | BJ17: 0 | BK17: 0 | BL17: 0 | BM17: 0 | BN17: 0 | BO17: 0 | BP17: 0 | BQ17: 2358665.316
A18: D2DKOP | B18: Docklands Two Rate 5d - controlled load | D18: =IFERROR(INDEX(Prop2018DistTar!Z:Z,MATCH($A18,Prop2018DistTar!$A:$A,),1),) -> 0 | E18: =IFERROR(INDEX(Prop2018DistTar!AA:AA,MATCH($A18,Prop2018DistTar!$A:$A,),1),) -> 0 | F18: =IFERROR(INDEX(Prop2018DistTar!AB:AB,MATCH($A18,Prop2018DistTar!$A:$A,),1),) -> 0 | G18: =IFERROR(INDEX(Prop2018DistTar!AC:AC,MATCH($A18,Prop2018DistTar!$A:$A,),1),) -> 0 | H18: =IFERROR(INDEX(Prop2018DistTar!AD:AD,MATCH($A18,Prop2018DistTar!$A:$A,),1),) -> 0 | I18: =IFERROR(INDEX(Prop2018DistTar!AE:AE,MATCH($A18,Prop2018DistTar!$A:$A,),1),) -> 1.53 | J18: =IFERROR(INDEX(Prop2018DistTar!AF:AF,MATCH($A18,Prop2018DistTar!$A:$A,),1),) -> 0 | K18: =IFERROR(INDEX(Prop2018DistTar!AG:AG,MATCH($A18,Prop2018DistTar!$A:$A,),1),) -> 0 | L18: =IFERROR(INDEX(Prop2018DistTar!AH:AH,MATCH($A18,Prop2018DistTar!$A:$A,),1),) -> 0 | M18: =IFERROR(INDEX(Prop2018DistTar!AI:AI,MATCH($A18,Prop2018DistTar!$A:$A,),1),) -> 0 | N18: =IFERROR(INDEX(Prop2018DistTar!AJ:AJ,MATCH($A18,Prop2018DistTar!$A:$A,),1),) -> 0 | O18: =IFERROR(INDEX(Prop2018DistTar!AK:AK,MATCH($A18,Prop2018DistTar!$A:$A,),1),) -> 0 | P18: =IFERROR(INDEX(Prop2018DistTar!AL:AL,MATCH($A18,Prop2018DistTar!$A:$A,),1),) -> 0 | Q18: =IFERROR(INDEX(Prop2018DistTar!AM:AM,MATCH($A18,Prop2018DistTar!$A:$A,),1),) -> 0 | R18: =IFERROR(INDEX(Prop2018DistTar!AN:AN,MATCH($A18,Prop2018DistTar!$A:$A,),1),) -> 0 | S18: =IFERROR(INDEX(Prop2018DistTar!AO:AO,MATCH($A18,Prop2018DistTar!$A:$A,),1),) -> 0 | T18: =IFERROR(INDEX(Prop2018DistTar!AP:AP,MATCH($A18,Prop2018DistTar!$A:$A,),1),) -> 0 | U18: =IFERROR(INDEX(Prop2018DistTar!AQ:AQ,MATCH($A18,Prop2018DistTar!$A:$A,),1),) -> 0 | V18: =IFERROR(INDEX(Prop2018DistTar!AR:AR,MATCH($A18,Prop2018DistTar!$A:$A,),1),) -> 0 | W18: =IFERROR(INDEX(Prop2018DistTar!AS:AS,MATCH($A18,Prop2018DistTar!$A:$A,),1),) -> 0 | Z18: 71.54333333 | AA18: 0 | AB18: 0 | AC18: 0 | AD18: 0 | AE18: 236514.13 | AF18: 0 | AG18: 0 | AH18: 0 | AI18: 0 | AJ18: 0 | AK18: 0 | AL18: 0 | AM18: 0 | AN18: 0 | AO18: 0 | AP18: 0 | AQ18: 0 | AR18: 0 | AS18: 0 | AT18: 0 | AV18: 0 | AW18: 0 | AX18: 0 | AY18: 0 | AZ18: 0 | BA18: 3618.666189 | BB18: 0 | BC18: 0 | BD18: 0 | BE18: 0 | BF18: 0 | BG18: 0 | BH18: 0 | BI18: 0 | BJ18: 0 | BK18: 0 | BL18: 0 | BM18: 0 | BN18: 0 | BO18: 0 | BP18: 0 | BQ18: 3618.666189
A19: DD1 | B19: Dedicated circuit | D19: =IFERROR(INDEX(Prop2018DistTar!Z:Z,MATCH($A19,Prop2018DistTar!$A:$A,),1),) -> 0 | E19: =IFERROR(INDEX(Prop2018DistTar!AA:AA,MATCH($A19,Prop2018DistTar!$A:$A,),1),) -> 0 | F19: =IFERROR(INDEX(Prop2018DistTar!AB:AB,MATCH($A19,Prop2018DistTar!$A:$A,),1),) -> 0 | G19: =IFERROR(INDEX(Prop2018DistTar!AC:AC,MATCH($A19,Prop2018DistTar!$A:$A,),1),) -> 0 | H19: =IFERROR(INDEX(Prop2018DistTar!AD:AD,MATCH($A19,Prop2018DistTar!$A:$A,),1),) -> 0 | I19: =IFERROR(INDEX(Prop2018DistTar!AE:AE,MATCH($A19,Prop2018DistTar!$A:$A,),1),) -> 1.53 | J19: =IFERROR(INDEX(Prop2018DistTar!AF:AF,MATCH($A19,Prop2018DistTar!$A:$A,),1),) -> 0 | K19: =IFERROR(INDEX(Prop2018DistTar!AG:AG,MATCH($A19,Prop2018DistTar!$A:$A,),1),) -> 0 | L19: =IFERROR(INDEX(Prop2018DistTar!AH:AH,MATCH($A19,Prop2018DistTar!$A:$A,),1),) -> 0 | M19: =IFERROR(INDEX(Prop2018DistTar!AI:AI,MATCH($A19,Prop2018DistTar!$A:$A,),1),) -> 0 | N19: =IFERROR(INDEX(Prop2018DistTar!AJ:AJ,MATCH($A19,Prop2018DistTar!$A:$A,),1),) -> 0 | O19: =IFERROR(INDEX(Prop2018DistTar!AK:AK,MATCH($A19,Prop2018DistTar!$A:$A,),1),) -> 0 | P19: =IFERROR(INDEX(Prop2018DistTar!AL:AL,MATCH($A19,Prop2018DistTar!$A:$A,),1),) -> 0 | Q19: =IFERROR(INDEX(Prop2018DistTar!AM:AM,MATCH($A19,Prop2018DistTar!$A:$A,),1),) -> 0 | R19: =IFERROR(INDEX(Prop2018DistTar!AN:AN,MATCH($A19,Prop2018DistTar!$A:$A,),1),) -> 0 | S19: =IFERROR(INDEX(Prop2018DistTar!AO:AO,MATCH($A19,Prop2018DistTar!$A:$A,),1),) -> 0 | T19: =IFERROR(INDEX(Prop2018DistTar!AP:AP,MATCH($A19,Prop2018DistTar!$A:$A,),1),) -> 0 | U19: =IFERROR(INDEX(Prop2018DistTar!AQ:AQ,MATCH($A19,Prop2018DistTar!$A:$A,),1),) -> 0 | V19: =IFERROR(INDEX(Prop2018DistTar!AR:AR,MATCH($A19,Prop2018DistTar!$A:$A,),1),) -> 0 | W19: =IFERROR(INDEX(Prop2018DistTar!AS:AS,MATCH($A19,Prop2018DistTar!$A:$A,),1),) -> 0 | Z19: 162615.4567 | AA19: 0 | AB19: 0 | AC19: 0 | AD19: 0 | AE19: 309268174.6 | AF19: 0 | AG19: 0 | AH19: 0 | AI19: 0 | AJ19: 0 | AK19: 0 | AL19: 0 | AM19: 0 | AN19: 0 | AO19: 0 | AP19: 0 | AQ19: 0 | AR19: 0 | AS19: 0 | AT19: 0 | AV19: 0 | AW19: 0 | AX19: 0 | AY19: 0 | AZ19: 0 | BA19: 4731803.071 | BB19: 0 | BC19: 0 | BD19: 0 | BE19: 0 | BF19: 0 | BG19: 0 | BH19: 0 | BI19: 0 | BJ19: 0 | BK19: 0 | BL19: 0 | BM19: 0 | BN19: 0 | BO19: 0 | BP19: 0 | BQ19: 4731803.071
A20: D3HW | B20: Hot Water Interval | D20: =IFERROR(INDEX(Prop2018DistTar!Z:Z,MATCH($A20,Prop2018DistTar!$A:$A,),1),) -> 0 | E20: =IFERROR(INDEX(Prop2018DistTar!AA:AA,MATCH($A20,Prop2018DistTar!$A:$A,),1),) -> 0 | F20: =IFERROR(INDEX(Prop2018DistTar!AB:AB,MATCH($A20,Prop2018DistTar!$A:$A,),1),) -> 0 | G20: =IFERROR(INDEX(Prop2018DistTar!AC:AC,MATCH($A20,Prop2018DistTar!$A:$A,),1),) -> 0 | H20: =IFERROR(INDEX(Prop2018DistTar!AD:AD,MATCH($A20,Prop2018DistTar!$A:$A,),1),) -> 0 | I20: =IFERROR(INDEX(Prop2018DistTar!AE:AE,MATCH($A20,Prop2018DistTar!$A:$A,),1),) -> 1.53 | J20: =IFERROR(INDEX(Prop2018DistTar!AF:AF,MATCH($A20,Prop2018DistTar!$A:$A,),1),) -> 0 | K20: =IFERROR(INDEX(Prop2018DistTar!AG:AG,MATCH($A20,Prop2018DistTar!$A:$A,),1),) -> 0 | L20: =IFERROR(INDEX(Prop2018DistTar!AH:AH,MATCH($A20,Prop2018DistTar!$A:$A,),1),) -> 0 | M20: =IFERROR(INDEX(Prop2018DistTar!AI:AI,MATCH($A20,Prop2018DistTar!$A:$A,),1),) -> 0 | N20: =IFERROR(INDEX(Prop2018DistTar!AJ:AJ,MATCH($A20,Prop2018DistTar!$A:$A,),1),) -> 0 | O20: =IFERROR(INDEX(Prop2018DistTar!AK:AK,MATCH($A20,Prop2018DistTar!$A:$A,),1),) -> 0 | P20: =IFERROR(INDEX(Prop2018DistTar!AL:AL,MATCH($A20,Prop2018DistTar!$A:$A,),1),) -> 0 | Q20: =IFERROR(INDEX(Prop2018DistTar!AM:AM,MATCH($A20,Prop2018DistTar!$A:$A,),1),) -> 0 | R20: =IFERROR(INDEX(Prop2018DistTar!AN:AN,MATCH($A20,Prop2018DistTar!$A:$A,),1),) -> 0 | S20: =IFERROR(INDEX(Prop2018DistTar!AO:AO,MATCH($A20,Prop2018DistTar!$A:$A,),1),) -> 0 | T20: =IFERROR(INDEX(Prop2018DistTar!AP:AP,MATCH($A20,Prop2018DistTar!$A:$A,),1),) -> 0 | U20: =IFERROR(INDEX(Prop2018DistTar!AQ:AQ,MATCH($A20,Prop2018DistTar!$A:$A,),1),) -> 0 | V20: =IFERROR(INDEX(Prop2018DistTar!AR:AR,MATCH($A20,Prop2018DistTar!$A:$A,),1),) -> 0 | W20: =IFERROR(INDEX(Prop2018DistTar!AS:AS,MATCH($A20,Prop2018DistTar!$A:$A,),1),) -> 0 | Z20: 5649.044667 | AA20: 0 | AB20: 0 | AC20: 0 | AD20: 0 | AE20: 10262602.38 | AF20: 0 | AG20: 0 | AH20: 0 | AI20: 0 | AJ20: 0 | AK20: 0 | AL20: 0 | AM20: 0 | AN20: 0 | AO20: 0 | AP20: 0 | AQ20: 0 | AR20: 0 | AS20: 0 | AT20: 0 | AV20: 0 | AW20: 0 | AX20: 0 | AY20: 0 | AZ20: 0 | BA20: 157017.8165 | BB20: 0 | BC20: 0 | BD20: 0 | BE20: 0 | BF20: 0 | BG20: 0 | BH20: 0 | BI20: 0 | BJ20: 0 | BK20: 0 | BL20: 0 | BM20: 0 | BN20: 0 | BO20: 0 | BP20: 0 | BQ20: 157017.8165
A21: DD | B21: Residential Demand | D21: =IFERROR(INDEX(Prop2018DistTar!Z:Z,MATCH($A21,Prop2018DistTar!$A:$A,),1),) -> 125 | E21: =IFERROR(INDEX(Prop2018DistTar!AA:AA,MATCH($A21,Prop2018DistTar!$A:$A,),1),) -> 2.37 | F21: =IFERROR(INDEX(Prop2018DistTar!AB:AB,MATCH($A21,Prop2018DistTar!$A:$A,),1),) -> 0 | G21: =IFERROR(INDEX(Prop2018DistTar!AC:AC,MATCH($A21,Prop2018DistTar!$A:$A,),1),) -> 0 | H21: =IFERROR(INDEX(Prop2018DistTar!AD:AD,MATCH($A21,Prop2018DistTar!$A:$A,),1),) -> 0 | I21: =IFERROR(INDEX(Prop2018DistTar!AE:AE,MATCH($A21,Prop2018DistTar!$A:$A,),1),) -> 0 | J21: =IFERROR(INDEX(Prop2018DistTar!AF:AF,MATCH($A21,Prop2018DistTar!$A:$A,),1),) -> 0 | K21: =IFERROR(INDEX(Prop2018DistTar!AG:AG,MATCH($A21,Prop2018DistTar!$A:$A,),1),) -> 0 | L21: =IFERROR(INDEX(Prop2018DistTar!AH:AH,MATCH($A21,Prop2018DistTar!$A:$A,),1),) -> 0 | M21: =IFERROR(INDEX(Prop2018DistTar!AI:AI,MATCH($A21,Prop2018DistTar!$A:$A,),1),) -> 0 | N21: =IFERROR(INDEX(Prop2018DistTar!AJ:AJ,MATCH($A21,Prop2018DistTar!$A:$A,),1),) -> 0 | O21: =IFERROR(INDEX(Prop2018DistTar!AK:AK,MATCH($A21,Prop2018DistTar!$A:$A,),1),) -> 7.9 | P21: =IFERROR(INDEX(Prop2018DistTar!AL:AL,MATCH($A21,Prop2018DistTar!$A:$A,),1),) -> 2.63 | Q21: =IFERROR(INDEX(Prop2018DistTar!AM:AM,MATCH($A21,Prop2018DistTar!$A:$A,),1),) -> 0 | R21: =IFERROR(INDEX(Prop2018DistTar!AN:AN,MATCH($A21,Prop2018DistTar!$A:$A,),1),) -> 0 | S21: =IFERROR(INDEX(Prop2018DistTar!AO:AO,MATCH($A21,Prop2018DistTar!$A:$A,),1),) -> 0 | T21: =IFERROR(INDEX(Prop2018DistTar!AP:AP,MATCH($A21,Prop2018DistTar!$A:$A,),1),) -> 0 | U21: =IFERROR(INDEX(Prop2018DistTar!AQ:AQ,MATCH($A21,Prop2018DistTar!$A:$A,),1),) -> 0 | V21: =IFERROR(INDEX(Prop2018DistTar!AR:AR,MATCH($A21,Prop2018DistTar!$A:$A,),1),) -> 0 | W21: =IFERROR(INDEX(Prop2018DistTar!AS:AS,MATCH($A21,Prop2018DistTar!$A:$A,),1),) -> 0 | Z21: 5 | AA21: 27500 | AB21: 0 | AC21: 0 | AD21: 0 | AE21: 0 | AF21: 0 | AG21: 0 | AH21: 0 | AI21: 0 | AJ21: 0 | AK21: 62.78538813 | AL21: 100.456621 | AM21: 0 | AN21: 0 | AO21: 0 | AP21: 0 | AQ21: 0 | AR21: 0 | AS21: 0 | AT21: 0 | AV21: 625 | AW21: 651.75 | AX21: 0 | AY21: 0 | AZ21: 0 | BA21: 0 | BB21: 0 | BC21: 0 | BD21: 0 | BE21: 0 | BF21: 0 | BG21: 496.0045662 | BH21: 264.2009132 | BI21: 0 | BJ21: 0 | BK21: 0 | BL21: 0 | BM21: 0 | BN21: 0 | BO21: 0 | BP21: 0 | BQ21: 2036.955479
A22: ND1 | B22: Non-Residential Single Rate | D22: =IFERROR(INDEX(Prop2018DistTar!Z:Z,MATCH($A22,Prop2018DistTar!$A:$A,),1),) -> 160 | E22: =IFERROR(INDEX(Prop2018DistTar!AA:AA,MATCH($A22,Prop2018DistTar!$A:$A,),1),) -> 6.65 | F22: =IFERROR(INDEX(Prop2018DistTar!AB:AB,MATCH($A22,Prop2018DistTar!$A:$A,),1),) -> 0 | G22: =IFERROR(INDEX(Prop2018DistTar!AC:AC,MATCH($A22,Prop2018DistTar!$A:$A,),1),) -> 0 | H22: =IFERROR(INDEX(Prop2018DistTar!AD:AD,MATCH($A22,Prop2018DistTar!$A:$A,),1),) -> 0 | I22: =IFERROR(INDEX(Prop2018DistTar!AE:AE,MATCH($A22,Prop2018DistTar!$A:$A,),1),) -> 0 | J22: =IFERROR(INDEX(Prop2018DistTar!AF:AF,MATCH($A22,Prop2018DistTar!$A:$A,),1),) -> 0 | K22: =IFERROR(INDEX(Prop2018DistTar!AG:AG,MATCH($A22,Prop2018DistTar!$A:$A,),1),) -> 0 | L22: =IFERROR(INDEX(Prop2018DistTar!AH:AH,MATCH($A22,Prop2018DistTar!$A:$A,),1),) -> 0 | M22: =IFERROR(INDEX(Prop2018DistTar!AI:AI,MATCH($A22,Prop2018DistTar!$A:$A,),1),) -> 0 | N22: =IFERROR(INDEX(Prop2018DistTar!AJ:AJ,MATCH($A22,Prop2018DistTar!$A:$A,),1),) -> 0 | O22: =IFERROR(INDEX(Prop2018DistTar!AK:AK,MATCH($A22,Prop2018DistTar!$A:$A,),1),) -> 0 | P22: =IFERROR(INDEX(Prop2018DistTar!AL:AL,MATCH($A22,Prop2018DistTar!$A:$A,),1),) -> 0 | Q22: =IFERROR(INDEX(Prop2018DistTar!AM:AM,MATCH($A22,Prop2018DistTar!$A:$A,),1),) -> 0 | R22: =IFERROR(INDEX(Prop2018DistTar!AN:AN,MATCH($A22,Prop2018DistTar!$A:$A,),1),) -> 0 | S22: =IFERROR(INDEX(Prop2018DistTar!AO:AO,MATCH($A22,Prop2018DistTar!$A:$A,),1),) -> 0 | T22: =IFERROR(INDEX(Prop2018DistTar!AP:AP,MATCH($A22,Prop2018DistTar!$A:$A,),1),) -> 0 | U22: =IFERROR(INDEX(Prop2018DistTar!AQ:AQ,MATCH($A22,Prop2018DistTar!$A:$A,),1),) -> 0 | V22: =IFERROR(INDEX(Prop2018DistTar!AR:AR,MATCH($A22,Prop2018DistTar!$A:$A,),1),) -> 0 | W22: =IFERROR(INDEX(Prop2018DistTar!AS:AS,MATCH($A22,Prop2018DistTar!$A:$A,),1),) -> 0 | Z22: 42483.708 | AA22: 256404043.4 | AB22: 0 | AC22: 0 | AD22: 0 | AE22: 0 | AF22: 0 | AG22: 0 | AH22: 0 | AI22: 0 | AJ22: 0 | AK22: 0 | AL22: 0 | AM22: 0 | AN22: 0 | AO22: 0 | AP22: 0 | AQ22: 0 | AR22: 0 | AS22: 0 | AT22: 0 | AV22: 6797393.28 | AW22: 17050868.88 | AX22: 0 | AY22: 0 | AZ22: 0 | BA22: 0 | BB22: 0 | BC22: 0 | BD22: 0 | BE22: 0 | BF22: 0 | BG22: 0 | BH22: 0 | BI22: 0 | BJ22: 0 | BK22: 0 | BL22: 0 | BM22: 0 | BN22: 0 | BO22: 0 | BP22: 0 | BQ22: 23848262.16
A23: P14G | B23: Non-Residential Flexible Pricing | D23: =IFERROR(INDEX(Prop2018DistTar!Z:Z,MATCH($A23,Prop2018DistTar!$A:$A,),1),) -> 160 | E23: =IFERROR(INDEX(Prop2018DistTar!AA:AA,MATCH($A23,Prop2018DistTar!$A:$A,),1),) -> 0 | F23: =IFERROR(INDEX(Prop2018DistTar!AB:AB,MATCH($A23,Prop2018DistTar!$A:$A,),1),) -> 0 | G23: =IFERROR(INDEX(Prop2018DistTar!AC:AC,MATCH($A23,Prop2018DistTar!$A:$A,),1),) -> 0 | H23: =IFERROR(INDEX(Prop2018DistTar!AD:AD,MATCH($A23,Prop2018DistTar!$A:$A,),1),) -> 0 | I23: =IFERROR(INDEX(Prop2018DistTar!AE:AE,MATCH($A23,Prop2018DistTar!$A:$A,),1),) -> 0 | J23: =IFERROR(INDEX(Prop2018DistTar!AF:AF,MATCH($A23,Prop2018DistTar!$A:$A,),1),) -> 0 | K23: =IFERROR(INDEX(Prop2018DistTar!AG:AG,MATCH($A23,Prop2018DistTar!$A:$A,),1),) -> 0 | L23: =IFERROR(INDEX(Prop2018DistTar!AH:AH,MATCH($A23,Prop2018DistTar!$A:$A,),1),) -> 0 | M23: =IFERROR(INDEX(Prop2018DistTar!AI:AI,MATCH($A23,Prop2018DistTar!$A:$A,),1),) -> 0 | N23: =IFERROR(INDEX(Prop2018DistTar!AJ:AJ,MATCH($A23,Prop2018DistTar!$A:$A,),1),) -> 0 | O23: =IFERROR(INDEX(Prop2018DistTar!AK:AK,MATCH($A23,Prop2018DistTar!$A:$A,),1),) -> 0 | P23: =IFERROR(INDEX(Prop2018DistTar!AL:AL,MATCH($A23,Prop2018DistTar!$A:$A,),1),) -> 0 | Q23: =IFERROR(INDEX(Prop2018DistTar!AM:AM,MATCH($A23,Prop2018DistTar!$A:$A,),1),) -> 10.8 | R23: =IFERROR(INDEX(Prop2018DistTar!AN:AN,MATCH($A23,Prop2018DistTar!$A:$A,),1),) -> 3.36 | S23: =IFERROR(INDEX(Prop2018DistTar!AO:AO,MATCH($A23,Prop2018DistTar!$A:$A,),1),) -> 2.56 | T23: =IFERROR(INDEX(Prop2018DistTar!AP:AP,MATCH($A23,Prop2018DistTar!$A:$A,),1),) -> 0 | U23: =IFERROR(INDEX(Prop2018DistTar!AQ:AQ,MATCH($A23,Prop2018DistTar!$A:$A,),1),) -> 10.8 | V23: =IFERROR(INDEX(Prop2018DistTar!AR:AR,MATCH($A23,Prop2018DistTar!$A:$A,),1),) -> 3.36 | W23: =IFERROR(INDEX(Prop2018DistTar!AS:AS,MATCH($A23,Prop2018DistTar!$A:$A,),1),) -> 2.56 | Z23: 172.0833333 | AA23: 0 | AB23: 0 | AC23: 0 | AD23: 0 | AE23: 0 | AF23: 0 | AG23: 0 | AH23: 0 | AI23: 0 | AJ23: 0 | AK23: 0 | AL23: 0 | AM23: 860329.4677 | AN23: 505545.9673 | AO23: 1479176.188 | AP23: 0 | AQ23: 1414112.654 | AR23: 712103.592 | AS23: 2004319.153 | AT23: 0 | AV23: 27533.33333 | AW23: 0 | AX23: 0 | AY23: 0 | AZ23: 0 | BA23: 0 | BB23: 0 | BC23: 0 | BD23: 0 | BE23: 0 | BF23: 0 | BG23: 0 | BH23: 0 | BI23: 92915.58252 | BJ23: 16986.3445 | BK23: 37866.91041 | BL23: 0 | BM23: 152724.1667 | BN23: 23926.68069 | BO23: 51310.5703 | BP23: 0 | BQ23: 403263.5884
A24: ND2 | B24: Non-Residential Two Rate 5d | D24: =IFERROR(INDEX(Prop2018DistTar!Z:Z,MATCH($A24,Prop2018DistTar!$A:$A,),1),) -> 160 | E24: =IFERROR(INDEX(Prop2018DistTar!AA:AA,MATCH($A24,Prop2018DistTar!$A:$A,),1),) -> 0 | F24: =IFERROR(INDEX(Prop2018DistTar!AB:AB,MATCH($A24,Prop2018DistTar!$A:$A,),1),) -> 10.93 | G24: =IFERROR(INDEX(Prop2018DistTar!AC:AC,MATCH($A24,Prop2018DistTar!$A:$A,),1),) -> 0 | H24: =IFERROR(INDEX(Prop2018DistTar!AD:AD,MATCH($A24,Prop2018DistTar!$A:$A,),1),) -> 0 | I24: =IFERROR(INDEX(Prop2018DistTar!AE:AE,MATCH($A24,Prop2018DistTar!$A:$A,),1),) -> 2.45 | J24: =IFERROR(INDEX(Prop2018DistTar!AF:AF,MATCH($A24,Prop2018DistTar!$A:$A,),1),) -> 0 | K24: =IFERROR(INDEX(Prop2018DistTar!AG:AG,MATCH($A24,Prop2018DistTar!$A:$A,),1),) -> 0 | L24: =IFERROR(INDEX(Prop2018DistTar!AH:AH,MATCH($A24,Prop2018DistTar!$A:$A,),1),) -> 0 | M24: =IFERROR(INDEX(Prop2018DistTar!AI:AI,MATCH($A24,Prop2018DistTar!$A:$A,),1),) -> 0 | N24: =IFERROR(INDEX(Prop2018DistTar!AJ:AJ,MATCH($A24,Prop2018DistTar!$A:$A,),1),) -> 0 | O24: =IFERROR(INDEX(Prop2018DistTar!AK:AK,MATCH($A24,Prop2018DistTar!$A:$A,),1),) -> 0 | P24: =IFERROR(INDEX(Prop2018DistTar!AL:AL,MATCH($A24,Prop2018DistTar!$A:$A,),1),) -> 0 | Q24: =IFERROR(INDEX(Prop2018DistTar!AM:AM,MATCH($A24,Prop2018DistTar!$A:$A,),1),) -> 0 | R24: =IFERROR(INDEX(Prop2018DistTar!AN:AN,MATCH($A24,Prop2018DistTar!$A:$A,),1),) -> 0 | S24: =IFERROR(INDEX(Prop2018DistTar!AO:AO,MATCH($A24,Prop2018DistTar!$A:$A,),1),) -> 0 | T24: =IFERROR(INDEX(Prop2018DistTar!AP:AP,MATCH($A24,Prop2018DistTar!$A:$A,),1),) -> 0 | U24: =IFERROR(INDEX(Prop2018DistTar!AQ:AQ,MATCH($A24,Prop2018DistTar!$A:$A,),1),) -> 0 | V24: =IFERROR(INDEX(Prop2018DistTar!AR:AR,MATCH($A24,Prop2018DistTar!$A:$A,),1),) -> 0 | W24: =IFERROR(INDEX(Prop2018DistTar!AS:AS,MATCH($A24,Prop2018DistTar!$A:$A,),1),) -> 0 | Z24: 24220.91083 | AA24: 0 | AB24: 188135379.3 | AC24: 0 | AD24: 0 | AE24: 165439065.7 | AF24: 0 | AG24: 0 | AH24: 0 | AI24: 0 | AJ24: 0 | AK24: 0 | AL24: 0 | AM24: 0 | AN24: 0 | AO24: 0 | AP24: 0 | AQ24: 0 | AR24: 0 | AS24: 0 | AT24: 0 | AV24: 3875345.733 | AW24: 0 | AX24: 20563196.96 | AY24: 0 | AZ24: 0 | BA24: 4053257.109 | BB24: 0 | BC24: 0 | BD24: 0 | BE24: 0 | BF24: 0 | BG24: 0 | BH24: 0 | BI24: 0 | BJ24: 0 | BK24: 0 | BL24: 0 | BM24: 0 | BN24: 0 | BO24: 0 | BP24: 0 | BQ24: 28491799.8
A25: ND5 | B25: Non-Residential Interval | D25: =IFERROR(INDEX(Prop2018DistTar!Z:Z,MATCH($A25,Prop2018DistTar!$A:$A,),1),) -> 160 | E25: =IFERROR(INDEX(Prop2018DistTar!AA:AA,MATCH($A25,Prop2018DistTar!$A:$A,),1),) -> 0 | F25: =IFERROR(INDEX(Prop2018DistTar!AB:AB,MATCH($A25,Prop2018DistTar!$A:$A,),1),) -> 10.93 | G25: =IFERROR(INDEX(Prop2018DistTar!AC:AC,MATCH($A25,Prop2018DistTar!$A:$A,),1),) -> 0 | H25: =IFERROR(INDEX(Prop2018DistTar!AD:AD,MATCH($A25,Prop2018DistTar!$A:$A,),1),) -> 0 | I25: =IFERROR(INDEX(Prop2018DistTar!AE:AE,MATCH($A25,Prop2018DistTar!$A:$A,),1),) -> 2.45 | J25: =IFERROR(INDEX(Prop2018DistTar!AF:AF,MATCH($A25,Prop2018DistTar!$A:$A,),1),) -> 0 | K25: =IFERROR(INDEX(Prop2018DistTar!AG:AG,MATCH($A25,Prop2018DistTar!$A:$A,),1),) -> 0 | L25: =IFERROR(INDEX(Prop2018DistTar!AH:AH,MATCH($A25,Prop2018DistTar!$A:$A,),1),) -> 0 | M25: =IFERROR(INDEX(Prop2018DistTar!AI:AI,MATCH($A25,Prop2018DistTar!$A:$A,),1),) -> 0 | N25: =IFERROR(INDEX(Prop2018DistTar!AJ:AJ,MATCH($A25,Prop2018DistTar!$A:$A,),1),) -> 0 | O25: =IFERROR(INDEX(Prop2018DistTar!AK:AK,MATCH($A25,Prop2018DistTar!$A:$A,),1),) -> 0 | P25: =IFERROR(INDEX(Prop2018DistTar!AL:AL,MATCH($A25,Prop2018DistTar!$A:$A,),1),) -> 0 | Q25: =IFERROR(INDEX(Prop2018DistTar!AM:AM,MATCH($A25,Prop2018DistTar!$A:$A,),1),) -> 0 | R25: =IFERROR(INDEX(Prop2018DistTar!AN:AN,MATCH($A25,Prop2018DistTar!$A:$A,),1),) -> 0 | S25: =IFERROR(INDEX(Prop2018DistTar!AO:AO,MATCH($A25,Prop2018DistTar!$A:$A,),1),) -> 0 | T25: =IFERROR(INDEX(Prop2018DistTar!AP:AP,MATCH($A25,Prop2018DistTar!$A:$A,),1),) -> 0 | U25: =IFERROR(INDEX(Prop2018DistTar!AQ:AQ,MATCH($A25,Prop2018DistTar!$A:$A,),1),) -> 0 | V25: =IFERROR(INDEX(Prop2018DistTar!AR:AR,MATCH($A25,Prop2018DistTar!$A:$A,),1),) -> 0 | W25: =IFERROR(INDEX(Prop2018DistTar!AS:AS,MATCH($A25,Prop2018DistTar!$A:$A,),1),) -> 0 | Z25: 12168.26333 | AA25: 0 | AB25: 81125260.36 | AC25: 0 | AD25: 0 | AE25: 58521955.66 | AF25: 0 | AG25: 0 | AH25: 0 | AI25: 0 | AJ25: 0 | AK25: 0 | AL25: 0 | AM25: 0 | AN25: 0 | AO25: 0 | AP25: 0 | AQ25: 0 | AR25: 0 | AS25: 0 | AT25: 0 | AV25: 1946922.133 | AW25: 0 | AX25: 8866990.957 | AY25: 0 | AZ25: 0 | BA25: 1433787.914 | BB25: 0 | BC25: 0 | BD25: 0 | BE25: 0 | BF25: 0 | BG25: 0 | BH25: 0 | BI25: 0 | BJ25: 0 | BK25: 0 | BL25: 0 | BM25: 0 | BN25: 0 | BO25: 0 | BP25: 0 | BQ25: 12247701
A26: ND3 | B26: Non-Residential Two Rate 7d | D26: =IFERROR(INDEX(Prop2018DistTar!Z:Z,MATCH($A26,Prop2018DistTar!$A:$A,),1),) -> 160 | E26: =IFERROR(INDEX(Prop2018DistTar!AA:AA,MATCH($A26,Prop2018DistTar!$A:$A,),1),) -> 0 | F26: =IFERROR(INDEX(Prop2018DistTar!AB:AB,MATCH($A26,Prop2018DistTar!$A:$A,),1),) -> 9.63 | G26: =IFERROR(INDEX(Prop2018DistTar!AC:AC,MATCH($A26,Prop2018DistTar!$A:$A,),1),) -> 0 | H26: =IFERROR(INDEX(Prop2018DistTar!AD:AD,MATCH($A26,Prop2018DistTar!$A:$A,),1),) -> 0 | I26: =IFERROR(INDEX(Prop2018DistTar!AE:AE,MATCH($A26,Prop2018DistTar!$A:$A,),1),) -> 2.45 | J26: =IFERROR(INDEX(Prop2018DistTar!AF:AF,MATCH($A26,Prop2018DistTar!$A:$A,),1),) -> 0 | K26: =IFERROR(INDEX(Prop2018DistTar!AG:AG,MATCH($A26,Prop2018DistTar!$A:$A,),1),) -> 0 | L26: =IFERROR(INDEX(Prop2018DistTar!AH:AH,MATCH($A26,Prop2018DistTar!$A:$A,),1),) -> 0 | M26: =IFERROR(INDEX(Prop2018DistTar!AI:AI,MATCH($A26,Prop2018DistTar!$A:$A,),1),) -> 0 | N26: =IFERROR(INDEX(Prop2018DistTar!AJ:AJ,MATCH($A26,Prop2018DistTar!$A:$A,),1),) -> 0 | O26: =IFERROR(INDEX(Prop2018DistTar!AK:AK,MATCH($A26,Prop2018DistTar!$A:$A,),1),) -> 0 | P26: =IFERROR(INDEX(Prop2018DistTar!AL:AL,MATCH($A26,Prop2018DistTar!$A:$A,),1),) -> 0 | Q26: =IFERROR(INDEX(Prop2018DistTar!AM:AM,MATCH($A26,Prop2018DistTar!$A:$A,),1),) -> 0 | R26: =IFERROR(INDEX(Prop2018DistTar!AN:AN,MATCH($A26,Prop2018DistTar!$A:$A,),1),) -> 0 | S26: =IFERROR(INDEX(Prop2018DistTar!AO:AO,MATCH($A26,Prop2018DistTar!$A:$A,),1),) -> 0 | T26: =IFERROR(INDEX(Prop2018DistTar!AP:AP,MATCH($A26,Prop2018DistTar!$A:$A,),1),) -> 0 | U26: =IFERROR(INDEX(Prop2018DistTar!AQ:AQ,MATCH($A26,Prop2018DistTar!$A:$A,),1),) -> 0 | V26: =IFERROR(INDEX(Prop2018DistTar!AR:AR,MATCH($A26,Prop2018DistTar!$A:$A,),1),) -> 0 | W26: =IFERROR(INDEX(Prop2018DistTar!AS:AS,MATCH($A26,Prop2018DistTar!$A:$A,),1),) -> 0 | Z26: 7410.699583 | AA26: 0 | AB26: 49924813.21 | AC26: 0 | AD26: 0 | AE26: 21197310.01 | AF26: 0 | AG26: 0 | AH26: 0 | AI26: 0 | AJ26: 0 | AK26: 0 | AL26: 0 | AM26: 0 | AN26: 0 | AO26: 0 | AP26: 0 | AQ26: 0 | AR26: 0 | AS26: 0 | AT26: 0 | AV26: 1185711.933 | AW26: 0 | AX26: 4807759.512 | AY26: 0 | AZ26: 0 | BA26: 519334.0953 | BB26: 0 | BC26: 0 | BD26: 0 | BE26: 0 | BF26: 0 | BG26: 0 | BH26: 0 | BI26: 0 | BJ26: 0 | BK26: 0 | BL26: 0 | BM26: 0 | BN26: 0 | BO26: 0 | BP26: 0 | BQ26: 6512805.54
A27: NDD | B27: Non-Residential Demand | D27: =IFERROR(INDEX(Prop2018DistTar!Z:Z,MATCH($A27,Prop2018DistTar!$A:$A,),1),) -> 160 | E27: =IFERROR(INDEX(Prop2018DistTar!AA:AA,MATCH($A27,Prop2018DistTar!$A:$A,),1),) -> 3.14 | F27: =IFERROR(INDEX(Prop2018DistTar!AB:AB,MATCH($A27,Prop2018DistTar!$A:$A,),1),) -> 0 | G27: =IFERROR(INDEX(Prop2018DistTar!AC:AC,MATCH($A27,Prop2018DistTar!$A:$A,),1),) -> 0 | H27: =IFERROR(INDEX(Prop2018DistTar!AD:AD,MATCH($A27,Prop2018DistTar!$A:$A,),1),) -> 0 | I27: =IFERROR(INDEX(Prop2018DistTar!AE:AE,MATCH($A27,Prop2018DistTar!$A:$A,),1),) -> 0 | J27: =IFERROR(INDEX(Prop2018DistTar!AF:AF,MATCH($A27,Prop2018DistTar!$A:$A,),1),) -> 0 | K27: =IFERROR(INDEX(Prop2018DistTar!AG:AG,MATCH($A27,Prop2018DistTar!$A:$A,),1),) -> 0 | L27: =IFERROR(INDEX(Prop2018DistTar!AH:AH,MATCH($A27,Prop2018DistTar!$A:$A,),1),) -> 0 | M27: =IFERROR(INDEX(Prop2018DistTar!AI:AI,MATCH($A27,Prop2018DistTar!$A:$A,),1),) -> 0 | N27: =IFERROR(INDEX(Prop2018DistTar!AJ:AJ,MATCH($A27,Prop2018DistTar!$A:$A,),1),) -> 0 | O27: =IFERROR(INDEX(Prop2018DistTar!AK:AK,MATCH($A27,Prop2018DistTar!$A:$A,),1),) -> 11.79 | P27: =IFERROR(INDEX(Prop2018DistTar!AL:AL,MATCH($A27,Prop2018DistTar!$A:$A,),1),) -> 3.93 | Q27: =IFERROR(INDEX(Prop2018DistTar!AM:AM,MATCH($A27,Prop2018DistTar!$A:$A,),1),) -> 0 | R27: =IFERROR(INDEX(Prop2018DistTar!AN:AN,MATCH($A27,Prop2018DistTar!$A:$A,),1),) -> 0 | S27: =IFERROR(INDEX(Prop2018DistTar!AO:AO,MATCH($A27,Prop2018DistTar!$A:$A,),1),) -> 0 | T27: =IFERROR(INDEX(Prop2018DistTar!AP:AP,MATCH($A27,Prop2018DistTar!$A:$A,),1),) -> 0 | U27: =IFERROR(INDEX(Prop2018DistTar!AQ:AQ,MATCH($A27,Prop2018DistTar!$A:$A,),1),) -> 0 | V27: =IFERROR(INDEX(Prop2018DistTar!AR:AR,MATCH($A27,Prop2018DistTar!$A:$A,),1),) -> 0 | W27: =IFERROR(INDEX(Prop2018DistTar!AS:AS,MATCH($A27,Prop2018DistTar!$A:$A,),1),) -> 0 | Z27: 2024 | AA27: 97025660.23 | AB27: 0 | AC27: 0 | AD27: 0 | AE27: 0 | AF27: 0 | AG27: 0 | AH27: 0 | AI27: 0 | AJ27: 0 | AK27: 116975.9843 | AL27: 235374.6195 | AM27: 0 | AN27: 0 | AO27: 0 | AP27: 0 | AQ27: 0 | AR27: 0 | AS27: 0 | AT27: 0 | AV27: 323840 | AW27: 3046605.731 | AX27: 0 | AY27: 0 | AZ27: 0 | BA27: 0 | BB27: 0 | BC27: 0 | BD27: 0 | BE27: 0 | BF27: 0 | BG27: 1379146.855 | BH27: 925022.2548 | BI27: 0 | BJ27: 0 | BK27: 0 | BL27: 0 | BM27: 0 | BN27: 0 | BO27: 0 | BP27: 0 | BQ27: 5674614.841
A28: NDM | B28: Medium business | D28: =IFERROR(INDEX(Prop2018DistTar!Z:Z,MATCH($A28,Prop2018DistTar!$A:$A,),1),) -> 900 | E28: =IFERROR(INDEX(Prop2018DistTar!AA:AA,MATCH($A28,Prop2018DistTar!$A:$A,),1),) -> 0 | F28: =IFERROR(INDEX(Prop2018DistTar!AB:AB,MATCH($A28,Prop2018DistTar!$A:$A,),1),) -> 8.9 | G28: =IFERROR(INDEX(Prop2018DistTar!AC:AC,MATCH($A28,Prop2018DistTar!$A:$A,),1),) -> 0 | H28: =IFERROR(INDEX(Prop2018DistTar!AD:AD,MATCH($A28,Prop2018DistTar!$A:$A,),1),) -> 0 | I28: =IFERROR(INDEX(Prop2018DistTar!AE:AE,MATCH($A28,Prop2018DistTar!$A:$A,),1),) -> 3.55 | J28: =IFERROR(INDEX(Prop2018DistTar!AF:AF,MATCH($A28,Prop2018DistTar!$A:$A,),1),) -> 0 | K28: =IFERROR(INDEX(Prop2018DistTar!AG:AG,MATCH($A28,Prop2018DistTar!$A:$A,),1),) -> 0 | L28: =IFERROR(INDEX(Prop2018DistTar!AH:AH,MATCH($A28,Prop2018DistTar!$A:$A,),1),) -> 0 | M28: =IFERROR(INDEX(Prop2018DistTar!AI:AI,MATCH($A28,Prop2018DistTar!$A:$A,),1),) -> 0 | N28: =IFERROR(INDEX(Prop2018DistTar!AJ:AJ,MATCH($A28,Prop2018DistTar!$A:$A,),1),) -> 0 | O28: =IFERROR(INDEX(Prop2018DistTar!AK:AK,MATCH($A28,Prop2018DistTar!$A:$A,),1),) -> 0 | P28: =IFERROR(INDEX(Prop2018DistTar!AL:AL,MATCH($A28,Prop2018DistTar!$A:$A,),1),) -> 0 | Q28: =IFERROR(INDEX(Prop2018DistTar!AM:AM,MATCH($A28,Prop2018DistTar!$A:$A,),1),) -> 0 | R28: =IFERROR(INDEX(Prop2018DistTar!AN:AN,MATCH($A28,Prop2018DistTar!$A:$A,),1),) -> 0 | S28: =IFERROR(INDEX(Prop2018DistTar!AO:AO,MATCH($A28,Prop2018DistTar!$A:$A,),1),) -> 0 | T28: =IFERROR(INDEX(Prop2018DistTar!AP:AP,MATCH($A28,Prop2018DistTar!$A:$A,),1),) -> 0 | U28: =IFERROR(INDEX(Prop2018DistTar!AQ:AQ,MATCH($A28,Prop2018DistTar!$A:$A,),1),) -> 0 | V28: =IFERROR(INDEX(Prop2018DistTar!AR:AR,MATCH($A28,Prop2018DistTar!$A:$A,),1),) -> 0 | W28: =IFERROR(INDEX(Prop2018DistTar!AS:AS,MATCH($A28,Prop2018DistTar!$A:$A,),1),) -> 0 | Z28: 8279 | AA28: 0 | AB28: 638166780.6 | AC28: 0 | AD28: 0 | AE28: 460728205.4 | AF28: 0 | AG28: 0 | AH28: 0 | AI28: 0 | AJ28: 0 | AK28: 1471641.121 | AL28: 2723840.48 | AM28: 0 | AN28: 0 | AO28: 0 | AP28: 0 | AQ28: 0 | AR28: 0 | AS28: 0 | AT28: 0 | AV28: 7451100 | AW28: 0 | AX28: 56796843.48 | AY28: 0 | AZ28: 0 | BA28: 16355851.29 | BB28: 0 | BC28: 0 | BD28: 0 | BE28: 0 | BF28: 0 | BG28: 0 | BH28: 0 | BI28: 0 | BJ28: 0 | BK28: 0 | BL28: 0 | BM28: 0 | BN28: 0 | BO28: 0 | BP28: 0 | BQ28: 80603794.77
A29: PL2 | B29: Public Lighting | D29: =IFERROR(INDEX(Prop2018DistTar!Z:Z,MATCH($A29,Prop2018DistTar!$A:$A,),1),) -> 0 | E29: =IFERROR(INDEX(Prop2018DistTar!AA:AA,MATCH($A29,Prop2018DistTar!$A:$A,),1),) -> 0 | F29: =IFERROR(INDEX(Prop2018DistTar!AB:AB,MATCH($A29,Prop2018DistTar!$A:$A,),1),) -> 12.57 | G29: =IFERROR(INDEX(Prop2018DistTar!AC:AC,MATCH($A29,Prop2018DistTar!$A:$A,),1),) -> 0 | H29: =IFERROR(INDEX(Prop2018DistTar!AD:AD,MATCH($A29,Prop2018DistTar!$A:$A,),1),) -> 0 | I29: =IFERROR(INDEX(Prop2018DistTar!AE:AE,MATCH($A29,Prop2018DistTar!$A:$A,),1),) -> 3.55 | J29: =IFERROR(INDEX(Prop2018DistTar!AF:AF,MATCH($A29,Prop2018DistTar!$A:$A,),1),) -> 0 | K29: =IFERROR(INDEX(Prop2018DistTar!AG:AG,MATCH($A29,Prop2018DistTar!$A:$A,),1),) -> 0 | L29: =IFERROR(INDEX(Prop2018DistTar!AH:AH,MATCH($A29,Prop2018DistTar!$A:$A,),1),) -> 0 | M29: =IFERROR(INDEX(Prop2018DistTar!AI:AI,MATCH($A29,Prop2018DistTar!$A:$A,),1),) -> 0 | N29: =IFERROR(INDEX(Prop2018DistTar!AJ:AJ,MATCH($A29,Prop2018DistTar!$A:$A,),1),) -> 0 | O29: =IFERROR(INDEX(Prop2018DistTar!AK:AK,MATCH($A29,Prop2018DistTar!$A:$A,),1),) -> 0 | P29: =IFERROR(INDEX(Prop2018DistTar!AL:AL,MATCH($A29,Prop2018DistTar!$A:$A,),1),) -> 0 | Q29: =IFERROR(INDEX(Prop2018DistTar!AM:AM,MATCH($A29,Prop2018DistTar!$A:$A,),1),) -> 0 | R29: =IFERROR(INDEX(Prop2018DistTar!AN:AN,MATCH($A29,Prop2018DistTar!$A:$A,),1),) -> 0 | S29: =IFERROR(INDEX(Prop2018DistTar!AO:AO,MATCH($A29,Prop2018DistTar!$A:$A,),1),) -> 0 | T29: =IFERROR(INDEX(Prop2018DistTar!AP:AP,MATCH($A29,Prop2018DistTar!$A:$A,),1),) -> 0 | U29: =IFERROR(INDEX(Prop2018DistTar!AQ:AQ,MATCH($A29,Prop2018DistTar!$A:$A,),1),) -> 0 | V29: =IFERROR(INDEX(Prop2018DistTar!AR:AR,MATCH($A29,Prop2018DistTar!$A:$A,),1),) -> 0 | W29: =IFERROR(INDEX(Prop2018DistTar!AS:AS,MATCH($A29,Prop2018DistTar!$A:$A,),1),) -> 0 | Z29: 6335.330833 | AA29: 0 | AB29: 24337397.26 | AC29: 0 | AD29: 0 | AE29: 60527080.29 | AF29: 0 | AG29: 0 | AH29: 0 | AI29: 0 | AJ29: 0 | AK29: 0 | AL29: 0 | AM29: 0 | AN29: 0 | AO29: 0 | AP29: 0 | AQ29: 0 | AR29: 0 | AS29: 0 | AT29: 0 | AV29: 0 | AW29: 0 | AX29: 3059210.835 | AY29: 0 | AZ29: 0 | BA29: 2148711.35 | BB29: 0 | BC29: 0 | BD29: 0 | BE29: 0 | BF29: 0 | BG29: 0 | BH29: 0 | BI29: 0 | BJ29: 0 | BK29: 0 | BL29: 0 | BM29: 0 | BN29: 0 | BO29: 0 | BP29: 0 | BQ29: 5207922.186
A30: LLV | B30: Large low Voltage | D30: =IFERROR(INDEX(Prop2018DistTar!Z:Z,MATCH($A30,Prop2018DistTar!$A:$A,),1),) -> 7749 | E30: =IFERROR(INDEX(Prop2018DistTar!AA:AA,MATCH($A30,Prop2018DistTar!$A:$A,),1),) -> 0 | F30: =IFERROR(INDEX(Prop2018DistTar!AB:AB,MATCH($A30,Prop2018DistTar!$A:$A,),1),) -> 3.02 | G30: =IFERROR(INDEX(Prop2018DistTar!AC:AC,MATCH($A30,Prop2018DistTar!$A:$A,),1),) -> 0 | H30: =IFERROR(INDEX(Prop2018DistTar!AD:AD,MATCH($A30,Prop2018DistTar!$A:$A,),1),) -> 0 | I30: =IFERROR(INDEX(Prop2018DistTar!AE:AE,MATCH($A30,Prop2018DistTar!$A:$A,),1),) -> 1.47 | J30: =IFERROR(INDEX(Prop2018DistTar!AF:AF,MATCH($A30,Prop2018DistTar!$A:$A,),1),) -> 0 | K30: =IFERROR(INDEX(Prop2018DistTar!AG:AG,MATCH($A30,Prop2018DistTar!$A:$A,),1),) -> 0 | L30: =IFERROR(INDEX(Prop2018DistTar!AH:AH,MATCH($A30,Prop2018DistTar!$A:$A,),1),) -> 0 | M30: =IFERROR(INDEX(Prop2018DistTar!AI:AI,MATCH($A30,Prop2018DistTar!$A:$A,),1),) -> 85.16 | N30: =IFERROR(INDEX(Prop2018DistTar!AJ:AJ,MATCH($A30,Prop2018DistTar!$A:$A,),1),) -> 0 | O30: =IFERROR(INDEX(Prop2018DistTar!AK:AK,MATCH($A30,Prop2018DistTar!$A:$A,),1),) -> 0 | P30: =IFERROR(INDEX(Prop2018DistTar!AL:AL,MATCH($A30,Prop2018DistTar!$A:$A,),1),) -> 0 | Q30: =IFERROR(INDEX(Prop2018DistTar!AM:AM,MATCH($A30,Prop2018DistTar!$A:$A,),1),) -> 0 | R30: =IFERROR(INDEX(Prop2018DistTar!AN:AN,MATCH($A30,Prop2018DistTar!$A:$A,),1),) -> 0 | S30: =IFERROR(INDEX(Prop2018DistTar!AO:AO,MATCH($A30,Prop2018DistTar!$A:$A,),1),) -> 0 | T30: =IFERROR(INDEX(Prop2018DistTar!AP:AP,MATCH($A30,Prop2018DistTar!$A:$A,),1),) -> 0 | U30: =IFERROR(INDEX(Prop2018DistTar!AQ:AQ,MATCH($A30,Prop2018DistTar!$A:$A,),1),) -> 0 | V30: =IFERROR(INDEX(Prop2018DistTar!AR:AR,MATCH($A30,Prop2018DistTar!$A:$A,),1),) -> 0 | W30: =IFERROR(INDEX(Prop2018DistTar!AS:AS,MATCH($A30,Prop2018DistTar!$A:$A,),1),) -> 0 | Z30: 2676.385833 | AA30: 0 | AB30: 1374197063 | AC30: 0 | AD30: 0 | AE30: 1036575744 | AF30: 0 | AG30: 0 | AH30: 0 | AI30: 845968.7514 | AJ30: 0 | AK30: 0 | AL30: 0 | AM30: 0 | AN30: 0 | AO30: 0 | AP30: 0 | AQ30: 0 | AR30: 0 | AS30: 0 | AT30: 0 | AV30: 20739313.82 | AW30: 0 | AX30: 41500751.31 | AY30: 0 | AZ30: 0 | BA30: 15237663.43 | BB30: 0 | BC30: 0 | BD30: 0 | BE30: 72042698.87 | BF30: 0 | BG30: 0 | BH30: 0 | BI30: 0 | BJ30: 0 | BK30: 0 | BL30: 0 | BM30: 0 | BN30: 0 | BO30: 0 | BP30: 0 | BQ30: 149520427.4
A31: DL | B31: Large Low Voltage Demand | D31: =IFERROR(INDEX(Prop2018DistTar!Z:Z,MATCH($A31,Prop2018DistTar!$A:$A,),1),) -> 0 | E31: =IFERROR(INDEX(Prop2018DistTar!AA:AA,MATCH($A31,Prop2018DistTar!$A:$A,),1),) -> 0 | F31: =IFERROR(INDEX(Prop2018DistTar!AB:AB,MATCH($A31,Prop2018DistTar!$A:$A,),1),) -> 0 | G31: =IFERROR(INDEX(Prop2018DistTar!AC:AC,MATCH($A31,Prop2018DistTar!$A:$A,),1),) -> 0 | H31: =IFERROR(INDEX(Prop2018DistTar!AD:AD,MATCH($A31,Prop2018DistTar!$A:$A,),1),) -> 0 | I31: =IFERROR(INDEX(Prop2018DistTar!AE:AE,MATCH($A31,Prop2018DistTar!$A:$A,),1),) -> 0 | J31: =IFERROR(INDEX(Prop2018DistTar!AF:AF,MATCH($A31,Prop2018DistTar!$A:$A,),1),) -> 0 | K31: =IFERROR(INDEX(Prop2018DistTar!AG:AG,MATCH($A31,Prop2018DistTar!$A:$A,),1),) -> 0 | L31: =IFERROR(INDEX(Prop2018DistTar!AH:AH,MATCH($A31,Prop2018DistTar!$A:$A,),1),) -> 0 | M31: =IFERROR(INDEX(Prop2018DistTar!AI:AI,MATCH($A31,Prop2018DistTar!$A:$A,),1),) -> 0 | N31: =IFERROR(INDEX(Prop2018DistTar!AJ:AJ,MATCH($A31,Prop2018DistTar!$A:$A,),1),) -> 0 | O31: =IFERROR(INDEX(Prop2018DistTar!AK:AK,MATCH($A31,Prop2018DistTar!$A:$A,),1),) -> 0 | P31: =IFERROR(INDEX(Prop2018DistTar!AL:AL,MATCH($A31,Prop2018DistTar!$A:$A,),1),) -> 0 | Q31: =IFERROR(INDEX(Prop2018DistTar!AM:AM,MATCH($A31,Prop2018DistTar!$A:$A,),1),) -> 0 | R31: =IFERROR(INDEX(Prop2018DistTar!AN:AN,MATCH($A31,Prop2018DistTar!$A:$A,),1),) -> 0 | S31: =IFERROR(INDEX(Prop2018DistTar!AO:AO,MATCH($A31,Prop2018DistTar!$A:$A,),1),) -> 0 | T31: =IFERROR(INDEX(Prop2018DistTar!AP:AP,MATCH($A31,Prop2018DistTar!$A:$A,),1),) -> 0 | U31: =IFERROR(INDEX(Prop2018DistTar!AQ:AQ,MATCH($A31,Prop2018DistTar!$A:$A,),1),) -> 0 | V31: =IFERROR(INDEX(Prop2018DistTar!AR:AR,MATCH($A31,Prop2018DistTar!$A:$A,),1),) -> 0 | W31: =IFERROR(INDEX(Prop2018DistTar!AS:AS,MATCH($A31,Prop2018DistTar!$A:$A,),1),) -> 0 | Z31: 0 | AA31: 0 | AB31: 0 | AC31: 0 | AD31: 0 | AE31: 0 | AF31: 0 | AG31: 0 | AH31: 0 | AI31: 0 | AJ31: 0 | AK31: 0 | AL31: 0 | AM31: 0 | AN31: 0 | AO31: 0 | AP31: 0 | AQ31: 0 | AR31: 0 | AS31: 0 | AT31: 0 | AV31: 0 | AW31: 0 | AX31: 0 | AY31: 0 | AZ31: 0 | BA31: 0 | BB31: 0 | BC31: 0 | BD31: 0 | BE31: 0 | BF31: 0 | BG31: 0 | BH31: 0 | BI31: 0 | BJ31: 0 | BK31: 0 | BL31: 0 | BM31: 0 | BN31: 0 | BO31: 0 | BP31: 0 | BQ31: 0
A32: DLA | B32: Large Low Voltage Demand A | D32: =IFERROR(INDEX(Prop2018DistTar!Z:Z,MATCH($A32,Prop2018DistTar!$A:$A,),1),) -> 0 | E32: =IFERROR(INDEX(Prop2018DistTar!AA:AA,MATCH($A32,Prop2018DistTar!$A:$A,),1),) -> 0 | F32: =IFERROR(INDEX(Prop2018DistTar!AB:AB,MATCH($A32,Prop2018DistTar!$A:$A,),1),) -> 0 | G32: =IFERROR(INDEX(Prop2018DistTar!AC:AC,MATCH($A32,Prop2018DistTar!$A:$A,),1),) -> 0 | H32: =IFERROR(INDEX(Prop2018DistTar!AD:AD,MATCH($A32,Prop2018DistTar!$A:$A,),1),) -> 0 | I32: =IFERROR(INDEX(Prop2018DistTar!AE:AE,MATCH($A32,Prop2018DistTar!$A:$A,),1),) -> 0 | J32: =IFERROR(INDEX(Prop2018DistTar!AF:AF,MATCH($A32,Prop2018DistTar!$A:$A,),1),) -> 0 | K32: =IFERROR(INDEX(Prop2018DistTar!AG:AG,MATCH($A32,Prop2018DistTar!$A:$A,),1),) -> 0 | L32: =IFERROR(INDEX(Prop2018DistTar!AH:AH,MATCH($A32,Prop2018DistTar!$A:$A,),1),) -> 0 | M32: =IFERROR(INDEX(Prop2018DistTar!AI:AI,MATCH($A32,Prop2018DistTar!$A:$A,),1),) -> 0 | N32: =IFERROR(INDEX(Prop2018DistTar!AJ:AJ,MATCH($A32,Prop2018DistTar!$A:$A,),1),) -> 0 | O32: =IFERROR(INDEX(Prop2018DistTar!AK:AK,MATCH($A32,Prop2018DistTar!$A:$A,),1),) -> 0 | P32: =IFERROR(INDEX(Prop2018DistTar!AL:AL,MATCH($A32,Prop2018DistTar!$A:$A,),1),) -> 0 | Q32: =IFERROR(INDEX(Prop2018DistTar!AM:AM,MATCH($A32,Prop2018DistTar!$A:$A,),1),) -> 0 | R32: =IFERROR(INDEX(Prop2018DistTar!AN:AN,MATCH($A32,Prop2018DistTar!$A:$A,),1),) -> 0 | S32: =IFERROR(INDEX(Prop2018DistTar!AO:AO,MATCH($A32,Prop2018DistTar!$A:$A,),1),) -> 0 | T32: =IFERROR(INDEX(Prop2018DistTar!AP:AP,MATCH($A32,Prop2018DistTar!$A:$A,),1),) -> 0 | U32: =IFERROR(INDEX(Prop2018DistTar!AQ:AQ,MATCH($A32,Prop2018DistTar!$A:$A,),1),) -> 0 | V32: =IFERROR(INDEX(Prop2018DistTar!AR:AR,MATCH($A32,Prop2018DistTar!$A:$A,),1),) -> 0 | W32: =IFERROR(INDEX(Prop2018DistTar!AS:AS,MATCH($A32,Prop2018DistTar!$A:$A,),1),) -> 0 | Z32: 0 | AA32: 0 | AB32: 0 | AC32: 0 | AD32: 0 | AE32: 0 | AF32: 0 | AG32: 0 | AH32: 0 | AI32: 0 | AJ32: 0 | AK32: 0 | AL32: 0 | AM32: 0 | AN32: 0 | AO32: 0 | AP32: 0 | AQ32: 0 | AR32: 0 | AS32: 0 | AT32: 0 | AV32: 0 | AW32: 0 | AX32: 0 | AY32: 0 | AZ32: 0 | BA32: 0 | BB32: 0 | BC32: 0 | BD32: 0 | BE32: 0 | BF32: 0 | BG32: 0 | BH32: 0 | BI32: 0 | BJ32: 0 | BK32: 0 | BL32: 0 | BM32: 0 | BN32: 0 | BO32: 0 | BP32: 0 | BQ32: 0
A33: DLC | B33: Large Low Voltage Demand C | D33: =IFERROR(INDEX(Prop2018DistTar!Z:Z,MATCH($A33,Prop2018DistTar!$A:$A,),1),) -> 0 | E33: =IFERROR(INDEX(Prop2018DistTar!AA:AA,MATCH($A33,Prop2018DistTar!$A:$A,),1),) -> 0 | F33: =IFERROR(INDEX(Prop2018DistTar!AB:AB,MATCH($A33,Prop2018DistTar!$A:$A,),1),) -> 0 | G33: =IFERROR(INDEX(Prop2018DistTar!AC:AC,MATCH($A33,Prop2018DistTar!$A:$A,),1),) -> 0 | H33: =IFERROR(INDEX(Prop2018DistTar!AD:AD,MATCH($A33,Prop2018DistTar!$A:$A,),1),) -> 0 | I33: =IFERROR(INDEX(Prop2018DistTar!AE:AE,MATCH($A33,Prop2018DistTar!$A:$A,),1),) -> 0 | J33: =IFERROR(INDEX(Prop2018DistTar!AF:AF,MATCH($A33,Prop2018DistTar!$A:$A,),1),) -> 0 | K33: =IFERROR(INDEX(Prop2018DistTar!AG:AG,MATCH($A33,Prop2018DistTar!$A:$A,),1),) -> 0 | L33: =IFERROR(INDEX(Prop2018DistTar!AH:AH,MATCH($A33,Prop2018DistTar!$A:$A,),1),) -> 0 | M33: =IFERROR(INDEX(Prop2018DistTar!AI:AI,MATCH($A33,Prop2018DistTar!$A:$A,),1),) -> 0 | N33: =IFERROR(INDEX(Prop2018DistTar!AJ:AJ,MATCH($A33,Prop2018DistTar!$A:$A,),1),) -> 0 | O33: =IFERROR(INDEX(Prop2018DistTar!AK:AK,MATCH($A33,Prop2018DistTar!$A:$A,),1),) -> 0 | P33: =IFERROR(INDEX(Prop2018DistTar!AL:AL,MATCH($A33,Prop2018DistTar!$A:$A,),1),) -> 0 | Q33: =IFERROR(INDEX(Prop2018DistTar!AM:AM,MATCH($A33,Prop2018DistTar!$A:$A,),1),) -> 0 | R33: =IFERROR(INDEX(Prop2018DistTar!AN:AN,MATCH($A33,Prop2018DistTar!$A:$A,),1),) -> 0 | S33: =IFERROR(INDEX(Prop2018DistTar!AO:AO,MATCH($A33,Prop2018DistTar!$A:$A,),1),) -> 0 | T33: =IFERROR(INDEX(Prop2018DistTar!AP:AP,MATCH($A33,Prop2018DistTar!$A:$A,),1),) -> 0 | U33: =IFERROR(INDEX(Prop2018DistTar!AQ:AQ,MATCH($A33,Prop2018DistTar!$A:$A,),1),) -> 0 | V33: =IFERROR(INDEX(Prop2018DistTar!AR:AR,MATCH($A33,Prop2018DistTar!$A:$A,),1),) -> 0 | W33: =IFERROR(INDEX(Prop2018DistTar!AS:AS,MATCH($A33,Prop2018DistTar!$A:$A,),1),) -> 0 | Z33: 0 | AA33: 0 | AB33: 0 | AC33: 0 | AD33: 0 | AE33: 0 | AF33: 0 | AG33: 0 | AH33: 0 | AI33: 0 | AJ33: 0 | AK33: 0 | AL33: 0 | AM33: 0 | AN33: 0 | AO33: 0 | AP33: 0 | AQ33: 0 | AR33: 0 | AS33: 0 | AT33: 0 | AV33: 0 | AW33: 0 | AX33: 0 | AY33: 0 | AZ33: 0 | BA33: 0 | BB33: 0 | BC33: 0 | BD33: 0 | BE33: 0 | BF33: 0 | BG33: 0 | BH33: 0 | BI33: 0 | BJ33: 0 | BK33: 0 | BL33: 0 | BM33: 0 | BN33: 0 | BO33: 0 | BP33: 0 | BQ33: 0
A34: DLS | B34: Large Low Voltage Demand S | D34: =IFERROR(INDEX(Prop2018DistTar!Z:Z,MATCH($A34,Prop2018DistTar!$A:$A,),1),) -> 0 | E34: =IFERROR(INDEX(Prop2018DistTar!AA:AA,MATCH($A34,Prop2018DistTar!$A:$A,),1),) -> 0 | F34: =IFERROR(INDEX(Prop2018DistTar!AB:AB,MATCH($A34,Prop2018DistTar!$A:$A,),1),) -> 0 | G34: =IFERROR(INDEX(Prop2018DistTar!AC:AC,MATCH($A34,Prop2018DistTar!$A:$A,),1),) -> 0 | H34: =IFERROR(INDEX(Prop2018DistTar!AD:AD,MATCH($A34,Prop2018DistTar!$A:$A,),1),) -> 0 | I34: =IFERROR(INDEX(Prop2018DistTar!AE:AE,MATCH($A34,Prop2018DistTar!$A:$A,),1),) -> 0 | J34: =IFERROR(INDEX(Prop2018DistTar!AF:AF,MATCH($A34,Prop2018DistTar!$A:$A,),1),) -> 0 | K34: =IFERROR(INDEX(Prop2018DistTar!AG:AG,MATCH($A34,Prop2018DistTar!$A:$A,),1),) -> 0 | L34: =IFERROR(INDEX(Prop2018DistTar!AH:AH,MATCH($A34,Prop2018DistTar!$A:$A,),1),) -> 0 | M34: =IFERROR(INDEX(Prop2018DistTar!AI:AI,MATCH($A34,Prop2018DistTar!$A:$A,),1),) -> 0 | N34: =IFERROR(INDEX(Prop2018DistTar!AJ:AJ,MATCH($A34,Prop2018DistTar!$A:$A,),1),) -> 0 | O34: =IFERROR(INDEX(Prop2018DistTar!AK:AK,MATCH($A34,Prop2018DistTar!$A:$A,),1),) -> 0 | P34: =IFERROR(INDEX(Prop2018DistTar!AL:AL,MATCH($A34,Prop2018DistTar!$A:$A,),1),) -> 0 | Q34: =IFERROR(INDEX(Prop2018DistTar!AM:AM,MATCH($A34,Prop2018DistTar!$A:$A,),1),) -> 0 | R34: =IFERROR(INDEX(Prop2018DistTar!AN:AN,MATCH($A34,Prop2018DistTar!$A:$A,),1),) -> 0 | S34: =IFERROR(INDEX(Prop2018DistTar!AO:AO,MATCH($A34,Prop2018DistTar!$A:$A,),1),) -> 0 | T34: =IFERROR(INDEX(Prop2018DistTar!AP:AP,MATCH($A34,Prop2018DistTar!$A:$A,),1),) -> 0 | U34: =IFERROR(INDEX(Prop2018DistTar!AQ:AQ,MATCH($A34,Prop2018DistTar!$A:$A,),1),) -> 0 | V34: =IFERROR(INDEX(Prop2018DistTar!AR:AR,MATCH($A34,Prop2018DistTar!$A:$A,),1),) -> 0 | W34: =IFERROR(INDEX(Prop2018DistTar!AS:AS,MATCH($A34,Prop2018DistTar!$A:$A,),1),) -> 0 | Z34: 0 | AA34: 0 | AB34: 0 | AC34: 0 | AD34: 0 | AE34: 0 | AF34: 0 | AG34: 0 | AH34: 0 | AI34: 0 | AJ34: 0 | AK34: 0 | AL34: 0 | AM34: 0 | AN34: 0 | AO34: 0 | AP34: 0 | AQ34: 0 | AR34: 0 | AS34: 0 | AT34: 0 | AV34: 0 | AW34: 0 | AX34: 0 | AY34: 0 | AZ34: 0 | BA34: 0 | BB34: 0 | BC34: 0 | BD34: 0 | BE34: 0 | BF34: 0 | BG34: 0 | BH34: 0 | BI34: 0 | BJ34: 0 | BK34: 0 | BL34: 0 | BM34: 0 | BN34: 0 | BO34: 0 | BP34: 0 | BQ34: 0
A35: DLDK | B35: Large Low Voltage Demand Docklands | D35: =IFERROR(INDEX(Prop2018DistTar!Z:Z,MATCH($A35,Prop2018DistTar!$A:$A,),1),) -> 0 | E35: =IFERROR(INDEX(Prop2018DistTar!AA:AA,MATCH($A35,Prop2018DistTar!$A:$A,),1),) -> 0 | F35: =IFERROR(INDEX(Prop2018DistTar!AB:AB,MATCH($A35,Prop2018DistTar!$A:$A,),1),) -> 0 | G35: =IFERROR(INDEX(Prop2018DistTar!AC:AC,MATCH($A35,Prop2018DistTar!$A:$A,),1),) -> 0 | H35: =IFERROR(INDEX(Prop2018DistTar!AD:AD,MATCH($A35,Prop2018DistTar!$A:$A,),1),) -> 0 | I35: =IFERROR(INDEX(Prop2018DistTar!AE:AE,MATCH($A35,Prop2018DistTar!$A:$A,),1),) -> 0 | J35: =IFERROR(INDEX(Prop2018DistTar!AF:AF,MATCH($A35,Prop2018DistTar!$A:$A,),1),) -> 0 | K35: =IFERROR(INDEX(Prop2018DistTar!AG:AG,MATCH($A35,Prop2018DistTar!$A:$A,),1),) -> 0 | L35: =IFERROR(INDEX(Prop2018DistTar!AH:AH,MATCH($A35,Prop2018DistTar!$A:$A,),1),) -> 0 | M35: =IFERROR(INDEX(Prop2018DistTar!AI:AI,MATCH($A35,Prop2018DistTar!$A:$A,),1),) -> 0 | N35: =IFERROR(INDEX(Prop2018DistTar!AJ:AJ,MATCH($A35,Prop2018DistTar!$A:$A,),1),) -> 0 | O35: =IFERROR(INDEX(Prop2018DistTar!AK:AK,MATCH($A35,Prop2018DistTar!$A:$A,),1),) -> 0 | P35: =IFERROR(INDEX(Prop2018DistTar!AL:AL,MATCH($A35,Prop2018DistTar!$A:$A,),1),) -> 0 | Q35: =IFERROR(INDEX(Prop2018DistTar!AM:AM,MATCH($A35,Prop2018DistTar!$A:$A,),1),) -> 0 | R35: =IFERROR(INDEX(Prop2018DistTar!AN:AN,MATCH($A35,Prop2018DistTar!$A:$A,),1),) -> 0 | S35: =IFERROR(INDEX(Prop2018DistTar!AO:AO,MATCH($A35,Prop2018DistTar!$A:$A,),1),) -> 0 | T35: =IFERROR(INDEX(Prop2018DistTar!AP:AP,MATCH($A35,Prop2018DistTar!$A:$A,),1),) -> 0 | U35: =IFERROR(INDEX(Prop2018DistTar!AQ:AQ,MATCH($A35,Prop2018DistTar!$A:$A,),1),) -> 0 | V35: =IFERROR(INDEX(Prop2018DistTar!AR:AR,MATCH($A35,Prop2018DistTar!$A:$A,),1),) -> 0 | W35: =IFERROR(INDEX(Prop2018DistTar!AS:AS,MATCH($A35,Prop2018DistTar!$A:$A,),1),) -> 0 | Z35: 0 | AA35: 0 | AB35: 0 | AC35: 0 | AD35: 0 | AE35: 0 | AF35: 0 | AG35: 0 | AH35: 0 | AI35: 0 | AJ35: 0 | AK35: 0 | AL35: 0 | AM35: 0 | AN35: 0 | AO35: 0 | AP35: 0 | AQ35: 0 | AR35: 0 | AS35: 0 | AT35: 0 | AV35: 0 | AW35: 0 | AX35: 0 | AY35: 0 | AZ35: 0 | BA35: 0 | BB35: 0 | BC35: 0 | BD35: 0 | BE35: 0 | BF35: 0 | BG35: 0 | BH35: 0 | BI35: 0 | BJ35: 0 | BK35: 0 | BL35: 0 | BM35: 0 | BN35: 0 | BO35: 0 | BP35: 0 | BQ35: 0
A36: DLCXX | B36: Large Low Voltage Demand CXX | D36: =IFERROR(INDEX(Prop2018DistTar!Z:Z,MATCH($A36,Prop2018DistTar!$A:$A,),1),) -> 0 | E36: =IFERROR(INDEX(Prop2018DistTar!AA:AA,MATCH($A36,Prop2018DistTar!$A:$A,),1),) -> 0 | F36: =IFERROR(INDEX(Prop2018DistTar!AB:AB,MATCH($A36,Prop2018DistTar!$A:$A,),1),) -> 0 | G36: =IFERROR(INDEX(Prop2018DistTar!AC:AC,MATCH($A36,Prop2018DistTar!$A:$A,),1),) -> 0 | H36: =IFERROR(INDEX(Prop2018DistTar!AD:AD,MATCH($A36,Prop2018DistTar!$A:$A,),1),) -> 0 | I36: =IFERROR(INDEX(Prop2018DistTar!AE:AE,MATCH($A36,Prop2018DistTar!$A:$A,),1),) -> 0 | J36: =IFERROR(INDEX(Prop2018DistTar!AF:AF,MATCH($A36,Prop2018DistTar!$A:$A,),1),) -> 0 | K36: =IFERROR(INDEX(Prop2018DistTar!AG:AG,MATCH($A36,Prop2018DistTar!$A:$A,),1),) -> 0 | L36: =IFERROR(INDEX(Prop2018DistTar!AH:AH,MATCH($A36,Prop2018DistTar!$A:$A,),1),) -> 0 | M36: =IFERROR(INDEX(Prop2018DistTar!AI:AI,MATCH($A36,Prop2018DistTar!$A:$A,),1),) -> 0 | N36: =IFERROR(INDEX(Prop2018DistTar!AJ:AJ,MATCH($A36,Prop2018DistTar!$A:$A,),1),) -> 0 | O36: =IFERROR(INDEX(Prop2018DistTar!AK:AK,MATCH($A36,Prop2018DistTar!$A:$A,),1),) -> 0 | P36: =IFERROR(INDEX(Prop2018DistTar!AL:AL,MATCH($A36,Prop2018DistTar!$A:$A,),1),) -> 0 | Q36: =IFERROR(INDEX(Prop2018DistTar!AM:AM,MATCH($A36,Prop2018DistTar!$A:$A,),1),) -> 0 | R36: =IFERROR(INDEX(Prop2018DistTar!AN:AN,MATCH($A36,Prop2018DistTar!$A:$A,),1),) -> 0 | S36: =IFERROR(INDEX(Prop2018DistTar!AO:AO,MATCH($A36,Prop2018DistTar!$A:$A,),1),) -> 0 | T36: =IFERROR(INDEX(Prop2018DistTar!AP:AP,MATCH($A36,Prop2018DistTar!$A:$A,),1),) -> 0 | U36: =IFERROR(INDEX(Prop2018DistTar!AQ:AQ,MATCH($A36,Prop2018DistTar!$A:$A,),1),) -> 0 | V36: =IFERROR(INDEX(Prop2018DistTar!AR:AR,MATCH($A36,Prop2018DistTar!$A:$A,),1),) -> 0 | W36: =IFERROR(INDEX(Prop2018DistTar!AS:AS,MATCH($A36,Prop2018DistTar!$A:$A,),1),) -> 0 | Z36: 0 | AA36: 0 | AB36: 0 | AC36: 0 | AD36: 0 | AE36: 0 | AF36: 0 | AG36: 0 | AH36: 0 | AI36: 0 | AJ36: 0 | AK36: 0 | AL36: 0 | AM36: 0 | AN36: 0 | AO36: 0 | AP36: 0 | AQ36: 0 | AR36: 0 | AS36: 0 | AT36: 0 | AV36: 0 | AW36: 0 | AX36: 0 | AY36: 0 | AZ36: 0 | BA36: 0 | BB36: 0 | BC36: 0 | BD36: 0 | BE36: 0 | BF36: 0 | BG36: 0 | BH36: 0 | BI36: 0 | BJ36: 0 | BK36: 0 | BL36: 0 | BM36: 0 | BN36: 0 | BO36: 0 | BP36: 0 | BQ36: 0
A37: DLR | B37: Large Low Voltage Demand EN.R | D37: =IFERROR(INDEX(Prop2018DistTar!Z:Z,MATCH($A37,Prop2018DistTar!$A:$A,),1),) -> 0 | E37: =IFERROR(INDEX(Prop2018DistTar!AA:AA,MATCH($A37,Prop2018DistTar!$A:$A,),1),) -> 0 | F37: =IFERROR(INDEX(Prop2018DistTar!AB:AB,MATCH($A37,Prop2018DistTar!$A:$A,),1),) -> 0 | G37: =IFERROR(INDEX(Prop2018DistTar!AC:AC,MATCH($A37,Prop2018DistTar!$A:$A,),1),) -> 0 | H37: =IFERROR(INDEX(Prop2018DistTar!AD:AD,MATCH($A37,Prop2018DistTar!$A:$A,),1),) -> 0 | I37: =IFERROR(INDEX(Prop2018DistTar!AE:AE,MATCH($A37,Prop2018DistTar!$A:$A,),1),) -> 0 | J37: =IFERROR(INDEX(Prop2018DistTar!AF:AF,MATCH($A37,Prop2018DistTar!$A:$A,),1),) -> 0 | K37: =IFERROR(INDEX(Prop2018DistTar!AG:AG,MATCH($A37,Prop2018DistTar!$A:$A,),1),) -> 0 | L37: =IFERROR(INDEX(Prop2018DistTar!AH:AH,MATCH($A37,Prop2018DistTar!$A:$A,),1),) -> 0 | M37: =IFERROR(INDEX(Prop2018DistTar!AI:AI,MATCH($A37,Prop2018DistTar!$A:$A,),1),) -> 0 | N37: =IFERROR(INDEX(Prop2018DistTar!AJ:AJ,MATCH($A37,Prop2018DistTar!$A:$A,),1),) -> 0 | O37: =IFERROR(INDEX(Prop2018DistTar!AK:AK,MATCH($A37,Prop2018DistTar!$A:$A,),1),) -> 0 | P37: =IFERROR(INDEX(Prop2018DistTar!AL:AL,MATCH($A37,Prop2018DistTar!$A:$A,),1),) -> 0 | Q37: =IFERROR(INDEX(Prop2018DistTar!AM:AM,MATCH($A37,Prop2018DistTar!$A:$A,),1),) -> 0 | R37: =IFERROR(INDEX(Prop2018DistTar!AN:AN,MATCH($A37,Prop2018DistTar!$A:$A,),1),) -> 0 | S37: =IFERROR(INDEX(Prop2018DistTar!AO:AO,MATCH($A37,Prop2018DistTar!$A:$A,),1),) -> 0 | T37: =IFERROR(INDEX(Prop2018DistTar!AP:AP,MATCH($A37,Prop2018DistTar!$A:$A,),1),) -> 0 | U37: =IFERROR(INDEX(Prop2018DistTar!AQ:AQ,MATCH($A37,Prop2018DistTar!$A:$A,),1),) -> 0 | V37: =IFERROR(INDEX(Prop2018DistTar!AR:AR,MATCH($A37,Prop2018DistTar!$A:$A,),1),) -> 0 | W37: =IFERROR(INDEX(Prop2018DistTar!AS:AS,MATCH($A37,Prop2018DistTar!$A:$A,),1),) -> 0 | Z37: 0 | AA37: 0 | AB37: 0 | AC37: 0 | AD37: 0 | AE37: 0 | AF37: 0 | AG37: 0 | AH37: 0 | AI37: 0 | AJ37: 0 | AK37: 0 | AL37: 0 | AM37: 0 | AN37: 0 | AO37: 0 | AP37: 0 | AQ37: 0 | AR37: 0 | AS37: 0 | AT37: 0 | AV37: 0 | AW37: 0 | AX37: 0 | AY37: 0 | AZ37: 0 | BA37: 0 | BB37: 0 | BC37: 0 | BD37: 0 | BE37: 0 | BF37: 0 | BG37: 0 | BH37: 0 | BI37: 0 | BJ37: 0 | BK37: 0 | BL37: 0 | BM37: 0 | BN37: 0 | BO37: 0 | BP37: 0 | BQ37: 0
A38: DLNR | B38: Large Low Voltage Demand EN.NR | D38: =IFERROR(INDEX(Prop2018DistTar!Z:Z,MATCH($A38,Prop2018DistTar!$A:$A,),1),) -> 0 | E38: =IFERROR(INDEX(Prop2018DistTar!AA:AA,MATCH($A38,Prop2018DistTar!$A:$A,),1),) -> 0 | F38: =IFERROR(INDEX(Prop2018DistTar!AB:AB,MATCH($A38,Prop2018DistTar!$A:$A,),1),) -> 0 | G38: =IFERROR(INDEX(Prop2018DistTar!AC:AC,MATCH($A38,Prop2018DistTar!$A:$A,),1),) -> 0 | H38: =IFERROR(INDEX(Prop2018DistTar!AD:AD,MATCH($A38,Prop2018DistTar!$A:$A,),1),) -> 0 | I38: =IFERROR(INDEX(Prop2018DistTar!AE:AE,MATCH($A38,Prop2018DistTar!$A:$A,),1),) -> 0 | J38: =IFERROR(INDEX(Prop2018DistTar!AF:AF,MATCH($A38,Prop2018DistTar!$A:$A,),1),) -> 0 | K38: =IFERROR(INDEX(Prop2018DistTar!AG:AG,MATCH($A38,Prop2018DistTar!$A:$A,),1),) -> 0 | L38: =IFERROR(INDEX(Prop2018DistTar!AH:AH,MATCH($A38,Prop2018DistTar!$A:$A,),1),) -> 0 | M38: =IFERROR(INDEX(Prop2018DistTar!AI:AI,MATCH($A38,Prop2018DistTar!$A:$A,),1),) -> 0 | N38: =IFERROR(INDEX(Prop2018DistTar!AJ:AJ,MATCH($A38,Prop2018DistTar!$A:$A,),1),) -> 0 | O38: =IFERROR(INDEX(Prop2018DistTar!AK:AK,MATCH($A38,Prop2018DistTar!$A:$A,),1),) -> 0 | P38: =IFERROR(INDEX(Prop2018DistTar!AL:AL,MATCH($A38,Prop2018DistTar!$A:$A,),1),) -> 0 | Q38: =IFERROR(INDEX(Prop2018DistTar!AM:AM,MATCH($A38,Prop2018DistTar!$A:$A,),1),) -> 0 | R38: =IFERROR(INDEX(Prop2018DistTar!AN:AN,MATCH($A38,Prop2018DistTar!$A:$A,),1),) -> 0 | S38: =IFERROR(INDEX(Prop2018DistTar!AO:AO,MATCH($A38,Prop2018DistTar!$A:$A,),1),) -> 0 | T38: =IFERROR(INDEX(Prop2018DistTar!AP:AP,MATCH($A38,Prop2018DistTar!$A:$A,),1),) -> 0 | U38: =IFERROR(INDEX(Prop2018DistTar!AQ:AQ,MATCH($A38,Prop2018DistTar!$A:$A,),1),) -> 0 | V38: =IFERROR(INDEX(Prop2018DistTar!AR:AR,MATCH($A38,Prop2018DistTar!$A:$A,),1),) -> 0 | W38: =IFERROR(INDEX(Prop2018DistTar!AS:AS,MATCH($A38,Prop2018DistTar!$A:$A,),1),) -> 0 | Z38: 0 | AA38: 0 | AB38: 0 | AC38: 0 | AD38: 0 | AE38: 0 | AF38: 0 | AG38: 0 | AH38: 0 | AI38: 0 | AJ38: 0 | AK38: 0 | AL38: 0 | AM38: 0 | AN38: 0 | AO38: 0 | AP38: 0 | AQ38: 0 | AR38: 0 | AS38: 0 | AT38: 0 | AV38: 0 | AW38: 0 | AX38: 0 | AY38: 0 | AZ38: 0 | BA38: 0 | BB38: 0 | BC38: 0 | BD38: 0 | BE38: 0 | BF38: 0 | BG38: 0 | BH38: 0 | BI38: 0 | BJ38: 0 | BK38: 0 | BL38: 0 | BM38: 0 | BN38: 0 | BO38: 0 | BP38: 0 | BQ38: 0
A39: DLCXXR | B39: Large Low Voltage Demand EN.R CXX | D39: =IFERROR(INDEX(Prop2018DistTar!Z:Z,MATCH($A39,Prop2018DistTar!$A:$A,),1),) -> 0 | E39: =IFERROR(INDEX(Prop2018DistTar!AA:AA,MATCH($A39,Prop2018DistTar!$A:$A,),1),) -> 0 | F39: =IFERROR(INDEX(Prop2018DistTar!AB:AB,MATCH($A39,Prop2018DistTar!$A:$A,),1),) -> 0 | G39: =IFERROR(INDEX(Prop2018DistTar!AC:AC,MATCH($A39,Prop2018DistTar!$A:$A,),1),) -> 0 | H39: =IFERROR(INDEX(Prop2018DistTar!AD:AD,MATCH($A39,Prop2018DistTar!$A:$A,),1),) -> 0 | I39: =IFERROR(INDEX(Prop2018DistTar!AE:AE,MATCH($A39,Prop2018DistTar!$A:$A,),1),) -> 0 | J39: =IFERROR(INDEX(Prop2018DistTar!AF:AF,MATCH($A39,Prop2018DistTar!$A:$A,),1),) -> 0 | K39: =IFERROR(INDEX(Prop2018DistTar!AG:AG,MATCH($A39,Prop2018DistTar!$A:$A,),1),) -> 0 | L39: =IFERROR(INDEX(Prop2018DistTar!AH:AH,MATCH($A39,Prop2018DistTar!$A:$A,),1),) -> 0 | M39: =IFERROR(INDEX(Prop2018DistTar!AI:AI,MATCH($A39,Prop2018DistTar!$A:$A,),1),) -> 0 | N39: =IFERROR(INDEX(Prop2018DistTar!AJ:AJ,MATCH($A39,Prop2018DistTar!$A:$A,),1),) -> 0 | O39: =IFERROR(INDEX(Prop2018DistTar!AK:AK,MATCH($A39,Prop2018DistTar!$A:$A,),1),) -> 0 | P39: =IFERROR(INDEX(Prop2018DistTar!AL:AL,MATCH($A39,Prop2018DistTar!$A:$A,),1),) -> 0 | Q39: =IFERROR(INDEX(Prop2018DistTar!AM:AM,MATCH($A39,Prop2018DistTar!$A:$A,),1),) -> 0 | R39: =IFERROR(INDEX(Prop2018DistTar!AN:AN,MATCH($A39,Prop2018DistTar!$A:$A,),1),) -> 0 | S39: =IFERROR(INDEX(Prop2018DistTar!AO:AO,MATCH($A39,Prop2018DistTar!$A:$A,),1),) -> 0 | T39: =IFERROR(INDEX(Prop2018DistTar!AP:AP,MATCH($A39,Prop2018DistTar!$A:$A,),1),) -> 0 | U39: =IFERROR(INDEX(Prop2018DistTar!AQ:AQ,MATCH($A39,Prop2018DistTar!$A:$A,),1),) -> 0 | V39: =IFERROR(INDEX(Prop2018DistTar!AR:AR,MATCH($A39,Prop2018DistTar!$A:$A,),1),) -> 0 | W39: =IFERROR(INDEX(Prop2018DistTar!AS:AS,MATCH($A39,Prop2018DistTar!$A:$A,),1),) -> 0 | Z39: 0 | AA39: 0 | AB39: 0 | AC39: 0 | AD39: 0 | AE39: 0 | AF39: 0 | AG39: 0 | AH39: 0 | AI39: 0 | AJ39: 0 | AK39: 0 | AL39: 0 | AM39: 0 | AN39: 0 | AO39: 0 | AP39: 0 | AQ39: 0 | AR39: 0 | AS39: 0 | AT39: 0 | AV39: 0 | AW39: 0 | AX39: 0 | AY39: 0 | AZ39: 0 | BA39: 0 | BB39: 0 | BC39: 0 | BD39: 0 | BE39: 0 | BF39: 0 | BG39: 0 | BH39: 0 | BI39: 0 | BJ39: 0 | BK39: 0 | BL39: 0 | BM39: 0 | BN39: 0 | BO39: 0 | BP39: 0 | BQ39: 0
A40: DLCXXNR | B40: Large Low Voltage Demand EN.NRCXX | D40: =IFERROR(INDEX(Prop2018DistTar!Z:Z,MATCH($A40,Prop2018DistTar!$A:$A,),1),) -> 0 | E40: =IFERROR(INDEX(Prop2018DistTar!AA:AA,MATCH($A40,Prop2018DistTar!$A:$A,),1),) -> 0 | F40: =IFERROR(INDEX(Prop2018DistTar!AB:AB,MATCH($A40,Prop2018DistTar!$A:$A,),1),) -> 0 | G40: =IFERROR(INDEX(Prop2018DistTar!AC:AC,MATCH($A40,Prop2018DistTar!$A:$A,),1),) -> 0 | H40: =IFERROR(INDEX(Prop2018DistTar!AD:AD,MATCH($A40,Prop2018DistTar!$A:$A,),1),) -> 0 | I40: =IFERROR(INDEX(Prop2018DistTar!AE:AE,MATCH($A40,Prop2018DistTar!$A:$A,),1),) -> 0 | J40: =IFERROR(INDEX(Prop2018DistTar!AF:AF,MATCH($A40,Prop2018DistTar!$A:$A,),1),) -> 0 | K40: =IFERROR(INDEX(Prop2018DistTar!AG:AG,MATCH($A40,Prop2018DistTar!$A:$A,),1),) -> 0 | L40: =IFERROR(INDEX(Prop2018DistTar!AH:AH,MATCH($A40,Prop2018DistTar!$A:$A,),1),) -> 0 | M40: =IFERROR(INDEX(Prop2018DistTar!AI:AI,MATCH($A40,Prop2018DistTar!$A:$A,),1),) -> 0 | N40: =IFERROR(INDEX(Prop2018DistTar!AJ:AJ,MATCH($A40,Prop2018DistTar!$A:$A,),1),) -> 0 | O40: =IFERROR(INDEX(Prop2018DistTar!AK:AK,MATCH($A40,Prop2018DistTar!$A:$A,),1),) -> 0 | P40: =IFERROR(INDEX(Prop2018DistTar!AL:AL,MATCH($A40,Prop2018DistTar!$A:$A,),1),) -> 0 | Q40: =IFERROR(INDEX(Prop2018DistTar!AM:AM,MATCH($A40,Prop2018DistTar!$A:$A,),1),) -> 0 | R40: =IFERROR(INDEX(Prop2018DistTar!AN:AN,MATCH($A40,Prop2018DistTar!$A:$A,),1),) -> 0 | S40: =IFERROR(INDEX(Prop2018DistTar!AO:AO,MATCH($A40,Prop2018DistTar!$A:$A,),1),) -> 0 | T40: =IFERROR(INDEX(Prop2018DistTar!AP:AP,MATCH($A40,Prop2018DistTar!$A:$A,),1),) -> 0 | U40: =IFERROR(INDEX(Prop2018DistTar!AQ:AQ,MATCH($A40,Prop2018DistTar!$A:$A,),1),) -> 0 | V40: =IFERROR(INDEX(Prop2018DistTar!AR:AR,MATCH($A40,Prop2018DistTar!$A:$A,),1),) -> 0 | W40: =IFERROR(INDEX(Prop2018DistTar!AS:AS,MATCH($A40,Prop2018DistTar!$A:$A,),1),) -> 0 | Z40: 0 | AA40: 0 | AB40: 0 | AC40: 0 | AD40: 0 | AE40: 0 | AF40: 0 | AG40: 0 | AH40: 0 | AI40: 0 | AJ40: 0 | AK40: 0 | AL40: 0 | AM40: 0 | AN40: 0 | AO40: 0 | AP40: 0 | AQ40: 0 | AR40: 0 | AS40: 0 | AT40: 0 | AV40: 0 | AW40: 0 | AX40: 0 | AY40: 0 | AZ40: 0 | BA40: 0 | BB40: 0 | BC40: 0 | BD40: 0 | BE40: 0 | BF40: 0 | BG40: 0 | BH40: 0 | BI40: 0 | BJ40: 0 | BK40: 0 | BL40: 0 | BM40: 0 | BN40: 0 | BO40: 0 | BP40: 0 | BQ40: 0
A41: HV | B41: High Voltage | D41: =IFERROR(INDEX(Prop2018DistTar!Z:Z,MATCH($A41,Prop2018DistTar!$A:$A,),1),) -> 44000 | E41: =IFERROR(INDEX(Prop2018DistTar!AA:AA,MATCH($A41,Prop2018DistTar!$A:$A,),1),) -> 0 | F41: =IFERROR(INDEX(Prop2018DistTar!AB:AB,MATCH($A41,Prop2018DistTar!$A:$A,),1),) -> 1.57 | G41: =IFERROR(INDEX(Prop2018DistTar!AC:AC,MATCH($A41,Prop2018DistTar!$A:$A,),1),) -> 0 | H41: =IFERROR(INDEX(Prop2018DistTar!AD:AD,MATCH($A41,Prop2018DistTar!$A:$A,),1),) -> 0 | I41: =IFERROR(INDEX(Prop2018DistTar!AE:AE,MATCH($A41,Prop2018DistTar!$A:$A,),1),) -> 0.6 | J41: =IFERROR(INDEX(Prop2018DistTar!AF:AF,MATCH($A41,Prop2018DistTar!$A:$A,),1),) -> 0 | K41: =IFERROR(INDEX(Prop2018DistTar!AG:AG,MATCH($A41,Prop2018DistTar!$A:$A,),1),) -> 0 | L41: =IFERROR(INDEX(Prop2018DistTar!AH:AH,MATCH($A41,Prop2018DistTar!$A:$A,),1),) -> 0 | M41: =IFERROR(INDEX(Prop2018DistTar!AI:AI,MATCH($A41,Prop2018DistTar!$A:$A,),1),) -> 56.28 | N41: =IFERROR(INDEX(Prop2018DistTar!AJ:AJ,MATCH($A41,Prop2018DistTar!$A:$A,),1),) -> 0 | O41: =IFERROR(INDEX(Prop2018DistTar!AK:AK,MATCH($A41,Prop2018DistTar!$A:$A,),1),) -> 0 | P41: =IFERROR(INDEX(Prop2018DistTar!AL:AL,MATCH($A41,Prop2018DistTar!$A:$A,),1),) -> 0 | Q41: =IFERROR(INDEX(Prop2018DistTar!AM:AM,MATCH($A41,Prop2018DistTar!$A:$A,),1),) -> 0 | R41: =IFERROR(INDEX(Prop2018DistTar!AN:AN,MATCH($A41,Prop2018DistTar!$A:$A,),1),) -> 0 | S41: =IFERROR(INDEX(Prop2018DistTar!AO:AO,MATCH($A41,Prop2018DistTar!$A:$A,),1),) -> 0 | T41: =IFERROR(INDEX(Prop2018DistTar!AP:AP,MATCH($A41,Prop2018DistTar!$A:$A,),1),) -> 0 | U41: =IFERROR(INDEX(Prop2018DistTar!AQ:AQ,MATCH($A41,Prop2018DistTar!$A:$A,),1),) -> 0 | V41: =IFERROR(INDEX(Prop2018DistTar!AR:AR,MATCH($A41,Prop2018DistTar!$A:$A,),1),) -> 0 | W41: =IFERROR(INDEX(Prop2018DistTar!AS:AS,MATCH($A41,Prop2018DistTar!$A:$A,),1),) -> 0 | Z41: 173.81875 | AA41: 0 | AB41: 866527587.1 | AC41: 0 | AD41: 0 | AE41: 805521167.2 | AF41: 0 | AG41: 0 | AH41: 0 | AI41: 414871.2241 | AJ41: 0 | AK41: 0 | AL41: 0 | AM41: 0 | AN41: 0 | AO41: 0 | AP41: 0 | AQ41: 0 | AR41: 0 | AS41: 0 | AT41: 0 | AV41: 7648025 | AW41: 0 | AX41: 13604483.12 | AY41: 0 | AZ41: 0 | BA41: 4833127.003 | BB41: 0 | BC41: 0 | BD41: 0 | BE41: 23348952.49 | BF41: 0 | BG41: 0 | BH41: 0 | BI41: 0 | BJ41: 0 | BK41: 0 | BL41: 0 | BM41: 0 | BN41: 0 | BO41: 0 | BP41: 0 | BQ41: 49434587.61
A42: HVD | B42: High Voltage Docklands | D42: =IFERROR(INDEX(Prop2018DistTar!Z:Z,MATCH($A42,Prop2018DistTar!$A:$A,),1),) -> 35200 | E42: =IFERROR(INDEX(Prop2018DistTar!AA:AA,MATCH($A42,Prop2018DistTar!$A:$A,),1),) -> 0 | F42: =IFERROR(INDEX(Prop2018DistTar!AB:AB,MATCH($A42,Prop2018DistTar!$A:$A,),1),) -> 1.24 | G42: =IFERROR(INDEX(Prop2018DistTar!AC:AC,MATCH($A42,Prop2018DistTar!$A:$A,),1),) -> 0 | H42: =IFERROR(INDEX(Prop2018DistTar!AD:AD,MATCH($A42,Prop2018DistTar!$A:$A,),1),) -> 0 | I42: =IFERROR(INDEX(Prop2018DistTar!AE:AE,MATCH($A42,Prop2018DistTar!$A:$A,),1),) -> 0.49 | J42: =IFERROR(INDEX(Prop2018DistTar!AF:AF,MATCH($A42,Prop2018DistTar!$A:$A,),1),) -> 0 | K42: =IFERROR(INDEX(Prop2018DistTar!AG:AG,MATCH($A42,Prop2018DistTar!$A:$A,),1),) -> 0 | L42: =IFERROR(INDEX(Prop2018DistTar!AH:AH,MATCH($A42,Prop2018DistTar!$A:$A,),1),) -> 0 | M42: =IFERROR(INDEX(Prop2018DistTar!AI:AI,MATCH($A42,Prop2018DistTar!$A:$A,),1),) -> 46 | N42: =IFERROR(INDEX(Prop2018DistTar!AJ:AJ,MATCH($A42,Prop2018DistTar!$A:$A,),1),) -> 0 | O42: =IFERROR(INDEX(Prop2018DistTar!AK:AK,MATCH($A42,Prop2018DistTar!$A:$A,),1),) -> 0 | P42: =IFERROR(INDEX(Prop2018DistTar!AL:AL,MATCH($A42,Prop2018DistTar!$A:$A,),1),) -> 0 | Q42: =IFERROR(INDEX(Prop2018DistTar!AM:AM,MATCH($A42,Prop2018DistTar!$A:$A,),1),) -> 0 | R42: =IFERROR(INDEX(Prop2018DistTar!AN:AN,MATCH($A42,Prop2018DistTar!$A:$A,),1),) -> 0 | S42: =IFERROR(INDEX(Prop2018DistTar!AO:AO,MATCH($A42,Prop2018DistTar!$A:$A,),1),) -> 0 | T42: =IFERROR(INDEX(Prop2018DistTar!AP:AP,MATCH($A42,Prop2018DistTar!$A:$A,),1),) -> 0 | U42: =IFERROR(INDEX(Prop2018DistTar!AQ:AQ,MATCH($A42,Prop2018DistTar!$A:$A,),1),) -> 0 | V42: =IFERROR(INDEX(Prop2018DistTar!AR:AR,MATCH($A42,Prop2018DistTar!$A:$A,),1),) -> 0 | W42: =IFERROR(INDEX(Prop2018DistTar!AS:AS,MATCH($A42,Prop2018DistTar!$A:$A,),1),) -> 0 | Z42: 6.5 | AA42: 0 | AB42: 80638518.28 | AC42: 0 | AD42: 0 | AE42: 86976167.7 | AF42: 0 | AG42: 0 | AH42: 0 | AI42: 43838.61696 | AJ42: 0 | AK42: 0 | AL42: 0 | AM42: 0 | AN42: 0 | AO42: 0 | AP42: 0 | AQ42: 0 | AR42: 0 | AS42: 0 | AT42: 0 | AV42: 228800 | AW42: 0 | AX42: 999917.6266 | AY42: 0 | AZ42: 0 | BA42: 426183.2218 | BB42: 0 | BC42: 0 | BD42: 0 | BE42: 2016576.38 | BF42: 0 | BG42: 0 | BH42: 0 | BI42: 0 | BJ42: 0 | BK42: 0 | BL42: 0 | BM42: 0 | BN42: 0 | BO42: 0 | BP42: 0 | BQ42: 3671477.229
A43: DH | B43: High Voltage Demand | D43: =IFERROR(INDEX(Prop2018DistTar!Z:Z,MATCH($A43,Prop2018DistTar!$A:$A,),1),) -> 0 | E43: =IFERROR(INDEX(Prop2018DistTar!AA:AA,MATCH($A43,Prop2018DistTar!$A:$A,),1),) -> 0 | F43: =IFERROR(INDEX(Prop2018DistTar!AB:AB,MATCH($A43,Prop2018DistTar!$A:$A,),1),) -> 0 | G43: =IFERROR(INDEX(Prop2018DistTar!AC:AC,MATCH($A43,Prop2018DistTar!$A:$A,),1),) -> 0 | H43: =IFERROR(INDEX(Prop2018DistTar!AD:AD,MATCH($A43,Prop2018DistTar!$A:$A,),1),) -> 0 | I43: =IFERROR(INDEX(Prop2018DistTar!AE:AE,MATCH($A43,Prop2018DistTar!$A:$A,),1),) -> 0 | J43: =IFERROR(INDEX(Prop2018DistTar!AF:AF,MATCH($A43,Prop2018DistTar!$A:$A,),1),) -> 0 | K43: =IFERROR(INDEX(Prop2018DistTar!AG:AG,MATCH($A43,Prop2018DistTar!$A:$A,),1),) -> 0 | L43: =IFERROR(INDEX(Prop2018DistTar!AH:AH,MATCH($A43,Prop2018DistTar!$A:$A,),1),) -> 0 | M43: =IFERROR(INDEX(Prop2018DistTar!AI:AI,MATCH($A43,Prop2018DistTar!$A:$A,),1),) -> 0 | N43: =IFERROR(INDEX(Prop2018DistTar!AJ:AJ,MATCH($A43,Prop2018DistTar!$A:$A,),1),) -> 0 | O43: =IFERROR(INDEX(Prop2018DistTar!AK:AK,MATCH($A43,Prop2018DistTar!$A:$A,),1),) -> 0 | P43: =IFERROR(INDEX(Prop2018DistTar!AL:AL,MATCH($A43,Prop2018DistTar!$A:$A,),1),) -> 0 | Q43: =IFERROR(INDEX(Prop2018DistTar!AM:AM,MATCH($A43,Prop2018DistTar!$A:$A,),1),) -> 0 | R43: =IFERROR(INDEX(Prop2018DistTar!AN:AN,MATCH($A43,Prop2018DistTar!$A:$A,),1),) -> 0 | S43: =IFERROR(INDEX(Prop2018DistTar!AO:AO,MATCH($A43,Prop2018DistTar!$A:$A,),1),) -> 0 | T43: =IFERROR(INDEX(Prop2018DistTar!AP:AP,MATCH($A43,Prop2018DistTar!$A:$A,),1),) -> 0 | U43: =IFERROR(INDEX(Prop2018DistTar!AQ:AQ,MATCH($A43,Prop2018DistTar!$A:$A,),1),) -> 0 | V43: =IFERROR(INDEX(Prop2018DistTar!AR:AR,MATCH($A43,Prop2018DistTar!$A:$A,),1),) -> 0 | W43: =IFERROR(INDEX(Prop2018DistTar!AS:AS,MATCH($A43,Prop2018DistTar!$A:$A,),1),) -> 0 | Z43: 0 | AA43: 0 | AB43: 0 | AC43: 0 | AD43: 0 | AE43: 0 | AF43: 0 | AG43: 0 | AH43: 0 | AI43: 0 | AJ43: 0 | AK43: 0 | AL43: 0 | AM43: 0 | AN43: 0 | AO43: 0 | AP43: 0 | AQ43: 0 | AR43: 0 | AS43: 0 | AT43: 0 | AV43: 0 | AW43: 0 | AX43: 0 | AY43: 0 | AZ43: 0 | BA43: 0 | BB43: 0 | BC43: 0 | BD43: 0 | BE43: 0 | BF43: 0 | BG43: 0 | BH43: 0 | BI43: 0 | BJ43: 0 | BK43: 0 | BL43: 0 | BM43: 0 | BN43: 0 | BO43: 0 | BP43: 0 | BQ43: 0
A44: DHA | B44: High Voltage Demand A | D44: =IFERROR(INDEX(Prop2018DistTar!Z:Z,MATCH($A44,Prop2018DistTar!$A:$A,),1),) -> 0 | E44: =IFERROR(INDEX(Prop2018DistTar!AA:AA,MATCH($A44,Prop2018DistTar!$A:$A,),1),) -> 0 | F44: =IFERROR(INDEX(Prop2018DistTar!AB:AB,MATCH($A44,Prop2018DistTar!$A:$A,),1),) -> 0 | G44: =IFERROR(INDEX(Prop2018DistTar!AC:AC,MATCH($A44,Prop2018DistTar!$A:$A,),1),) -> 0 | H44: =IFERROR(INDEX(Prop2018DistTar!AD:AD,MATCH($A44,Prop2018DistTar!$A:$A,),1),) -> 0 | I44: =IFERROR(INDEX(Prop2018DistTar!AE:AE,MATCH($A44,Prop2018DistTar!$A:$A,),1),) -> 0 | J44: =IFERROR(INDEX(Prop2018DistTar!AF:AF,MATCH($A44,Prop2018DistTar!$A:$A,),1),) -> 0 | K44: =IFERROR(INDEX(Prop2018DistTar!AG:AG,MATCH($A44,Prop2018DistTar!$A:$A,),1),) -> 0 | L44: =IFERROR(INDEX(Prop2018DistTar!AH:AH,MATCH($A44,Prop2018DistTar!$A:$A,),1),) -> 0 | M44: =IFERROR(INDEX(Prop2018DistTar!AI:AI,MATCH($A44,Prop2018DistTar!$A:$A,),1),) -> 0 | N44: =IFERROR(INDEX(Prop2018DistTar!AJ:AJ,MATCH($A44,Prop2018DistTar!$A:$A,),1),) -> 0 | O44: =IFERROR(INDEX(Prop2018DistTar!AK:AK,MATCH($A44,Prop2018DistTar!$A:$A,),1),) -> 0 | P44: =IFERROR(INDEX(Prop2018DistTar!AL:AL,MATCH($A44,Prop2018DistTar!$A:$A,),1),) -> 0 | Q44: =IFERROR(INDEX(Prop2018DistTar!AM:AM,MATCH($A44,Prop2018DistTar!$A:$A,),1),) -> 0 | R44: =IFERROR(INDEX(Prop2018DistTar!AN:AN,MATCH($A44,Prop2018DistTar!$A:$A,),1),) -> 0 | S44: =IFERROR(INDEX(Prop2018DistTar!AO:AO,MATCH($A44,Prop2018DistTar!$A:$A,),1),) -> 0 | T44: =IFERROR(INDEX(Prop2018DistTar!AP:AP,MATCH($A44,Prop2018DistTar!$A:$A,),1),) -> 0 | U44: =IFERROR(INDEX(Prop2018DistTar!AQ:AQ,MATCH($A44,Prop2018DistTar!$A:$A,),1),) -> 0 | V44: =IFERROR(INDEX(Prop2018DistTar!AR:AR,MATCH($A44,Prop2018DistTar!$A:$A,),1),) -> 0 | W44: =IFERROR(INDEX(Prop2018DistTar!AS:AS,MATCH($A44,Prop2018DistTar!$A:$A,),1),) -> 0 | Z44: 0 | AA44: 0 | AB44: 0 | AC44: 0 | AD44: 0 | AE44: 0 | AF44: 0 | AG44: 0 | AH44: 0 | AI44: 0 | AJ44: 0 | AK44: 0 | AL44: 0 | AM44: 0 | AN44: 0 | AO44: 0 | AP44: 0 | AQ44: 0 | AR44: 0 | AS44: 0 | AT44: 0 | AV44: 0 | AW44: 0 | AX44: 0 | AY44: 0 | AZ44: 0 | BA44: 0 | BB44: 0 | BC44: 0 | BD44: 0 | BE44: 0 | BF44: 0 | BG44: 0 | BH44: 0 | BI44: 0 | BJ44: 0 | BK44: 0 | BL44: 0 | BM44: 0 | BN44: 0 | BO44: 0 | BP44: 0 | BQ44: 0
A45: DHC | B45: High Voltage Demand C | D45: =IFERROR(INDEX(Prop2018DistTar!Z:Z,MATCH($A45,Prop2018DistTar!$A:$A,),1),) -> 0 | E45: =IFERROR(INDEX(Prop2018DistTar!AA:AA,MATCH($A45,Prop2018DistTar!$A:$A,),1),) -> 0 | F45: =IFERROR(INDEX(Prop2018DistTar!AB:AB,MATCH($A45,Prop2018DistTar!$A:$A,),1),) -> 0 | G45: =IFERROR(INDEX(Prop2018DistTar!AC:AC,MATCH($A45,Prop2018DistTar!$A:$A,),1),) -> 0 | H45: =IFERROR(INDEX(Prop2018DistTar!AD:AD,MATCH($A45,Prop2018DistTar!$A:$A,),1),) -> 0 | I45: =IFERROR(INDEX(Prop2018DistTar!AE:AE,MATCH($A45,Prop2018DistTar!$A:$A,),1),) -> 0 | J45: =IFERROR(INDEX(Prop2018DistTar!AF:AF,MATCH($A45,Prop2018DistTar!$A:$A,),1),) -> 0 | K45: =IFERROR(INDEX(Prop2018DistTar!AG:AG,MATCH($A45,Prop2018DistTar!$A:$A,),1),) -> 0 | L45: =IFERROR(INDEX(Prop2018DistTar!AH:AH,MATCH($A45,Prop2018DistTar!$A:$A,),1),) -> 0 | M45: =IFERROR(INDEX(Prop2018DistTar!AI:AI,MATCH($A45,Prop2018DistTar!$A:$A,),1),) -> 0 | N45: =IFERROR(INDEX(Prop2018DistTar!AJ:AJ,MATCH($A45,Prop2018DistTar!$A:$A,),1),) -> 0 | O45: =IFERROR(INDEX(Prop2018DistTar!AK:AK,MATCH($A45,Prop2018DistTar!$A:$A,),1),) -> 0 | P45: =IFERROR(INDEX(Prop2018DistTar!AL:AL,MATCH($A45,Prop2018DistTar!$A:$A,),1),) -> 0 | Q45: =IFERROR(INDEX(Prop2018DistTar!AM:AM,MATCH($A45,Prop2018DistTar!$A:$A,),1),) -> 0 | R45: =IFERROR(INDEX(Prop2018DistTar!AN:AN,MATCH($A45,Prop2018DistTar!$A:$A,),1),) -> 0 | S45: =IFERROR(INDEX(Prop2018DistTar!AO:AO,MATCH($A45,Prop2018DistTar!$A:$A,),1),) -> 0 | T45: =IFERROR(INDEX(Prop2018DistTar!AP:AP,MATCH($A45,Prop2018DistTar!$A:$A,),1),) -> 0 | U45: =IFERROR(INDEX(Prop2018DistTar!AQ:AQ,MATCH($A45,Prop2018DistTar!$A:$A,),1),) -> 0 | V45: =IFERROR(INDEX(Prop2018DistTar!AR:AR,MATCH($A45,Prop2018DistTar!$A:$A,),1),) -> 0 | W45: =IFERROR(INDEX(Prop2018DistTar!AS:AS,MATCH($A45,Prop2018DistTar!$A:$A,),1),) -> 0 | Z45: 0 | AA45: 0 | AB45: 0 | AC45: 0 | AD45: 0 | AE45: 0 | AF45: 0 | AG45: 0 | AH45: 0 | AI45: 0 | AJ45: 0 | AK45: 0 | AL45: 0 | AM45: 0 | AN45: 0 | AO45: 0 | AP45: 0 | AQ45: 0 | AR45: 0 | AS45: 0 | AT45: 0 | AV45: 0 | AW45: 0 | AX45: 0 | AY45: 0 | AZ45: 0 | BA45: 0 | BB45: 0 | BC45: 0 | BD45: 0 | BE45: 0 | BF45: 0 | BG45: 0 | BH45: 0 | BI45: 0 | BJ45: 0 | BK45: 0 | BL45: 0 | BM45: 0 | BN45: 0 | BO45: 0 | BP45: 0 | BQ45: 0
A46: DHD1 | B46: High Voltage Demand D1 | D46: =IFERROR(INDEX(Prop2018DistTar!Z:Z,MATCH($A46,Prop2018DistTar!$A:$A,),1),) -> 0 | E46: =IFERROR(INDEX(Prop2018DistTar!AA:AA,MATCH($A46,Prop2018DistTar!$A:$A,),1),) -> 0 | F46: =IFERROR(INDEX(Prop2018DistTar!AB:AB,MATCH($A46,Prop2018DistTar!$A:$A,),1),) -> 0 | G46: =IFERROR(INDEX(Prop2018DistTar!AC:AC,MATCH($A46,Prop2018DistTar!$A:$A,),1),) -> 0 | H46: =IFERROR(INDEX(Prop2018DistTar!AD:AD,MATCH($A46,Prop2018DistTar!$A:$A,),1),) -> 0 | I46: =IFERROR(INDEX(Prop2018DistTar!AE:AE,MATCH($A46,Prop2018DistTar!$A:$A,),1),) -> 0 | J46: =IFERROR(INDEX(Prop2018DistTar!AF:AF,MATCH($A46,Prop2018DistTar!$A:$A,),1),) -> 0 | K46: =IFERROR(INDEX(Prop2018DistTar!AG:AG,MATCH($A46,Prop2018DistTar!$A:$A,),1),) -> 0 | L46: =IFERROR(INDEX(Prop2018DistTar!AH:AH,MATCH($A46,Prop2018DistTar!$A:$A,),1),) -> 0 | M46: =IFERROR(INDEX(Prop2018DistTar!AI:AI,MATCH($A46,Prop2018DistTar!$A:$A,),1),) -> 0 | N46: =IFERROR(INDEX(Prop2018DistTar!AJ:AJ,MATCH($A46,Prop2018DistTar!$A:$A,),1),) -> 0 | O46: =IFERROR(INDEX(Prop2018DistTar!AK:AK,MATCH($A46,Prop2018DistTar!$A:$A,),1),) -> 0 | P46: =IFERROR(INDEX(Prop2018DistTar!AL:AL,MATCH($A46,Prop2018DistTar!$A:$A,),1),) -> 0 | Q46: =IFERROR(INDEX(Prop2018DistTar!AM:AM,MATCH($A46,Prop2018DistTar!$A:$A,),1),) -> 0 | R46: =IFERROR(INDEX(Prop2018DistTar!AN:AN,MATCH($A46,Prop2018DistTar!$A:$A,),1),) -> 0 | S46: =IFERROR(INDEX(Prop2018DistTar!AO:AO,MATCH($A46,Prop2018DistTar!$A:$A,),1),) -> 0 | T46: =IFERROR(INDEX(Prop2018DistTar!AP:AP,MATCH($A46,Prop2018DistTar!$A:$A,),1),) -> 0 | U46: =IFERROR(INDEX(Prop2018DistTar!AQ:AQ,MATCH($A46,Prop2018DistTar!$A:$A,),1),) -> 0 | V46: =IFERROR(INDEX(Prop2018DistTar!AR:AR,MATCH($A46,Prop2018DistTar!$A:$A,),1),) -> 0 | W46: =IFERROR(INDEX(Prop2018DistTar!AS:AS,MATCH($A46,Prop2018DistTar!$A:$A,),1),) -> 0 | Z46: 0 | AA46: 0 | AB46: 0 | AC46: 0 | AD46: 0 | AE46: 0 | AF46: 0 | AG46: 0 | AH46: 0 | AI46: 0 | AJ46: 0 | AK46: 0 | AL46: 0 | AM46: 0 | AN46: 0 | AO46: 0 | AP46: 0 | AQ46: 0 | AR46: 0 | AS46: 0 | AT46: 0 | AV46: 0 | AW46: 0 | AX46: 0 | AY46: 0 | AZ46: 0 | BA46: 0 | BB46: 0 | BC46: 0 | BD46: 0 | BE46: 0 | BF46: 0 | BG46: 0 | BH46: 0 | BI46: 0 | BJ46: 0 | BK46: 0 | BL46: 0 | BM46: 0 | BN46: 0 | BO46: 0 | BP46: 0 | BQ46: 0
A47: DHD2 | B47: High Voltage Demand D2 | D47: =IFERROR(INDEX(Prop2018DistTar!Z:Z,MATCH($A47,Prop2018DistTar!$A:$A,),1),) -> 0 | E47: =IFERROR(INDEX(Prop2018DistTar!AA:AA,MATCH($A47,Prop2018DistTar!$A:$A,),1),) -> 0 | F47: =IFERROR(INDEX(Prop2018DistTar!AB:AB,MATCH($A47,Prop2018DistTar!$A:$A,),1),) -> 0 | G47: =IFERROR(INDEX(Prop2018DistTar!AC:AC,MATCH($A47,Prop2018DistTar!$A:$A,),1),) -> 0 | H47: =IFERROR(INDEX(Prop2018DistTar!AD:AD,MATCH($A47,Prop2018DistTar!$A:$A,),1),) -> 0 | I47: =IFERROR(INDEX(Prop2018DistTar!AE:AE,MATCH($A47,Prop2018DistTar!$A:$A,),1),) -> 0 | J47: =IFERROR(INDEX(Prop2018DistTar!AF:AF,MATCH($A47,Prop2018DistTar!$A:$A,),1),) -> 0 | K47: =IFERROR(INDEX(Prop2018DistTar!AG:AG,MATCH($A47,Prop2018DistTar!$A:$A,),1),) -> 0 | L47: =IFERROR(INDEX(Prop2018DistTar!AH:AH,MATCH($A47,Prop2018DistTar!$A:$A,),1),) -> 0 | M47: =IFERROR(INDEX(Prop2018DistTar!AI:AI,MATCH($A47,Prop2018DistTar!$A:$A,),1),) -> 0 | N47: =IFERROR(INDEX(Prop2018DistTar!AJ:AJ,MATCH($A47,Prop2018DistTar!$A:$A,),1),) -> 0 | O47: =IFERROR(INDEX(Prop2018DistTar!AK:AK,MATCH($A47,Prop2018DistTar!$A:$A,),1),) -> 0 | P47: =IFERROR(INDEX(Prop2018DistTar!AL:AL,MATCH($A47,Prop2018DistTar!$A:$A,),1),) -> 0 | Q47: =IFERROR(INDEX(Prop2018DistTar!AM:AM,MATCH($A47,Prop2018DistTar!$A:$A,),1),) -> 0 | R47: =IFERROR(INDEX(Prop2018DistTar!AN:AN,MATCH($A47,Prop2018DistTar!$A:$A,),1),) -> 0 | S47: =IFERROR(INDEX(Prop2018DistTar!AO:AO,MATCH($A47,Prop2018DistTar!$A:$A,),1),) -> 0 | T47: =IFERROR(INDEX(Prop2018DistTar!AP:AP,MATCH($A47,Prop2018DistTar!$A:$A,),1),) -> 0 | U47: =IFERROR(INDEX(Prop2018DistTar!AQ:AQ,MATCH($A47,Prop2018DistTar!$A:$A,),1),) -> 0 | V47: =IFERROR(INDEX(Prop2018DistTar!AR:AR,MATCH($A47,Prop2018DistTar!$A:$A,),1),) -> 0 | W47: =IFERROR(INDEX(Prop2018DistTar!AS:AS,MATCH($A47,Prop2018DistTar!$A:$A,),1),) -> 0 | Z47: 0 | AA47: 0 | AB47: 0 | AC47: 0 | AD47: 0 | AE47: 0 | AF47: 0 | AG47: 0 | AH47: 0 | AI47: 0 | AJ47: 0 | AK47: 0 | AL47: 0 | AM47: 0 | AN47: 0 | AO47: 0 | AP47: 0 | AQ47: 0 | AR47: 0 | AS47: 0 | AT47: 0 | AV47: 0 | AW47: 0 | AX47: 0 | AY47: 0 | AZ47: 0 | BA47: 0 | BB47: 0 | BC47: 0 | BD47: 0 | BE47: 0 | BF47: 0 | BG47: 0 | BH47: 0 | BI47: 0 | BJ47: 0 | BK47: 0 | BL47: 0 | BM47: 0 | BN47: 0 | BO47: 0 | BP47: 0 | BQ47: 0
A48: DHDK | B48: High Voltage Demand Docklands | D48: =IFERROR(INDEX(Prop2018DistTar!Z:Z,MATCH($A48,Prop2018DistTar!$A:$A,),1),) -> 0 | E48: =IFERROR(INDEX(Prop2018DistTar!AA:AA,MATCH($A48,Prop2018DistTar!$A:$A,),1),) -> 0 | F48: =IFERROR(INDEX(Prop2018DistTar!AB:AB,MATCH($A48,Prop2018DistTar!$A:$A,),1),) -> 0 | G48: =IFERROR(INDEX(Prop2018DistTar!AC:AC,MATCH($A48,Prop2018DistTar!$A:$A,),1),) -> 0 | H48: =IFERROR(INDEX(Prop2018DistTar!AD:AD,MATCH($A48,Prop2018DistTar!$A:$A,),1),) -> 0 | I48: =IFERROR(INDEX(Prop2018DistTar!AE:AE,MATCH($A48,Prop2018DistTar!$A:$A,),1),) -> 0 | J48: =IFERROR(INDEX(Prop2018DistTar!AF:AF,MATCH($A48,Prop2018DistTar!$A:$A,),1),) -> 0 | K48: =IFERROR(INDEX(Prop2018DistTar!AG:AG,MATCH($A48,Prop2018DistTar!$A:$A,),1),) -> 0 | L48: =IFERROR(INDEX(Prop2018DistTar!AH:AH,MATCH($A48,Prop2018DistTar!$A:$A,),1),) -> 0 | M48: =IFERROR(INDEX(Prop2018DistTar!AI:AI,MATCH($A48,Prop2018DistTar!$A:$A,),1),) -> 0 | N48: =IFERROR(INDEX(Prop2018DistTar!AJ:AJ,MATCH($A48,Prop2018DistTar!$A:$A,),1),) -> 0 | O48: =IFERROR(INDEX(Prop2018DistTar!AK:AK,MATCH($A48,Prop2018DistTar!$A:$A,),1),) -> 0 | P48: =IFERROR(INDEX(Prop2018DistTar!AL:AL,MATCH($A48,Prop2018DistTar!$A:$A,),1),) -> 0 | Q48: =IFERROR(INDEX(Prop2018DistTar!AM:AM,MATCH($A48,Prop2018DistTar!$A:$A,),1),) -> 0 | R48: =IFERROR(INDEX(Prop2018DistTar!AN:AN,MATCH($A48,Prop2018DistTar!$A:$A,),1),) -> 0 | S48: =IFERROR(INDEX(Prop2018DistTar!AO:AO,MATCH($A48,Prop2018DistTar!$A:$A,),1),) -> 0 | T48: =IFERROR(INDEX(Prop2018DistTar!AP:AP,MATCH($A48,Prop2018DistTar!$A:$A,),1),) -> 0 | U48: =IFERROR(INDEX(Prop2018DistTar!AQ:AQ,MATCH($A48,Prop2018DistTar!$A:$A,),1),) -> 0 | V48: =IFERROR(INDEX(Prop2018DistTar!AR:AR,MATCH($A48,Prop2018DistTar!$A:$A,),1),) -> 0 | W48: =IFERROR(INDEX(Prop2018DistTar!AS:AS,MATCH($A48,Prop2018DistTar!$A:$A,),1),) -> 0 | Z48: 0 | AA48: 0 | AB48: 0 | AC48: 0 | AD48: 0 | AE48: 0 | AF48: 0 | AG48: 0 | AH48: 0 | AI48: 0 | AJ48: 0 | AK48: 0 | AL48: 0 | AM48: 0 | AN48: 0 | AO48: 0 | AP48: 0 | AQ48: 0 | AR48: 0 | AS48: 0 | AT48: 0 | AV48: 0 | AW48: 0 | AX48: 0 | AY48: 0 | AZ48: 0 | BA48: 0 | BB48: 0 | BC48: 0 | BD48: 0 | BE48: 0 | BF48: 0 | BG48: 0 | BH48: 0 | BI48: 0 | BJ48: 0 | BK48: 0 | BL48: 0 | BM48: 0 | BN48: 0 | BO48: 0 | BP48: 0 | BQ48: 0
A49: DHD3 | B49: High Voltage Demand D3 | D49: =IFERROR(INDEX(Prop2018DistTar!Z:Z,MATCH($A49,Prop2018DistTar!$A:$A,),1),) -> 0 | E49: =IFERROR(INDEX(Prop2018DistTar!AA:AA,MATCH($A49,Prop2018DistTar!$A:$A,),1),) -> 0 | F49: =IFERROR(INDEX(Prop2018DistTar!AB:AB,MATCH($A49,Prop2018DistTar!$A:$A,),1),) -> 0 | G49: =IFERROR(INDEX(Prop2018DistTar!AC:AC,MATCH($A49,Prop2018DistTar!$A:$A,),1),) -> 0 | H49: =IFERROR(INDEX(Prop2018DistTar!AD:AD,MATCH($A49,Prop2018DistTar!$A:$A,),1),) -> 0 | I49: =IFERROR(INDEX(Prop2018DistTar!AE:AE,MATCH($A49,Prop2018DistTar!$A:$A,),1),) -> 0 | J49: =IFERROR(INDEX(Prop2018DistTar!AF:AF,MATCH($A49,Prop2018DistTar!$A:$A,),1),) -> 0 | K49: =IFERROR(INDEX(Prop2018DistTar!AG:AG,MATCH($A49,Prop2018DistTar!$A:$A,),1),) -> 0 | L49: =IFERROR(INDEX(Prop2018DistTar!AH:AH,MATCH($A49,Prop2018DistTar!$A:$A,),1),) -> 0 | M49: =IFERROR(INDEX(Prop2018DistTar!AI:AI,MATCH($A49,Prop2018DistTar!$A:$A,),1),) -> 0 | N49: =IFERROR(INDEX(Prop2018DistTar!AJ:AJ,MATCH($A49,Prop2018DistTar!$A:$A,),1),) -> 0 | O49: =IFERROR(INDEX(Prop2018DistTar!AK:AK,MATCH($A49,Prop2018DistTar!$A:$A,),1),) -> 0 | P49: =IFERROR(INDEX(Prop2018DistTar!AL:AL,MATCH($A49,Prop2018DistTar!$A:$A,),1),) -> 0 | Q49: =IFERROR(INDEX(Prop2018DistTar!AM:AM,MATCH($A49,Prop2018DistTar!$A:$A,),1),) -> 0 | R49: =IFERROR(INDEX(Prop2018DistTar!AN:AN,MATCH($A49,Prop2018DistTar!$A:$A,),1),) -> 0 | S49: =IFERROR(INDEX(Prop2018DistTar!AO:AO,MATCH($A49,Prop2018DistTar!$A:$A,),1),) -> 0 | T49: =IFERROR(INDEX(Prop2018DistTar!AP:AP,MATCH($A49,Prop2018DistTar!$A:$A,),1),) -> 0 | U49: =IFERROR(INDEX(Prop2018DistTar!AQ:AQ,MATCH($A49,Prop2018DistTar!$A:$A,),1),) -> 0 | V49: =IFERROR(INDEX(Prop2018DistTar!AR:AR,MATCH($A49,Prop2018DistTar!$A:$A,),1),) -> 0 | W49: =IFERROR(INDEX(Prop2018DistTar!AS:AS,MATCH($A49,Prop2018DistTar!$A:$A,),1),) -> 0 | Z49: 0 | AA49: 0 | AB49: 0 | AC49: 0 | AD49: 0 | AE49: 0 | AF49: 0 | AG49: 0 | AH49: 0 | AI49: 0 | AJ49: 0 | AK49: 0 | AL49: 0 | AM49: 0 | AN49: 0 | AO49: 0 | AP49: 0 | AQ49: 0 | AR49: 0 | AS49: 0 | AT49: 0 | AV49: 0 | AW49: 0 | AX49: 0 | AY49: 0 | AZ49: 0 | BA49: 0 | BB49: 0 | BC49: 0 | BD49: 0 | BE49: 0 | BF49: 0 | BG49: 0 | BH49: 0 | BI49: 0 | BJ49: 0 | BK49: 0 | BL49: 0 | BM49: 0 | BN49: 0 | BO49: 0 | BP49: 0 | BQ49: 0
A50: DHD4 | B50: High Voltage Demand D4 | D50: =IFERROR(INDEX(Prop2018DistTar!Z:Z,MATCH($A50,Prop2018DistTar!$A:$A,),1),) -> 0 | E50: =IFERROR(INDEX(Prop2018DistTar!AA:AA,MATCH($A50,Prop2018DistTar!$A:$A,),1),) -> 0 | F50: =IFERROR(INDEX(Prop2018DistTar!AB:AB,MATCH($A50,Prop2018DistTar!$A:$A,),1),) -> 0 | G50: =IFERROR(INDEX(Prop2018DistTar!AC:AC,MATCH($A50,Prop2018DistTar!$A:$A,),1),) -> 0 | H50: =IFERROR(INDEX(Prop2018DistTar!AD:AD,MATCH($A50,Prop2018DistTar!$A:$A,),1),) -> 0 | I50: =IFERROR(INDEX(Prop2018DistTar!AE:AE,MATCH($A50,Prop2018DistTar!$A:$A,),1),) -> 0 | J50: =IFERROR(INDEX(Prop2018DistTar!AF:AF,MATCH($A50,Prop2018DistTar!$A:$A,),1),) -> 0 | K50: =IFERROR(INDEX(Prop2018DistTar!AG:AG,MATCH($A50,Prop2018DistTar!$A:$A,),1),) -> 0 | L50: =IFERROR(INDEX(Prop2018DistTar!AH:AH,MATCH($A50,Prop2018DistTar!$A:$A,),1),) -> 0 | M50: =IFERROR(INDEX(Prop2018DistTar!AI:AI,MATCH($A50,Prop2018DistTar!$A:$A,),1),) -> 0 | N50: =IFERROR(INDEX(Prop2018DistTar!AJ:AJ,MATCH($A50,Prop2018DistTar!$A:$A,),1),) -> 0 | O50: =IFERROR(INDEX(Prop2018DistTar!AK:AK,MATCH($A50,Prop2018DistTar!$A:$A,),1),) -> 0 | P50: =IFERROR(INDEX(Prop2018DistTar!AL:AL,MATCH($A50,Prop2018DistTar!$A:$A,),1),) -> 0 | Q50: =IFERROR(INDEX(Prop2018DistTar!AM:AM,MATCH($A50,Prop2018DistTar!$A:$A,),1),) -> 0 | R50: =IFERROR(INDEX(Prop2018DistTar!AN:AN,MATCH($A50,Prop2018DistTar!$A:$A,),1),) -> 0 | S50: =IFERROR(INDEX(Prop2018DistTar!AO:AO,MATCH($A50,Prop2018DistTar!$A:$A,),1),) -> 0 | T50: =IFERROR(INDEX(Prop2018DistTar!AP:AP,MATCH($A50,Prop2018DistTar!$A:$A,),1),) -> 0 | U50: =IFERROR(INDEX(Prop2018DistTar!AQ:AQ,MATCH($A50,Prop2018DistTar!$A:$A,),1),) -> 0 | V50: =IFERROR(INDEX(Prop2018DistTar!AR:AR,MATCH($A50,Prop2018DistTar!$A:$A,),1),) -> 0 | W50: =IFERROR(INDEX(Prop2018DistTar!AS:AS,MATCH($A50,Prop2018DistTar!$A:$A,),1),) -> 0 | Z50: 0 | AA50: 0 | AB50: 0 | AC50: 0 | AD50: 0 | AE50: 0 | AF50: 0 | AG50: 0 | AH50: 0 | AI50: 0 | AJ50: 0 | AK50: 0 | AL50: 0 | AM50: 0 | AN50: 0 | AO50: 0 | AP50: 0 | AQ50: 0 | AR50: 0 | AS50: 0 | AT50: 0 | AV50: 0 | AW50: 0 | AX50: 0 | AY50: 0 | AZ50: 0 | BA50: 0 | BB50: 0 | BC50: 0 | BD50: 0 | BE50: 0 | BF50: 0 | BG50: 0 | BH50: 0 | BI50: 0 | BJ50: 0 | BK50: 0 | BL50: 0 | BM50: 0 | BN50: 0 | BO50: 0 | BP50: 0 | BQ50: 0
A51: ST | B51: Subtransmission | D51: =IFERROR(INDEX(Prop2018DistTar!Z:Z,MATCH($A51,Prop2018DistTar!$A:$A,),1),) -> 238000 | E51: =IFERROR(INDEX(Prop2018DistTar!AA:AA,MATCH($A51,Prop2018DistTar!$A:$A,),1),) -> 0 | F51: =IFERROR(INDEX(Prop2018DistTar!AB:AB,MATCH($A51,Prop2018DistTar!$A:$A,),1),) -> 0.49 | G51: =IFERROR(INDEX(Prop2018DistTar!AC:AC,MATCH($A51,Prop2018DistTar!$A:$A,),1),) -> 0 | H51: =IFERROR(INDEX(Prop2018DistTar!AD:AD,MATCH($A51,Prop2018DistTar!$A:$A,),1),) -> 0 | I51: =IFERROR(INDEX(Prop2018DistTar!AE:AE,MATCH($A51,Prop2018DistTar!$A:$A,),1),) -> 0.15 | J51: =IFERROR(INDEX(Prop2018DistTar!AF:AF,MATCH($A51,Prop2018DistTar!$A:$A,),1),) -> 0 | K51: =IFERROR(INDEX(Prop2018DistTar!AG:AG,MATCH($A51,Prop2018DistTar!$A:$A,),1),) -> 0 | L51: =IFERROR(INDEX(Prop2018DistTar!AH:AH,MATCH($A51,Prop2018DistTar!$A:$A,),1),) -> 0 | M51: =IFERROR(INDEX(Prop2018DistTar!AI:AI,MATCH($A51,Prop2018DistTar!$A:$A,),1),) -> 4.57 | N51: =IFERROR(INDEX(Prop2018DistTar!AJ:AJ,MATCH($A51,Prop2018DistTar!$A:$A,),1),) -> 0 | O51: =IFERROR(INDEX(Prop2018DistTar!AK:AK,MATCH($A51,Prop2018DistTar!$A:$A,),1),) -> 0 | P51: =IFERROR(INDEX(Prop2018DistTar!AL:AL,MATCH($A51,Prop2018DistTar!$A:$A,),1),) -> 0 | Q51: =IFERROR(INDEX(Prop2018DistTar!AM:AM,MATCH($A51,Prop2018DistTar!$A:$A,),1),) -> 0 | R51: =IFERROR(INDEX(Prop2018DistTar!AN:AN,MATCH($A51,Prop2018DistTar!$A:$A,),1),) -> 0 | S51: =IFERROR(INDEX(Prop2018DistTar!AO:AO,MATCH($A51,Prop2018DistTar!$A:$A,),1),) -> 0 | T51: =IFERROR(INDEX(Prop2018DistTar!AP:AP,MATCH($A51,Prop2018DistTar!$A:$A,),1),) -> 0 | U51: =IFERROR(INDEX(Prop2018DistTar!AQ:AQ,MATCH($A51,Prop2018DistTar!$A:$A,),1),) -> 0 | V51: =IFERROR(INDEX(Prop2018DistTar!AR:AR,MATCH($A51,Prop2018DistTar!$A:$A,),1),) -> 0 | W51: =IFERROR(INDEX(Prop2018DistTar!AS:AS,MATCH($A51,Prop2018DistTar!$A:$A,),1),) -> 0 | Z51: 10 | AA51: 0 | AB51: 555253381.4 | AC51: 0 | AD51: 0 | AE51: 469027152.1 | AF51: 0 | AG51: 0 | AH51: 0 | AI51: 200469.0255 | AJ51: 0 | AK51: 0 | AL51: 0 | AM51: 0 | AN51: 0 | AO51: 0 | AP51: 0 | AQ51: 0 | AR51: 0 | AS51: 0 | AT51: 0 | AV51: 2380000 | AW51: 0 | AX51: 2720741.569 | AY51: 0 | AZ51: 0 | BA51: 703540.7281 | BB51: 0 | BC51: 0 | BD51: 0 | BE51: 916143.4467 | BF51: 0 | BG51: 0 | BH51: 0 | BI51: 0 | BJ51: 0 | BK51: 0 | BL51: 0 | BM51: 0 | BN51: 0 | BO51: 0 | BP51: 0 | BQ51: 6720425.744
A52: DSA | B52: Subtransmission Demand A | D52: =IFERROR(INDEX(Prop2018DistTar!Z:Z,MATCH($A52,Prop2018DistTar!$A:$A,),1),) -> 0 | E52: =IFERROR(INDEX(Prop2018DistTar!AA:AA,MATCH($A52,Prop2018DistTar!$A:$A,),1),) -> 0 | F52: =IFERROR(INDEX(Prop2018DistTar!AB:AB,MATCH($A52,Prop2018DistTar!$A:$A,),1),) -> 0 | G52: =IFERROR(INDEX(Prop2018DistTar!AC:AC,MATCH($A52,Prop2018DistTar!$A:$A,),1),) -> 0 | H52: =IFERROR(INDEX(Prop2018DistTar!AD:AD,MATCH($A52,Prop2018DistTar!$A:$A,),1),) -> 0 | I52: =IFERROR(INDEX(Prop2018DistTar!AE:AE,MATCH($A52,Prop2018DistTar!$A:$A,),1),) -> 0 | J52: =IFERROR(INDEX(Prop2018DistTar!AF:AF,MATCH($A52,Prop2018DistTar!$A:$A,),1),) -> 0 | K52: =IFERROR(INDEX(Prop2018DistTar!AG:AG,MATCH($A52,Prop2018DistTar!$A:$A,),1),) -> 0 | L52: =IFERROR(INDEX(Prop2018DistTar!AH:AH,MATCH($A52,Prop2018DistTar!$A:$A,),1),) -> 0 | M52: =IFERROR(INDEX(Prop2018DistTar!AI:AI,MATCH($A52,Prop2018DistTar!$A:$A,),1),) -> 0 | N52: =IFERROR(INDEX(Prop2018DistTar!AJ:AJ,MATCH($A52,Prop2018DistTar!$A:$A,),1),) -> 0 | O52: =IFERROR(INDEX(Prop2018DistTar!AK:AK,MATCH($A52,Prop2018DistTar!$A:$A,),1),) -> 0 | P52: =IFERROR(INDEX(Prop2018DistTar!AL:AL,MATCH($A52,Prop2018DistTar!$A:$A,),1),) -> 0 | Q52: =IFERROR(INDEX(Prop2018DistTar!AM:AM,MATCH($A52,Prop2018DistTar!$A:$A,),1),) -> 0 | R52: =IFERROR(INDEX(Prop2018DistTar!AN:AN,MATCH($A52,Prop2018DistTar!$A:$A,),1),) -> 0 | S52: =IFERROR(INDEX(Prop2018DistTar!AO:AO,MATCH($A52,Prop2018DistTar!$A:$A,),1),) -> 0 | T52: =IFERROR(INDEX(Prop2018DistTar!AP:AP,MATCH($A52,Prop2018DistTar!$A:$A,),1),) -> 0 | U52: =IFERROR(INDEX(Prop2018DistTar!AQ:AQ,MATCH($A52,Prop2018DistTar!$A:$A,),1),) -> 0 | V52: =IFERROR(INDEX(Prop2018DistTar!AR:AR,MATCH($A52,Prop2018DistTar!$A:$A,),1),) -> 0 | W52: =IFERROR(INDEX(Prop2018DistTar!AS:AS,MATCH($A52,Prop2018DistTar!$A:$A,),1),) -> 0 | Z52: 0 | AA52: 0 | AB52: 0 | AC52: 0 | AD52: 0 | AE52: 0 | AF52: 0 | AG52: 0 | AH52: 0 | AI52: 0 | AJ52: 0 | AK52: 0 | AL52: 0 | AM52: 0 | AN52: 0 | AO52: 0 | AP52: 0 | AQ52: 0 | AR52: 0 | AS52: 0 | AT52: 0 | AV52: 0 | AW52: 0 | AX52: 0 | AY52: 0 | AZ52: 0 | BA52: 0 | BB52: 0 | BC52: 0 | BD52: 0 | BE52: 0 | BF52: 0 | BG52: 0 | BH52: 0 | BI52: 0 | BJ52: 0 | BK52: 0 | BL52: 0 | BM52: 0 | BN52: 0 | BO52: 0 | BP52: 0 | BQ52: 0
A53: DSG | B53: Subtransmission Demand G | D53: =IFERROR(INDEX(Prop2018DistTar!Z:Z,MATCH($A53,Prop2018DistTar!$A:$A,),1),) -> 0 | E53: =IFERROR(INDEX(Prop2018DistTar!AA:AA,MATCH($A53,Prop2018DistTar!$A:$A,),1),) -> 0 | F53: =IFERROR(INDEX(Prop2018DistTar!AB:AB,MATCH($A53,Prop2018DistTar!$A:$A,),1),) -> 0 | G53: =IFERROR(INDEX(Prop2018DistTar!AC:AC,MATCH($A53,Prop2018DistTar!$A:$A,),1),) -> 0 | H53: =IFERROR(INDEX(Prop2018DistTar!AD:AD,MATCH($A53,Prop2018DistTar!$A:$A,),1),) -> 0 | I53: =IFERROR(INDEX(Prop2018DistTar!AE:AE,MATCH($A53,Prop2018DistTar!$A:$A,),1),) -> 0 | J53: =IFERROR(INDEX(Prop2018DistTar!AF:AF,MATCH($A53,Prop2018DistTar!$A:$A,),1),) -> 0 | K53: =IFERROR(INDEX(Prop2018DistTar!AG:AG,MATCH($A53,Prop2018DistTar!$A:$A,),1),) -> 0 | L53: =IFERROR(INDEX(Prop2018DistTar!AH:AH,MATCH($A53,Prop2018DistTar!$A:$A,),1),) -> 0 | M53: =IFERROR(INDEX(Prop2018DistTar!AI:AI,MATCH($A53,Prop2018DistTar!$A:$A,),1),) -> 0 | N53: =IFERROR(INDEX(Prop2018DistTar!AJ:AJ,MATCH($A53,Prop2018DistTar!$A:$A,),1),) -> 0 | O53: =IFERROR(INDEX(Prop2018DistTar!AK:AK,MATCH($A53,Prop2018DistTar!$A:$A,),1),) -> 0 | P53: =IFERROR(INDEX(Prop2018DistTar!AL:AL,MATCH($A53,Prop2018DistTar!$A:$A,),1),) -> 0 | Q53: =IFERROR(INDEX(Prop2018DistTar!AM:AM,MATCH($A53,Prop2018DistTar!$A:$A,),1),) -> 0 | R53: =IFERROR(INDEX(Prop2018DistTar!AN:AN,MATCH($A53,Prop2018DistTar!$A:$A,),1),) -> 0 | S53: =IFERROR(INDEX(Prop2018DistTar!AO:AO,MATCH($A53,Prop2018DistTar!$A:$A,),1),) -> 0 | T53: =IFERROR(INDEX(Prop2018DistTar!AP:AP,MATCH($A53,Prop2018DistTar!$A:$A,),1),) -> 0 | U53: =IFERROR(INDEX(Prop2018DistTar!AQ:AQ,MATCH($A53,Prop2018DistTar!$A:$A,),1),) -> 0 | V53: =IFERROR(INDEX(Prop2018DistTar!AR:AR,MATCH($A53,Prop2018DistTar!$A:$A,),1),) -> 0 | W53: =IFERROR(INDEX(Prop2018DistTar!AS:AS,MATCH($A53,Prop2018DistTar!$A:$A,),1),) -> 0 | Z53: 0 | AA53: 0 | AB53: 0 | AC53: 0 | AD53: 0 | AE53: 0 | AF53: 0 | AG53: 0 | AH53: 0 | AI53: 0 | AJ53: 0 | AK53: 0 | AL53: 0 | AM53: 0 | AN53: 0 | AO53: 0 | AP53: 0 | AQ53: 0 | AR53: 0 | AS53: 0 | AT53: 0 | AV53: 0 | AW53: 0 | AX53: 0 | AY53: 0 | AZ53: 0 | BA53: 0 | BB53: 0 | BC53: 0 | BD53: 0 | BE53: 0 | BF53: 0 | BG53: 0 | BH53: 0 | BI53: 0 | BJ53: 0 | BK53: 0 | BL53: 0 | BM53: 0 | BN53: 0 | BO53: 0 | BP53: 0 | BQ53: 0
A54: DSS | B54: Subtransmission Demand S | D54: =IFERROR(INDEX(Prop2018DistTar!Z:Z,MATCH($A54,Prop2018DistTar!$A:$A,),1),) -> 0 | E54: =IFERROR(INDEX(Prop2018DistTar!AA:AA,MATCH($A54,Prop2018DistTar!$A:$A,),1),) -> 0 | F54: =IFERROR(INDEX(Prop2018DistTar!AB:AB,MATCH($A54,Prop2018DistTar!$A:$A,),1),) -> 0 | G54: =IFERROR(INDEX(Prop2018DistTar!AC:AC,MATCH($A54,Prop2018DistTar!$A:$A,),1),) -> 0 | H54: =IFERROR(INDEX(Prop2018DistTar!AD:AD,MATCH($A54,Prop2018DistTar!$A:$A,),1),) -> 0 | I54: =IFERROR(INDEX(Prop2018DistTar!AE:AE,MATCH($A54,Prop2018DistTar!$A:$A,),1),) -> 0 | J54: =IFERROR(INDEX(Prop2018DistTar!AF:AF,MATCH($A54,Prop2018DistTar!$A:$A,),1),) -> 0 | K54: =IFERROR(INDEX(Prop2018DistTar!AG:AG,MATCH($A54,Prop2018DistTar!$A:$A,),1),) -> 0 | L54: =IFERROR(INDEX(Prop2018DistTar!AH:AH,MATCH($A54,Prop2018DistTar!$A:$A,),1),) -> 0 | M54: =IFERROR(INDEX(Prop2018DistTar!AI:AI,MATCH($A54,Prop2018DistTar!$A:$A,),1),) -> 0 | N54: =IFERROR(INDEX(Prop2018DistTar!AJ:AJ,MATCH($A54,Prop2018DistTar!$A:$A,),1),) -> 0 | O54: =IFERROR(INDEX(Prop2018DistTar!AK:AK,MATCH($A54,Prop2018DistTar!$A:$A,),1),) -> 0 | P54: =IFERROR(INDEX(Prop2018DistTar!AL:AL,MATCH($A54,Prop2018DistTar!$A:$A,),1),) -> 0 | Q54: =IFERROR(INDEX(Prop2018DistTar!AM:AM,MATCH($A54,Prop2018DistTar!$A:$A,),1),) -> 0 | R54: =IFERROR(INDEX(Prop2018DistTar!AN:AN,MATCH($A54,Prop2018DistTar!$A:$A,),1),) -> 0 | S54: =IFERROR(INDEX(Prop2018DistTar!AO:AO,MATCH($A54,Prop2018DistTar!$A:$A,),1),) -> 0 | T54: =IFERROR(INDEX(Prop2018DistTar!AP:AP,MATCH($A54,Prop2018DistTar!$A:$A,),1),) -> 0 | U54: =IFERROR(INDEX(Prop2018DistTar!AQ:AQ,MATCH($A54,Prop2018DistTar!$A:$A,),1),) -> 0 | V54: =IFERROR(INDEX(Prop2018DistTar!AR:AR,MATCH($A54,Prop2018DistTar!$A:$A,),1),) -> 0 | W54: =IFERROR(INDEX(Prop2018DistTar!AS:AS,MATCH($A54,Prop2018DistTar!$A:$A,),1),) -> 0 | Z54: 0 | AA54: 0 | AB54: 0 | AC54: 0 | AD54: 0 | AE54: 0 | AF54: 0 | AG54: 0 | AH54: 0 | AI54: 0 | AJ54: 0 | AK54: 0 | AL54: 0 | AM54: 0 | AN54: 0 | AO54: 0 | AP54: 0 | AQ54: 0 | AR54: 0 | AS54: 0 | AT54: 0 | AV54: 0 | AW54: 0 | AX54: 0 | AY54: 0 | AZ54: 0 | BA54: 0 | BB54: 0 | BC54: 0 | BD54: 0 | BE54: 0 | BF54: 0 | BG54: 0 | BH54: 0 | BI54: 0 | BJ54: 0 | BK54: 0 | BL54: 0 | BM54: 0 | BN54: 0 | BO54: 0 | BP54: 0 | BQ54: 0
AV55: 0 | AW55: 0 | AX55: 0 | AY55: 0 | AZ55: 0 | BA55: 0 | BB55: 0 | BC55: 0 | BD55: 0 | BE55: 0 | BF55: 0 | BG55: 0 | BH55: 0 | BI55: 0 | BJ55: 0 | BK55: 0 | BL55: 0 | BM55: 0 | BN55: 0 | BO55: 0 | BP55: 0 | BQ55: 0
AV56: 0 | AW56: 0 | AX56: 0 | AY56: 0 | AZ56: 0 | BA56: 0 | BB56: 0 | BC56: 0 | BD56: 0 | BE56: 0 | BF56: 0 | BG56: 0 | BH56: 0 | BI56: 0 | BJ56: 0 | BK56: 0 | BL56: 0 | BM56: 0 | BN56: 0 | BO56: 0 | BP56: 0 | BQ56: 0
AV57: 0 | AW57: 0 | AX57: 0 | AY57: 0 | AZ57: 0 | BA57: 0 | BB57: 0 | BC57: 0 | BD57: 0 | BE57: 0 | BF57: 0 | BG57: 0 | BH57: 0 | BI57: 0 | BJ57: 0 | BK57: 0 | BL57: 0 | BM57: 0 | BN57: 0 | BO57: 0 | BP57: 0 | BQ57: 0
AV58: 0 | AW58: 0 | AX58: 0 | AY58: 0 | AZ58: 0 | BA58: 0 | BB58: 0 | BC58: 0 | BD58: 0 | BE58: 0 | BF58: 0 | BG58: 0 | BH58: 0 | BI58: 0 | BJ58: 0 | BK58: 0 | BL58: 0 | BM58: 0 | BN58: 0 | BO58: 0 | BP58: 0 | BQ58: 0
AV59: 0 | AW59: 0 | AX59: 0 | AY59: 0 | AZ59: 0 | BA59: 0 | BB59: 0 | BC59: 0 | BD59: 0 | BE59: 0 | BF59: 0 | BG59: 0 | BH59: 0 | BI59: 0 | BJ59: 0 | BK59: 0 | BL59: 0 | BM59: 0 | BN59: 0 | BO59: 0 | BP59: 0 | BQ59: 0
AV60: 0 | AW60: 0 | AX60: 0 | AY60: 0 | AZ60: 0 | BA60: 0 | BB60: 0 | BC60: 0 | BD60: 0 | BE60: 0 | BF60: 0 | BG60: 0 | BH60: 0 | BI60: 0 | BJ60: 0 | BK60: 0 | BL60: 0 | BM60: 0 | BN60: 0 | BO60: 0 | BP60: 0 | BQ60: 0
AV61: 0 | AW61: 0 | AX61: 0 | AY61: 0 | AZ61: 0 | BA61: 0 | BB61: 0 | BC61: 0 | BD61: 0 | BE61: 0 | BF61: 0 | BG61: 0 | BH61: 0 | BI61: 0 | BJ61: 0 | BK61: 0 | BL61: 0 | BM61: 0 | BN61: 0 | BO61: 0 | BP61: 0 | BQ61: 0
AV62: 0 | AW62: 0 | AX62: 0 | AY62: 0 | AZ62: 0 | BA62: 0 | BB62: 0 | BC62: 0 | BD62: 0 | BE62: 0 | BF62: 0 | BG62: 0 | BH62: 0 | BI62: 0 | BJ62: 0 | BK62: 0 | BL62: 0 | BM62: 0 | BN62: 0 | BO62: 0 | BP62: 0 | BQ62: 0
AV63: 0 | AW63: 0 | AX63: 0 | AY63: 0 | AZ63: 0 | BA63: 0 | BB63: 0 | BC63: 0 | BD63: 0 | BE63: 0 | BF63: 0 | BG63: 0 | BH63: 0 | BI63: 0 | BJ63: 0 | BK63: 0 | BL63: 0 | BM63: 0 | BN63: 0 | BO63: 0 | BP63: 0 | BQ63: 0
AV64: 0 | AW64: 0 | AX64: 0 | AY64: 0 | AZ64: 0 | BA64: 0 | BB64: 0 | BC64: 0 | BD64: 0 | BE64: 0 | BF64: 0 | BG64: 0 | BH64: 0 | BI64: 0 | BJ64: 0 | BK64: 0 | BL64: 0 | BM64: 0 | BN64: 0 | BO64: 0 | BP64: 0 | BQ64: 0
AV65: 0 | AW65: 0 | AX65: 0 | AY65: 0 | AZ65: 0 | BA65: 0 | BB65: 0 | BC65: 0 | BD65: 0 | BE65: 0 | BF65: 0 | BG65: 0 | BH65: 0 | BI65: 0 | BJ65: 0 | BK65: 0 | BL65: 0 | BM65: 0 | BN65: 0 | BO65: 0 | BP65: 0 | BQ65: 0
Z66: =SUM(Z6:Z65)-SUM(Z17:Z20)-SUM(Z30,Z41:Z42,Z51) -> 804176.4986 | AA66: =SUM(AA6:AA65) -> 2373876351 | AB66: 4245148601 | AC66: 0 | AD66: 0 | AE66: 4033350048 | AF66: 0 | AG66: 0 | AH66: 0 | AI66: 1505147.618 | AJ66: 0 | AK66: 1588679.891 | AL66: 2959315.556 | AM66: =SUM(AM6:AM65) -> 4067340.009 | AN66: 6816960.783 | AO66: 6470322.173 | AP66: 0 | AQ66: 4621123.195 | AR66: 7023518.408 | AS66: 6995465.138 | AT66: 0 | AV66: =SUM(AV6:AV65) -> 137464729.1 | AW66: 128998718.4 | AX66: 189381105.9 | AY66: 0 | AZ66: 0 | BA66: 59905547.27 | BB66: 0 | BC66: 0 | BD66: 0 | BE66: 98324371.19 | BF66: 0 | BG66: 1379642.86 | BH66: 925286.4557 | BI66: 410700.1735 | BJ66: 371608.5725 | BK66: 146649.4958 | BL66: 0 | BM66: 469771.6545 | BN66: 378548.9087 | BO66: 160093.1557 | BP66: 0 | BQ66: =SUM(BQ6:BQ65) -> 618316773.2
Z67: -2826.583333 | AJ67: 0 | AK67: 0 | AL67: 0 | AT67: 0

Sheet Prop2018TransTar
B1: ="Tariff Approval - "&'Model update'!C3 -> Tariff Approval - Powercor
B3: ="PROPOSED "&'Model update'!$C$5&" TRANSMISSION TARIFFS" -> PROPOSED 2018 TRANSMISSION TARIFFS
D4: ="Proposed Transmission Tariffs (Pt) for "&'Model update'!$C$5 -> Proposed Transmission Tariffs (Pt) for 2018 | Z4: ="Forecast Quantities (Qt) for "&'Model update'!$C$5 -> Forecast Quantities (Qt) for 2018 | AV4: ="Forecast Revenue (Pt "&'Model update'!$C$5&")*(Qt " &'Model update'!$C$5&")" -> Forecast Revenue (Pt 2018)*(Qt 2018)
B5: Proposed tariff | D5: PropTar Fixed | E5: PropTar Anytime | F5: PropTar PkBlk | I5: PropTar OPkBlk1 | M5: PropTar Dem kVA | N5: PropTar Dem kW | O5: PropTar Dem kW Sum | P5: PropTar Dem kW Win | Q5: PropTar SumBlk1 | R5: PropTar SumBlk2 | S5: PropTar SumBlk3 | U5: PropTar WtrBlk1 | V5: PropTar WtrBlk2 | W5: PropTar WtrBlk3 | Z5: FcastVol Fixed | AA5: FcastVol Anytime | AB5: FcastVol Pk | AE5: FcastVol Opk | AI5: FcastVol Dem kVA | AJ5: FcastVol Dem kW | AK5: FcastVol Dem kW Sum | AL5: FcastVol Dem kW Win | AM5: FcastVol SumBlk1 | AN5: FcastVol SumBlk2 | AO5: FcastVol SumBlk3 | AQ5: FcastVol WtrBlk1 | AR5: FcastVol WtrBlk2 | AS5: FcastVol WtrBlk3 | AV5: PropRev Fixed | AW5: PropRev Anytime | AX5: PropRev Pk | BA5: PropRev Opk | BE5: PropRev Dem kVA | BF5: PropRev Dem kW | BG5: PropRev Dem kW Sum | BH5: PropRev Dem kW Win | BI5: PropRev SumBlk1 | BJ5: PropRev SumBlk2 | BK5: PropRev SumBlk3 | BM5: PropRev WtrBlk1 | BN5: PropRev WtrBlk2 | BO5: PropRev WtrBlk3 | BQ5: PropRev Total
AV6: =D6*Z6 -> 0 | AW6: =E6/100*AA6 -> 0 | AX6: 0 | AY6: 0 | AZ6: 0 | BA6: 0 | BB6: 0 | BC6: 0 | BD6: 0 | BE6: =M6*AI6 -> 0 | BF6: 0 | BG6: 0 | BH6: 0 | BI6: =Q6/100*AM6 -> 0 | BJ6: 0 | BK6: 0 | BL6: 0 | BM6: 0 | BN6: 0 | BO6: 0 | BP6: 0 | BQ6: =SUM(AV6:BP6) -> 0
A7: =Prop2018DistTar!A7 -> D1 | B7: =Prop2018DistTar!B7 -> Residential Single Rate | D7: 0 | E7: 1.54 | F7: 0 | G7: 0 | H7: 0 | I7: 0 | J7: 0 | K7: 0 | L7: 0 | M7: 0 | N7: 0 | O7: 0 | P7: 0 | Q7: 0 | R7: 0 | S7: 0 | T7: 0 | U7: 0 | V7: 0 | W7: 0 | X7: 0 | Z7: =Prop2018DistTar!AV7 -> 539032.4658 | AA7: =Prop2018DistTar!AW7 -> 2272899090 | AB7: =Prop2018DistTar!AX7 -> 0 | AC7: =Prop2018DistTar!AY7 -> 0 | AD7: =Prop2018DistTar!AZ7 -> 0 | AE7: =Prop2018DistTar!BA7 -> 0 | AF7: =Prop2018DistTar!BB7 -> 0 | AG7: =Prop2018DistTar!BC7 -> 0 | AH7: =Prop2018DistTar!BD7 -> 0 | AI7: =Prop2018DistTar!BE7 -> 0 | AJ7: =Prop2018DistTar!BF7 -> 0 | AK7: =Prop2018DistTar!BG7 -> 0 | AL7: =Prop2018DistTar!BH7 -> 0 | AM7: =Prop2018DistTar!BI7 -> 0 | AN7: =Prop2018DistTar!BJ7 -> 0 | AO7: =Prop2018DistTar!BK7 -> 0 | AP7: =Prop2018DistTar!BL7 -> 0 | AQ7: =Prop2018DistTar!BM7 -> 0 | AR7: =Prop2018DistTar!BN7 -> 0 | AS7: =Prop2018DistTar!BO7 -> 0 | AT7: =Prop2018DistTar!BP7 -> 0 | AV7: 0 | AW7: 35002645.98 | AX7: 0 | AY7: 0 | AZ7: 0 | BA7: 0 | BB7: 0 | BC7: 0 | BD7: 0 | BE7: 0 | BF7: 0 | BG7: 0 | BH7: 0 | BI7: 0 | BJ7: 0 | BK7: 0 | BL7: 0 | BM7: 0 | BN7: 0 | BO7: 0 | BP7: 0 | BQ7: =SUM(AV7:BP7) -> 35002645.98
A8: =Prop2018DistTar!A8 -> D1CS | B8: =Prop2018DistTar!B8 -> Climate Saver | D8: 0 | E8: 0 | F8: 2.18 | G8: 0 | H8: 0 | I8: 0.45 | J8: 0 | K8: 0 | L8: 0 | M8: 0 | N8: 0 | O8: 0 | P8: 0 | Q8: 0 | R8: 0 | S8: 0 | T8: 0 | U8: 0 | V8: 0 | W8: 0 | X8: 0 | Z8: =Prop2018DistTar!AV8 -> 16710.63696 | AA8: =Prop2018DistTar!AW8 -> 0 | AB8: =Prop2018DistTar!AX8 -> 9017601.645 | AC8: =Prop2018DistTar!AY8 -> 0 | AD8: =Prop2018DistTar!AZ8 -> 0 | AE8: =Prop2018DistTar!BA8 -> 18758723.33 | AF8: =Prop2018DistTar!BB8 -> 0 | AG8: =Prop2018DistTar!BC8 -> 0 | AH8: =Prop2018DistTar!BD8 -> 0 | AI8: =Prop2018DistTar!BE8 -> 0 | AJ8: =Prop2018DistTar!BF8 -> 0 | AK8: =Prop2018DistTar!BG8 -> 0 | AL8: =Prop2018DistTar!BH8 -> 0 | AM8: =Prop2018DistTar!BI8 -> 0 | AN8: =Prop2018DistTar!BJ8 -> 0 | AO8: =Prop2018DistTar!BK8 -> 0 | AP8: =Prop2018DistTar!BL8 -> 0 | AQ8: =Prop2018DistTar!BM8 -> 0 | AR8: =Prop2018DistTar!BN8 -> 0 | AS8: =Prop2018DistTar!BO8 -> 0 | AT8: =Prop2018DistTar!BP8 -> 0 | AV8: 0 | AW8: 0 | AX8: 196583.7159 | AY8: 0 | AZ8: 0 | BA8: 84414.255 | BB8: 0 | BC8: 0 | BD8: 0 | BE8: 0 | BF8: 0 | BG8: 0 | BH8: 0 | BI8: 0 | BJ8: 0 | BK8: 0 | BL8: 0 | BM8: 0 | BN8: 0 | BO8: 0 | BP8: 0 | BQ8: =SUM(AV8:BP8) -> 280997.9709
A9: =Prop2018DistTar!A9 -> D3CS | B9: =Prop2018DistTar!B9 -> Climate Saver Interval | D9: 0 | E9: 0 | F9: 2.18 | G9: 0 | H9: 0 | I9: 0.45 | J9: 0 | K9: 0 | L9: 0 | M9: 0 | N9: 0 | O9: 0 | P9: 0 | Q9: 0 | R9: 0 | S9: 0 | T9: 0 | U9: 0 | V9: 0 | W9: 0 | X9: 0 | Z9: =Prop2018DistTar!AV9 -> 4570.646036 | AA9: =Prop2018DistTar!AW9 -> 0 | AB9: =Prop2018DistTar!AX9 -> 2542127.966 | AC9: =Prop2018DistTar!AY9 -> 0 | AD9: =Prop2018DistTar!AZ9 -> 0 | AE9: =Prop2018DistTar!BA9 -> 5918747.132 | AF9: =Prop2018DistTar!BB9 -> 0 | AG9: =Prop2018DistTar!BC9 -> 0 | AH9: =Prop2018DistTar!BD9 -> 0 | AI9: =Prop2018DistTar!BE9 -> 0 | AJ9: =Prop2018DistTar!BF9 -> 0 | AK9: =Prop2018DistTar!BG9 -> 0 | AL9: =Prop2018DistTar!BH9 -> 0 | AM9: =Prop2018DistTar!BI9 -> 0 | AN9: =Prop2018DistTar!BJ9 -> 0 | AO9: =Prop2018DistTar!BK9 -> 0 | AP9: =Prop2018DistTar!BL9 -> 0 | AQ9: =Prop2018DistTar!BM9 -> 0 | AR9: =Prop2018DistTar!BN9 -> 0 | AS9: =Prop2018DistTar!BO9 -> 0 | AT9: =Prop2018DistTar!BP9 -> 0 | AV9: 0 | AW9: 0 | AX9: 55418.38965 | AY9: 0 | AZ9: 0 | BA9: 26634.36209 | BB9: 0 | BC9: 0 | BD9: 0 | BE9: 0 | BF9: 0 | BG9: 0 | BH9: 0 | BI9: 0 | BJ9: 0 | BK9: 0 | BL9: 0 | BM9: 0 | BN9: 0 | BO9: 0 | BP9: 0 | BQ9: 82052.75174
A10: =Prop2018DistTar!A10 -> P13R | B10: =Prop2018DistTar!B10 -> Residential - Flexible Pricing | D10: 0 | E10: 0 | F10: 0 | G10: 0 | H10: 0 | I10: 0 | J10: 0 | K10: 0 | L10: 0 | M10: 0 | N10: 0 | O10: 0 | P10: 0 | Q10: 2.83 | R10: 1.6 | S10: 0.63 | T10: 0 | U10: 2.83 | V10: 1.6 | W10: 0.63 | X10: 0 | Z10: =Prop2018DistTar!AV10 -> 2967.267133 | AA10: =Prop2018DistTar!AW10 -> 0 | AB10: =Prop2018DistTar!AX10 -> 0 | AC10: =Prop2018DistTar!AY10 -> 0 | AD10: =Prop2018DistTar!AZ10 -> 0 | AE10: =Prop2018DistTar!BA10 -> 0 | AF10: =Prop2018DistTar!BB10 -> 0 | AG10: =Prop2018DistTar!BC10 -> 0 | AH10: =Prop2018DistTar!BD10 -> 0 | AI10: =Prop2018DistTar!BE10 -> 0 | AJ10: =Prop2018DistTar!BF10 -> 0 | AK10: =Prop2018DistTar!BG10 -> 0 | AL10: =Prop2018DistTar!BH10 -> 0 | AM10: =Prop2018DistTar!BI10 -> 956328.9598 | AN10: =Prop2018DistTar!BJ10 -> 1626467.672 | AO10: =Prop2018DistTar!BK10 -> 1172486.559 | AP10: =Prop2018DistTar!BL10 -> 0 | AQ10: =Prop2018DistTar!BM10 -> 2937193.672 | AR10: =Prop2018DistTar!BN10 -> 5211028.621 | AS10: =Prop2018DistTar!BO10 -> 4120190.702 | AT10: =Prop2018DistTar!BP10 -> 0 | AV10: 0 | AW10: 0 | AX10: 0 | AY10: 0 | AZ10: 0 | BA10: 0 | BB10: 0 | BC10: 0 | BD10: 0 | BE10: 0 | BF10: 0 | BG10: 0 | BH10: 0 | BI10: 27064.10956 | BJ10: 26023.48275 | BK10: 7386.665319 | BL10: 0 | BM10: 83122.58091 | BN10: 83376.45793 | BO10: 25957.20142 | BP10: 0 | BQ10: 252930.4979
A11: =Prop2018DistTar!A11 -> P13RDK | B11: =Prop2018DistTar!B11 -> Residential Docklands - Flexible Pricing | D11: 0 | E11: 0 | F11: 0 | G11: 0 | H11: 0 | I11: 0 | J11: 0 | K11: 0 | L11: 0 | M11: 0 | N11: 0 | O11: 0 | P11: 0 | Q11: 1.53 | R11: 0.84 | S11: 0.29 | T11: 0 | U11: 1.53 | V11: 0.84 | W11: 0.29 | X11: 0 | Z11: =Prop2018DistTar!AV11 -> 1 | AA11: =Prop2018DistTar!AW11 -> 0 | AB11: =Prop2018DistTar!AX11 -> 0 | AC11: =Prop2018DistTar!AY11 -> 0 | AD11: =Prop2018DistTar!AZ11 -> 0 | AE11: =Prop2018DistTar!BA11 -> 0 | AF11: =Prop2018DistTar!BB11 -> 0 | AG11: =Prop2018DistTar!BC11 -> 0 | AH11: =Prop2018DistTar!BD11 -> 0 | AI11: =Prop2018DistTar!BE11 -> 0 | AJ11: =Prop2018DistTar!BF11 -> 0 | AK11: =Prop2018DistTar!BG11 -> 0 | AL11: =Prop2018DistTar!BH11 -> 0 | AM11: =Prop2018DistTar!BI11 -> 298.5290379 | AN11: =Prop2018DistTar!BJ11 -> 617.7065498 | AO11: =Prop2018DistTar!BK11 -> 457.8706074 | AP11: =Prop2018DistTar!BL11 -> 0 | AQ11: =Prop2018DistTar!BM11 -> 1021.464472 | AR11: =Prop2018DistTar!BN11 -> 1968.88476 | AS11: =Prop2018DistTar!BO11 -> 1310.109406 | AT11: =Prop2018DistTar!BP11 -> 0 | AV11: 0 | AW11: 0 | AX11: 0 | AY11: 0 | AZ11: 0 | BA11: 0 | BB11: 0 | BC11: 0 | BD11: 0 | BE11: 0 | BF11: 0 | BG11: 0 | BH11: 0 | BI11: 4.56749428 | BJ11: 5.188735018 | BK11: 1.327824762 | BL11: 0 | BM11: 15.62840642 | BN11: 16.53863199 | BO11: 3.799317277 | BP11: 0 | BQ11: 47.05040974
A12: =Prop2018DistTar!A12 -> P13RCS | B12: =Prop2018DistTar!B12 -> Climate Saver - Flexible Pricing | D12: 0 | E12: 0 | F12: 0 | G12: 0 | H12: 0 | I12: 0 | J12: 0 | K12: 0 | L12: 0 | M12: 0 | N12: 0 | O12: 0 | P12: 0 | Q12: 2.18 | R12: 0 | S12: 0 | T12: 0 | U12: 0.45 | V12: 0 | W12: 0 | X12: 0 | Z12: =Prop2018DistTar!AV12 -> 61.27586321 | AA12: =Prop2018DistTar!AW12 -> 0 | AB12: =Prop2018DistTar!AX12 -> 0 | AC12: =Prop2018DistTar!AY12 -> 0 | AD12: =Prop2018DistTar!AZ12 -> 0 | AE12: =Prop2018DistTar!BA12 -> 0 | AF12: =Prop2018DistTar!BB12 -> 0 | AG12: =Prop2018DistTar!BC12 -> 0 | AH12: =Prop2018DistTar!BD12 -> 0 | AI12: =Prop2018DistTar!BE12 -> 0 | AJ12: =Prop2018DistTar!BF12 -> 0 | AK12: =Prop2018DistTar!BG12 -> 0 | AL12: =Prop2018DistTar!BH12 -> 0 | AM12: =Prop2018DistTar!BI12 -> 24228.47206 | AN12: =Prop2018DistTar!BJ12 -> 0 | AO12: =Prop2018DistTar!BK12 -> 0 | AP12: =Prop2018DistTar!BL12 -> 0 | AQ12: =Prop2018DistTar!BM12 -> 68208.94309 | AR12: =Prop2018DistTar!BN12 -> 0 | AS12: =Prop2018DistTar!BO12 -> 0 | AT12: =Prop2018DistTar!BP12 -> 0 | AV12: 0 | AW12: 0 | AX12: 0 | AY12: 0 | AZ12: 0 | BA12: 0 | BB12: 0 | BC12: 0 | BD12: 0 | BE12: 0 | BF12: 0 | BG12: 0 | BH12: 0 | BI12: 528.180691 | BJ12: 0 | BK12: 0 | BL12: 0 | BM12: 306.9402439 | BN12: 0 | BO12: 0 | BP12: 0 | BQ12: 835.1209349
A13: =Prop2018DistTar!A13 -> P1DK | B13: =Prop2018DistTar!B13 -> Docklands single rate | D13: 0 | E13: 1.41 | F13: 0 | G13: 0 | H13: 0 | I13: 0 | J13: 0 | K13: 0 | L13: 0 | M13: 0 | N13: 0 | O13: 0 | P13: 0 | Q13: 0 | R13: 0 | S13: 0 | T13: 0 | U13: 0 | V13: 0 | W13: 0 | X13: 0 | Z13: =Prop2018DistTar!AV13 -> 1 | AA13: =Prop2018DistTar!AW13 -> 11930.9304 | AB13: =Prop2018DistTar!AX13 -> 0 | AC13: =Prop2018DistTar!AY13 -> 0 | AD13: =Prop2018DistTar!AZ13 -> 0 | AE13: =Prop2018DistTar!BA13 -> 0 | AF13: =Prop2018DistTar!BB13 -> 0 | AG13: =Prop2018DistTar!BC13 -> 0 | AH13: =Prop2018DistTar!BD13 -> 0 | AI13: =Prop2018DistTar!BE13 -> 0 | AJ13: =Prop2018DistTar!BF13 -> 0 | AK13: =Prop2018DistTar!BG13 -> 0 | AL13: =Prop2018DistTar!BH13 -> 0 | AM13: =Prop2018DistTar!BI13 -> 0 | AN13: =Prop2018DistTar!BJ13 -> 0 | AO13: =Prop2018DistTar!BK13 -> 0 | AP13: =Prop2018DistTar!BL13 -> 0 | AQ13: =Prop2018DistTar!BM13 -> 0 | AR13: =Prop2018DistTar!BN13 -> 0 | AS13: =Prop2018DistTar!BO13 -> 0 | AT13: =Prop2018DistTar!BP13 -> 0 | AV13: 0 | AW13: 168.2261187 | AX13: 0 | AY13: 0 | AZ13: 0 | BA13: 0 | BB13: 0 | BC13: 0 | BD13: 0 | BE13: 0 | BF13: 0 | BG13: 0 | BH13: 0 | BI13: 0 | BJ13: 0 | BK13: 0 | BL13: 0 | BM13: 0 | BN13: 0 | BO13: 0 | BP13: 0 | BQ13: 168.2261187
A14: =Prop2018DistTar!A14 -> D2 | B14: =Prop2018DistTar!B14 -> Residential Two Rate 5d | D14: 0 | E14: 0 | F14: 2.7 | G14: 0 | H14: 0 | I14: 0.52 | J14: 0 | K14: 0 | L14: 0 | M14: 0 | N14: 0 | O14: 0 | P14: 0 | Q14: 0 | R14: 0 | S14: 0 | T14: 0 | U14: 0 | V14: 0 | W14: 0 | X14: 0 | Z14: =Prop2018DistTar!AV14 -> 45013.52703 | AA14: =Prop2018DistTar!AW14 -> 0 | AB14: =Prop2018DistTar!AX14 -> 123396558.8 | AC14: =Prop2018DistTar!AY14 -> 0 | AD14: =Prop2018DistTar!AZ14 -> 0 | AE14: =Prop2018DistTar!BA14 -> 113802346.9 | AF14: =Prop2018DistTar!BB14 -> 0 | AG14: =Prop2018DistTar!BC14 -> 0 | AH14: =Prop2018DistTar!BD14 -> 0 | AI14: =Prop2018DistTar!BE14 -> 0 | AJ14: =Prop2018DistTar!BF14 -> 0 | AK14: =Prop2018DistTar!BG14 -> 0 | AL14: =Prop2018DistTar!BH14 -> 0 | AM14: =Prop2018DistTar!BI14 -> 0 | AN14: =Prop2018DistTar!BJ14 -> 0 | AO14: =Prop2018DistTar!BK14 -> 0 | AP14: =Prop2018DistTar!BL14 -> 0 | AQ14: =Prop2018DistTar!BM14 -> 0 | AR14: =Prop2018DistTar!BN14 -> 0 | AS14: =Prop2018DistTar!BO14 -> 0 | AT14: =Prop2018DistTar!BP14 -> 0 | AV14: 0 | AW14: 0 | AX14: 3331707.089 | AY14: 0 | AZ14: 0 | BA14: 591772.204 | BB14: 0 | BC14: 0 | BD14: 0 | BE14: 0 | BF14: 0 | BG14: 0 | BH14: 0 | BI14: 0 | BJ14: 0 | BK14: 0 | BL14: 0 | BM14: 0 | BN14: 0 | BO14: 0 | BP14: 0 | BQ14: 3923479.293
A15: =Prop2018DistTar!A15 -> D2DK | B15: =Prop2018DistTar!B15 -> Docklands Two Rate 5d | D15: 0 | E15: 0 | F15: 2.53 | G15: 0 | H15: 0 | I15: 0.45 | J15: 0 | K15: 0 | L15: 0 | M15: 0 | N15: 0 | O15: 0 | P15: 0 | Q15: 0 | R15: 0 | S15: 0 | T15: 0 | U15: 0 | V15: 0 | W15: 0 | X15: 0 | Z15: =Prop2018DistTar!AV15 -> 584.1465984 | AA15: =Prop2018DistTar!AW15 -> 0 | AB15: =Prop2018DistTar!AX15 -> 1780658.232 | AC15: =Prop2018DistTar!AY15 -> 0 | AD15: =Prop2018DistTar!AZ15 -> 0 | AE15: =Prop2018DistTar!BA15 -> 1663261.295 | AF15: =Prop2018DistTar!BB15 -> 0 | AG15: =Prop2018DistTar!BC15 -> 0 | AH15: =Prop2018DistTar!BD15 -> 0 | AI15: =Prop2018DistTar!BE15 -> 0 | AJ15: =Prop2018DistTar!BF15 -> 0 | AK15: =Prop2018DistTar!BG15 -> 0 | AL15: =Prop2018DistTar!BH15 -> 0 | AM15: =Prop2018DistTar!BI15 -> 0 | AN15: =Prop2018DistTar!BJ15 -> 0 | AO15: =Prop2018DistTar!BK15 -> 0 | AP15: =Prop2018DistTar!BL15 -> 0 | AQ15: =Prop2018DistTar!BM15 -> 0 | AR15: =Prop2018DistTar!BN15 -> 0 | AS15: =Prop2018DistTar!BO15 -> 0 | AT15: =Prop2018DistTar!BP15 -> 0 | AV15: 0 | AW15: 0 | AX15: 45050.65328 | AY15: 0 | AZ15: 0 | BA15: 7484.675826 | BB15: 0 | BC15: 0 | BD15: 0 | BE15: 0 | BF15: 0 | BG15: 0 | BH15: 0 | BI15: 0 | BJ15: 0 | BK15: 0 | BL15: 0 | BM15: 0 | BN15: 0 | BO15: 0 | BP15: 0 | BQ15: 52535.32911
A16: =Prop2018DistTar!A16 -> D3 | B16: =Prop2018DistTar!B16 -> Residential Interval | D16: 0 | E16: 0 | F16: 2.7 | G16: 0 | H16: 0 | I16: 0.52 | J16: 0 | K16: 0 | L16: 0 | M16: 0 | N16: 0 | O16: 0 | P16: 0 | Q16: 0 | R16: 0 | S16: 0 | T16: 0 | U16: 0 | V16: 0 | W16: 0 | X16: 0 | Z16: =Prop2018DistTar!AV16 -> 108683.3671 | AA16: =Prop2018DistTar!AW16 -> 0 | AB16: =Prop2018DistTar!AX16 -> 270572284 | AC16: =Prop2018DistTar!AY16 -> 0 | AD16: =Prop2018DistTar!AZ16 -> 0 | AE16: =Prop2018DistTar!BA16 -> 288164384 | AF16: =Prop2018DistTar!BB16 -> 0 | AG16: =Prop2018DistTar!BC16 -> 0 | AH16: =Prop2018DistTar!BD16 -> 0 | AI16: =Prop2018DistTar!BE16 -> 0 | AJ16: =Prop2018DistTar!BF16 -> 0 | AK16: =Prop2018DistTar!BG16 -> 0 | AL16: =Prop2018DistTar!BH16 -> 0 | AM16: =Prop2018DistTar!BI16 -> 0 | AN16: =Prop2018DistTar!BJ16 -> 0 | AO16: =Prop2018DistTar!BK16 -> 0 | AP16: =Prop2018DistTar!BL16 -> 0 | AQ16: =Prop2018DistTar!BM16 -> 0 | AR16: =Prop2018DistTar!BN16 -> 0 | AS16: =Prop2018DistTar!BO16 -> 0 | AT16: =Prop2018DistTar!BP16 -> 0 | AV16: 0 | AW16: 0 | AX16: 7305451.668 | AY16: 0 | AZ16: 0 | BA16: 1498454.797 | BB16: 0 | BC16: 0 | BD16: 0 | BE16: 0 | BF16: 0 | BG16: 0 | BH16: 0 | BI16: 0 | BJ16: 0 | BK16: 0 | BL16: 0 | BM16: 0 | BN16: 0 | BO16: 0 | BP16: 0 | BQ16: 8803906.465
A17: =Prop2018DistTar!A17 -> D2OP | B17: =Prop2018DistTar!B17 -> Residential Two Rate 5d - controlled load | D17: 0 | E17: 0 | F17: 0 | G17: 0 | H17: 0 | I17: 0.45 | J17: 0 | K17: 0 | L17: 0 | M17: 0 | N17: 0 | O17: 0 | P17: 0 | Q17: 0 | R17: 0 | S17: 0 | T17: 0 | U17: 0 | V17: 0 | W17: 0 | X17: 0 | Z17: =Prop2018DistTar!AV17 -> 42980.36697 | AA17: =Prop2018DistTar!AW17 -> 0 | AB17: =Prop2018DistTar!AX17 -> 0 | AC17: =Prop2018DistTar!AY17 -> 0 | AD17: =Prop2018DistTar!AZ17 -> 0 | AE17: =Prop2018DistTar!BA17 -> 86643719.34 | AF17: =Prop2018DistTar!BB17 -> 0 | AG17: =Prop2018DistTar!BC17 -> 0 | AH17: =Prop2018DistTar!BD17 -> 0 | AI17: =Prop2018DistTar!BE17 -> 0 | AJ17: =Prop2018DistTar!BF17 -> 0 | AK17: =Prop2018DistTar!BG17 -> 0 | AL17: =Prop2018DistTar!BH17 -> 0 | AM17: =Prop2018DistTar!BI17 -> 0 | AN17: =Prop2018DistTar!BJ17 -> 0 | AO17: =Prop2018DistTar!BK17 -> 0 | AP17: =Prop2018DistTar!BL17 -> 0 | AQ17: =Prop2018DistTar!BM17 -> 0 | AR17: =Prop2018DistTar!BN17 -> 0 | AS17: =Prop2018DistTar!BO17 -> 0 | AT17: =Prop2018DistTar!BP17 -> 0 | AV17: 0 | AW17: 0 | AX17: 0 | AY17: 0 | AZ17: 0 | BA17: 389896.737 | BB17: 0 | BC17: 0 | BD17: 0 | BE17: 0 | BF17: 0 | BG17: 0 | BH17: 0 | BI17: 0 | BJ17: 0 | BK17: 0 | BL17: 0 | BM17: 0 | BN17: 0 | BO17: 0 | BP17: 0 | BQ17: 389896.737
A18: =Prop2018DistTar!A18 -> D2DKOP | B18: =Prop2018DistTar!B18 -> Docklands Two Rate 5d - controlled load | D18: 0 | E18: 0 | F18: 0 | G18: 0 | H18: 0 | I18: 0.45 | J18: 0 | K18: 0 | L18: 0 | M18: 0 | N18: 0 | O18: 0 | P18: 0 | Q18: 0 | R18: 0 | S18: 0 | T18: 0 | U18: 0 | V18: 0 | W18: 0 | X18: 0 | Z18: =Prop2018DistTar!AV18 -> 69.06153232 | AA18: =Prop2018DistTar!AW18 -> 0 | AB18: =Prop2018DistTar!AX18 -> 0 | AC18: =Prop2018DistTar!AY18 -> 0 | AD18: =Prop2018DistTar!AZ18 -> 0 | AE18: =Prop2018DistTar!BA18 -> 130691.5709 | AF18: =Prop2018DistTar!BB18 -> 0 | AG18: =Prop2018DistTar!BC18 -> 0 | AH18: =Prop2018DistTar!BD18 -> 0 | AI18: =Prop2018DistTar!BE18 -> 0 | AJ18: =Prop2018DistTar!BF18 -> 0 | AK18: =Prop2018DistTar!BG18 -> 0 | AL18: =Prop2018DistTar!BH18 -> 0 | AM18: =Prop2018DistTar!BI18 -> 0 | AN18: =Prop2018DistTar!BJ18 -> 0 | AO18: =Prop2018DistTar!BK18 -> 0 | AP18: =Prop2018DistTar!BL18 -> 0 | AQ18: =Prop2018DistTar!BM18 -> 0 | AR18: =Prop2018DistTar!BN18 -> 0 | AS18: =Prop2018DistTar!BO18 -> 0 | AT18: =Prop2018DistTar!BP18 -> 0 | AV18: 0 | AW18: 0 | AX18: 0 | AY18: 0 | AZ18: 0 | BA18: 588.1120689 | BB18: 0 | BC18: 0 | BD18: 0 | BE18: 0 | BF18: 0 | BG18: 0 | BH18: 0 | BI18: 0 | BJ18: 0 | BK18: 0 | BL18: 0 | BM18: 0 | BN18: 0 | BO18: 0 | BP18: 0 | BQ18: 588.1120689
A19: =Prop2018DistTar!A19 -> DD1 | B19: =Prop2018DistTar!B19 -> Dedicated circuit | D19: 0 | E19: 0 | F19: 0 | G19: 0 | H19: 0 | I19: 0.45 | J19: 0 | K19: 0 | L19: 0 | M19: 0 | N19: 0 | O19: 0 | P19: 0 | Q19: 0 | R19: 0 | S19: 0 | T19: 0 | U19: 0 | V19: 0 | W19: 0 | X19: 0 | Z19: =Prop2018DistTar!AV19 -> 156259.0335 | AA19: =Prop2018DistTar!AW19 -> 0 | AB19: =Prop2018DistTar!AX19 -> 0 | AC19: =Prop2018DistTar!AY19 -> 0 | AD19: =Prop2018DistTar!AZ19 -> 0 | AE19: =Prop2018DistTar!BA19 -> 314989327 | AF19: =Prop2018DistTar!BB19 -> 0 | AG19: =Prop2018DistTar!BC19 -> 0 | AH19: =Prop2018DistTar!BD19 -> 0 | AI19: =Prop2018DistTar!BE19 -> 0 | AJ19: =Prop2018DistTar!BF19 -> 0 | AK19: =Prop2018DistTar!BG19 -> 0 | AL19: =Prop2018DistTar!BH19 -> 0 | AM19: =Prop2018DistTar!BI19 -> 0 | AN19: =Prop2018DistTar!BJ19 -> 0 | AO19: =Prop2018DistTar!BK19 -> 0 | AP19: =Prop2018DistTar!BL19 -> 0 | AQ19: =Prop2018DistTar!BM19 -> 0 | AR19: =Prop2018DistTar!BN19 -> 0 | AS19: =Prop2018DistTar!BO19 -> 0 | AT19: =Prop2018DistTar!BP19 -> 0 | AV19: 0 | AW19: 0 | AX19: 0 | AY19: 0 | AZ19: 0 | BA19: 1417451.971 | BB19: 0 | BC19: 0 | BD19: 0 | BE19: 0 | BF19: 0 | BG19: 0 | BH19: 0 | BI19: 0 | BJ19: 0 | BK19: 0 | BL19: 0 | BM19: 0 | BN19: 0 | BO19: 0 | BP19: 0 | BQ19: 1417451.971
A20: =Prop2018DistTar!A20 -> D3HW | B20: =Prop2018DistTar!B20 -> Hot Water Interval | D20: 0 | E20: 0 | F20: 0 | G20: 0 | H20: 0 | I20: 0.45 | J20: 0 | K20: 0 | L20: 0 | M20: 0 | N20: 0 | O20: 0 | P20: 0 | Q20: 0 | R20: 0 | S20: 0 | T20: 0 | U20: 0 | V20: 0 | W20: 0 | X20: 0 | Z20: =Prop2018DistTar!AV20 -> 5471.480402 | AA20: =Prop2018DistTar!AW20 -> 0 | AB20: =Prop2018DistTar!AX20 -> 0 | AC20: =Prop2018DistTar!AY20 -> 0 | AD20: =Prop2018DistTar!AZ20 -> 0 | AE20: =Prop2018DistTar!BA20 -> 10630893.46 | AF20: =Prop2018DistTar!BB20 -> 0 | AG20: =Prop2018DistTar!BC20 -> 0 | AH20: =Prop2018DistTar!BD20 -> 0 | AI20: =Prop2018DistTar!BE20 -> 0 | AJ20: =Prop2018DistTar!BF20 -> 0 | AK20: =Prop2018DistTar!BG20 -> 0 | AL20: =Prop2018DistTar!BH20 -> 0 | AM20: =Prop2018DistTar!BI20 -> 0 | AN20: =Prop2018DistTar!BJ20 -> 0 | AO20: =Prop2018DistTar!BK20 -> 0 | AP20: =Prop2018DistTar!BL20 -> 0 | AQ20: =Prop2018DistTar!BM20 -> 0 | AR20: =Prop2018DistTar!BN20 -> 0 | AS20: =Prop2018DistTar!BO20 -> 0 | AT20: =Prop2018DistTar!BP20 -> 0 | AV20: =D20*Z20 -> 0 | AW20: =E20/100*AA20 -> 0 | AX20: =F20/100*AB20 -> 0 | AY20: =G20/100*AC20 -> 0 | AZ20: =H20/100*AD20 -> 0 | BA20: =I20/100*AE20 -> 47839.02055 | BB20: =J20/100*AF20 -> 0 | BC20: =K20/100*AG20 -> 0 | BD20: =L20/100*AH20 -> 0 | BE20: =M20*AI20 -> 0 | BF20: =N20*AJ20 -> 0 | BG20: =O20*AK20 -> 0 | BH20: =P20*AL20 -> 0 | BI20: =Q20/100*AM20 -> 0 | BJ20: =R20/100*AN20 -> 0 | BK20: =S20/100*AO20 -> 0 | BL20: =T20/100*AP20 -> 0 | BM20: =U20/100*AQ20 -> 0 | BN20: =V20/100*AR20 -> 0 | BO20: =W20/100*AS20 -> 0 | BP20: =X20/100*AT20 -> 0 | BQ20: =SUM(AV20:BP20) -> 47839.02055
A21: =Prop2018DistTar!A21 -> DD | B21: =Prop2018DistTar!B21 -> Residential Demand | D21: 0 | E21: 0.68 | F21: 0 | G21: 0 | H21: 0 | I21: 0 | J21: 0 | K21: 0 | L21: 0 | M21: 0 | N21: 0 | O21: 2.24 | P21: 0.75 | Q21: 0 | R21: 0 | S21: 0 | T21: 0 | U21: 0 | V21: 0 | W21: 0 | X21: 0 | Z21: =Prop2018DistTar!AV21 -> 5 | AA21: =Prop2018DistTar!AW21 -> 27500 | AB21: =Prop2018DistTar!AX21 -> 0 | AC21: =Prop2018DistTar!AY21 -> 0 | AD21: =Prop2018DistTar!AZ21 -> 0 | AE21: =Prop2018DistTar!BA21 -> 0 | AF21: =Prop2018DistTar!BB21 -> 0 | AG21: =Prop2018DistTar!BC21 -> 0 | AH21: =Prop2018DistTar!BD21 -> 0 | AI21: =Prop2018DistTar!BE21 -> 0 | AJ21: =Prop2018DistTar!BF21 -> 0 | AK21: =Prop2018DistTar!BG21 -> 62.78538813 | AL21: =Prop2018DistTar!BH21 -> 100.456621 | AM21: =Prop2018DistTar!BI21 -> 0 | AN21: =Prop2018DistTar!BJ21 -> 0 | AO21: =Prop2018DistTar!BK21 -> 0 | AP21: =Prop2018DistTar!BL21 -> 0 | AQ21: =Prop2018DistTar!BM21 -> 0 | AR21: =Prop2018DistTar!BN21 -> 0 | AS21: =Prop2018DistTar!BO21 -> 0 | AT21: =Prop2018DistTar!BP21 -> 0 | AV21: 0 | AW21: 187 | AX21: 0 | AY21: 0 | AZ21: 0 | BA21: 0 | BB21: 0 | BC21: 0 | BD21: 0 | BE21: 0 | BF21: 0 | BG21: 140.6392694 | BH21: 75.34246575 | BI21: 0 | BJ21: 0 | BK21: 0 | BL21: 0 | BM21: 0 | BN21: 0 | BO21: 0 | BP21: 0 | BQ21: 402.9817352
A22: =Prop2018DistTar!A22 -> DDNEW | B22: =Prop2018DistTar!B22 -> Newstead Residential Trial | D22: 0 | E22: 0 | F22: 0 | G22: 0 | H22: 0 | I22: 0 | J22: 0 | K22: 0 | L22: 0 | M22: 0 | N22: 0 | O22: 0.45 | P22: 0.45 | Q22: 0 | R22: 0 | S22: 0 | T22: 0 | U22: 0 | V22: 0 | W22: 0 | X22: 0 | Z22: =Prop2018DistTar!AV22 -> 0 | AA22: =Prop2018DistTar!AW22 -> 0 | AB22: =Prop2018DistTar!AX22 -> 0 | AC22: =Prop2018DistTar!AY22 -> 0 | AD22: =Prop2018DistTar!AZ22 -> 0 | AE22: =Prop2018DistTar!BA22 -> 0 | AF22: =Prop2018DistTar!BB22 -> 0 | AG22: =Prop2018DistTar!BC22 -> 0 | AH22: =Prop2018DistTar!BD22 -> 0 | AI22: =Prop2018DistTar!BE22 -> 0 | AJ22: =Prop2018DistTar!BF22 -> 0 | AK22: =Prop2018DistTar!BG22 -> 0 | AL22: =Prop2018DistTar!BH22 -> 0 | AM22: =Prop2018DistTar!BI22 -> 0 | AN22: =Prop2018DistTar!BJ22 -> 0 | AO22: =Prop2018DistTar!BK22 -> 0 | AP22: =Prop2018DistTar!BL22 -> 0 | AQ22: =Prop2018DistTar!BM22 -> 0 | AR22: =Prop2018DistTar!BN22 -> 0 | AS22: =Prop2018DistTar!BO22 -> 0 | AT22: =Prop2018DistTar!BP22 -> 0 | AV22: 0 | AW22: 0 | AX22: 0 | AY22: 0 | AZ22: 0 | BA22: 0 | BB22: 0 | BC22: 0 | BD22: 0 | BE22: 0 | BF22: 0 | BG22: 0 | BH22: 0 | BI22: 0 | BJ22: 0 | BK22: 0 | BL22: 0 | BM22: 0 | BN22: 0 | BO22: 0 | BP22: 0 | BQ22: 0
A23: =Prop2018DistTar!A23 -> ND1 | B23: =Prop2018DistTar!B23 -> Non-Residential Single Rate | D23: 0 | E23: 1.35 | F23: 0 | G23: 0 | H23: 0 | I23: 0 | J23: 0 | K23: 0 | L23: 0 | M23: 0 | N23: 0 | O23: 0 | P23: 0 | Q23: 0 | R23: 0 | S23: 0 | T23: 0 | U23: 0 | V23: 0 | W23: 0 | X23: 0 | Z23: =Prop2018DistTar!AV23 -> 42209.54355 | AA23: =Prop2018DistTar!AW23 -> 256381416.1 | AB23: =Prop2018DistTar!AX23 -> 0 | AC23: =Prop2018DistTar!AY23 -> 0 | AD23: =Prop2018DistTar!AZ23 -> 0 | AE23: =Prop2018DistTar!BA23 -> 0 | AF23: =Prop2018DistTar!BB23 -> 0 | AG23: =Prop2018DistTar!BC23 -> 0 | AH23: =Prop2018DistTar!BD23 -> 0 | AI23: =Prop2018DistTar!BE23 -> 0 | AJ23: =Prop2018DistTar!BF23 -> 0 | AK23: =Prop2018DistTar!BG23 -> 0 | AL23: =Prop2018DistTar!BH23 -> 0 | AM23: =Prop2018DistTar!BI23 -> 0 | AN23: =Prop2018DistTar!BJ23 -> 0 | AO23: =Prop2018DistTar!BK23 -> 0 | AP23: =Prop2018DistTar!BL23 -> 0 | AQ23: =Prop2018DistTar!BM23 -> 0 | AR23: =Prop2018DistTar!BN23 -> 0 | AS23: =Prop2018DistTar!BO23 -> 0 | AT23: =Prop2018DistTar!BP23 -> 0 | AV23: 0 | AW23: 3461149.118 | AX23: 0 | AY23: 0 | AZ23: 0 | BA23: 0 | BB23: 0 | BC23: 0 | BD23: 0 | BE23: 0 | BF23: 0 | BG23: 0 | BH23: 0 | BI23: 0 | BJ23: 0 | BK23: 0 | BL23: 0 | BM23: 0 | BN23: 0 | BO23: 0 | BP23: 0 | BQ23: 3461149.118
A24: =Prop2018DistTar!A24 -> P14G | B24: =Prop2018DistTar!B24 -> Non-Residential Flexible Pricing | D24: 0 | E24: 0 | F24: 0 | G24: 0 | H24: 0 | I24: 0 | J24: 0 | K24: 0 | L24: 0 | M24: 0 | N24: 0 | O24: 0 | P24: 0 | Q24: 2.19 | R24: 0.69 | S24: 0.53 | T24: 0 | U24: 2.19 | V24: 0.69 | W24: 0.53 | X24: 0 | Z24: =Prop2018DistTar!AV24 -> 186.1130724 | AA24: =Prop2018DistTar!AW24 -> 0 | AB24: =Prop2018DistTar!AX24 -> 0 | AC24: =Prop2018DistTar!AY24 -> 0 | AD24: =Prop2018DistTar!AZ24 -> 0 | AE24: =Prop2018DistTar!BA24 -> 0 | AF24: =Prop2018DistTar!BB24 -> 0 | AG24: =Prop2018DistTar!BC24 -> 0 | AH24: =Prop2018DistTar!BD24 -> 0 | AI24: =Prop2018DistTar!BE24 -> 0 | AJ24: =Prop2018DistTar!BF24 -> 0 | AK24: =Prop2018DistTar!BG24 -> 0 | AL24: =Prop2018DistTar!BH24 -> 0 | AM24: =Prop2018DistTar!BI24 -> 425233.8013 | AN24: =Prop2018DistTar!BJ24 -> 148156.1148 | AO24: =Prop2018DistTar!BK24 -> 478715.0372 | AP24: =Prop2018DistTar!BL24 -> 0 | AQ24: =Prop2018DistTar!BM24 -> 1248433.238 | AR24: =Prop2018DistTar!BN24 -> 361061.6992 | AS24: =Prop2018DistTar!BO24 -> 1112012.891 | AT24: =Prop2018DistTar!BP24 -> 0 | AV24: 0 | AW24: 0 | AX24: 0 | AY24: 0 | AZ24: 0 | BA24: 0 | BB24: 0 | BC24: 0 | BD24: 0 | BE24: 0 | BF24: 0 | BG24: 0 | BH24: 0 | BI24: 9312.620249 | BJ24: 1022.277192 | BK24: 2537.189697 | BL24: 0 | BM24: 27340.68792 | BN24: 2491.325724 | BO24: 5893.668321 | BP24: 0 | BQ24: 48597.7691
A25: =Prop2018DistTar!A25 -> ND2 | B25: =Prop2018DistTar!B25 -> Non-Residential Two Rate 5d | D25: 0 | E25: 0 | F25: 2.22 | G25: 0 | H25: 0 | I25: 0.5 | J25: 0 | K25: 0 | L25: 0 | M25: 0 | N25: 0 | O25: 0 | P25: 0 | Q25: 0 | R25: 0 | S25: 0 | T25: 0 | U25: 0 | V25: 0 | W25: 0 | X25: 0 | Z25: =Prop2018DistTar!AV25 -> 24184.20107 | AA25: =Prop2018DistTar!AW25 -> 0 | AB25: =Prop2018DistTar!AX25 -> 207323954.7 | AC25: =Prop2018DistTar!AY25 -> 0 | AD25: =Prop2018DistTar!AZ25 -> 0 | AE25: =Prop2018DistTar!BA25 -> 176674793.9 | AF25: =Prop2018DistTar!BB25 -> 0 | AG25: =Prop2018DistTar!BC25 -> 0 | AH25: =Prop2018DistTar!BD25 -> 0 | AI25: =Prop2018DistTar!BE25 -> 0 | AJ25: =Prop2018DistTar!BF25 -> 0 | AK25: =Prop2018DistTar!BG25 -> 0 | AL25: =Prop2018DistTar!BH25 -> 0 | AM25: =Prop2018DistTar!BI25 -> 0 | AN25: =Prop2018DistTar!BJ25 -> 0 | AO25: =Prop2018DistTar!BK25 -> 0 | AP25: =Prop2018DistTar!BL25 -> 0 | AQ25: =Prop2018DistTar!BM25 -> 0 | AR25: =Prop2018DistTar!BN25 -> 0 | AS25: =Prop2018DistTar!BO25 -> 0 | AT25: =Prop2018DistTar!BP25 -> 0 | AV25: 0 | AW25: 0 | AX25: 4602591.793 | AY25: 0 | AZ25: 0 | BA25: 883373.9693 | BB25: 0 | BC25: 0 | BD25: 0 | BE25: 0 | BF25: 0 | BG25: 0 | BH25: 0 | BI25: 0 | BJ25: 0 | BK25: 0 | BL25: 0 | BM25: 0 | BN25: 0 | BO25: 0 | BP25: 0 | BQ25: 5485965.763
A26: =Prop2018DistTar!A26 -> ND5 | B26: =Prop2018DistTar!B26 -> Non-Residential Interval | D26: 0 | E26: 0 | F26: 2.22 | G26: 0 | H26: 0 | I26: 0.5 | J26: 0 | K26: 0 | L26: 0 | M26: 0 | N26: 0 | O26: 0 | P26: 0 | Q26: 0 | R26: 0 | S26: 0 | T26: 0 | U26: 0 | V26: 0 | W26: 0 | X26: 0 | Z26: =Prop2018DistTar!AV26 -> 12412.00132 | AA26: =Prop2018DistTar!AW26 -> 0 | AB26: =Prop2018DistTar!AX26 -> 96843792.2 | AC26: =Prop2018DistTar!AY26 -> 0 | AD26: =Prop2018DistTar!AZ26 -> 0 | AE26: =Prop2018DistTar!BA26 -> 66506894.75 | AF26: =Prop2018DistTar!BB26 -> 0 | AG26: =Prop2018DistTar!BC26 -> 0 | AH26: =Prop2018DistTar!BD26 -> 0 | AI26: =Prop2018DistTar!BE26 -> 0 | AJ26: =Prop2018DistTar!BF26 -> 0 | AK26: =Prop2018DistTar!BG26 -> 0 | AL26: =Prop2018DistTar!BH26 -> 0 | AM26: =Prop2018DistTar!BI26 -> 0 | AN26: =Prop2018DistTar!BJ26 -> 0 | AO26: =Prop2018DistTar!BK26 -> 0 | AP26: =Prop2018DistTar!BL26 -> 0 | AQ26: =Prop2018DistTar!BM26 -> 0 | AR26: =Prop2018DistTar!BN26 -> 0 | AS26: =Prop2018DistTar!BO26 -> 0 | AT26: =Prop2018DistTar!BP26 -> 0 | AV26: 0 | AW26: 0 | AX26: 2149932.187 | AY26: 0 | AZ26: 0 | BA26: 332534.4737 | BB26: 0 | BC26: 0 | BD26: 0 | BE26: 0 | BF26: 0 | BG26: 0 | BH26: 0 | BI26: 0 | BJ26: 0 | BK26: 0 | BL26: 0 | BM26: 0 | BN26: 0 | BO26: 0 | BP26: 0 | BQ26: 2482466.66
A27: =Prop2018DistTar!A27 -> ND3 | B27: =Prop2018DistTar!B27 -> Non-Residential Two Rate 7d | D27: 0 | E27: 0 | F27: 1.96 | G27: 0 | H27: 0 | I27: 0.5 | J27: 0 | K27: 0 | L27: 0 | M27: 0 | N27: 0 | O27: 0 | P27: 0 | Q27: 0 | R27: 0 | S27: 0 | T27: 0 | U27: 0 | V27: 0 | W27: 0 | X27: 0 | Z27: =Prop2018DistTar!AV27 -> 7219.587967 | AA27: =Prop2018DistTar!AW27 -> 0 | AB27: =Prop2018DistTar!AX27 -> 58018282.44 | AC27: =Prop2018DistTar!AY27 -> 0 | AD27: =Prop2018DistTar!AZ27 -> 0 | AE27: =Prop2018DistTar!BA27 -> 22573877.49 | AF27: =Prop2018DistTar!BB27 -> 0 | AG27: =Prop2018DistTar!BC27 -> 0 | AH27: =Prop2018DistTar!BD27 -> 0 | AI27: =Prop2018DistTar!BE27 -> 0 | AJ27: =Prop2018DistTar!BF27 -> 0 | AK27: =Prop2018DistTar!BG27 -> 0 | AL27: =Prop2018DistTar!BH27 -> 0 | AM27: =Prop2018DistTar!BI27 -> 0 | AN27: =Prop2018DistTar!BJ27 -> 0 | AO27: =Prop2018DistTar!BK27 -> 0 | AP27: =Prop2018DistTar!BL27 -> 0 | AQ27: =Prop2018DistTar!BM27 -> 0 | AR27: =Prop2018DistTar!BN27 -> 0 | AS27: =Prop2018DistTar!BO27 -> 0 | AT27: =Prop2018DistTar!BP27 -> 0 | AV27: 0 | AW27: 0 | AX27: 1137158.336 | AY27: 0 | AZ27: 0 | BA27: 112869.3874 | BB27: 0 | BC27: 0 | BD27: 0 | BE27: 0 | BF27: 0 | BG27: 0 | BH27: 0 | BI27: 0 | BJ27: 0 | BK27: 0 | BL27: 0 | BM27: 0 | BN27: 0 | BO27: 0 | BP27: 0 | BQ27: 1250027.723
A28: =Prop2018DistTar!A28 -> NDD | B28: =Prop2018DistTar!B28 -> Non-Residential Demand | D28: 0 | E28: 0.64 | F28: 0 | G28: 0 | H28: 0 | I28: 0 | J28: 0 | K28: 0 | L28: 0 | M28: 0 | N28: 0 | O28: 2.38 | P28: 0.79 | Q28: 0 | R28: 0 | S28: 0 | T28: 0 | U28: 0 | V28: 0 | W28: 0 | X28: 0 | Z28: =Prop2018DistTar!AV28 -> 6.354045079 | AA28: =Prop2018DistTar!AW28 -> 127080.9016 | AB28: =Prop2018DistTar!AX28 -> 0 | AC28: =Prop2018DistTar!AY28 -> 0 | AD28: =Prop2018DistTar!AZ28 -> 0 | AE28: =Prop2018DistTar!BA28 -> 0 | AF28: =Prop2018DistTar!BB28 -> 0 | AG28: =Prop2018DistTar!BC28 -> 0 | AH28: =Prop2018DistTar!BD28 -> 0 | AI28: =Prop2018DistTar!BE28 -> 0 | AJ28: =Prop2018DistTar!BF28 -> 0 | AK28: =Prop2018DistTar!BG28 -> 165.7937398 | AL28: =Prop2018DistTar!BH28 -> 290.1390447 | AM28: =Prop2018DistTar!BI28 -> 0 | AN28: =Prop2018DistTar!BJ28 -> 0 | AO28: =Prop2018DistTar!BK28 -> 0 | AP28: =Prop2018DistTar!BL28 -> 0 | AQ28: =Prop2018DistTar!BM28 -> 0 | AR28: =Prop2018DistTar!BN28 -> 0 | AS28: =Prop2018DistTar!BO28 -> 0 | AT28: =Prop2018DistTar!BP28 -> 0 | AV28: 0 | AW28: 813.3177701 | AX28: 0 | AY28: 0 | AZ28: 0 | BA28: 0 | BB28: 0 | BC28: 0 | BD28: 0 | BE28: 0 | BF28: 0 | BG28: 394.5891008 | BH28: 229.2098453 | BI28: 0 | BJ28: 0 | BK28: 0 | BL28: 0 | BM28: 0 | BN28: 0 | BO28: 0 | BP28: 0 | BQ28: 1437.116716
A29: =Prop2018DistTar!A29 -> NDM | B29: =Prop2018DistTar!B29 -> Medium business Demand | D29: 0 | E29: 0 | F29: 1.21 | G29: 0 | H29: 0 | I29: 0.59 | J29: 0 | K29: 0 | L29: 0 | M29: 0 | N29: 0 | O29: 0.54 | P29: 0.27 | Q29: 0 | R29: 0 | S29: 0 | T29: 0 | U29: 0 | V29: 0 | W29: 0 | X29: 0 | Z29: =Prop2018DistTar!AV29 -> 7925.701842 | AA29: =Prop2018DistTar!AW29 -> 0 | AB29: =Prop2018DistTar!AX29 -> 582897214.7 | AC29: =Prop2018DistTar!AY29 -> 0 | AD29: =Prop2018DistTar!AZ29 -> 0 | AE29: =Prop2018DistTar!BA29 -> 452515803.8 | AF29: =Prop2018DistTar!BB29 -> 0 | AG29: =Prop2018DistTar!BC29 -> 0 | AH29: =Prop2018DistTar!BD29 -> 0 | AI29: =Prop2018DistTar!BE29 -> 0 | AJ29: =Prop2018DistTar!BF29 -> 0 | AK29: =Prop2018DistTar!BG29 -> 1449178.437 | AL29: =Prop2018DistTar!BH29 -> 2541062.219 | AM29: =Prop2018DistTar!BI29 -> 0 | AN29: =Prop2018DistTar!BJ29 -> 0 | AO29: =Prop2018DistTar!BK29 -> 0 | AP29: =Prop2018DistTar!BL29 -> 0 | AQ29: =Prop2018DistTar!BM29 -> 0 | AR29: =Prop2018DistTar!BN29 -> 0 | AS29: =Prop2018DistTar!BO29 -> 0 | AT29: =Prop2018DistTar!BP29 -> 0 | AV29: 0 | AW29: 0 | AX29: 7053056.298 | AY29: 0 | AZ29: 0 | BA29: 2669843.242 | BB29: 0 | BC29: 0 | BD29: 0 | BE29: 0 | BF29: 0 | BG29: 782556.3557 | BH29: 686086.7991 | BI29: 0 | BJ29: 0 | BK29: 0 | BL29: 0 | BM29: 0 | BN29: 0 | BO29: 0 | BP29: 0 | BQ29: 11191542.7
A30: =Prop2018DistTar!A30 -> NDMO | B30: =Prop2018DistTar!B30 -> Medium business Opt-out | D30: 0 | E30: 0 | F30: 1.9 | G30: 0 | H30: 0 | I30: 0.62 | J30: 0 | K30: 0 | L30: 0 | M30: 0 | N30: 0 | O30: 0 | P30: 0 | Q30: 0 | R30: 0 | S30: 0 | T30: 0 | U30: 0 | V30: 0 | W30: 0 | X30: 0 | Z30: =Prop2018DistTar!AV30 -> 81 | AA30: =Prop2018DistTar!AW30 -> 0 | AB30: =Prop2018DistTar!AX30 -> 3137768.496 | AC30: =Prop2018DistTar!AY30 -> 0 | AD30: =Prop2018DistTar!AZ30 -> 0 | AE30: =Prop2018DistTar!BA30 -> 3347230.555 | AF30: =Prop2018DistTar!BB30 -> 0 | AG30: =Prop2018DistTar!BC30 -> 0 | AH30: =Prop2018DistTar!BD30 -> 0 | AI30: =Prop2018DistTar!BE30 -> 0 | AJ30: =Prop2018DistTar!BF30 -> 0 | AK30: =Prop2018DistTar!BG30 -> 0 | AL30: =Prop2018DistTar!BH30 -> 0 | AM30: =Prop2018DistTar!BI30 -> 0 | AN30: =Prop2018DistTar!BJ30 -> 0 | AO30: =Prop2018DistTar!BK30 -> 0 | AP30: =Prop2018DistTar!BL30 -> 0 | AQ30: =Prop2018DistTar!BM30 -> 0 | AR30: =Prop2018DistTar!BN30 -> 0 | AS30: =Prop2018DistTar!BO30 -> 0 | AT30: =Prop2018DistTar!BP30 -> 0 | AV30: 0 | AW30: 0 | AX30: 59617.60143 | AY30: 0 | AZ30: 0 | BA30: 20752.82944 | BB30: 0 | BC30: 0 | BD30: 0 | BE30: 0 | BF30: 0 | BG30: 0 | BH30: 0 | BI30: 0 | BJ30: 0 | BK30: 0 | BL30: 0 | BM30: 0 | BN30: 0 | BO30: 0 | BP30: 0 | BQ30: 80370.43087
A31: =Prop2018DistTar!A31 -> PL2 | B31: =Prop2018DistTar!B31 -> Public Lighting | D31: 0 | E31: 0 | F31: 2.55 | G31: 0 | H31: 0 | I31: 0.73 | J31: 0 | K31: 0 | L31: 0 | M31: 0 | N31: 0 | O31: 0 | P31: 0 | Q31: 0 | R31: 0 | S31: 0 | T31: 0 | U31: 0 | V31: 0 | W31: 0 | X31: 0 | Z31: =Prop2018DistTar!AV31 -> 7344.7 | AA31: =Prop2018DistTar!AW31 -> 0 | AB31: =Prop2018DistTar!AX31 -> 27764943.81 | AC31: =Prop2018DistTar!AY31 -> 0 | AD31: =Prop2018DistTar!AZ31 -> 0 | AE31: =Prop2018DistTar!BA31 -> 68379507.26 | AF31: =Prop2018DistTar!BB31 -> 0 | AG31: =Prop2018DistTar!BC31 -> 0 | AH31: =Prop2018DistTar!BD31 -> 0 | AI31: =Prop2018DistTar!BE31 -> 0 | AJ31: =Prop2018DistTar!BF31 -> 0 | AK31: =Prop2018DistTar!BG31 -> 0 | AL31: =Prop2018DistTar!BH31 -> 0 | AM31: =Prop2018DistTar!BI31 -> 0 | AN31: =Prop2018DistTar!BJ31 -> 0 | AO31: =Prop2018DistTar!BK31 -> 0 | AP31: =Prop2018DistTar!BL31 -> 0 | AQ31: =Prop2018DistTar!BM31 -> 0 | AR31: =Prop2018DistTar!BN31 -> 0 | AS31: =Prop2018DistTar!BO31 -> 0 | AT31: =Prop2018DistTar!BP31 -> 0 | AV31: 0 | AW31: 0 | AX31: 708006.0671 | AY31: 0 | AZ31: 0 | BA31: 499170.403 | BB31: 0 | BC31: 0 | BD31: 0 | BE31: 0 | BF31: 0 | BG31: 0 | BH31: 0 | BI31: 0 | BJ31: 0 | BK31: 0 | BL31: 0 | BM31: 0 | BN31: 0 | BO31: 0 | BP31: 0 | BQ31: 1207176.47
A32: =Prop2018DistTar!A32 -> LLV | B32: =Prop2018DistTar!B32 -> Large low Voltage | D32: 0 | E32: 0 | F32: 0.83 | G32: 0 | H32: 0 | I32: 0.41 | J32: 0 | K32: 0 | L32: 0 | M32: 23.24 | N32: 0 | O32: 0 | P32: 0 | Q32: 0 | R32: 0 | S32: 0 | T32: 0 | U32: 0 | V32: 0 | W32: 0 | X32: 0 | Z32: =Prop2018DistTar!AV32 -> 2749.230824 | AA32: =Prop2018DistTar!AW32 -> 0 | AB32: =Prop2018DistTar!AX32 -> 1363564037 | AC32: =Prop2018DistTar!AY32 -> 0 | AD32: =Prop2018DistTar!AZ32 -> 0 | AE32: =Prop2018DistTar!BA32 -> 1037238631 | AF32: =Prop2018DistTar!BB32 -> 0 | AG32: =Prop2018DistTar!BC32 -> 0 | AH32: =Prop2018DistTar!BD32 -> 0 | AI32: =Prop2018DistTar!BE32 -> 840288.6815 | AJ32: =Prop2018DistTar!BF32 -> 0 | AK32: =Prop2018DistTar!BG32 -> 0 | AL32: =Prop2018DistTar!BH32 -> 0 | AM32: =Prop2018DistTar!BI32 -> 0 | AN32: =Prop2018DistTar!BJ32 -> 0 | AO32: =Prop2018DistTar!BK32 -> 0 | AP32: =Prop2018DistTar!BL32 -> 0 | AQ32: =Prop2018DistTar!BM32 -> 0 | AR32: =Prop2018DistTar!BN32 -> 0 | AS32: =Prop2018DistTar!BO32 -> 0 | AT32: =Prop2018DistTar!BP32 -> 0 | AV32: 0 | AW32: 0 | AX32: 11317581.51 | AY32: 0 | AZ32: 0 | BA32: 4252678.388 | BB32: 0 | BC32: 0 | BD32: 0 | BE32: 19528308.96 | BF32: 0 | BG32: 0 | BH32: 0 | BI32: 0 | BJ32: 0 | BK32: 0 | BL32: 0 | BM32: 0 | BN32: 0 | BO32: 0 | BP32: 0 | BQ32: 35098568.85
A33: =Prop2018DistTar!A33 -> HV | B33: =Prop2018DistTar!B33 -> High Voltage | D33: 0 | E33: 0 | F33: 0.98 | G33: 0 | H33: 0 | I33: 0.37 | J33: 0 | K33: 0 | L33: 0 | M33: 35.29 | N33: 0 | O33: 0 | P33: 0 | Q33: 0 | R33: 0 | S33: 0 | T33: 0 | U33: 0 | V33: 0 | W33: 0 | X33: 0 | Z33: =Prop2018DistTar!AV33 -> 173 | AA33: =Prop2018DistTar!AW33 -> 0 | AB33: =Prop2018DistTar!AX33 -> 761179064.6 | AC33: =Prop2018DistTar!AY33 -> 0 | AD33: =Prop2018DistTar!AZ33 -> 0 | AE33: =Prop2018DistTar!BA33 -> 676982871.9 | AF33: =Prop2018DistTar!BB33 -> 0 | AG33: =Prop2018DistTar!BC33 -> 0 | AH33: =Prop2018DistTar!BD33 -> 0 | AI33: =Prop2018DistTar!BE33 -> 394844.7254 | AJ33: =Prop2018DistTar!BF33 -> 0 | AK33: =Prop2018DistTar!BG33 -> 0 | AL33: =Prop2018DistTar!BH33 -> 0 | AM33: =Prop2018DistTar!BI33 -> 0 | AN33: =Prop2018DistTar!BJ33 -> 0 | AO33: =Prop2018DistTar!BK33 -> 0 | AP33: =Prop2018DistTar!BL33 -> 0 | AQ33: =Prop2018DistTar!BM33 -> 0 | AR33: =Prop2018DistTar!BN33 -> 0 | AS33: =Prop2018DistTar!BO33 -> 0 | AT33: =Prop2018DistTar!BP33 -> 0 | AV33: 0 | AW33: 0 | AX33: 7459554.833 | AY33: 0 | AZ33: 0 | BA33: 2504836.626 | BB33: 0 | BC33: 0 | BD33: 0 | BE33: 13934070.36 | BF33: 0 | BG33: 0 | BH33: 0 | BI33: 0 | BJ33: 0 | BK33: 0 | BL33: 0 | BM33: 0 | BN33: 0 | BO33: 0 | BP33: 0 | BQ33: 23898461.82
A34: =Prop2018DistTar!A34 -> HVD | B34: =Prop2018DistTar!B34 -> High Voltage Docklands | D34: 0 | E34: 0 | F34: 0.78 | G34: 0 | H34: 0 | I34: 0.31 | J34: 0 | K34: 0 | L34: 0 | M34: 28.84 | N34: 0 | O34: 0 | P34: 0 | Q34: 0 | R34: 0 | S34: 0 | T34: 0 | U34: 0 | V34: 0 | W34: 0 | X34: 0 | Z34: =Prop2018DistTar!AV34 -> 9 | AA34: =Prop2018DistTar!AW34 -> 0 | AB34: =Prop2018DistTar!AX34 -> 142211194.7 | AC34: =Prop2018DistTar!AY34 -> 0 | AD34: =Prop2018DistTar!AZ34 -> 0 | AE34: =Prop2018DistTar!BA34 -> 148646852.4 | AF34: =Prop2018DistTar!BB34 -> 0 | AG34: =Prop2018DistTar!BC34 -> 0 | AH34: =Prop2018DistTar!BD34 -> 0 | AI34: =Prop2018DistTar!BE34 -> 58586.29033 | AJ34: =Prop2018DistTar!BF34 -> 0 | AK34: =Prop2018DistTar!BG34 -> 0 | AL34: =Prop2018DistTar!BH34 -> 0 | AM34: =Prop2018DistTar!BI34 -> 0 | AN34: =Prop2018DistTar!BJ34 -> 0 | AO34: =Prop2018DistTar!BK34 -> 0 | AP34: =Prop2018DistTar!BL34 -> 0 | AQ34: =Prop2018DistTar!BM34 -> 0 | AR34: =Prop2018DistTar!BN34 -> 0 | AS34: =Prop2018DistTar!BO34 -> 0 | AT34: =Prop2018DistTar!BP34 -> 0 | AV34: 0 | AW34: 0 | AX34: 1109247.318 | AY34: 0 | AZ34: 0 | BA34: 460805.2424 | BB34: 0 | BC34: 0 | BD34: 0 | BE34: 1689628.613 | BF34: 0 | BG34: 0 | BH34: 0 | BI34: 0 | BJ34: 0 | BK34: 0 | BL34: 0 | BM34: 0 | BN34: 0 | BO34: 0 | BP34: 0 | BQ34: 3259681.174
A35: =Prop2018DistTar!A35 -> ST | B35: =Prop2018DistTar!B35 -> Subtransmission | D35: 0 | E35: 0 | F35: 2.09 | G35: 0 | H35: 0 | I35: 0.64 | J35: 0 | K35: 0 | L35: 0 | M35: 19.55 | N35: 0 | O35: 0 | P35: 0 | Q35: 0 | R35: 0 | S35: 0 | T35: 0 | U35: 0 | V35: 0 | W35: 0 | X35: 0 | Z35: =Prop2018DistTar!AV35 -> 11 | AA35: =Prop2018DistTar!AW35 -> 0 | AB35: =Prop2018DistTar!AX35 -> 530995472.6 | AC35: =Prop2018DistTar!AY35 -> 0 | AD35: =Prop2018DistTar!AZ35 -> 0 | AE35: =Prop2018DistTar!BA35 -> 460236066 | AF35: =Prop2018DistTar!BB35 -> 0 | AG35: =Prop2018DistTar!BC35 -> 0 | AH35: =Prop2018DistTar!BD35 -> 0 | AI35: =Prop2018DistTar!BE35 -> 267192.9453 | AJ35: =Prop2018DistTar!BF35 -> 0 | AK35: =Prop2018DistTar!BG35 -> 0 | AL35: =Prop2018DistTar!BH35 -> 0 | AM35: =Prop2018DistTar!BI35 -> 0 | AN35: =Prop2018DistTar!BJ35 -> 0 | AO35: =Prop2018DistTar!BK35 -> 0 | AP35: =Prop2018DistTar!BL35 -> 0 | AQ35: =Prop2018DistTar!BM35 -> 0 | AR35: =Prop2018DistTar!BN35 -> 0 | AS35: =Prop2018DistTar!BO35 -> 0 | AT35: =Prop2018DistTar!BP35 -> 0 | AV35: 0 | AW35: 0 | AX35: 11097805.38 | AY35: 0 | AZ35: 0 | BA35: 2945510.823 | BB35: 0 | BC35: 0 | BD35: 0 | BE35: 5223622.081 | BF35: 0 | BG35: 0 | BH35: 0 | BI35: 0 | BJ35: 0 | BK35: 0 | BL35: 0 | BM35: 0 | BN35: 0 | BO35: 0 | BP35: 0 | BQ35: 19266938.28
AV55: 0 | AW55: 0 | AX55: 0 | AY55: 0 | AZ55: 0 | BA55: 0 | BB55: 0 | BC55: 0 | BD55: 0 | BE55: 0 | BF55: 0 | BG55: 0 | BH55: 0 | BI55: 0 | BJ55: 0 | BK55: 0 | BL55: 0 | BM55: 0 | BN55: 0 | BO55: 0 | BP55: 0 | BQ55: 0
AV56: 0 | AW56: 0 | AX56: 0 | AY56: 0 | AZ56: 0 | BA56: 0 | BB56: 0 | BC56: 0 | BD56: 0 | BE56: 0 | BF56: 0 | BG56: 0 | BH56: 0 | BI56: 0 | BJ56: 0 | BK56: 0 | BL56: 0 | BM56: 0 | BN56: 0 | BO56: 0 | BP56: 0 | BQ56: 0
AV57: 0 | AW57: 0 | AX57: 0 | AY57: 0 | AZ57: 0 | BA57: 0 | BB57: 0 | BC57: 0 | BD57: 0 | BE57: 0 | BF57: 0 | BG57: 0 | BH57: 0 | BI57: 0 | BJ57: 0 | BK57: 0 | BL57: 0 | BM57: 0 | BN57: 0 | BO57: 0 | BP57: 0 | BQ57: 0
AV58: 0 | AW58: 0 | AX58: 0 | AY58: 0 | AZ58: 0 | BA58: 0 | BB58: 0 | BC58: 0 | BD58: 0 | BE58: 0 | BF58: 0 | BG58: 0 | BH58: 0 | BI58: 0 | BJ58: 0 | BK58: 0 | BL58: 0 | BM58: 0 | BN58: 0 | BO58: 0 | BP58: 0 | BQ58: 0
AV59: 0 | AW59: 0 | AX59: 0 | AY59: 0 | AZ59: 0 | BA59: 0 | BB59: 0 | BC59: 0 | BD59: 0 | BE59: 0 | BF59: 0 | BG59: 0 | BH59: 0 | BI59: 0 | BJ59: 0 | BK59: 0 | BL59: 0 | BM59: 0 | BN59: 0 | BO59: 0 | BP59: 0 | BQ59: 0
AV60: 0 | AW60: 0 | AX60: 0 | AY60: 0 | AZ60: 0 | BA60: 0 | BB60: 0 | BC60: 0 | BD60: 0 | BE60: 0 | BF60: 0 | BG60: 0 | BH60: 0 | BI60: 0 | BJ60: 0 | BK60: 0 | BL60: 0 | BM60: 0 | BN60: 0 | BO60: 0 | BP60: 0 | BQ60: 0
AV61: 0 | AW61: 0 | AX61: 0 | AY61: 0 | AZ61: 0 | BA61: 0 | BB61: 0 | BC61: 0 | BD61: 0 | BE61: 0 | BF61: 0 | BG61: 0 | BH61: 0 | BI61: 0 | BJ61: 0 | BK61: 0 | BL61: 0 | BM61: 0 | BN61: 0 | BO61: 0 | BP61: 0 | BQ61: 0
AV62: 0 | AW62: 0 | AX62: 0 | AY62: 0 | AZ62: 0 | BA62: 0 | BB62: 0 | BC62: 0 | BD62: 0 | BE62: 0 | BF62: 0 | BG62: 0 | BH62: 0 | BI62: 0 | BJ62: 0 | BK62: 0 | BL62: 0 | BM62: 0 | BN62: 0 | BO62: 0 | BP62: 0 | BQ62: 0
AV63: 0 | AW63: 0 | AX63: 0 | AY63: 0 | AZ63: 0 | BA63: 0 | BB63: 0 | BC63: 0 | BD63: 0 | BE63: 0 | BF63: 0 | BG63: 0 | BH63: 0 | BI63: 0 | BJ63: 0 | BK63: 0 | BL63: 0 | BM63: 0 | BN63: 0 | BO63: 0 | BP63: 0 | BQ63: 0
AV64: 0 | AW64: 0 | AX64: 0 | AY64: 0 | AZ64: 0 | BA64: 0 | BB64: 0 | BC64: 0 | BD64: 0 | BE64: 0 | BF64: 0 | BG64: 0 | BH64: 0 | BI64: 0 | BJ64: 0 | BK64: 0 | BL64: 0 | BM64: 0 | BN64: 0 | BO64: 0 | BP64: 0 | BQ64: 0
AV65: 0 | AW65: 0 | AX65: 0 | AY65: 0 | AZ65: 0 | BA65: 0 | BB65: 0 | BC65: 0 | BD65: 0 | BE65: 0 | BF65: 0 | BG65: 0 | BH65: 0 | BI65: 0 | BJ65: 0 | BK65: 0 | BL65: 0 | BM65: 0 | BN65: 0 | BO65: 0 | BP65: 0 | BQ65: 0
Z66: =SUM(Z6:Z65)-SUM(Z17:Z20) -> 822141.7663 | AA66: =SUM(AA6:AA65) -> 2529447018 | AB66: 4181244956 | AC66: 0 | AD66: 0 | AE66: 3953804623 | AF66: 0 | AG66: 0 | AH66: 0 | AI66: 1560912.643 | AJ66: 0 | AK66: 1449407.016 | AL66: 2541452.815 | AM66: =SUM(AM6:AM65) -> 1406089.762 | AN66: 1775241.493 | AO66: 1651659.466 | AP66: 0 | AQ66: 4254857.318 | AR66: 5574059.205 | AS66: 5233513.702 | AT66: 0 | AV66: =SUM(AV6:AV65) -> 0 | AW66: 38464963.64 | AX66: 57628762.84 | AY66: 0 | AZ66: 0 | BA66: 18746911.52 | BB66: 0 | BC66: 0 | BD66: 0 | BE66: 40375630.01 | BF66: 0 | BG66: 783091.5841 | BH66: 686391.3514 | BI66: 36909.478 | BJ66: 27050.94867 | BK66: 9925.182841 | BL66: 0 | BM66: 110785.8375 | BN66: 85884.32229 | BO66: 31854.66906 | BP66: 0 | BQ66: 156988161.4
BQ67: 0

Sheet Est2017TransRev
B1: ="Tariff Approval - "&'Model update'!C3 -> Tariff Approval - Powercor
B3: ="ESTIMATED "&'Model update'!C8&" TRANSMISSION TARIFF REVENUE" -> ESTIMATED 2017 TRANSMISSION TARIFF REVENUE
D4: ="Current Transmission Tariffs (Pt-1) for "&'Model update'!$C$8 -> Current Transmission Tariffs (Pt-1) for 2017 | Z4: ="Estimated Quantities (Qt-1) for "&'Model update'!$C$8 -> Estimated Quantities (Qt-1) for 2017 | AV4: ="Estimated Revenue (Pt-1 "&'Model update'!$C$8&")*(Qt-1 " &'Model update'!$C$8&")" -> Estimated Revenue (Pt-1 2017)*(Qt-1 2017)
B5: ="Tariffs "&'Model update'!C8 -> Tariffs 2017 | D5: Current Fixed | E5: Current Anytime | F5: Current PkBlk | I5: Current OPkBlk1 | M5: Current Dem kVA | N5: Current Dem kW | O5: Current Dem kW Sum | P5: Current Dem kW Win | Q5: Current SumBlk1 | R5: Current SumBlk2 | S5: Current SumBlk3 | U5: Current WtrBlk1 | V5: Current WtrBlk2 | W5: Current WtrBlk3 | Z5: EstVol Fixed | AA5: EstVol Anytime | AB5: EstVol PkBlk | AE5: EstVol OPkBlk | AI5: EstVol Dem kVA | AJ5: EstVol Dem kW | AK5: EstVol Dem kW Sum | AL5: EstVol Dem kW Win | AM5: EstVol SumBlk1 | AN5: EstVol SumBlk2 | AO5: EstVol SumBlk3 | AQ5: EstVol WtrBlk1 | AR5: EstVol WtrBlk2 | AS5: EstVol WtrBlk3 | AV5: EstRev Fixed | AW5: EstRev Anytime | AX5: EstRev PkBlk | BA5: EstRev Opk | BE5: EstRev Dem kVA | BF5: EstRev Dem kW | BG5: EstRev Dem kW Sum | BH5: EstRev Dem kW Win | BI5: EstRev SumBlk1 | BJ5: EstRev SumBlk2 | BK5: EstRev SumBlk3 | BM5: EstRev WtrBlk1 | BN5: EstRev WtrBlk2 | BO5: EstRev WtrBlk3 | BQ5: EstRev Total
A7: =Est2017DistRev!A7 -> D1 | B7: =Est2017DistRev!B7 -> Residential Single Rate | D7: 0 | E7: 1.85 | F7: 0 | I7: 0 | M7: 0 | O7: 0 | P7: 0 | Q7: 0 | R7: 0 | S7: 0 | U7: 0 | V7: 0 | W7: 0 | Z7: =Est2017DistRev!Z7 -> 518241.6987 | AA7: =Est2017DistRev!AA7 -> 2020419148 | AB7: =Est2017DistRev!AB7 -> 0 | AC7: =Est2017DistRev!AC7 -> 0 | AD7: =Est2017DistRev!AD7 -> 0 | AE7: =Est2017DistRev!AE7 -> 0 | AF7: =Est2017DistRev!AF7 -> 0 | AG7: =Est2017DistRev!AG7 -> 0 | AH7: =Est2017DistRev!AH7 -> 0 | AI7: =Est2017DistRev!AI7 -> 0 | AJ7: =Est2017DistRev!AJ7 -> 0 | AK7: =Est2017DistRev!AK7 -> 0 | AL7: =Est2017DistRev!AL7 -> 0 | AM7: =Est2017DistRev!AM7 -> 0 | AN7: =Est2017DistRev!AN7 -> 0 | AO7: =Est2017DistRev!AO7 -> 0 | AP7: =Est2017DistRev!AP7 -> 0 | AQ7: =Est2017DistRev!AQ7 -> 0 | AR7: =Est2017DistRev!AR7 -> 0 | AS7: =Est2017DistRev!AS7 -> 0 | AT7: =Est2017DistRev!AT7 -> 0 | AV7: =D7*Z7 -> 0 | AW7: =E7/100*AA7 -> 37377754.23 | AX7: 0 | AY7: 0 | AZ7: 0 | BA7: 0 | BB7: 0 | BC7: 0 | BD7: 0 | BE7: =M7*AI7 -> 0 | BF7: 0 | BG7: 0 | BH7: 0 | BI7: =Q7/100*AM7 -> 0 | BJ7: 0 | BK7: 0 | BL7: 0 | BM7: 0 | BN7: 0 | BO7: 0 | BP7: 0 | BQ7: =SUM(AV7:BP7) -> 37377754.23
A8: =Est2017DistRev!A8 -> D1CS | B8: =Est2017DistRev!B8 -> Climate Saver | D8: 0 | E8: 0 | F8: 2.62 | I8: 0.53 | M8: 0 | O8: 0 | P8: 0 | Q8: 0 | R8: 0 | S8: 0 | U8: 0 | V8: 0 | W8: 0 | Z8: =Est2017DistRev!Z8 -> 17458.85933 | AA8: =Est2017DistRev!AA8 -> 0 | AB8: =Est2017DistRev!AB8 -> 8537325.949 | AC8: =Est2017DistRev!AC8 -> 0 | AD8: =Est2017DistRev!AD8 -> 0 | AE8: =Est2017DistRev!AE8 -> 24278479.92 | AF8: =Est2017DistRev!AF8 -> 0 | AG8: =Est2017DistRev!AG8 -> 0 | AH8: =Est2017DistRev!AH8 -> 0 | AI8: =Est2017DistRev!AI8 -> 0 | AJ8: =Est2017DistRev!AJ8 -> 0 | AK8: =Est2017DistRev!AK8 -> 0 | AL8: =Est2017DistRev!AL8 -> 0 | AM8: =Est2017DistRev!AM8 -> 0 | AN8: =Est2017DistRev!AN8 -> 0 | AO8: =Est2017DistRev!AO8 -> 0 | AP8: =Est2017DistRev!AP8 -> 0 | AQ8: =Est2017DistRev!AQ8 -> 0 | AR8: =Est2017DistRev!AR8 -> 0 | AS8: =Est2017DistRev!AS8 -> 0 | AT8: =Est2017DistRev!AT8 -> 0 | AV8: =D8*Z8 -> 0 | AW8: =E8/100*AA8 -> 0 | AX8: =F8/100*AB8 -> 223677.9399 | AY8: =G8/100*AC8 -> 0 | AZ8: =H8/100*AD8 -> 0 | BA8: =I8/100*AE8 -> 128675.9436 | BB8: =J8/100*AF8 -> 0 | BC8: =K8/100*AG8 -> 0 | BD8: =L8/100*AH8 -> 0 | BE8: =M8*AI8 -> 0 | BF8: =N8*AJ8 -> 0 | BG8: =O8*AK8 -> 0 | BH8: =P8*AL8 -> 0 | BI8: =Q8/100*AM8 -> 0 | BJ8: =R8/100*AN8 -> 0 | BK8: =S8/100*AO8 -> 0 | BL8: =T8/100*AP8 -> 0 | BM8: =U8/100*AQ8 -> 0 | BN8: =V8/100*AR8 -> 0 | BO8: =W8/100*AS8 -> 0 | BP8: =X8/100*AT8 -> 0 | BQ8: =SUM(AV8:BP8) -> 352353.8835
A9: =Est2017DistRev!A9 -> D3CS | B9: =Est2017DistRev!B9 -> Climate Saver Interval | D9: 0 | E9: 0 | F9: 2.62 | I9: 0.53 | M9: 0 | O9: 0 | P9: 0 | Q9: 0 | R9: 0 | S9: 0 | U9: 0 | V9: 0 | W9: 0 | Z9: =Est2017DistRev!Z9 -> 4737.692667 | AA9: =Est2017DistRev!AA9 -> 0 | AB9: =Est2017DistRev!AB9 -> 2390070.133 | AC9: =Est2017DistRev!AC9 -> 0 | AD9: =Est2017DistRev!AD9 -> 0 | AE9: =Est2017DistRev!AE9 -> 8636963.312 | AF9: =Est2017DistRev!AF9 -> 0 | AG9: =Est2017DistRev!AG9 -> 0 | AH9: =Est2017DistRev!AH9 -> 0 | AI9: =Est2017DistRev!AI9 -> 0 | AJ9: =Est2017DistRev!AJ9 -> 0 | AK9: =Est2017DistRev!AK9 -> 0 | AL9: =Est2017DistRev!AL9 -> 0 | AM9: =Est2017DistRev!AM9 -> 0 | AN9: =Est2017DistRev!AN9 -> 0 | AO9: =Est2017DistRev!AO9 -> 0 | AP9: =Est2017DistRev!AP9 -> 0 | AQ9: =Est2017DistRev!AQ9 -> 0 | AR9: =Est2017DistRev!AR9 -> 0 | AS9: =Est2017DistRev!AS9 -> 0 | AT9: =Est2017DistRev!AT9 -> 0 | AV9: 0 | AW9: 0 | AX9: 62619.83749 | AY9: 0 | AZ9: 0 | BA9: 45775.90555 | BB9: 0 | BC9: 0 | BD9: 0 | BE9: 0 | BF9: 0 | BG9: 0 | BH9: 0 | BI9: 0 | BJ9: 0 | BK9: 0 | BL9: 0 | BM9: 0 | BN9: 0 | BO9: 0 | BP9: 0 | BQ9: 108395.743
A10: =Est2017DistRev!A10 -> P13R | B10: =Est2017DistRev!B10 -> Residential - Flexible Pricing | D10: 0 | E10: 0 | F10: 0 | I10: 0 | M10: 0 | O10: 0 | P10: 0 | Q10: 3.4 | R10: 1.92 | S10: 0.74 | U10: 3.4 | V10: 1.92 | W10: 0.74 | Z10: =Est2017DistRev!Z10 -> 2779.606667 | AA10: =Est2017DistRev!AA10 -> 0 | AB10: =Est2017DistRev!AB10 -> 0 | AC10: =Est2017DistRev!AC10 -> 0 | AD10: =Est2017DistRev!AD10 -> 0 | AE10: =Est2017DistRev!AE10 -> 0 | AF10: =Est2017DistRev!AF10 -> 0 | AG10: =Est2017DistRev!AG10 -> 0 | AH10: =Est2017DistRev!AH10 -> 0 | AI10: =Est2017DistRev!AI10 -> 0 | AJ10: =Est2017DistRev!AJ10 -> 0 | AK10: =Est2017DistRev!AK10 -> 0 | AL10: =Est2017DistRev!AL10 -> 0 | AM10: =Est2017DistRev!AM10 -> 3193271.578 | AN10: =Est2017DistRev!AN10 -> 6308467.433 | AO10: =Est2017DistRev!AO10 -> 4989095.807 | AP10: =Est2017DistRev!AP10 -> 0 | AQ10: =Est2017DistRev!AQ10 -> 3193271.578 | AR10: =Est2017DistRev!AR10 -> 6308467.433 | AS10: =Est2017DistRev!AS10 -> 4989095.807 | AT10: =Est2017DistRev!AT10 -> 0 | AV10: 0 | AW10: 0 | AX10: 0 | AY10: 0 | AZ10: 0 | BA10: 0 | BB10: 0 | BC10: 0 | BD10: 0 | BE10: 0 | BF10: 0 | BG10: 0 | BH10: 0 | BI10: 108571.2337 | BJ10: 121122.5747 | BK10: 36919.30897 | BL10: 0 | BM10: 108571.2337 | BN10: 121122.5747 | BO10: 36919.30897 | BP10: 0 | BQ10: 533226.2347
A11: =Est2017DistRev!A11 -> P13RDK | B11: =Est2017DistRev!B11 -> Residential Docklands - Flexible Pricing | D11: 0 | E11: 0 | F11: 0 | I11: 0 | M11: 0 | O11: 0 | P11: 0 | Q11: 1.83 | R11: 1 | S11: 0.34 | U11: 1.83 | V11: 1 | W11: 0.34 | Z11: =Est2017DistRev!Z11 -> 1.016 | AA11: =Est2017DistRev!AA11 -> 0 | AB11: =Est2017DistRev!AB11 -> 0 | AC11: =Est2017DistRev!AC11 -> 0 | AD11: =Est2017DistRev!AD11 -> 0 | AE11: =Est2017DistRev!AE11 -> 0 | AF11: =Est2017DistRev!AF11 -> 0 | AG11: =Est2017DistRev!AG11 -> 0 | AH11: =Est2017DistRev!AH11 -> 0 | AI11: =Est2017DistRev!AI11 -> 0 | AJ11: =Est2017DistRev!AJ11 -> 0 | AK11: =Est2017DistRev!AK11 -> 0 | AL11: =Est2017DistRev!AL11 -> 0 | AM11: =Est2017DistRev!AM11 -> 1694.794419 | AN11: =Est2017DistRev!AN11 -> 2947.382714 | AO11: =Est2017DistRev!AO11 -> 2050.178034 | AP11: =Est2017DistRev!AP11 -> 0 | AQ11: =Est2017DistRev!AQ11 -> 1694.794419 | AR11: =Est2017DistRev!AR11 -> 2947.382714 | AS11: =Est2017DistRev!AS11 -> 2050.178034 | AT11: =Est2017DistRev!AT11 -> 0 | AV11: 0 | AW11: 0 | AX11: 0 | AY11: 0 | AZ11: 0 | BA11: 0 | BB11: 0 | BC11: 0 | BD11: 0 | BE11: 0 | BF11: 0 | BG11: 0 | BH11: 0 | BI11: 31.01473786 | BJ11: 29.47382714 | BK11: 6.970605314 | BL11: 0 | BM11: 31.01473786 | BN11: 29.47382714 | BO11: 6.970605314 | BP11: 0 | BQ11: 134.9183406
A12: =Est2017DistRev!A12 -> P13RCS | B12: =Est2017DistRev!B12 -> Climate Saver - Flexible Pricing | D12: 0 | E12: 0 | F12: 0 | I12: 0 | M12: 0 | O12: 0 | P12: 0 | Q12: 2.62 | R12: 0 | S12: 0 | U12: 0.53 | V12: 0 | W12: 0 | Z12: =Est2017DistRev!Z12 -> 0 | AA12: =Est2017DistRev!AA12 -> 0 | AB12: =Est2017DistRev!AB12 -> 0 | AC12: =Est2017DistRev!AC12 -> 0 | AD12: =Est2017DistRev!AD12 -> 0 | AE12: =Est2017DistRev!AE12 -> 0 | AF12: =Est2017DistRev!AF12 -> 0 | AG12: =Est2017DistRev!AG12 -> 0 | AH12: =Est2017DistRev!AH12 -> 0 | AI12: =Est2017DistRev!AI12 -> 0 | AJ12: =Est2017DistRev!AJ12 -> 0 | AK12: =Est2017DistRev!AK12 -> 0 | AL12: =Est2017DistRev!AL12 -> 0 | AM12: =Est2017DistRev!AM12 -> 12044.16822 | AN12: =Est2017DistRev!AN12 -> 0 | AO12: =Est2017DistRev!AO12 -> 0 | AP12: =Est2017DistRev!AP12 -> 0 | AQ12: =Est2017DistRev!AQ12 -> 12044.16822 | AR12: =Est2017DistRev!AR12 -> 0 | AS12: =Est2017DistRev!AS12 -> 0 | AT12: =Est2017DistRev!AT12 -> 0 | AV12: 0 | AW12: 0 | AX12: 0 | AY12: 0 | AZ12: 0 | BA12: 0 | BB12: 0 | BC12: 0 | BD12: 0 | BE12: 0 | BF12: 0 | BG12: 0 | BH12: 0 | BI12: 315.5572072 | BJ12: 0 | BK12: 0 | BL12: 0 | BM12: 63.83409154 | BN12: 0 | BO12: 0 | BP12: 0 | BQ12: 379.3912988
